Workbook

Sheet NUMEROS
A1: NUMEROS: Programs for numerical data analysis | B1: Record: Y | C1: M | D1: D | E1: Content
A2: ver.2019.10.17 | B2: 2013 | C2: 7 | D2: 11 | E2: Concentration (CCT) in Relatin, Analysis, Cluster
D3: 26 | E3: Association in Score
A4: Language | D4: 27 | E4: Prominent coefficient in Score
A5: 2 | E5: Relativization option in Score
A6: Decimal | E6: Mutlple condition frequency in ANA
A7: 4 | C7: 5 | D7: 31 | E7: Mutlple Condition list in ANA
C8: 7 | D8: 4 | E8: Frequency and linear dispersion in ANA
A9: Shorcut for start: [Ctrl]+[Shift]+N | C9: 7 | D9: 7 | E9: Distinction / Stat, Distinction score / Score
C10: 10 | D10: 1 | E10: Trimmed average / Stat, Group mode / Stat
A11: Please read the document in: | B11: 2014 | C11: 10 | D11: 24 | E11: Unified normal coefficient of variation / Stat
A12: http://lecture.ecc.u-tokyo.ac.jp/~cueda/gengo/ | C12: 11 | D12: 7 | E12: Coefficient of multiple association / Ana
C13: 11 | D13: 17 | E13: Major average / Stat
A14: We are improving this program continuously. | E14: Lateral concentration by correspondence / Cct
A15: Please send me your opinions. | C15: 1 | D15: 15 | E15: Standard skewness, normalized standard skewness / Sta
B16: 2015 | C16: 2 | D16: 4 | E16: Goodmann & Kruskal's Index of predicative association / Cct
A17: Hiroto Ueda | C17: 4 | D17: 4 | E17: Complement coefficient / Cct
A18: uedahiroto@jcom.home.ne.jp | C18: 4 | D18: 5 | E18: Mean alternation / Cct
C19: 4 | D19: 8 | E19: Output data caracterization
C20: 5 | D20: 10 | E20: Random probability / Normal probability
C21: 7 | D21: 2 | E21: Logistic regression, Normal regression, Exponent regression, PCA regression
C22: 7 | D22: 24 | E22: Normalized Gini, Normalized Entropy / Sta
C23: 7 | D23: 29 | E23: Facility interval
C24: 11 | D24: 5 | E24: Logistic regression
D25: 9 | E25: Quantification of nominal scale variable
C26: 12 | D26: 15 | E26: Nominal Principal Component Multiple Regression
B27: 2016 | C27: 3 | D27: 15 | E27: Analysis: Generality
C28: 4 | D28: 7 | E28: Graphs: Barchart with numerical axis
C29: 4 | D29: 20 | E29: Line chart with series
C30: 6 | D30: 20 | E30: Concentration: tightness
C31: 6 | D31: 30 | E31: Concentration by permutation
C32: 7 | D32: 10 | E32: Principal Component, Biplot
C33: 7 | D33: 20 | E33: Chi significance, Exact significance, Significant score
C34: 7 | D34: 23 | E34: 2 dimensions <-> 3 columns in Matrix
C35: 8 | D35: 8 | E35: Smooth score by moving average in Score
C36: 11 | D36: 17 | E36: Mutual information, simple selection ratio, comparative selection ratio in Relation
B37: 2017 | C37: 1 | D37: 10 | E37: Dummy variable (1/0) in Score
C38: 7 | D38: 1 | E38: Probabilistic frequency score in Score
C39: 8 | D39: 11 | E39: Proportinal mean in Statistic
B40: 2018 | C40: 9 | D40: 11 | E40: Uppper and lower mean deviation in Statistic and graph
B41: 2019 | C41: 10 | D41: 17 | E41: Distance matrix in Cluster
C42: 11 | D42: 28 | E42: Regular distance in Relation
B43: 2020 | C43: 10 | D43: 14 | E43: Unification of individual and variable in Score
B44: 2021 | C44: 7 | D44: 27 | E44: Geometric standard deviation in Statistic
E45: Mean position in Statistic
E46: Geometric mean position in Statistic
E47: Mean contrast in Statistic
E48: Geometric mean contrast in Statistic
E49: Boxchart by geometric mean and meometric standard deviation in Graph

Sheet Lng
A1: # | B1: 日本語 | C1: English | D1: Español
A2: 0 | B2: 始 | C2: Top | D2: Ini.
A3: 1 | B3: 行列 | C3: Matrix | D3: Matriz
A4: 2 | B4: 統計 | C4: Stat | D4: Est
A5: 3 | B5: 得点 | C5: Sco | D5: Puntos
A6: 4 | B6: 関係 | C6: Rel | D6: Rel
A7: 5 | B7: 分析 | C7: Ana | D7: Ana
A8: 6 | B8: 予測 | C8: Inf | D8: Inf
A9: 7 | B9: 集中 | C9: Cct | D9: Cct
A10: 8 | B10: 分類 | C10: Clst | D10: Clst
A11: 9 | B11: 検索 | C11: Sch | D11: Bsq
A12: 10 | B12: 図 | C12: Graph | D12: Gráf.
A13: 17 | B13: 言語 | C13: Language | D13: Idioma
A14: 18 | B14: セルを選択し入力ボタンを押してください | C14: Select cell and click Input | D14: Seleccione celda y clic Input
A15: 19 | B15: セルを選択し出力ボタンを押してください | C15: Select cell and click Output | D15: Seleccione celda y clic Output
A16: 20 | B16: 選択してください | C16: SELECT | D16: SELECCIONE
A17: 28 | B17: 入力が正方行列ではありません。 | C17: Input is not a square matrix. | D17: Input no es matriz cuadrada.
A18: 29 | B18: 逆行列は存在しません。 | C18: Inverse matrix does not exist. | D18: No existe la matriz inversa.
A19: 30 | B19: 差(-) | C19: Difference (-) | D19: Diferencia (-)
A20: 84 | B20: 精密有意性 | C20: Exact significance | D20: Significación exacta
A21: 85 | B21: 精密有意性＋マーク | C21: Exact significance + mark | D21: Significación exacta + marca
A22: 86 | B22: x >= A | C22: x >= A | D22: x >= A
A23: 87 | B23: x > A | C23: x > A | D23: x > A
A24: 88 | B24: x <= A | C24: x <= A | D24: x <= A
A25: 89 | B25: x < A | C25: x < A | D25: x < A
A26: 90 | B26: x = A | C26: x = A | D26: x = A
A27: 91 | B27: x <> A | C27: x <> A | D27: x <> A
A28: 92 | B28: A <= x <= B | C28: A <= x <= B | D28: A <= x <= B
A29: 93 | B29: x < A or B < x | C29: x < A or B < x | D29: x < A or B < x
A30: 94 | B30: x = 数値 | C30: x = Number | D30: x = Número
A31: 95 | B31: x = 文字 | C31: x = Alphabet | D31: x = Alfabeto
A32: 96 | B32: x = 空白 | C32: x = Blank | D32: x = Blanco
A33: 97 | B33: ウェイト | C33: Weight | D33: Peso
A34: 98 | B34: 比較 | C34: Compare | D34: Comparar
A35: 99 | B35: 特徴化（なし） | C35: Caract: no | D35: Caract: no
A36: 100 | B36: 平均値 | C36: Average | D36: Media
A37: 101 | B37: 中央値 | C37: Median | D37: Mediana
A38: 102 | B38: 最小値 | C38: Minimum | D38: Mínimo
A39: 103 | B39: 最大値 | C39: Maximum | D39: Máximo
A40: 104 | B40: 中間値 | C40: Mid | D40: Mitad
A41: 105 | B41: 上位. (N) | C41: Upper pos. (N) | D41: Primeros. (N)
A42: 106 | B42: 下位. (N) | C42: Lower pos. (N) | D42: Últimos (N)
A43: 107 | B43: 四分位 (N) | C43: Quartile (N) | D43: Cuartil (N)
A44: 108 | B44: パーセンタイル (N) | C44: Percentile (N) | D44: Porcentil (N)
A45: 109 | B45: 平均値+- (N)xSD | C45: Av. +- (N)xSD | D45: Media +- (N)xSD
A46: 110 | B46: 中央値. +- (N)xPercentile: | C46: Md. +- (N)xPercentile: | D46: Median +- (N)xPercentile:
A47: 111 | B47: 指定値(N) | C47: Assigned(N) | D47: Asigndo (N)
A48: 120 | B48: 階級得点 (A) | C48: Class score (A) | D48: Puntuación en clase (A)
A49: 121 | B49: 相対得点 | C49: Relative score | D49: Puntuación relativa
A50: 122 | B50: 対立得点 | C50: Oppositive score | D50: Puntuación opositiva
A51: 123 | B51: 比例得点 | C51: Proportional score | D51: Puntuación proporcional
A52: 124 | B52: 限定得点 | C52: Limited score | D52: Puntuación limitada
A53: 125 | B53: 比較得点 | C53: Comparative Score | D53: Puntuación comparativa
A54: 126 | B54: 標準得点 | C54: Standard score | D54: Puntuación estándard
A55: 127 | B55: 相対標準得点 | C55: Rel. std. score | D55: Puntuación est. rel.
A56: 128 | B56: 一般化相対標準得点 | C56: Gen. Rel. Std. Score | D56: Puntuación est. Rel. Ger.
A57: 129 | B57: 期待値 | C57: Expected value | D57: Valores esperados
A58: 130 | B58: 期待値比較得点 | C58: Expected comp. score | D58: Puntuación esperada comp.
A59: 131 | B59: 確率頻度得点 | C59: Probabilistic frequency score | D59: Puntuación de frecuencia probabilística
A60: 132 | B60: 二項確率有意得点 | C60: Significance score by binomial probability | D60: Puntuación significativa por probabilidad binomial
A61: 133 | B61: 二項確率有意得点＋マーク | C61: Significance score by binomial probability + mark | D61: Puntuación significativa por probabilidad binomial + marca
A62: 134 | B62: 二項確率安全得点 | C62: Security score by binomial probability | D62: Puntuación de seguridad por probabilidad binomial
A63: 135 | B63: 二項確率安全得点＋マーク | C63: Security score by binomial probability + mark | D63: Puntuación de seguridad por probabilidad binomial + marca
A64: 136 | B64: 正規確率有意得点 | C64: Normal significance score | D64: Puntuación significativa normal
A65: 137 | B65: 正規確率有意得点＋マーク | C65: Normal significance score + mark | D65: Puntuación significativa normal + marca
A66: 138 | B66: 逸脱得点 | C66: Divergent score | D66: Puntuación divergente
A67: 139 | B67: 逸脱得点＋マーク | C67: Divergent score + mark | D67: Puntuación divergente + marca
A68: 140 | B68: 昇順位得点 | C68: Asc. Order score | D68: Puntuación orden asc.
A69: 141 | B69: 降順位得点 | C69: Desc. Order score | D69: Puntuación orden desc.
A70: 142 | B70: 昇順位平均化得点 | C70: Mean asc. order score | D70: Puntuación orden medio asc.
A71: 143 | B71: 降順位平均化得点 | C71: Mean desc. order score | D71: Puntuación orden medio desc.
A72: 144 | B72: S:(a+d) / (a+b+c+d) | C72: S:(a+d) / (a+b+c+d) | D72: S:(a+d) / (a+b+c+d)
A73: 145 | B73: J:a / (a+b+c) | C73: J:a / (a+b+c) | D73: J:a / (a+b+c)
A74: 146 | B74: H:[(a+d)-(b+c)]/(a+d+b+c) | C74: H:[(a+d)-(b+c)]/(a+d+b+c) | D74: H:[(a+d)-(b+c)]/(a+d+b+c)
A75: 147 | B75: Y:(ad-bc)/(ad+bc) | C75: Y:(ad-bc)/(ad+bc) | D75: Y:(ad-bc)/(ad+bc)
A76: 148 | B76: P:(ad-bc)/√[(a+b)(c+d)(a+c)(b+d)] | C76: P:(ad-bc)/√[(a+b)(c+d)(a+c)(b+d)] | D76: P:(ad-bc)/√[(a+b)(c+d)(a+c)(b+d)]
A77: 149 | B77: O:a/√[(a+b)(a+c)] | C77: O:a/√[(a+b)(a+c)] | D77: O:a/√[(a+b)(a+c)]
A78: 150 | B78: U:(2a - b - c) / (2a + b + c) | C78: U:(2a - b - c) / (2a + b + c) | D78: U:(2a - b - c) / (2a + b + c)
A79: 151 | B79: 総和による標準化 | C79: Normalization by sum | D79: Normaliz. por suma
A80: 152 | B80: 比率分数平均による標準化 | C80: Normaliz. por ratio frac. ave. | D80: Normaliz. por prom. frac. ratio
A81: 153 | B81: モステラーによる標準化 | C81: Mosteller Standard. | D81: Mosteller Standard.
A82: 154 | B82: X>=(A) > 1 | C82: X>=(A) > 1 | D82: X>=(A) > 1
A83: 155 | B83: 1/0 > V / 空白 | C83: 1/0 > V / Blank | D83: 1/0 > V / Blanco
A84: 156 | B84: V / 空白 > 1/0 | C84: V / Blank > 1/0 | D84: V / Blanco > 1/0
A85: 157 | B85: 0 > 空白 | C85: 0 > Blank | D85: 0 > Blanco
A86: 158 | B86: 空白 > 0 | C86: Blank > 0 | D86: Blanco > 0
A87: 159 | B87: 文字出現行列→文字頻度行列 | C87: Letter occur. > Letter freq. | D87: Ocur. letras > Frec. letras
A88: 160 | B88: 文字出現行列→文字分布行列 | C88: Letter occur. > Letter.dist. | D88: Ocur. letras > Dist. letras
A89: 161 | B89: 文字分布行列→文字出現行列 | C89: Letter dist. > Letter occur. | D89: Dist. letras > Ocur. letras
A90: 162 | B90: 隣接値による補充 | C90: Cont. replenishment | D90: Relleno continuo
A91: 163 | B91: 期待値による補充 | C91: Expected replenishment | D91: Relleno esperado
A92: 164 | B92: 平滑得点 | C92: Smooth score | D92: Puntos suaves
A93: 165 | B93: 名義の数量化：割合 | C93: Quantify nominal scale (Mean) | D93: Cuantificar escala nominal (Media)
A94: 166 | B94: 名義の数量化：初出 | C94: Quantify nominal scale (Weight) | D94: Cuantificar escala nominal (Peso)
A95: 167 | B95: 名義の数量化：平均 | C95: Quantify nominal scale (Mean) | D95: Cuantificar escala nominal (Media)
A96: 168 | B96: 全名義の数量化：割合 | C96: Quantify nominal scale (Weight) | D96: Cuantificar escala nominal (Peso)
A97: 169 | B97: 全名義の数量化：初出 | C97: Quantify nominal scale (Mean) | D97: Cuantificar escala nominal (Media)
A98: 170 | B98: 全名義の数量化：平均 | C98: Quantify nominal scale (Weight) | D98: Cuantificar escala nominal (Peso)
A99: 171 | B99: 名義のダミー化(1/0)[+] | C99: Quantify nominal scale by dummy (1/0)[+] | D99: Cuantificar escala nominal por dummy (1/0)[+]
A100: 172 | B100: 名義のダミー化(1/0)[+/-] | C100: Quantify nominal scale by dummy (1/0)[-:+] | D100: Cuantificar escala nominal por dummy (1/0)[-:+]
A101: 173 | B101: 名義の数量化：連番(1...N) | C101: Quantify nominal scale by seq.num. (1...N) | D101: Cuantificar escala nominal por núm.sec. (1...N)
A102: 174 | B102: 名義の数量化：表頭(1/0) | C102: Quantify nominal scale by top title (1/0) | D102: Cuantificar escala nominal por título superiorl (1/0)
A103: 175 | B103: 数量の名義化：1 (+) | C103: Nominalize-1 (+) | D103: Nominalizar-1 (+)
A104: 176 | B104: 数量の名義化：2 (+:-) | C104: Nominalize-2 (-:+) | D104: Nominalizar-2 (-:+)
A105: 177 | B105: 数量の名義化：3 (-:$:+) | C105: Nominalize-3 (-:$:+) | D105: Nominalizar-3 (-:$:+)
A106: 178 | B106: 数量の名義化：4 (=-:+:#) | C106: Nominalize-4 (=-:+:#) | D106: Nominalizar-4 (=-:+:#)
A107: 179 | B107: 数量の名義化：5 (=:-:$:+:#) | C107: Nominalize-5 (=:-:$:+:#) | D107: Nominalizar-5 (=:-:$:+:#)
A108: 180 | B108: 対称行列展開 | C108: Develop S. Mat. | D108: Desarrollar mat. sim.
A109: 181 | B109: 対数得点（底：2） | C109: Logarithm (base: 2) | D109: Logaritmo (base: 2)
A110: 182 | B110: 対数得点（底：10） | C110: Logarithm (base: 10) | D110: Logaritmo (base: 10)
A111: 183 | B111: ダミー変数 | C111: Quantify cases and attributes by dummy (1/0) | D111: Cuantificar casos y atributos por dummy (1/0)
A112: 184 | B112: ダミー変数 100% | C112: Dummy variable (1/0) 100% | D112: Variable dummy (1/0) 100%
A113: 185 | B113: 個体と変数の一元化 | C113: Unification of individual and variable | D113: Unificació de individuo and variable
A114: 187 | B114: 横軸 | C114: Horizontal | D114: Horizontal
A115: 188 | B115: 縦軸 | C115: Vertical | D115: Vertical
A116: 189 | B116: 全体 | C116: Total | D116: Total
A117: 190 | B117: 値 | C117: Value | D117: Valor
A118: 191 | B118: 平均値 | C118: Mean | D118: Media
A119: 192 | B119: 中央値 | C119: Median | D119: Mediana
A120: 193 | B120: 中間値 | C120: Mid-range | D120: Mitad-rango
A121: 194 | B121: 最小値 | C121: Minumum | D121: Mínimo
A122: 195 | B122: 最大値 | C122: Maximum | D122: Máximo
A123: 196 | B123: 大数平均値 | C123: Major Mean | D123: Media mayor
A124: 197 | B124: 大数最頻値 | C124: Major Mode | D124: Moda mayor
A125: 220 | B125: 範囲の分析 | C125: Analysis of range | D125: Análisis de rango
A126: 221 | B126: 中心の分析 | C126: Analysis of Center | D126: Análisis de centralidad
A127: 222 | B127: 変動の分析 | C127: Analysis of variation | D127: Análisis de variación
A128: 223 | B128: 平衡の分析 | C128: Analysis of balance | D128: Análisis de balanza
A129: 224 | B129: 推移の分析 | C129: Analysis of transition | D129: Análisis de transición
A130: 225 | B130: 平均・分散の一様推定 | C130: Uniform inference (mean, var.) | D130: Inferencia uniforme (media, var.)
A131: 226 | B131: 一般性 | C131: Generality | D131: Generalidad
A132: 227 | B132: 線状拡散度：リスト | C132: Linear dispersion (list) | D132: Dispersión lineal (lista)
A133: 228 | B133: 線状拡散度：プロセス | C133: Linear dispersion (process) | D133: Dispersión lineal (proceso)
A134: 229 | B134: 多重関連分析：リスト | C134: Multiple association (MA.list) | D134: Asociación múltiple (MA.lista)
A135: 230 | B135: 多重関連分析：頻度 | C135: Multiple association (MA.freq.) | D135: Asociación múltiple (MA.frec.)
A136: 231 | B136: 多重関連分析：係数 | C136: Multiple association (MA.coef.) | D136: Asociación múltiple (MA.coef.)
A137: 232 | B137: 主成分分析 | C137: Principal component analysis | D137: Análisis de componente principal
A138: 233 | B138: 名義主成分分析 | C138: Nominal principal component analysis | D138: Análisis de componente principal nominal
A139: 234 | B139: 対応分析/数量化３類 | C139: Correspondence analysis/Quantification-3 | D139: Análisis de correspondencia/Cuantificación-3
A140: 235 | B140: 因子分析 | C140: Factor analysis | D140: A.F. concentración
A141: 236 | B141: 数量化４類 | C141: Quantification type 4 | D141: Cuantificación tipo 4
A142: 237 | B142: 分散分析 | C142: Analysis of variance (Anova) | D142: Análisis de varianza (Anova)
A143: 238 | B143: 一次元距離 | C143: Unidimensional distance | D143: Distancia unidimensional
A144: 240 | B144: 確率（なし） | C144: Probability (None) | D144: Probabilidad (No)
A145: 241 | B145: 値：^/+/# | C145: Value :-/+/#[N.P.] | D145: Valor:-/+/#[N.P.]
A146: 242 | B146: 値（確率:^/+/#） | C146: Value (Pr.: -/+/#） | D146: Valor (Pr.: -/+/#）
A147: 243 | B147: 個数・確率・値 | C147: Num.Prob.Val. | D147: Num.Prob.Val.
A148: 248 | B148: 範囲内位置 | C148: P. in Rng. | D148: Pos. en Rng.
A149: 249 | B149: 両側相対値 | C149: Ambi-relative | D149: Ambirrelativo
A150: 250 | B150: 正 | C150: Pos. | D150: Pos.
A151: 251 | B151: 負 | C151: Neg. | D151: Neg.
A152: 252 | B152: 対照 | C152: Ctr. | D152: Ctr.
A153: 253 | B153: 数 | C153: Cnt. | D153: Cnt.
A154: 254 | B154: 値 | C154: Value | D154: Valor
A155: 255 | B155: 振動指数 | C155: Fluctuation value | D155: Val. fluctuación
A156: 256 | B156: 平衡度 | C156: Balance | D156: Balanza
A157: 260 | B157: 上昇 | C157: Rising count | D157: Cnt. subida
A158: 261 | B158: 下降 | C158: Falling count | D158: Cnt. bajada
A159: 262 | B159: 振動数 | C159: Fluctuation cnt. | D159: Cnt. fluctuación
A160: 263 | B160: 平均位置 | C160: Mean pos. | D160: Pos. de media
A161: 280 | B161: 最近個体 | C161: Nearest data | D161: Dato más cercanol
A162: 281 | B162: 群平均値 | C162: Group average | D162: Promedio grupo
A163: 282 | B163: 群中央値 | C163: Group median | D163: Mediana grupo
A164: 283 | B164: 群中間値 | C164: Group mid | D164: Mitad grupo
A165: 284 | B165: 群大数中央値 | C165: Group major average | D165: Promedio mayor grupo
A166: 290 | B166: 全体の集中化 | C166: Cct. in all | D166: Cct. en todo
A167: 291 | B167: 行の集中化 | C167: Cct. in row | D167: Cct. en fila
A168: 292 | B168: 列の集中化 | C168: Cct. in column | D168: Cct. en columna
A169: 293 | B169: 集中化しない | C169: No concentration | D169: No concentración
A170: 294 | B170: 対応分析 | C170: Cct. by correspondence | D170: Cct. por correspondencia
A171: 295 | B171: 主成分集中分析 | C171: Cct. by PCA | D171: Cct. por ACP
A172: 296 | B172: 因子集中分析 | C172: Cct. by Factor | D172: Cct. por factor
A173: 297 | B173: クラスター集中分析 | C173: Cct. by Cluster | D173: Cct. por cluster
A174: 298 | B174: 原点偏差集中分析 | C174: Cct. by zero deviation | D174: Cct. por desviación de cero
A175: 300 | B175: 実行 | C175: EXEC | D175: EJEC.
A176: 301 | B176: 数値軸折れ線グラフ (N>P) | C176: Line chart with num. axis (N > P) | D176: Gráf. línea. eje núm. (N > P)
A177: 302 | B177: 数値軸縦棒グラフ (N>P) | C177: Line chart with num. axis (N > P) | D177: Gráf. línea. eje núm. (N > P)
A178: 303 | B178: 数値軸横棒グラフ (N>P) | C178: Line chart with num. axis (N > P) | D178: Gráf. línea. eje núm. (N > P)
A179: 304 | B179: 比率棒グラフ (NxP) | C179: Ratio bar chart (NxP) | D179: Gráf. barra ratio (NxP)
A180: 305 | B180: バブルチャート (NxP) | C180: Bubble chart (NxP) | D180: Gráf. burbuja (NxP)
A181: 306 | B181: 四分位ボックスチャート (NxP) | C181: Box chart - q.tile (NxP) | D181: Gráf. caja-cuartil (NxP)
A182: 307 | B182: 算術平均値±標準偏差ボックスチャート (NxP) | C182: Box chart. AM±SD (NxP) | D182: Gráf. caja. MA±DT (NxP)
A183: 308 | B183: 平均値±上下標準偏差ボックスチャート (NxP) | C183: Box chart. AM±U&L.SD (NxP) | D183: Gráf. caja. MA±DT.S&I (NxP)
A184: 309 | B184: 幾何平均値*/幾何標準偏差ボックスチャート (NxP) | C184: Box chart. GM*/GSD. (NxP) | D184: Gráf. caja. MG*/DTG (NxP)
A185: 310 | B185: 幾何平均値*/上下幾何標準偏差ボックスチャート (NxP) | C185: Box chart. GM*/U&L.GSD. (NxP) | D185: Gráf. caja. MG*/DTG.S&I (NxP)
A186: 311 | B186: 算術平均値±平均偏差ボックスチャート (NxP) | C186: Box chart AM± Mean dev. (NxP) | D186: Gráf. cajaAM±des.med.(NxP)
A187: 312 | B187: 算術平均値±上下偏差ボックスチャート (NxP) | C187: Box chartAM± U&L Mean dev. (NxP) | D187: Gráf. cajaAM±des.media.S&I(NxP)
A188: 313 | B188: 対比図 (Nx2) | C188: Contrast chart (Nx2) | D188: Gráf. contraste (NxP)
A189: 314 | B189: ラベル付散布図 (Nx2) | C189: Labeled scatter (Nx2) | D189: Esparc. con etiqueta (NxP)
A190: 315 | B190: 始点終点棒グラフ (Nx2) | C190: Start-end bar (Nx2) | D190: Barra inicio fin (Nx2)
A191: 316 | B191: 系列名付折れ線グラフ | C191: Line chart with series | D191: Gráfico de línea con serie
A192: 601 | B192: 相関係数 | C192: Correl. | D192: Correl.
A193: 602 | B193: 共分散 | C193: Covariance | D193: Covarianza
A194: 603 | B194: 共起回数 (a) | C194: Coccurrence (a) | D194: Cocurrencia (a)
A195: 604 | B195: S:(a+d) / (a+b+c+d) | C195: S:(a+d) / (a+b+c+d) | D195: S:(a+d) / (a+b+c+d)
A196: 605 | B196: J:(a) / (a+b+c) | C196: J:(a) / (a+b+c) | D196: J:(a) / (a+b+c)
A197: 606 | B197: D:(2a) / (2a + b + c) | C197: D:(2a) / (2a + b + c) | D197: D:(2) / (2a + b + c)
A198: 607 | B198: H:[(a+d)-(b+c)]/(a+d+b+c) | C198: H:[(a+d)-(b+c)]/(a+d+b+c) | D198: H:[(a+d)-(b+c)]/(a+d+b+c)
A199: 608 | B199: Y:(ad-bc)/(ad+bc) | C199: Y:(ad-bc)/(ad+bc) | D199: Y:(ad-bc)/(ad+bc)
A200: 609 | B200: P:(ad-bc)/√[(a+b)(c+d)(a+c)(b+d)] | C200: P:(ad-bc)/√[(a+b)(c+d)(a+c)(b+d)] | D200: P:(ad-bc)/√[(a+b)(c+d)(a+c)(b+d)]
... 215 more rows

Sheet Graph
A1: 評価(頻度) | B1: a.役立つ | C1: b.楽しい
A2: A.文法解説 | B2: 86 | C2: 29
A3: B.ビデオ | B3: 53 | C3: 78
A4: C.活動 | B4: 48 | C4: 53
A5: D.映画 | B5: 43 | C5: 96
A6: E.音読 | B6: 110 | C6: 42
A7: F.筆写 | B7: 93 | C7: 11
A8: G.観察 | B8: 37 | C8: 50
A9: H.小テスト | B9: 89 | C9: 15
A11: Year < IJY | B11: 1.V | C11: 2.Gq | D11: 3.Ga | E11: 4.Gc
A12: 925 | B12: 162 | C12: 0 | D12: 0 | E12: 0
A13: 950 | B13: 95 | C13: 0 | D13: 0 | E13: 0
A14: 975 | B14: 60 | C14: 0 | D14: 0 | E14: 0
A15: 1000 | B15: 371 | C15: 0 | D15: 0 | E15: 0
A16: 1050 | B16: 728 | C16: 0 | D16: 0 | E16: 0
A17: 1075 | B17: 361 | C17: 0 | D17: 0 | E17: 0
A18: 1100 | B18: 308 | C18: 188 | D18: 0 | E18: 0
A19: 1125 | B19: 73 | C19: 616 | D19: 102 | E19: 0
A20: 1150 | B20: 0 | C20: 212 | D20: 407 | E20: 0
A21: 1175 | B21: 0 | C21: 223 | D21: 1180 | E21: 0
A22: 1200 | B22: 0 | C22: 239 | D22: 2317 | E22: 49
A23: 1225 | B23: 0 | C23: 215 | D23: 792 | E23: 9
A24: 1250 | B24: 0 | C24: 151 | D24: 766 | E24: 277
A25: 1275 | B25: 0 | C25: 81 | D25: 80 | E25: 548
A27: 始点・終点棒グラフ
A29: X | B29: s1 | C29: e1 | D29: s2 | E29: e2
A30: d1 | B30: 1 | C30: 3 | D30: 5 | E30: 8
A31: d2 | B31: 2 | C31: 4 | D31: 7 | E31: 10
A32: d3 | B32: 2 | C32: 5 | D32: 8 | E32: 9
A33: d4 | B33: 3 | C33: 8
A36: X | B36: d1 | C36: d2 | D36: d3 | E36: d4
A37: s1 | B37: 1 | C37: 2 | D37: 2 | E37: 3
A38: e1 | B38: 2 | C38: 2 | D38: 3 | E38: 5
A39: s2 | B39: 2 | C39: 3 | D39: 3 | E39: -8
A40: e2 | B40: 3 | C40: 3 | D40: 1 | E40: 0
A42: X | B42: s1 | C42: e1
A43: d1 | B43: 1 | C43: 3
A44: d2 | B44: 2 | C44: 4
A45: d3 | B45: 2 | C45: 5
A46: d4 | B46: 3 | C46: 8
A48: X | B48: s1 | C48: e1
A49: d1 | B49: 1 | C49: 2
A50: d2 | B50: 2 | C50: 2
A51: d3 | B51: 2 | C51: 3
A52: d4 | B52: 3 | C52: 5
A54: X | B54: s1 | C54: e1 | D54: s2 | E54: e2
A55: d1 | B55: 1 | C55: 2 | D55: 2 | E55: 3
A56: d2 | B56: 2 | C56: 2 | D56: 3 | E56: 3
A57: d3 | B57: 2 | C57: 3 | D57: 3 | E57: 1
A58: d4 | B58: 3 | C58: 5 | D58: -8 | E58: 0
A60: 系列名付折れ線グラフ
A62: X | B62: v1 | C62: v2 | D62: v3 | E62: v4 | F62: v5
A63: i1 | B63: 10 | C63: 19 | D63: 14 | E63: 7 | F63: 12
A64: i2 | B64: 11 | C64: 7 | D64: 10 | E64: 0 | F64: 1
A65: i3 | B65: 0 | C65: 0 | D65: 1 | E65: 12 | F65: 1
A66: i4 | B66: 0 | C66: 1 | D66: 2 | E66: 3 | F66: 3
A68: LETRAS: Freq. table
A70: 坊ちゃん | B70: うらなり | C70: マドンナ | D70: 山嵐 | E70: 狸 | F70: 赤シャツ
A71: 1 | B71: 0 | C71: 0 | D71: 0 | E71: 0 | F71: 0
A72: 2 | B72: 5 | C72: 0 | D72: 8 | E72: 3 | F72: 3
A73: 3 | B73: 0 | C73: 0 | D73: 6 | E73: 1 | F73: 1
A74: 4 | B74: 0 | C74: 0 | D74: 5 | E74: 6 | F74: 2
A75: 5 | B75: 0 | C75: 5 | D75: 1 | E75: 1 | F75: 35
A76: 6 | B76: 11 | C76: 3 | D76: 40 | E76: 9 | F76: 29
A77: 7 | B77: 21 | C77: 16 | D77: 6 | E77: 2 | F77: 22
A78: 8 | B78: 6 | C78: 1 | D78: 11 | E78: 0 | F78: 29
A79: 9 | B79: 18 | C79: 4 | D79: 26 | E79: 4 | F79: 20
A80: 10 | B80: 1 | C80: 0 | D80: 18 | E80: 1 | F80: 5
A81: 11 | B81: 0 | C81: 0 | D81: 34 | E81: 8 | F81: 22
A83: 相関係数 | B83: うらなり | C83: マドンナ | D83: 山嵐 | E83: 狸 | F83: 赤シャツ
A84: うらなり | B84: 1 | C84: 0.7633010135 | D84: 0.2698759449 | E84: 0.1286351372 | F84: 0.3793949987
A85: マドンナ | B85: 0.7633010135 | C85: 1 | D85: -0.1110745333 | E85: -0.08017486588 | F85: 0.4411917995
A86: 山嵐 | B86: 0.2698759449 | C86: -0.1110745333 | D86: 1 | E86: 0.7688190101 | F86: 0.3758019808
A87: 狸 | B87: 0.1286351372 | C87: -0.08017486588 | D87: 0.7688190101 | E87: 1 | F87: 0.2098467736
A88: 赤シャツ | B88: 0.3793949987 | C88: 0.4411917995 | D88: 0.3758019808 | E88: 0.2098467736 | F88: 1

Sheet Mt
A1: [1] UNIT VECTOR & UNIT MATRIX
A3: U21, U31, Um33
A5: Uv | B5: 1
A6: 1 | B6: 1
A7: 2 | B7: 1
A8: 3 | B8: 1
A10: Um | B10: 1 | C10: 2 | D10: 3
A11: 1 | B11: 1 | C11: 0 | D11: 0
A12: 2 | B12: 0 | C12: 1 | D12: 0
A13: 3 | B13: 0 | C13: 0 | D13: 1
A15: [2] ELEMENT M1 + M2
A17: A | B17: 1 | C17: 2
A18: 1 | B18: 1 | C18: 4
A19: 2 | B19: 2 | C19: 5
A20: 3 | B20: 3 | C20: 6
A22: B | B22: 1 | C22: 2
A23: 1 | B23: 1 | C23: 2
A24: 2 | B24: 3 | C24: 4
A25: 3 | B25: 5 | C25: 6
A27: C | B27: 1 | C27: 2
A28: 1 | B28: 1 | C28: 2
A30: D | B30: 1
A31: 1 | B31: 7
A32: 2 | B32: 8
A33: 3 | B33: 9
A35: E | B35: 1 | C35: 2
A36: 1 | B36: 1 | C36: 2
A38: F | B38: 1 | C38: 2
A39: 1 | B39: 1 | C39: 2
A40: 2 | B40: 1 | C40: 2
A41: 3 | B41: 1 | C41: 2
G43: F.A. | H43: Mitad-1 | I43: Mitad-2 | J43: Impar | K43: Par
G44: Mitad-1 | H44: 0 | I44: -0.001313357759 | J44: -0.001192896682 | K44: -0.000290883021
A45: A | B45: 1 | C45: 2 | D45: 3 | G45: Mitad-2 | H45: 0.001313357759 | I45: 0 | J45: 0.0001204667056 | K45: 0.00101661848
A46: 1 | B46: 1 | C46: 2 | D46: 3 | G46: Impar | H46: 0.001192896682 | I46: -0.0001204667056 | J46: 0 | K46: 0.0008961494954
G47: Par | H47: 0.000290883021 | I47: -0.00101661848 | J47: -0.0008961494954 | K47: 0
A48: B | B48: 1 | F48: A B | G48: 1
A49: 1 | B49: 4 | F49: 1 | G49: 32
A50: 2 | B50: 5
A51: 3 | B51: 6
A53: J | B53: 1 | C53: 2
A54: 1 | B54: 1 | C54: 2
A56: K | B56: 1 | F56: J K | G56: 1
A57: 1 | B57: 5 | F57: 1 | G57: 17
A58: 2 | B58: 6
A60: L | B60: 1 | C60: 2 | F60: J L | G60: 1 | H60: 2
A61: 1 | B61: 5 | C61: 7 | F61: 1 | G61: 17 | H61: 23
A62: 2 | B62: 6 | C62: 8
A64: M | B64: 1 | C64: 2
A65: 1 | B65: 1 | C65: 2
A66: 2 | B66: 3 | C66: 4
A68: N | B68: 1 | C68: 2 | F68: M N | G68: 1 | H68: 2
A69: 1 | B69: 5 | C69: 7 | F69: 1 | G69: 17 | H69: 23
A70: 2 | B70: 6 | C70: 8 | F70: 2 | G70: 39 | H70: 53
A72: O | B72: 1 | C72: 2
A73: 1 | B73: 1 | C73: 2
A74: 2 | B74: 3 | C74: 4
A75: 3 | B75: 5 | C75: 6
A77: P | B77: 1 | C77: 2 | D77: 3 | F77: O P | G77: 1 | H77: 2 | I77: 3
A78: 1 | B78: 1 | C78: 3 | D78: 5 | F78: 1 | G78: 5 | H78: 11 | I78: 17
A79: 2 | B79: 2 | C79: 4 | D79: 6 | F79: 2 | G79: 11 | H79: 25 | I79: 39
F80: 3 | G80: 17 | H80: 39 | I80: 61
A82: Q | B82: 1 | F82: O Q | G82: X
A83: 1 | B83: 1 | F83: 1 | G83: 5
A84: 2 | B84: 2 | F84: 2 | G84: 11
F85: 3 | G85: 17
A87: R | B87: 1 | C87: 2 | D87: 3 | F87: Q R | G87: v1 | H87: v2 | I87: v3
A88: 1 | B88: 1 | C88: 2 | D88: 3 | F88: d1 | G88: 1 | H88: 2 | I88: 3
F89: d2 | G89: 2 | H89: 4 | I89: 6
A92: SumR = M Uv
A94: A | B94: 1 | C94: 2 | F94: Uv | G94: 1 | K94: A Uv | L94: 1
A95: 1 | B95: 1 | C95: 4 | F95: 1 | G95: 1 | K95: 1 | L95: 5
A96: 2 | B96: 2 | C96: 5 | F96: 2 | G96: 1 | K96: 2 | L96: 7
A97: 3 | B97: 3 | C97: 6 | K97: 3 | L97: 9
A99: SumC = Uv' M
A101: Uv' | B101: 1 | C101: 2 | D101: 3 | F101: A | G101: 1 | H101: 2 | K101: Uv' | L101: 1 | M101: 2
A102: 1 | B102: 1 | C102: 1 | D102: 1 | F102: 1 | G102: 1 | H102: 4 | K102: 1 | L102: 6 | M102: 15
F103: 2 | G103: 2 | H103: 5
F104: 3 | G104: 3 | H104: 6
A106: Xn1 U1p = Hnp
A108: X | B108: 1 | D108: U | E108: 1 | F108: 2 | H108: X U | I108: 1 | J108: 2
A109: 1 | B109: 4 | D109: 1 | E109: 1 | F109: 1 | H109: 1 | I109: 4 | J109: 4
A110: 2 | B110: 5 | H110: 2 | I110: 5 | J110: 5
A111: 3 | B111: 6 | H111: 3 | I111: 6 | J111: 6
A113: Un1 X1p
A115: U | B115: 1 | D115: X | E115: 1 | F115: 2 | H115: U X | I115: 1 | J115: 2
A116: 1 | B116: 1 | D116: 1 | E116: 7 | F116: 8 | H116: 1 | I116: 7 | J116: 8
A117: 2 | B117: 1 | H117: 2 | I117: 7 | J117: 8
A119: Q Um = Q
A121: Q | B121: 1 | C121: 2 | D121: 3 | F121: Um | G121: 1 | H121: 2 | I121: 3 | K121: Q Um | L121: 1 | M121: 2 | N121: 3
A122: 1 | B122: 1 | C122: 2 | D122: 3 | F122: A | G122: 1 | H122: 0 | I122: 0 | K122: 1 | L122: 1 | M122: 2 | N122: 3
A123: 2 | B123: 4 | C123: 5 | D123: 6 | F123: B | G123: 0 | H123: 1 | I123: 0 | K123: 2 | L123: 4 | M123: 5 | N123: 6
A124: 3 | B124: 7 | C124: 8 | D124: 9 | F124: C | G124: 0 | H124: 0 | I124: 1 | K124: 3 | L124: 7 | M124: 8 | N124: 9
A126: Um Q = Q
A128: Um | B128: 1 | C128: 2 | D128: 3 | F128: Q | G128: 1 | H128: 2 | I128: 3 | K128: Um Q | L128: 1 | M128: 2 | N128: 3
A129: 1 | B129: 1 | C129: 0 | D129: 0 | F129: A | G129: 1 | H129: 2 | I129: 3 | K129: 1 | L129: 1 | M129: 2 | N129: 3
A130: 2 | B130: 0 | C130: 1 | D130: 0 | F130: B | G130: 4 | H130: 5 | I130: 6 | K130: 2 | L130: 4 | M130: 5 | N130: 6
A131: 3 | B131: 0 | C131: 0 | D131: 1 | F131: C | G131: 7 | H131: 8 | I131: 9 | K131: 3 | L131: 7 | M131: 8 | N131: 9
A133: Um Q31 = Q31
A135: Um | B135: 1 | C135: 2 | D135: 3 | F135: Q | G135: 1 | K135: Um Q | L135: 1
A136: 1 | B136: 1 | C136: 0 | D136: 0 | F136: 1 | G136: 1 | K136: 1 | L136: 1
A137: 2 | B137: 0 | C137: 1 | D137: 0 | F137: 2 | G137: 2 | K137: 2 | L137: 2
A138: 3 | B138: 0 | C138: 0 | D138: 1 | F138: 3 | G138: 3 | K138: 3 | L138: 3
A140: O | B140: 1 | C140: 2 | F140: M | G140: 1 | H140: 2
A141: 1 | B141: 1 | C141: 2 | F141: 1 | G141: 1 | H141: 2
A142: 2 | B142: 3 | C142: 4 | F142: 2 | G142: 3 | H142: 4
A143: 3 | B143: 5 | C143: 6
F144: P | G144: 1 | H144: 2
F145: A | G145: 1 | H145: 3
F146: B | G146: 2 | H146: 4
F148: (M)+(P) | G148: 1 | H148: 2 | K148: O (M+P) | L148: 1 | M148: 2
F149: A | G149: 2 | H149: 5 | K149: 1 | L149: 12 | M149: 21
F150: B | G150: 5 | H150: 8 | K150: 2 | L150: 26 | M150: 47
K151: 3 | L151: 40 | M151: 73
F153: (O)(M) | G153: 1 | H153: 2
F154: 1 | G154: 7 | H154: 10
F155: 2 | G155: 15 | H155: 22
F156: 3 | G156: 23 | H156: 34
A158: O(M+P)=OM+OP
F160: (O)(P) | G160: 1 | H160: 2 | K160: OM + OP | L160: 1 | M160: 2
F161: 1 | G161: 5 | H161: 11 | K161: 1 | L161: 12 | M161: 21
F162: 2 | G162: 11 | H162: 25 | K162: 2 | L162: 26 | M162: 47
F163: 3 | G163: 17 | H163: 39 | K163: 3 | L163: 40 | M163: 73
A166: *Transformation
A168: R1 = 0
A170: T1 | B170: 1 | C170: 2 | D170: 3 | F170: Q | G170: 1 | H170: 2 | I170: 3 | K170: T1 Q | L170: 1 | M170: 2 | N170: 3
A171: 1 | B171: 0 | C171: 0 | D171: 0 | F171: 1 | G171: 1 | H171: 2 | I171: 3 | K171: 1 | L171: 0 | M171: 0 | N171: 0
A172: 2 | B172: 0 | C172: 1 | D172: 0 | F172: 2 | G172: 4 | H172: 5 | I172: 6 | K172: 2 | L172: 4 | M172: 5 | N172: 6
A173: 3 | B173: 0 | C173: 0 | D173: 1 | F173: 3 | G173: 7 | H173: 8 | I173: 9 | K173: 3 | L173: 7 | M173: 8 | N173: 9
A175: R1 = R2
A177: T2 | B177: 1 | C177: 2 | D177: 3 | F177: Q | G177: 1 | H177: 2 | I177: 3 | K177: T2 Q | L177: 1 | M177: 2 | N177: 3
A178: 1 | B178: 0 | C178: 1 | D178: 0 | F178: 1 | G178: 1 | H178: 2 | I178: 3 | K178: 1 | L178: 4 | M178: 5 | N178: 6
A179: 2 | B179: 0 | C179: 1 | D179: 0 | F179: 2 | G179: 4 | H179: 5 | I179: 6 | K179: 2 | L179: 4 | M179: 5 | N179: 6
A180: 3 | B180: 0 | C180: 0 | D180: 1 | F180: 3 | G180: 7 | H180: 8 | I180: 9 | K180: 3 | L180: 7 | M180: 8 | N180: 9
A182: R1 = 3 R1
A184: T3 | B184: 1 | C184: 2 | D184: 3 | F184: Q | G184: 1 | H184: 2 | I184: 3 | K184: T3 Q | L184: 1 | M184: 2 | N184: 3
A185: 1 | B185: 3 | C185: 0 | D185: 0 | F185: 1 | G185: 1 | H185: 2 | I185: 3 | K185: 1 | L185: 3 | M185: 6 | N185: 9
A186: 2 | B186: 0 | C186: 1 | D186: 0 | F186: 2 | G186: 4 | H186: 5 | I186: 6 | K186: 2 | L186: 4 | M186: 5 | N186: 6
A187: 3 | B187: 0 | C187: 0 | D187: 1 | F187: 3 | G187: 7 | H187: 8 | I187: 9 | K187: 3 | L187: 7 | M187: 8 | N187: 9
A189: R2 = R2 + R1
A191: T4 | B191: 1 | C191: 2 | D191: 3 | F191: Q | G191: 1 | H191: 2 | I191: 3 | K191: T4 Q | L191: 1 | M191: 2 | N191: 3
A192: 1 | B192: 1 | C192: 0 | D192: 0 | F192: 1 | G192: 1 | H192: 2 | I192: 3 | K192: 1 | L192: 1 | M192: 2 | N192: 3
A193: 2 | B193: 1 | C193: 1 | D193: 0 | F193: 2 | G193: 4 | H193: 5 | I193: 6 | K193: 2 | L193: 5 | M193: 7 | N193: 9
A194: 3 | B194: 0 | C194: 0 | D194: 1 | F194: 3 | G194: 7 | H194: 8 | I194: 9 | K194: 3 | L194: 7 | M194: 8 | N194: 9
A196: R2 = R2 + 2 R1
A198: T5 | B198: 1 | C198: 2 | D198: 3 | F198: Q | G198: 1 | H198: 2 | I198: 3 | K198: T5 Q | L198: X | M198: Y | N198: Z
A199: 1 | B199: 1 | C199: 0 | D199: 0 | F199: 1 | G199: 1 | H199: 2 | I199: 3 | K199: a | L199: 1 | M199: 2 | N199: 3
A200: 2 | B200: 2 | C200: 1 | D200: 0 | F200: 2 | G200: 4 | H200: 5 | I200: 6 | K200: b | L200: 6 | M200: 9 | N200: 12
A201: 3 | B201: 0 | C201: 0 | D201: 1 | F201: 3 | G201: 7 | H201: 8 | I201: 9 | K201: c | L201: 7 | M201: 8 | N201: 9
A203: R2 = 3 R2 + 2 R1
A205: T6 | B205: 1 | C205: 2 | D205: 3 | F205: Q | G205: 1 | H205: 2 | I205: 3 | K205: T6 Q | L205: 1 | M205: 2 | N205: 3
A206: 1 | B206: 1 | C206: 0 | D206: 0 | F206: 1 | G206: 1 | H206: 2 | I206: 3 | K206: 1 | L206: 1 | M206: 2 | N206: 3
A207: 2 | B207: 2 | C207: 3 | D207: 0 | F207: 2 | G207: 4 | H207: 5 | I207: 6 | K207: 2 | L207: 6 | M207: 9 | N207: 12
A208: 3 | B208: 0 | C208: 0 | D208: 1 | F208: 3 | G208: 7 | H208: 8 | I208: 9 | K208: 3 | L208: 7 | M208: 8 | N208: 9
A210: Swap R1, R2
A212: T7 | B212: 1 | C212: 2 | D212: 3 | F212: Q | G212: 1 | H212: 2 | I212: 3 | K212: T7 Q | L212: 1 | M212: 2 | N212: 3
A213: 1 | B213: 0 | C213: 1 | D213: 0 | F213: 1 | G213: 1 | H213: 2 | I213: 3 | K213: 1 | L213: 4 | M213: 5 | N213: 6
A214: 2 | B214: 1 | C214: 0 | D214: 0 | F214: 2 | G214: 4 | H214: 5 | I214: 6 | K214: 2 | L214: 1 | M214: 2 | N214: 3
A215: 3 | B215: 0 | C215: 0 | D215: 1 | F215: 3 | G215: 7 | H215: 8 | I215: 9 | K215: 3 | L215: 7 | M215: 8 | N215: 9
A217: Swap R2, R3
A219: T8 | B219: 1 | C219: 2 | D219: 3 | F219: Q | G219: 1 | H219: 2 | I219: 3 | K219: T8 Q | L219: 1 | M219: 2 | N219: 3
A220: 1 | B220: 1 | C220: 0 | D220: 0 | F220: 1 | G220: 1 | H220: 2 | I220: 3 | K220: 1 | L220: 1 | M220: 2 | N220: 3
A221: 2 | B221: 0 | C221: 0 | D221: 1 | F221: 2 | G221: 4 | H221: 5 | I221: 6 | K221: 2 | L221: 7 | M221: 8 | N221: 9
A222: 3 | B222: 0 | C222: 1 | D222: 0 | F222: 3 | G222: 7 | H222: 8 | I222: 9 | K222: 3 | L222: 4 | M222: 5 | N222: 6
A224: Swap R1, R3
A226: T9 | B226: 1 | C226: 2 | D226: 3 | F226: Q | G226: 1 | H226: 2 | I226: 3 | K226: T9 Q | L226: 1 | M226: 2 | N226: 3
A227: 1 | B227: 0 | C227: 0 | D227: 1 | F227: 1 | G227: 1 | H227: 2 | I227: 3 | K227: 1 | L227: 7 | M227: 8 | N227: 9
A228: 2 | B228: 0 | C228: 1 | D228: 0 | F228: 2 | G228: 4 | H228: 5 | I228: 6 | K228: 2 | L228: 4 | M228: 5 | N228: 6
A229: 3 | B229: 1 | C229: 0 | D229: 0 | F229: 3 | G229: 7 | H229: 8 | I229: 9 | K229: 3 | L229: 1 | M229: 2 | N229: 3
A232: Diagonal root matrix
A234: A | B234: 1 | C234: 2 | D234: 3 | F234: R | G234: 1 | H234: 2 | I234: 3 | K234: R | L234: 1 | M234: 2 | N234: 3
A235: 1 | B235: 2 | F235: 1 | G235: =SQRT(B235) -> 1.414213562 | K235: 1 | L235: 1.414213562
A236: 2 | C236: 6 | F236: 2 | H236: =SQRT(C236) -> 2.449489743 | K236: 2 | M236: 2.449489743
A237: 3 | D237: 9 | F237: 3 | I237: =SQRT(D237) -> 3 | K237: 3 | N237: 3
A239: A = R R | K239: R R | L239: 1 | M239: 2 | N239: 3
K240: 1 | L240: 2 | M240: 0 | N240: 0
K241: 2 | L241: 0 | M241: 6 | N241: 0
K242: 3 | L242: 0 | M242: 0 | N242: 9
A244: [4] TRANSPOSE Tr[M] ~ M'
A246: A | B246: 1 | C246: 2 | F246: A' | G246: 1 | H246: 2 | I246: 3
A247: 1 | B247: 1 | C247: 4 | F247: 1 | G247: 1 | H247: 2 | I247: 3
A248: 2 | B248: 2 | C248: 5 | F248: 2 | G248: 4 | H248: 5 | I248: 6
A249: 3 | B249: 3 | C249: 6
A251: Sm (simmetric) = Sm'
A253: Sm | B253: 1 | C253: 2 | D253: 3 | F253: Sm' | G253: 1 | H253: 2 | I253: 3
A254: 1 | B254: 1 | C254: 5 | D254: 8 | F254: 1 | G254: 1 | H254: 5 | I254: 8
A255: 2 | B255: 5 | C255: 2 | D255: 9 | F255: 2 | G255: 5 | H255: 2 | I255: 9
A256: 3 | B256: 8 | C256: 9 | D256: 3 | F256: 3 | G256: 8 | H256: 9 | I256: 3
A258: SumR = A Uv
A260: A | B260: 1 | C260: 2 | F260: Uv | G260: 1 | K260: A Uv | L260: 1
A261: 1 | B261: 1 | C261: 4 | F261: 1 | G261: 1 | K261: 1 | L261: 5
A262: 2 | B262: 2 | C262: 5 | F262: 2 | G262: 1 | K262: 2 | L262: 7
A263: 3 | B263: 3 | C263: 6 | K263: 3 | L263: 9
A265: SumC = Uv' A
A267: Uv' | B267: 1 | C267: 2 | D267: 3 | F267: A | G267: 1 | H267: 2 | K267: Uv' A | L267: 1 | M267: 2
A268: 1 | B268: 1 | C268: 1 | D268: 1 | F268: 1 | G268: 1 | H268: 4 | K268: 1 | L268: 6 | M268: 15
F269: 2 | G269: 2 | H269: 5
F270: 3 | G270: 3 | H270: 6
A272: (A+B)' = A' + B'
A274: A | B274: 1 | C274: 2 | F274: B | G274: 1 | H274: 2
... 138 more rows

Sheet Sta
A1: M | B1: A | C1: B | D1: C | E1: D | F1: E | H1: LSr | I1: A | J1: B | K1: C | L1: D | M1: E
A2: h1 | B2: 10 | C2: 19 | D2: 14 | E2: 7 | F2: 12 | H2: h1 | I2: 0.25 | J2: 1 | K2: 0.5833333333 | L2: 0 | M2: 0.4166666667
A3: h2 | B3: 11 | C3: 7 | D3: 10 | E3: 0 | F3: 1 | H3: h2 | I3: 1 | J3: 0.6363636364 | K3: 0.9090909091 | L3: 0 | M3: 0.09090909091
A4: h3 | B4: 0 | C4: 0 | D4: 1 | E4: 12 | F4: 1 | H4: h3 | I4: 0 | J4: 0 | K4: 0.08333333333 | L4: 1 | M4: 0.08333333333
A5: h4 | B5: 0 | C5: 1 | D5: 2 | E5: 3 | F5: 3 | H5: h4 | I5: 0 | J5: 0.3333333333 | K5: 0.6666666667 | L5: 1 | M5: 1
A7: N.X | B7: v1 | C7: v2 | D7: v3 | H7: PFv:2 | I7: A | J7: B | K7: C | L7: D | M7: E
A8: h1 | B8: 5 | C8: 2 | D8: 1 | H8: h1 | I8: 0.4513397217 | J8: 0.9259643555 | K8: 0.5774230957 | L8: 0.2324142456 | M8: 0.7949676514
A9: h2 | B9: 1 | C9: 3 | D9: 3 | H9: h2 | I9: 0.528427124 | J9: 0.1858520508 | K9: 0.3388977051 | L9: 0 | M9: 0.001182079315
A10: h3 | B10: 0 | C10: 1 | D10: 2 | H10: h3 | I10: 0 | J10: 0 | K10: 0.000744342804 | L10: 0.5762634277 | M10: 0.001182079315
A11: h4 | B11: 1 | C11: 2 | D11: 1 | H11: h4 | I11: 0 | J11: 0.000744342804 | K11: 0.01118278503 | L11: 0.04113388062 | M11: 0.0538482666
A13: X | B13: v1 | C13: v2 | D13: v3 | E13: v4 | H13: PFh:2 | I13: A | J13: B | K13: C | L13: D | M13: E
A14: h1 | B14: 0 | C14: 5 | D14: 4 | E14: 2 | H14: h1 | I14: 0.1388511658 | J14: 0.3573074341 | K14: 0.2308998108 | L14: 0.07750701904 | M14: 0.1836700439 | N14: =SUM(I14:M14) -> 0.9882354736
A15: h2 | B15: 2 | C15: 2 | D15: 2 | E15: 2 | H15: h2 | I15: 0.3646240234 | J15: 0.1720809937 | K15: 0.3130111694 | L15: 0 | M15: 0.0006929636002 | N15: =SUM(I15:M15) -> 0.8504091501
A16: h3 | B16: 0 | C16: 0 | D16: 1 | E16: 12 | H16: h3 | I16: 0 | J16: 0 | K16: 0.001435279846 | L16: 1.04347229 | M16: 0.001435279846 | N16: =SUM(I16:M16) -> 1.04634285
A17: h4 | B17: 0 | C17: 1 | D17: 2 | E17: 3 | H17: h4 | I17: 0 | J17: 0.002232074738 | K17: 0.03471374512 | L17: 0.1066970825 | M17: 0.1066970825 | N17: =SUM(I17:M17) -> 0.2503399849
I18: =SUM(I14:I17) -> 0.5034751892 | J18: =SUM(J14:J17) -> 0.5316205025 | K18: =SUM(K14:K17) -> 0.5800600052 | L18: =SUM(L14:L17) -> 1.227676392 | M18: =SUM(M14:M17) -> 0.2924953699 | N18: =SUM(I18:M18) -> 3.135327458
A19: Ghnh | B19: v | C19: y | D19: z
A20: 1 | B20: 2 | C20: 2 | D20: 3 | H20: RSc | I20: A | J20: B | K20: C | L20: D | M20: E
A21: 2 | B21: 5 | C21: 2 | D21: 3 | H21: h1 | I21: 0.2983539094 | J21: 0.4650661165 | K21: 0.2612639299 | L21: 0.08662345315 | M21: 0.305863642
A22: 3 | B22: 1 | C22: 3 | D22: 3 | H22: h2 | I22: 0.7016460906 | J22: 0.3663134202 | K22: 0.3989744742 | L22: 0 | M22: 0.05449294771
A23: 4 | B23: 1 | C23: 2 | D23: 1 | H23: h3 | I23: 0 | J23: 0 | K23: 0.08264471249 | L23: 0.6576311137 | M23: 0.1128782488
A24: 5 | B24: 1 | C24: 1 | D24: 0 | H24: h4 | I24: 0 | J24: 0.1686204633 | K24: 0.2571168834 | L24: 0.2557454331 | M24: 0.5267651614
A26: P1 | B26: v1 | C26: v2 | D26: v3 | E26: v4 | H26: PFh:1 | I26: A | J26: B | K26: C | L26: D | M26: E
A27: h1 | B27: 1 | C27: 1 | H27: h1 | I27: 0.06942558289 | J27: 0.178653717 | K27: 0.1154499054 | L27: 0.03875350952 | M27: 0.09183502197
A28: h2 | D28: 1 | H28: h2 | I28: 0.1823120117 | J28: 0.08604049683 | K28: 0.1565055847 | L28: 0 | M28: 0.0003464818001
A29: h3 | C29: 1 | H29: h3 | I29: 0 | J29: 0 | K29: 0.0007176399231 | L29: 0.521736145 | M29: 0.0007176399231
A30: h4 | D30: 1 | E30: 1 | H30: h4 | I30: 0 | J30: 0.001116037369 | K30: 0.01735687256 | L30: 0.05334854126 | M30: 0.05334854126
A31: h5 | B31: 1 | C31: 1 | D31: 1
H32: PFv:1 | I32: A | J32: B | K32: C | L32: D | M32: E
A33: SL | B33: v1 | C33: v2 | D33: v3 | E33: v4 | H33: h1 | I33: 0.2256698608 | J33: 0.4629821777 | K33: 0.2887115479 | L33: 0.1162071228 | M33: 0.3974838257
A34: h1 | B34: A | C34: A | D34: B | E34: C | H34: h2 | I34: 0.264213562 | J34: 0.09292602539 | K34: 0.1694488525 | L34: 0 | M34: 0.0005910396576
A35: h2 | B35: B | C35: D | D35: C | E35: D | H35: h3 | I35: 0 | J35: 0 | K35: 0.000372171402 | L35: 0.2881317139 | M35: 0.0005910396576
A36: h3 | B36: A | C36: C | D36: B | E36: C | H36: h4 | I36: 0 | J36: 0.000372171402 | K36: 0.005591392517 | L36: 0.02056694031 | M36: 0.0269241333
A37: h4 | B37: C | C37: C | D37: C | E37: D
A38: h5 | B38: B | C38: C | D38: D | E38: D
A40: Continuity
A42: N | B42: D
A43: 1 | B43: 29
A44: 2 | B44: 22
A45: 3 | B45: 3
A46: 4 | B46: 48
A47: 5 | B47: 21
A48: 6 | B48: 35
A49: 7 | B49: 33
A50: 8 | B50: 76
A51: 9 | B51: 27
A52: 10 | B52: 26
A53: 11 | B53: 36
A54: 12 | B54: 17
A55: 13 | B55: 52
A56: 14 | B56: 20
A57: 15 | B57: 5
A58: 16 | B58: 9
A59: 17 | B59: 8
A60: 18 | B60: 4
A62: Constancy
A64: X | B64: v1 | C64: v2 | D64: v3 | E64: v4 | F64: v5
A65: h1 | B65: 3 | C65: 5 | D65: 111 | E65: 6 | F65: 1
A66: h2 | B66: 2 | C66: 3 | D66: 1 | E66: 5 | F66: 1
A67: h3 | B67: 3 | C67: 0 | D67: 1 | E67: 2 | F67: 1
A68: h4 | B68: 0 | C68: 0 | D68: 1 | E68: 2 | F68: 1
A70: X | B70: v1 | C70: v2 | D70: v3 | E70: v4
A71: h1 | B71: 1 | C71: 1 | D71: 1 | E71: 1
A72: h2 | B72: 1 | C72: 1 | D72: 0 | E72: 1
A73: h3 | B73: 0 | C73: 0 | D73: 0 | E73: 1
A74: h4 | B74: 0 | C74: 0 | D74: 1 | E74: 1
A76: Star-enh bar
A78: X | B78: s1 | C78: e1 | D78: s2 | E78: e2 | F78: v5
A79: h1 | B79: 1 | C79: 3 | D79: 5 | E79: 8 | F79: 2
A80: h2 | B80: 2 | C80: 4 | D80: 7 | E80: 10 | F80: 4
A81: h3 | B81: 2 | C81: 5 | D81: 8 | E81: 9 | F81: 1
A82: h4 | B82: 3 | C82: 8 | F82: 0
A84: X | B84: v1 | C84: v2 | D84: v3 | E84: v4
A85: h1 | B85: 3 | C85: 5 | D85: 111 | E85: 120
A86: h2 | B86: 2 | C86: 3 | D86: 1 | E86: 5
A87: h3 | B87: 3 | C87: 0 | D87: 1 | E87: 2
A88: h4 | B88: 15 | C88: 0 | D88: 0 | E88: 16
A90: L.D. | B90: v1 | C90: v2 | D90: v3
A91: h1 | B91: A | C91: D | D91: K
A92: h2 | B92: A | C92: D | D92: K
A93: h3 | B93: B | C93: D | D93: K
A94: h4 | B94: B | C94: E | D94: L
A95: h5 | B95: B | C95: E | D95: K
A97: h | B97: v1 | C97: v2 | D97: v3 | E97: y
A98: h1 | B98: A | C98: D | D98: K | E98: 5
A99: h2 | B99: A | C99: D | D99: K | E99: 6
A100: h3 | B100: B | C100: D | D100: K | E100: 7
A101: h4 | B101: B | C101: E | D101: L | E101: 8
A102: h5 | B102: B | C102: E | D102: K | E102: 9
A104: h | B104: v1 | C104: v2 | D104: v3 | E104: y
A105: h1 | B105: A | C105: D | D105: K | E105: X
A106: h2 | B106: A | C106: D | D106: K | E106: X
A107: h3 | B107: B | C107: D | D107: K | E107: Y
A108: h4 | B108: B | C108: E | D108: L | E108: Y
A109: h5 | B109: B | C109: E | D109: K | E109: Z
A111: h | B111: v1 | C111: v2 | D111: v3 | E111: y
A112: h1 | B112: A | C112: D | D112: K | E112: X
A113: h2 | B113: A | C113: D | D113: L | E113: X
A114: h3 | B114: B | C114: D | D114: L | E114: Y
A115: h4 | B115: B | C115: E | D115: K | E115: Y
A116: h5 | B116: B | C116: E | D116: K | E116: Z
A118: h | B118: A | C118: E | D118: L
A119: h1 | B119: A | C119: D | D119: K
A120: h2 | B120: A | C120: D | D120: K
A121: h3 | B121: B | C121: D | D121: K
A122: h4 | B122: B | C122: E | D122: L
A123: h5 | B123: B | C123: E | D123: K
A125: h | B125: v1 | C125: v2 | D125: v3
A126: h1 | B126: A | C126: D | D126: K
A127: h2 | B127: A | C127: D | D127: K
A128: h3 | B128: B | C128: D | D128: K
A129: h4 | B129: B | C129: E | D129: L
A130: h5 | B130: B | C130: E | D130: K
A132: Qnp | B132: v1 | C132: v2 | D132: v3 | E132: v4
A133: d1 | B133: 1 | C133: 1 | D133: 0 | E133: 0
A134: d2 | B134: 0 | C134: 0 | D134: 1 | E134: 0
A135: d3 | B135: 0 | C135: 1 | D135: 0 | E135: 0
A136: d4 | B136: 0 | C136: 0 | D136: 1 | E136: 1
A137: d5 | B137: 1 | C137: 1 | D137: 1 | E137: 0
A139: Dnp | B139: Y1: English | C139: Y2: Latin | D139: Y3: Science | I139: Cor.r | J139: Y1: English | K139: Y2: Latin | L139: Y3: Science | N139: Row | O139: Xn
A140: X1: Ana | B140: 9 | C140: 14 | D140: 18 | I140: X2: Juan | J140: 17 | K140: 7 | L140: 11 | N140: X2: Juan | O140: -0.2099562637
A141: X2: Juan | B141: 17 | C141: 7 | D141: 11 | I141: X3: Mary | J141: 15 | K141: 13 | L141: 14 | N141: X3: Mary | O141: -0.02916059218
A142: X3: Mary | B142: 15 | C142: 13 | D142: 14 | I142: X4: Ken | J142: 5 | K142: 18 | L142: 8 | N142: X4: Ken | O142: 0.1185236972
A143: X4: Ken | B143: 5 | C143: 18 | D143: 8 | I143: X1: Ana | J143: 9 | K143: 14 | L143: 18 | N143: X1: Ana | O143: 0.2688464352
I145: Column | J145: Y1: English | K145: Y2: Latin | L145: Y3: Science
I146: Yp | J146: -1.224744871 | K146: 0 | L146: 1.224744871
H148: Y1: English | I148: Y2: Latin | K148: Row | L148: Xn
H149: 9 | I149: 14 | K149: X1: Ana | L149: -1.341640787
H150: 17 | I150: 7 | K150: X2: Juan | L150: -0.4472135955
H151: 15 | I151: 13 | K151: X3: Mary | L151: 0.4472135955
H152: 5 | I152: 18 | K152: X4: Ken | L152: 1.341640787
H154: Y1: English | I154: Y2: Latin
H155: -0.1361084856 | I155: 0.1548047061

Sheet Sant
A1: * | B1: H | C1: M | D1: E1 | E1: E2 | F1: E3 | G1: N1 | H1: N2 | I1: N3 | K1: Cor.a | L1: N2 | M1: M | N1: E2 | O1: E3 | P1: E1 | Q1: N3 | R1: N1 | S1: H | U1: Row | V1: Xn | X1: Cor.a | Y1: N2 | Z1: M | AA1: E2 | AB1: E3 | AC1: E1 | AD1: N3 | AE1: N1 | AF1: H | AH1: Row | AI1: Xn
A2: ah | B2: 11 | C2: 23 | D2: 7 | E2: 6 | F2: 20 | G2: 9 | H2: 18 | I2: 6 | K2: jo | L2: 31 | M2: 32 | N2: 32 | O2: 0 | P2: 1 | Q2: 0 | R2: 2 | S2: 1 | U2: jo | V2: -0.8888840161 | X2: jo | Y2: 31 | Z2: 32 | AA2: 32 | AB2: 0 | AC2: 1 | AD2: 0 | AE2: 2 | AF2: 1 | AH2: jo | AI2: -0.8888840161
A3: ay | B3: 6 | C3: 28 | D3: 3 | E3: 1 | F3: 30 | G3: 5 | H3: 22 | I3: 6 | K3: jolﾃｭn | L3: 26 | M3: 33 | N3: 26 | O3: 5 | P3: 3 | Q3: 3 | R3: 5 | S3: 0 | U3: jolﾃｭn | V3: -0.7385047888 | X3: jolﾃｭn | Y3: 26 | Z3: 33 | AA3: 26 | AB3: 5 | AC3: 3 | AD3: 3 | AE3: 5 | AF3: 0 | AH3: jolﾃｭn | AI3: -0.7385047888
A4: bueno | B4: 17 | C4: 16 | D4: 10 | E4: 12 | F4: 11 | G4: 13 | H4: 9 | I4: 12 | K4: ay | L4: 22 | M4: 28 | N4: 1 | O4: 30 | P4: 3 | Q4: 6 | R4: 5 | S4: 6 | U4: ay | V4: -0.4146710997 | X4: ay | Y4: 22 | Z4: 28 | AA4: 1 | AB4: 30 | AC4: 3 | AD4: 6 | AE4: 5 | AF4: 6 | AH4: ay | AI4: -0.4146710997
A5: claramente | B5: 33 | C5: 0 | D5: 0 | E5: 26 | F5: 8 | G5: 28 | H5: 3 | I5: 3 | K5: madre mﾃｭa | L5: 20 | M5: 24 | N5: 18 | O5: 16 | P5: 0 | Q5: 11 | R5: 2 | S5: 9 | U5: madre mﾃｭa | V5: -0.3898958363 | X5: madre mﾃｭa | Y5: 20 | Z5: 24 | AA5: 18 | AB5: 16 | AC5: 0 | AD5: 11 | AE5: 2 | AF5: 9 | AH5: madre mﾃｭa | AI5: -0.3898958363
A6: claro | B6: 12 | C6: 22 | D6: 5 | E6: 10 | F6: 18 | G6: 13 | H6: 9 | I6: 12 | K6: vale | L6: 22 | M6: 23 | N6: 20 | O6: 7 | P6: 7 | Q6: 5 | R6: 6 | S6: 10 | U6: vale | V6: -0.3600958583 | X6: vale | Y6: 22 | Z6: 23 | AA6: 20 | AB6: 7 | AC6: 7 | AD6: 5 | AE6: 6 | AF6: 10 | AH6: vale | AI6: -0.3600958583
A7: directamente | B7: 20 | C7: 13 | D7: 17 | E7: 15 | F7: 2 | G7: 22 | H7: 10 | I7: 2 | K7: uy | L7: 18 | M7: 28 | N7: 12 | O7: 18 | P7: 4 | Q7: 2 | R7: 14 | S7: 5 | U7: uy | V7: -0.3590582356 | X7: uy | Y7: 18 | Z7: 28 | AA7: 12 | AB7: 18 | AC7: 4 | AD7: 2 | AE7: 14 | AF7: 5 | AH7: uy | AI7: -0.3590582356
A8: efectivamente | B8: 12 | C8: 21 | D8: 0 | E8: 8 | F8: 26 | G8: 1 | H8: 7 | I8: 26 | K8: pff | L8: 24 | M8: 20 | N8: 15 | O8: 11 | P8: 8 | Q8: 3 | R8: 6 | S8: 13 | U8: pff | V8: -0.2965731433 | X8: pff | Y8: 24 | Z8: 20 | AA8: 15 | AB8: 11 | AC8: 8 | AD8: 3 | AE8: 6 | AF8: 13 | AH8: pff | AI8: -0.2965731433
A9: eh | B9: 24 | C9: 9 | D9: 10 | E9: 13 | F9: 10 | G9: 15 | H9: 8 | I9: 10 | K9: totalmente | L9: 20 | M9: 20 | N9: 22 | O9: 2 | P9: 9 | Q9: 12 | R9: 1 | S9: 13 | U9: totalmente | V9: -0.250965692 | X9: totalmente | Y9: 20 | Z9: 20 | AA9: 22 | AB9: 2 | AC9: 9 | AD9: 12 | AE9: 1 | AF9: 13 | AH9: totalmente | AI9: -0.250965692
A10: exactamente | B10: 28 | C10: 5 | D10: 0 | E10: 19 | F10: 14 | G10: 12 | H10: 5 | I10: 16 | K10: vamos | L10: 22 | M10: 25 | N10: 6 | O10: 6 | P10: 22 | Q10: 8 | R10: 4 | S10: 8 | U10: vamos | V10: -0.2431583744 | X10: vamos | Y10: 22 | Z10: 25 | AA10: 6 | AB10: 6 | AC10: 22 | AD10: 8 | AE10: 4 | AF10: 8 | AH10: vamos | AI10: -0.2431583744
A11: generalmente | B11: 24 | C11: 9 | D11: 5 | E11: 19 | F11: 9 | G11: 0 | H11: 19 | I11: 15 | K11: ah | L11: 18 | M11: 23 | N11: 6 | O11: 20 | P11: 7 | Q11: 6 | R11: 9 | S11: 11 | U11: ah | V11: -0.1949053448 | X11: ah | Y11: 18 | Z11: 23 | AA11: 6 | AB11: 20 | AC11: 7 | AD11: 6 | AE11: 9 | AF11: 11 | AH11: ah | AI11: -0.1949053448
A12: hm | B12: 10 | C12: 23 | D12: 10 | E12: 10 | F12: 14 | G12: 16 | H12: 6 | I12: 12 | K12: muchﾃｭsimo | L12: 11 | M12: 27 | N12: 18 | O12: 8 | P12: 7 | Q12: 8 | R12: 14 | S12: 7 | U12: muchﾃｭsimo | V12: -0.1929716985 | X12: muchﾃｭsimo | Y12: 11 | Z12: 27 | AA12: 18 | AB12: 8 | AC12: 7 | AD12: 8 | AE12: 14 | AF12: 7 | AH12: muchﾃｭsimo | AI12: -0.1929716985
A13: hola | B13: 23 | C13: 11 | D13: 5 | E13: 25 | F13: 3 | G13: 11 | H13: 19 | I13: 4 | K13: perfectamente | L13: 12 | M13: 22 | N13: 6 | O13: 24 | P13: 4 | Q13: 16 | R13: 6 | S13: 12 | U13: perfectamente | V13: -0.06039968731 | X13: perfectamente | Y13: 12 | Z13: 22 | AA13: 6 | AB13: 24 | AC13: 4 | AD13: 16 | AE13: 6 | AF13: 12 | AH13: perfectamente | AI13: -0.06039968731
A14: jo | B14: 1 | C14: 32 | D14: 1 | E14: 32 | F14: 0 | G14: 2 | H14: 31 | I14: 0 | K14: prﾃ｡cticamente | L14: 23 | M14: 12 | N14: 11 | O14: 9 | P14: 14 | Q14: 8 | R14: 3 | S14: 21 | U14: prﾃ｡cticamente | V14: -0.01209374423 | X14: prﾃ｡cticamente | Y14: 23 | Z14: 12 | AA14: 11 | AB14: 9 | AC14: 14 | AD14: 8 | AE14: 3 | AF14: 21 | AH14: prﾃ｡cticamente | AI14: -0.01209374423
A15: joder | B15: 29 | C15: 5 | D15: 5 | E15: 14 | F15: 15 | G15: 14 | H15: 18 | I15: 1 | K15: claro | L15: 9 | M15: 22 | N15: 10 | O15: 18 | P15: 5 | Q15: 12 | R15: 13 | S15: 12 | U15: claro | V15: 0.004840788082 | X15: claro | Y15: 9 | Z15: 22 | AA15: 10 | AB15: 18 | AC15: 5 | AD15: 12 | AE15: 13 | AF15: 12 | AH15: claro | AI15: 0.004840788082
A16: jolﾃｭn | B16: 0 | C16: 33 | D16: 3 | E16: 26 | F16: 5 | G16: 5 | H16: 26 | I16: 3 | K16: hola | L16: 19 | M16: 11 | N16: 25 | O16: 3 | P16: 5 | Q16: 4 | R16: 11 | S16: 23 | U16: hola | V16: 0.005275090862 | X16: hola | Y16: 19 | Z16: 11 | AA16: 25 | AB16: 3 | AC16: 5 | AD16: 4 | AE16: 11 | AF16: 23 | AH16: hola | AI16: 0.005275090862
A17: madre mﾃｭa | B17: 9 | C17: 24 | D17: 0 | E17: 18 | F17: 16 | G17: 2 | H17: 20 | I17: 11 | K17: efectivamente | L17: 7 | M17: 21 | N17: 8 | O17: 26 | P17: 0 | Q17: 26 | R17: 1 | S17: 12 | U17: efectivamente | V17: 0.009135670131 | X17: efectivamente | Y17: 7 | Z17: 21 | AA17: 8 | AB17: 26 | AC17: 0 | AD17: 26 | AE17: 1 | AF17: 12 | AH17: efectivamente | AI17: 0.009135670131
A18: mm | B18: 18 | C18: 15 | D18: 11 | E18: 13 | F18: 9 | G18: 10 | H18: 11 | I18: 13 | K18: sinceramente | L18: 18 | M18: 13 | N18: 15 | O18: 10 | P18: 8 | Q18: 0 | R18: 15 | S18: 21 | U18: sinceramente | V18: 0.03984738057 | X18: sinceramente | Y18: 18 | Z18: 13 | AA18: 15 | AB18: 10 | AC18: 8 | AD18: 0 | AE18: 15 | AF18: 21 | AH18: sinceramente | AI18: 0.03984738057
A19: muchﾃｭsimo | B19: 7 | C19: 27 | D19: 7 | E19: 18 | F19: 8 | G19: 14 | H19: 11 | I19: 8 | K19: generalmente | L19: 19 | M19: 9 | N19: 19 | O19: 9 | P19: 5 | Q19: 15 | R19: 0 | S19: 24 | U19: generalmente | V19: 0.04609765077 | X19: generalmente | Y19: 19 | Z19: 9 | AA19: 19 | AB19: 9 | AC19: 5 | AD19: 15 | AE19: 0 | AF19: 24 | AH19: generalmente | AI19: 0.04609765077
A20: normalmente | B20: 28 | C20: 6 | D20: 8 | E20: 6 | F20: 19 | G20: 9 | H20: 3 | I20: 21 | K20: hm | L20: 6 | M20: 23 | N20: 10 | O20: 14 | P20: 10 | Q20: 12 | R20: 16 | S20: 10 | U20: hm | V20: 0.06825877456 | X20: hm | Y20: 6 | Z20: 23 | AA20: 10 | AB20: 14 | AC20: 10 | AD20: 12 | AE20: 16 | AF20: 10 | AH20: hm | AI20: 0.06825877456
A21: oye | B21: 25 | C21: 8 | D21: 3 | E21: 18 | F21: 12 | G21: 14 | H21: 12 | I21: 7 | K21: mm | L21: 11 | M21: 15 | N21: 13 | O21: 9 | P21: 11 | Q21: 13 | R21: 10 | S21: 18 | U21: mm | V21: 0.1484486199 | X21: mm | Y21: 11 | Z21: 15 | AA21: 13 | AB21: 9 | AC21: 11 | AD21: 13 | AE21: 10 | AF21: 18 | AH21: mm | AI21: 0.1484486199
A22: perfectamente | B22: 12 | C22: 22 | D22: 4 | E22: 6 | F22: 24 | G22: 6 | H22: 12 | I22: 16 | K22: bueno | L22: 9 | M22: 16 | N22: 12 | O22: 11 | P22: 10 | Q22: 12 | R22: 13 | S22: 17 | U22: bueno | V22: 0.1690966426 | X22: bueno | Y22: 9 | Z22: 16 | AA22: 12 | AB22: 11 | AC22: 10 | AD22: 12 | AE22: 13 | AF22: 17 | AH22: bueno | AI22: 0.1690966426
A23: pff | B23: 13 | C23: 20 | D23: 8 | E23: 15 | F23: 11 | G23: 6 | H23: 24 | I23: 3 | K23: uhum | L23: 2 | M23: 16 | N23: 23 | O23: 5 | P23: 5 | Q23: 26 | R23: 5 | S23: 18 | U23: uhum | V23: 0.2210315072 | X23: uhum | Y23: 2 | Z23: 16 | AA23: 23 | AB23: 5 | AC23: 5 | AD23: 26 | AE23: 5 | AF23: 18 | AH23: uhum | AI23: 0.2210315072
A24: prﾃ｡cticamente | B24: 21 | C24: 12 | D24: 14 | E24: 11 | F24: 9 | G24: 3 | H24: 23 | I24: 8 | K24: joder | L24: 18 | M24: 5 | N24: 14 | O24: 15 | P24: 5 | Q24: 1 | R24: 14 | S24: 29 | U24: joder | V24: 0.2243891848 | X24: joder | Y24: 18 | Z24: 5 | AA24: 14 | AB24: 15 | AC24: 5 | AD24: 1 | AE24: 14 | AF24: 29 | AH24: joder | AI24: 0.2243891848
A25: realmente | B25: 24 | C25: 10 | D25: 23 | E25: 3 | F25: 7 | G25: 15 | H25: 3 | I25: 15 | K25: oye | L25: 12 | M25: 8 | N25: 18 | O25: 12 | P25: 3 | Q25: 7 | R25: 14 | S25: 25 | U25: oye | V25: 0.2335833386 | X25: oye | Y25: 12 | Z25: 8 | AA25: 18 | AB25: 12 | AC25: 3 | AD25: 7 | AE25: 14 | AF25: 25 | AH25: oye | AI25: 0.2335833386
A26: simplemente | B26: 26 | C26: 8 | D26: 20 | E26: 6 | F26: 6 | G26: 8 | H26: 11 | I26: 15 | K26: directamente | L26: 10 | M26: 13 | N26: 15 | O26: 2 | P26: 17 | Q26: 2 | R26: 22 | S26: 20 | U26: directamente | V26: 0.2747586009 | X26: directamente | Y26: 10 | Z26: 13 | AA26: 15 | AB26: 2 | AC26: 17 | AD26: 2 | AE26: 22 | AF26: 20 | AH26: directamente | AI26: 0.2747586009
A27: sinceramente | B27: 21 | C27: 13 | D27: 8 | E27: 15 | F27: 10 | G27: 15 | H27: 18 | I27: 0 | K27: eh | L27: 8 | M27: 9 | N27: 13 | O27: 10 | P27: 10 | Q27: 10 | R27: 15 | S27: 24 | U27: eh | V27: 0.3638015671 | X27: eh | Y27: 8 | Z27: 9 | AA27: 13 | AB27: 10 | AC27: 10 | AD27: 10 | AE27: 15 | AF27: 24 | AH27: eh | AI27: 0.3638015671
A28: totalmente | B28: 13 | C28: 20 | D28: 9 | E28: 22 | F28: 2 | G28: 1 | H28: 20 | I28: 12 | K28: simplemente | L28: 11 | M28: 8 | N28: 6 | O28: 6 | P28: 20 | Q28: 15 | R28: 8 | S28: 26 | U28: simplemente | V28: 0.4262172917 | X28: simplemente | Y28: 11 | Z28: 8 | AA28: 6 | AB28: 6 | AC28: 20 | AD28: 15 | AE28: 8 | AF28: 26 | AH28: simplemente | AI28: 0.4262172917
A29: uhum | B29: 18 | C29: 16 | D29: 5 | E29: 23 | F29: 5 | G29: 5 | H29: 2 | I29: 26 | K29: exactamente | L29: 5 | M29: 5 | N29: 19 | O29: 14 | P29: 0 | Q29: 16 | R29: 12 | S29: 28 | U29: exactamente | V29: 0.429905649 | X29: exactamente | Y29: 5 | Z29: 5 | AA29: 19 | AB29: 14 | AC29: 0 | AD29: 16 | AE29: 12 | AF29: 28 | AH29: exactamente | AI29: 0.429905649
A30: uy | B30: 5 | C30: 28 | D30: 4 | E30: 12 | F30: 18 | G30: 14 | H30: 18 | I30: 2 | K30: normalmente | L30: 3 | M30: 6 | N30: 6 | O30: 19 | P30: 8 | Q30: 21 | R30: 9 | S30: 28 | U30: normalmente | V30: 0.5592712335 | X30: normalmente | Y30: 3 | Z30: 6 | AA30: 6 | AB30: 19 | AC30: 8 | AD30: 21 | AE30: 9 | AF30: 28 | AH30: normalmente | AI30: 0.5592712335
A31: vale | B31: 10 | C31: 23 | D31: 7 | E31: 20 | F31: 7 | G31: 6 | H31: 22 | I31: 5 | K31: realmente | L31: 3 | M31: 10 | N31: 3 | O31: 7 | P31: 23 | Q31: 15 | R31: 15 | S31: 24 | U31: realmente | V31: 0.5828801423 | X31: realmente | Y31: 3 | Z31: 10 | AA31: 3 | AB31: 7 | AC31: 23 | AD31: 15 | AE31: 15 | AF31: 24 | AH31: realmente | AI31: 0.5828801423
A32: vamos | B32: 8 | C32: 25 | D32: 22 | E32: 6 | F32: 6 | G32: 4 | H32: 22 | I32: 8 | K32: claramente | L32: 3 | M32: 0 | N32: 26 | O32: 8 | P32: 0 | Q32: 3 | R32: 28 | S32: 33 | U32: claramente | V32: 0.6011515258 | X32: claramente | Y32: 3 | Z32: 0 | AA32: 26 | AB32: 8 | AC32: 0 | AD32: 3 | AE32: 28 | AF32: 33 | AH32: claramente | AI32: 0.6011515258
K34: Column | L34: N2 | M34: M | N34: E2 | O34: E3 | P34: E1 | Q34: N3 | R34: N1 | S34: H | X34: Column | Y34: N2 | Z34: M | AA34: E2 | AB34: E3 | AC34: E1 | AD34: N3 | AE34: N1 | AF34: H
K35: Yp | L35: -0.4523533236 | M35: -0.4459612228 | N35: -0.1494552454 | O35: 0.01007889115 | P35: 0.24793279 | Q35: 0.2990915409 | R35: 0.3768364213 | S35: 0.4702846041 | X35: Yp | Y35: -0.4523533236 | Z35: -0.4459612228 | AA35: -0.1494552454 | AB35: 0.01007889115 | AC35: 0.24793279 | AD35: 0.2990915409 | AE35: 0.3768364213 | AF35: 0.4702846041
K37: Cor.r | L37: H | M37: M | N37: E1 | O37: E2 | P37: E3 | Q37: N1 | R37: N2 | S37: N3 | U37: Row | V37: Xn | X37: Cor.r | Y37: H | Z37: M | AA37: E1 | AB37: E2 | AC37: E3 | AD37: N1 | AE37: N2 | AF37: N3 | AH37: Row | AI37: Xn
K38: directamente | L38: 20 | M38: 13 | N38: 17 | O38: 15 | P38: 2 | Q38: 22 | R38: 10 | S38: 2 | U38: directamente | V38: -0.3003196707 | X38: directamente | Y38: 20 | Z38: 13 | AA38: 17 | AB38: 15 | AC38: 2 | AD38: 22 | AE38: 10 | AF38: 2 | AH38: directamente | AI38: -0.3003196707
K39: claramente | L39: 33 | M39: 0 | N39: 0 | O39: 26 | P39: 8 | Q39: 28 | R39: 3 | S39: 3 | U39: claramente | V39: -0.278713939 | X39: claramente | Y39: 33 | Z39: 0 | AA39: 0 | AB39: 26 | AC39: 8 | AD39: 28 | AE39: 3 | AF39: 3 | AH39: claramente | AI39: -0.278713939
K40: realmente | L40: 24 | M40: 10 | N40: 23 | O40: 3 | P40: 7 | Q40: 15 | R40: 3 | S40: 15 | U40: realmente | V40: -0.2574971105 | X40: realmente | Y40: 24 | Z40: 10 | AA40: 23 | AB40: 3 | AC40: 7 | AD40: 15 | AE40: 3 | AF40: 15 | AH40: realmente | AI40: -0.2574971105
K41: sinceramente | L41: 21 | M41: 13 | N41: 8 | O41: 15 | P41: 10 | Q41: 15 | R41: 18 | S41: 0 | U41: sinceramente | V41: -0.2313109637 | X41: sinceramente | Y41: 21 | Z41: 13 | AA41: 8 | AB41: 15 | AC41: 10 | AD41: 15 | AE41: 18 | AF41: 0 | AH41: sinceramente | AI41: -0.2313109637
K42: joder | L42: 29 | M42: 5 | N42: 5 | O42: 14 | P42: 15 | Q42: 14 | R42: 18 | S42: 1 | U42: joder | V42: -0.2225390366 | X42: joder | Y42: 29 | Z42: 5 | AA42: 5 | AB42: 14 | AC42: 15 | AD42: 14 | AE42: 18 | AF42: 1 | AH42: joder | AI42: -0.2225390366
K43: simplemente | L43: 26 | M43: 8 | N43: 20 | O43: 6 | P43: 6 | Q43: 8 | R43: 11 | S43: 15 | U43: simplemente | V43: -0.2138535324 | X43: simplemente | Y43: 26 | Z43: 8 | AA43: 20 | AB43: 6 | AC43: 6 | AD43: 8 | AE43: 11 | AF43: 15 | AH43: simplemente | AI43: -0.2138535324
K44: hola | L44: 23 | M44: 11 | N44: 5 | O44: 25 | P44: 3 | Q44: 11 | R44: 19 | S44: 4 | U44: hola | V44: -0.2095755976 | X44: hola | Y44: 23 | Z44: 11 | AA44: 5 | AB44: 25 | AC44: 3 | AD44: 11 | AE44: 19 | AF44: 4 | AH44: hola | AI44: -0.2095755976
K45: eh | L45: 24 | M45: 9 | N45: 10 | O45: 13 | P45: 10 | Q45: 15 | R45: 8 | S45: 10 | U45: eh | V45: -0.2005841213 | X45: eh | Y45: 24 | Z45: 9 | AA45: 10 | AB45: 13 | AC45: 10 | AD45: 15 | AE45: 8 | AF45: 10 | AH45: eh | AI45: -0.2005841213
K46: oye | L46: 25 | M46: 8 | N46: 3 | O46: 18 | P46: 12 | Q46: 14 | R46: 12 | S46: 7 | U46: oye | V46: -0.174133468 | X46: oye | Y46: 25 | Z46: 8 | AA46: 3 | AB46: 18 | AC46: 12 | AD46: 14 | AE46: 12 | AF46: 7 | AH46: oye | AI46: -0.174133468
K47: prﾃ｡cticamente | L47: 21 | M47: 12 | N47: 14 | O47: 11 | P47: 9 | Q47: 3 | R47: 23 | S47: 8 | U47: prﾃ｡cticamente | V47: -0.1534006951 | X47: prﾃ｡cticamente | Y47: 21 | Z47: 12 | AA47: 14 | AB47: 11 | AC47: 9 | AD47: 3 | AE47: 23 | AF47: 8 | AH47: prﾃ｡cticamente | AI47: -0.1534006951
K48: vamos | L48: 8 | M48: 25 | N48: 22 | O48: 6 | P48: 6 | Q48: 4 | R48: 22 | S48: 8 | U48: vamos | V48: -0.1490795488 | X48: vamos | Y48: 8 | Z48: 25 | AA48: 22 | AB48: 6 | AC48: 6 | AD48: 4 | AE48: 22 | AF48: 8 | AH48: vamos | AI48: -0.1490795488
K49: bueno | L49: 17 | M49: 16 | N49: 10 | O49: 12 | P49: 11 | Q49: 13 | R49: 9 | S49: 12 | U49: bueno | V49: -0.135295092 | X49: bueno | Y49: 17 | Z49: 16 | AA49: 10 | AB49: 12 | AC49: 11 | AD49: 13 | AE49: 9 | AF49: 12 | AH49: bueno | AI49: -0.135295092
K50: mm | L50: 18 | M50: 15 | N50: 11 | O50: 13 | P50: 9 | Q50: 10 | R50: 11 | S50: 13 | U50: mm | V50: -0.135295092 | X50: mm | Y50: 18 | Z50: 15 | AA50: 11 | AB50: 13 | AC50: 9 | AD50: 10 | AE50: 11 | AF50: 13 | AH50: mm | AI50: -0.135295092
K51: muchﾃｭsimo | L51: 7 | M51: 27 | N51: 7 | O51: 18 | P51: 8 | Q51: 14 | R51: 11 | S51: 8 | U51: muchﾃｭsimo | V51: -0.135295092 | X51: muchﾃｭsimo | Y51: 7 | Z51: 27 | AA51: 7 | AB51: 18 | AC51: 8 | AD51: 14 | AE51: 11 | AF51: 8 | AH51: muchﾃｭsimo | AI51: -0.135295092
K52: pff | L52: 13 | M52: 20 | N52: 8 | O52: 15 | P52: 11 | Q52: 6 | R52: 24 | S52: 3 | U52: pff | V52: -0.1309307341 | X52: pff | Y52: 13 | Z52: 20 | AA52: 8 | AB52: 15 | AC52: 11 | AD52: 6 | AE52: 24 | AF52: 3 | AH52: pff | AI52: -0.1309307341
K53: vale | L53: 10 | M53: 23 | N53: 7 | O53: 20 | P53: 7 | Q53: 6 | R53: 22 | S53: 5 | U53: vale | V53: -0.1222020185 | X53: vale | Y53: 10 | Z53: 23 | AA53: 7 | AB53: 20 | AC53: 7 | AD53: 6 | AE53: 22 | AF53: 5 | AH53: vale | AI53: -0.1222020185
K54: exactamente | L54: 28 | M54: 5 | N54: 0 | O54: 19 | P54: 14 | Q54: 12 | R54: 5 | S54: 16 | U54: exactamente | V54: -0.116823719 | X54: exactamente | Y54: 28 | Z54: 5 | AA54: 0 | AB54: 19 | AC54: 14 | AD54: 12 | AE54: 5 | AF54: 16 | AH54: exactamente | AI54: -0.116823719
K55: totalmente | L55: 13 | M55: 20 | N55: 9 | O55: 22 | P55: 2 | Q55: 1 | R55: 20 | S55: 12 | U55: totalmente | V55: -0.1124152768 | X55: totalmente | Y55: 13 | Z55: 20 | AA55: 9 | AB55: 22 | AC55: 2 | AD55: 1 | AE55: 20 | AF55: 12 | AH55: totalmente | AI55: -0.1124152768
K56: hm | L56: 10 | M56: 23 | N56: 10 | O56: 10 | P56: 14 | Q56: 16 | R56: 6 | S56: 12 | U56: hm | V56: -0.1058680854 | X56: hm | Y56: 10 | Z56: 23 | AA56: 10 | AB56: 10 | AC56: 14 | AD56: 16 | AE56: 6 | AF56: 12 | AH56: hm | AI56: -0.1058680854
K57: normalmente | L57: 28 | M57: 6 | N57: 8 | O57: 6 | P57: 19 | Q57: 9 | R57: 3 | S57: 21 | U57: normalmente | V57: -0.1047445873 | X57: normalmente | Y57: 28 | Z57: 6 | AA57: 8 | AB57: 6 | AC57: 19 | AD57: 9 | AE57: 3 | AF57: 21 | AH57: normalmente | AI57: -0.1047445873
K58: jo | L58: 1 | M58: 32 | N58: 1 | O58: 32 | P58: 0 | Q58: 2 | R58: 31 | S58: 0 | U58: jo | V58: -0.09037306566 | X58: jo | Y58: 1 | Z58: 32 | AA58: 1 | AB58: 32 | AC58: 0 | AD58: 2 | AE58: 31 | AF58: 0 | AH58: jo | AI58: -0.09037306566
K59: ah | L59: 11 | M59: 23 | N59: 7 | O59: 6 | P59: 20 | Q59: 9 | R59: 18 | S59: 6 | U59: ah | V59: -0.0872871561 | X59: ah | Y59: 11 | Z59: 23 | AA59: 7 | AB59: 6 | AC59: 20 | AD59: 9 | AE59: 18 | AF59: 6 | AH59: ah | AI59: -0.0872871561
K60: generalmente | L60: 24 | M60: 9 | N60: 5 | O60: 19 | P60: 9 | Q60: 0 | R60: 19 | S60: 15 | U60: generalmente | V60: -0.08292279829 | X60: generalmente | Y60: 24 | Z60: 9 | AA60: 5 | AB60: 19 | AC60: 9 | AD60: 0 | AE60: 19 | AF60: 15 | AH60: generalmente | AI60: -0.08292279829
K61: uy | L61: 5 | M61: 28 | N61: 4 | O61: 12 | P61: 18 | Q61: 14 | R61: 18 | S61: 2 | U61: uy | V61: -0.07562006098 | X61: uy | Y61: 5 | Z61: 28 | AA61: 4 | AB61: 12 | AC61: 18 | AD61: 14 | AE61: 18 | AF61: 2 | AH61: uy | AI61: -0.07562006098
K62: claro | L62: 12 | M62: 22 | N62: 5 | O62: 10 | P62: 18 | Q62: 13 | R62: 9 | S62: 12 | U62: claro | V62: -0.07129891463 | X62: claro | Y62: 12 | Z62: 22 | AA62: 5 | AB62: 10 | AC62: 18 | AD62: 13 | AE62: 9 | AF62: 12 | AH62: claro | AI62: -0.07129891463
K63: uhum | L63: 18 | M63: 16 | N63: 5 | O63: 23 | P63: 5 | Q63: 5 | R63: 2 | S63: 26 | U63: uhum | V63: -0.06982972488 | X63: uhum | Y63: 18 | Z63: 16 | AA63: 5 | AB63: 23 | AC63: 5 | AD63: 5 | AE63: 2 | AF63: 26 | AH63: uhum | AI63: -0.06982972488
K64: jolﾃｭn | L64: 0 | M64: 33 | N64: 3 | O64: 26 | P64: 5 | Q64: 5 | R64: 26 | S64: 3 | U64: jolﾃｭn | V64: -0.06265662195 | X64: jolﾃｭn | Y64: 0 | Z64: 33 | AA64: 3 | AB64: 26 | AC64: 5 | AD64: 5 | AE64: 26 | AF64: 3 | AH64: jolﾃｭn | AI64: -0.06265662195
K65: madre mﾃｭa | L65: 9 | M65: 24 | N65: 0 | O65: 18 | P65: 16 | Q65: 2 | R65: 20 | S65: 11 | U65: madre mﾃｭa | V65: -0.004364357805 | X65: madre mﾃｭa | Y65: 9 | Z65: 24 | AA65: 0 | AB65: 18 | AC65: 16 | AD65: 2 | AE65: 20 | AF65: 11 | AH65: madre mﾃｭa | AI65: -0.004364357805
K66: perfectamente | L66: 12 | M66: 22 | N66: 4 | O66: 6 | P66: 24 | Q66: 6 | R66: 12 | S66: 16 | U66: perfectamente | V66: 0.004278782162 | X66: perfectamente | Y66: 12 | Z66: 22 | AA66: 4 | AB66: 6 | AC66: 24 | AD66: 6 | AE66: 12 | AF66: 16 | AH66: perfectamente | AI66: 0.004278782162
K67: ay | L67: 6 | M67: 28 | N67: 3 | O67: 1 | P67: 30 | Q67: 5 | R67: 22 | S67: 6 | U67: ay | V67: 0.01080286585 | X67: ay | Y67: 6 | Z67: 28 | AA67: 3 | AB67: 1 | AC67: 30 | AD67: 5 | AE67: 22 | AF67: 6 | AH67: ay | AI67: 0.01080286585
K68: efectivamente | L68: 12 | M68: 21 | N68: 0 | O68: 8 | P68: 26 | Q68: 1 | R68: 7 | S68: 26 | U68: efectivamente | V68: 0.1058680854 | X68: efectivamente | Y68: 12 | Z68: 21 | AA68: 0 | AB68: 8 | AC68: 26 | AD68: 1 | AE68: 7 | AF68: 26 | AH68: efectivamente | AI68: 0.1058680854
K70: Column | L70: H | M70: M | N70: E1 | O70: E2 | P70: E3 | Q70: N1 | R70: N2 | S70: N3 | X70: Column | Y70: H | Z70: M | AA70: E1 | AB70: E2 | AC70: E3 | AD70: N1 | AE70: N2 | AF70: N3
K71: Yp | L71: -1.527525232 | M71: -1.091089451 | N71: -0.6546536707 | O71: -0.2182178902 | P71: 0.2182178902 | Q71: 0.6546536707 | R71: 1.091089451 | S71: 1.527525232 | X71: Yp | Y71: -1.527525232 | Z71: -1.091089451 | AA71: -0.6546536707 | AB71: -0.2182178902 | AC71: 0.2182178902 | AD71: 0.6546536707 | AE71: 1.091089451 | AF71: 1.527525232
K73: Cor.c | L73: E3 | M73: N1 | N73: H | O73: E2 | P73: N3 | Q73: M | R73: N2 | S73: E1 | U73: Row | V73: Xn | X73: Cor.c | Y73: E3 | Z73: N1 | AA73: H | AB73: E2 | AC73: N3 | AD73: M | AE73: N2 | AF73: E1 | AG73: 1.012981711 | AH73: Row | AI73: Xn | AJ73: 0.190060046 | AK73: 0.01471087727 | AL73: -2.474993663 | AM73: 0.6248060769 | AN73: -2.05628462 | AO73: -1.085630509 | AP73: 0.4133467116 | AQ73: -0.5373034511 | AR73: 1.557230602 | AS73: 0.6504038635 | AT73: -0.1681909873 | AU73: -0.8257704686 | AV73: -0.03366543532 | AW73: 1.622980409 | AX73: 1.186768339 | AY73: 0.1109688778 | AZ73: -0.6987799442 | BA73: 0.6154414041 | BB73: -0.9997610107 | BC73: -1.002641546 | BD73: -0.6770471772
K74: ah | L74: 20 | M74: 9 | N74: 11 | O74: 6 | P74: 6 | Q74: 23 | R74: 18 | S74: 7 | U74: ah | V74: -1.677050983 | X74: ah | Y74: 20 | Z74: 9 | AA74: 11 | AB74: 6 | AC74: 6 | AD74: 23 | AE74: 18 | AF74: 7 | AH74: ah | AI74: -1.677050983
K75: ay | L75: 30 | M75: 5 | N75: 6 | O75: 1 | P75: 6 | Q75: 28 | R75: 22 | S75: 3 | U75: ay | V75: -1.565247584 | X75: ay | Y75: 30 | Z75: 5 | AA75: 6 | AB75: 1 | AC75: 6 | AD75: 28 | AE75: 22 | AF75: 3 | AH75: ay | AI75: -1.565247584
K76: bueno | L76: 11 | M76: 13 | N76: 17 | O76: 12 | P76: 12 | Q76: 16 | R76: 9 | S76: 10 | U76: bueno | V76: -1.453444185 | X76: bueno | Y76: 11 | Z76: 13 | AA76: 17 | AB76: 12 | AC76: 12 | AD76: 16 | AE76: 9 | AF76: 10 | AH76: bueno | AI76: -1.453444185
K77: claramente | L77: 8 | M77: 28 | N77: 33 | O77: 26 | P77: 3 | Q77: 0 | R77: 3 | S77: 0 | U77: claramente | V77: -1.341640787 | X77: claramente | Y77: 8 | Z77: 28 | AA77: 33 | AB77: 26 | AC77: 3 | AD77: 0 | AE77: 3 | AF77: 0 | AH77: claramente | AI77: -1.341640787
K78: claro | L78: 18 | M78: 13 | N78: 12 | O78: 10 | P78: 12 | Q78: 22 | R78: 9 | S78: 5 | U78: claro | V78: -1.229837388 | X78: claro | Y78: 18 | Z78: 13 | AA78: 12 | AB78: 10 | AC78: 12 | AD78: 22 | AE78: 9 | AF78: 5 | AH78: claro | AI78: -1.229837388
K79: directamente | L79: 2 | M79: 22 | N79: 20 | O79: 15 | P79: 2 | Q79: 13 | R79: 10 | S79: 17 | U79: directamente | V79: -1.118033989 | X79: directamente | Y79: 2 | Z79: 22 | AA79: 20 | AB79: 15 | AC79: 2 | AD79: 13 | AE79: 10 | AF79: 17 | AH79: directamente | AI79: -1.118033989
K80: efectivamente | L80: 26 | M80: 1 | N80: 12 | O80: 8 | P80: 26 | Q80: 21 | R80: 7 | S80: 0 | U80: efectivamente | V80: -1.00623059 | X80: efectivamente | Y80: 26 | Z80: 1 | AA80: 12 | AB80: 8 | AC80: 26 | AD80: 21 | AE80: 7 | AF80: 0 | AH80: efectivamente | AI80: -1.00623059
K81: eh | L81: 10 | M81: 15 | N81: 24 | O81: 13 | P81: 10 | Q81: 9 | R81: 8 | S81: 10 | U81: eh | V81: -0.894427191 | X81: eh | Y81: 10 | Z81: 15 | AA81: 24 | AB81: 13 | AC81: 10 | AD81: 9 | AE81: 8 | AF81: 10 | AH81: eh | AI81: -0.894427191
K82: exactamente | L82: 14 | M82: 12 | N82: 28 | O82: 19 | P82: 16 | Q82: 5 | R82: 5 | S82: 0 | U82: exactamente | V82: -0.7826237921 | X82: exactamente | Y82: 14 | Z82: 12 | AA82: 28 | AB82: 19 | AC82: 16 | AD82: 5 | AE82: 5 | AF82: 0 | AH82: exactamente | AI82: -0.7826237921
K83: generalmente | L83: 9 | M83: 0 | N83: 24 | O83: 19 | P83: 15 | Q83: 9 | R83: 19 | S83: 5 | U83: generalmente | V83: -0.6708203933 | X83: generalmente | Y83: 9 | Z83: 0 | AA83: 24 | AB83: 19 | AC83: 15 | AD83: 9 | AE83: 19 | AF83: 5 | AH83: generalmente | AI83: -0.6708203933
K84: hm | L84: 14 | M84: 16 | N84: 10 | O84: 10 | P84: 12 | Q84: 23 | R84: 6 | S84: 10 | U84: hm | V84: -0.5590169944 | X84: hm | Y84: 14 | Z84: 16 | AA84: 10 | AB84: 10 | AC84: 12 | AD84: 23 | AE84: 6 | AF84: 10 | AH84: hm | AI84: -0.5590169944
K85: hola | L85: 3 | M85: 11 | N85: 23 | O85: 25 | P85: 4 | Q85: 11 | R85: 19 | S85: 5 | U85: hola | V85: -0.4472135955 | X85: hola | Y85: 3 | Z85: 11 | AA85: 23 | AB85: 25 | AC85: 4 | AD85: 11 | AE85: 19 | AF85: 5 | AH85: hola | AI85: -0.4472135955
K86: jo | L86: 0 | M86: 2 | N86: 1 | O86: 32 | P86: 0 | Q86: 32 | R86: 31 | S86: 1 | U86: jo | V86: -0.3354101966 | X86: jo | Y86: 0 | Z86: 2 | AA86: 1 | AB86: 32 | AC86: 0 | AD86: 32 | AE86: 31 | AF86: 1 | AH86: jo | AI86: -0.3354101966
K87: joder | L87: 15 | M87: 14 | N87: 29 | O87: 14 | P87: 1 | Q87: 5 | R87: 18 | S87: 5 | U87: joder | V87: -0.2236067978 | X87: joder | Y87: 15 | Z87: 14 | AA87: 29 | AB87: 14 | AC87: 1 | AD87: 5 | AE87: 18 | AF87: 5 | AH87: joder | AI87: -0.2236067978
K88: jolﾃｭn | L88: 5 | M88: 5 | N88: 0 | O88: 26 | P88: 3 | Q88: 33 | R88: 26 | S88: 3 | U88: jolﾃｭn | V88: -0.1118033989 | X88: jolﾃｭn | Y88: 5 | Z88: 5 | AA88: 0 | AB88: 26 | AC88: 3 | AD88: 33 | AE88: 26 | AF88: 3 | AH88: jolﾃｭn | AI88: -0.1118033989
K89: madre mﾃｭa | L89: 16 | M89: 2 | N89: 9 | O89: 18 | P89: 11 | Q89: 24 | R89: 20 | S89: 0 | U89: madre mﾃｭa | V89: 0 | X89: madre mﾃｭa | Y89: 16 | Z89: 2 | AA89: 9 | AB89: 18 | AC89: 11 | AD89: 24 | AE89: 20 | AF89: 0 | AH89: madre mﾃｭa | AI89: 0
K90: mm | L90: 9 | M90: 10 | N90: 18 | O90: 13 | P90: 13 | Q90: 15 | R90: 11 | S90: 11 | U90: mm | V90: 0.1118033989 | X90: mm | Y90: 9 | Z90: 10 | AA90: 18 | AB90: 13 | AC90: 13 | AD90: 15 | AE90: 11 | AF90: 11 | AH90: mm | AI90: 0.1118033989
K91: muchﾃｭsimo | L91: 8 | M91: 14 | N91: 7 | O91: 18 | P91: 8 | Q91: 27 | R91: 11 | S91: 7 | U91: muchﾃｭsimo | V91: 0.2236067978 | X91: muchﾃｭsimo | Y91: 8 | Z91: 14 | AA91: 7 | AB91: 18 | AC91: 8 | AD91: 27 | AE91: 11 | AF91: 7 | AH91: muchﾃｭsimo | AI91: 0.2236067978
K92: normalmente | L92: 19 | M92: 9 | N92: 28 | O92: 6 | P92: 21 | Q92: 6 | R92: 3 | S92: 8 | U92: normalmente | V92: 0.3354101966 | X92: normalmente | Y92: 19 | Z92: 9 | AA92: 28 | AB92: 6 | AC92: 21 | AD92: 6 | AE92: 3 | AF92: 8 | AH92: normalmente | AI92: 0.3354101966
K93: oye | L93: 12 | M93: 14 | N93: 25 | O93: 18 | P93: 7 | Q93: 8 | R93: 12 | S93: 3 | U93: oye | V93: 0.4472135955 | X93: oye | Y93: 12 | Z93: 14 | AA93: 25 | AB93: 18 | AC93: 7 | AD93: 8 | AE93: 12 | AF93: 3 | AH93: oye | AI93: 0.4472135955
K94: perfectamente | L94: 24 | M94: 6 | N94: 12 | O94: 6 | P94: 16 | Q94: 22 | R94: 12 | S94: 4 | U94: perfectamente | V94: 0.5590169944 | X94: perfectamente | Y94: 24 | Z94: 6 | AA94: 12 | AB94: 6 | AC94: 16 | AD94: 22 | AE94: 12 | AF94: 4 | AH94: perfectamente | AI94: 0.5590169944
K95: pff | L95: 11 | M95: 6 | N95: 13 | O95: 15 | P95: 3 | Q95: 20 | R95: 24 | S95: 8 | U95: pff | V95: 0.6708203933 | X95: pff | Y95: 11 | Z95: 6 | AA95: 13 | AB95: 15 | AC95: 3 | AD95: 20 | AE95: 24 | AF95: 8 | AH95: pff | AI95: 0.6708203933
K96: prﾃ｡cticamente | L96: 9 | M96: 3 | N96: 21 | O96: 11 | P96: 8 | Q96: 12 | R96: 23 | S96: 14 | U96: prﾃ｡cticamente | V96: 0.7826237921 | X96: prﾃ｡cticamente | Y96: 9 | Z96: 3 | AA96: 21 | AB96: 11 | AC96: 8 | AD96: 12 | AE96: 23 | AF96: 14 | AH96: prﾃ｡cticamente | AI96: 0.7826237921
K97: realmente | L97: 7 | M97: 15 | N97: 24 | O97: 3 | P97: 15 | Q97: 10 | R97: 3 | S97: 23 | U97: realmente | V97: 0.894427191 | X97: realmente | Y97: 7 | Z97: 15 | AA97: 24 | AB97: 3 | AC97: 15 | AD97: 10 | AE97: 3 | AF97: 23 | AH97: realmente | AI97: 0.894427191
K98: simplemente | L98: 6 | M98: 8 | N98: 26 | O98: 6 | P98: 15 | Q98: 8 | R98: 11 | S98: 20 | U98: simplemente | V98: 1.00623059 | X98: simplemente | Y98: 6 | Z98: 8 | AA98: 26 | AB98: 6 | AC98: 15 | AD98: 8 | AE98: 11 | AF98: 20 | AH98: simplemente | AI98: 1.00623059
K99: sinceramente | L99: 10 | M99: 15 | N99: 21 | O99: 15 | P99: 0 | Q99: 13 | R99: 18 | S99: 8 | U99: sinceramente | V99: 1.118033989 | X99: sinceramente | Y99: 10 | Z99: 15 | AA99: 21 | AB99: 15 | AC99: 0 | AD99: 13 | AE99: 18 | AF99: 8 | AH99: sinceramente | AI99: 1.118033989
K100: totalmente | L100: 2 | M100: 1 | N100: 13 | O100: 22 | P100: 12 | Q100: 20 | R100: 20 | S100: 9 | U100: totalmente | V100: 1.229837388 | X100: totalmente | Y100: 2 | Z100: 1 | AA100: 13 | AB100: 22 | AC100: 12 | AD100: 20 | AE100: 20 | AF100: 9 | AH100: totalmente | AI100: 1.229837388
K101: uhum | L101: 5 | M101: 5 | N101: 18 | O101: 23 | P101: 26 | Q101: 16 | R101: 2 | S101: 5 | U101: uhum | V101: 1.341640787 | X101: uhum | Y101: 5 | Z101: 5 | AA101: 18 | AB101: 23 | AC101: 26 | AD101: 16 | AE101: 2 | AF101: 5 | AH101: uhum | AI101: 1.341640787
K102: uy | L102: 18 | M102: 14 | N102: 5 | O102: 12 | P102: 2 | Q102: 28 | R102: 18 | S102: 4 | U102: uy | V102: 1.453444185 | X102: uy | Y102: 18 | Z102: 14 | AA102: 5 | AB102: 12 | AC102: 2 | AD102: 28 | AE102: 18 | AF102: 4 | AH102: uy | AI102: 1.453444185
K103: vale | L103: 7 | M103: 6 | N103: 10 | O103: 20 | P103: 5 | Q103: 23 | R103: 22 | S103: 7 | U103: vale | V103: 1.565247584 | X103: vale | Y103: 7 | Z103: 6 | AA103: 10 | AB103: 20 | AC103: 5 | AD103: 23 | AE103: 22 | AF103: 7 | AH103: vale | AI103: 1.565247584
K104: vamos | L104: 6 | M104: 4 | N104: 8 | O104: 6 | P104: 8 | Q104: 25 | R104: 22 | S104: 22 | U104: vamos | V104: 1.677050983 | X104: vamos | Y104: 6 | Z104: 4 | AA104: 8 | AB104: 6 | AC104: 8 | AD104: 25 | AE104: 22 | AF104: 22 | AH104: vamos | AI104: 1.677050983
K106: Column | L106: E3 | M106: N1 | N106: H | O106: E2 | P106: N3 | Q106: M | R106: N2 | S106: E1 | X106: Column | Y106: E3 | Z106: N1 | AA106: H | AB106: E2 | AC106: N3 | AD106: M | AE106: N2 | AF106: E1
K107: Yp | L107: -0.2106578165 | M107: -0.1883399538 | N107: -0.04841879479 | O107: 0.01322674138 | P107: 0.02776326012 | Q107: 0.04730959763 | R107: 0.1029501886 | S107: 0.2924088894 | X107: Yp | Y107: -0.2106578165 | Z107: -0.1883399538 | AA107: -0.04841879479 | AB107: 0.01322674138 | AC107: 0.02776326012 | AD107: 0.04730959763 | AE107: 0.1029501886 | AF107: 0.2924088894
A110: H | B110: M | C110: E1 | D110: E2 | E110: E3 | F110: N1 | G110: N2 | H110: N3 | P110: * | Q110: a | R110: b | T110: E.Value | U110: #1 | V110: #2
A111: ah | B111: 11 | C111: 23 | D111: 7 | E111: 6 | F111: 20 | G111: 9 | H111: 18 | I111: 6 | P111: 1 | Q111: 1 | R111: 3 | T111: Value | U111: 5.372276887 | V111: 0.3722768871
A112: ay | B112: 6 | C112: 28 | D112: 3 | E112: 1 | F112: 30 | G112: 5 | H112: 22 | I112: 6 | P112: 2 | Q112: 2 | R112: 4
A113: bueno | B113: 17 | C113: 16 | D113: 10 | E113: 12 | F113: 11 | G113: 13 | H113: 9 | I113: 12 | T113: E.Vect. | U113: #1 | V113: #2
A114: claramente | B114: 33 | C114: 0 | D114: 0 | E114: 26 | F114: 8 | G114: 28 | H114: 3 | I114: 3 | T114: 1 | U114: 0.5657672115 | V114: 0.8178986691
A115: claro | B115: 12 | C115: 22 | D115: 5 | E115: 10 | F115: 18 | G115: 13 | H115: 9 | I115: 12 | T115: 2 | U115: 0.8245650141 | V115: 0.5753622917
A116: directamente | B116: 20 | C116: 13 | D116: 17 | E116: 15 | F116: 2 | G116: 22 | H116: 10 | I116: 2
A117: efectivamente | B117: 12 | C117: 21 | D117: 0 | E117: 8 | F117: 26 | G117: 1 | H117: 7 | I117: 26
A118: eh | B118: 24 | C118: 9 | D118: 10 | E118: 13 | F118: 10 | G118: 15 | H118: 8 | I118: 10
A119: exactamente | B119: 28 | C119: 5 | D119: 0 | E119: 19 | F119: 14 | G119: 12 | H119: 5 | I119: 16
A120: generalmente | B120: 24 | C120: 9 | D120: 5 | E120: 19 | F120: 9 | G120: 0 | H120: 19 | I120: 15
A121: hm | B121: 10 | C121: 23 | D121: 10 | E121: 10 | F121: 14 | G121: 16 | H121: 6 | I121: 12
A122: hola | B122: 23 | C122: 11 | D122: 5 | E122: 25 | F122: 3 | G122: 11 | H122: 19 | I122: 4
A123: jo | B123: 1 | C123: 32 | D123: 1 | E123: 32 | F123: 0 | G123: 2 | H123: 31 | I123: 0
A124: joder | B124: 29 | C124: 5 | D124: 5 | E124: 14 | F124: 15 | G124: 14 | H124: 18 | I124: 1
A125: jolin | B125: 0 | C125: 33 | D125: 3 | E125: 26 | F125: 5 | G125: 5 | H125: 26 | I125: 3
A126: madre mia | B126: 9 | C126: 24 | D126: 0 | E126: 18 | F126: 16 | G126: 2 | H126: 20 | I126: 11
A127: mm | B127: 18 | C127: 15 | D127: 11 | E127: 13 | F127: 9 | G127: 10 | H127: 11 | I127: 13
A128: muchisimo | B128: 7 | C128: 27 | D128: 7 | E128: 18 | F128: 8 | G128: 14 | H128: 11 | I128: 8
A129: normalmente | B129: 28 | C129: 6 | D129: 8 | E129: 6 | F129: 19 | G129: 9 | H129: 3 | I129: 21
A130: oye | B130: 25 | C130: 8 | D130: 3 | E130: 18 | F130: 12 | G130: 14 | H130: 12 | I130: 7
A131: perfectamente | B131: 12 | C131: 22 | D131: 4 | E131: 6 | F131: 24 | G131: 6 | H131: 12 | I131: 16
A132: pff | B132: 13 | C132: 20 | D132: 8 | E132: 15 | F132: 11 | G132: 6 | H132: 24 | I132: 3
A133: practicamente | B133: 21 | C133: 12 | D133: 14 | E133: 11 | F133: 9 | G133: 3 | H133: 23 | I133: 8
A134: realmente | B134: 24 | C134: 10 | D134: 23 | E134: 3 | F134: 7 | G134: 15 | H134: 3 | I134: 15
A135: simplemente | B135: 26 | C135: 8 | D135: 20 | E135: 6 | F135: 6 | G135: 8 | H135: 11 | I135: 15
A136: sinceramente | B136: 21 | C136: 13 | D136: 8 | E136: 15 | F136: 10 | G136: 15 | H136: 18 | I136: 0
A137: totalmente | B137: 13 | C137: 20 | D137: 9 | E137: 22 | F137: 2 | G137: 1 | H137: 20 | I137: 12
A138: uhum | B138: 18 | C138: 16 | D138: 5 | E138: 23 | F138: 5 | G138: 5 | H138: 2 | I138: 26
A139: uy | B139: 5 | C139: 28 | D139: 4 | E139: 12 | F139: 18 | G139: 14 | H139: 18 | I139: 2
A140: vale | B140: 10 | C140: 23 | D140: 7 | E140: 20 | F140: 7 | G140: 6 | H140: 22 | I140: 5
A141: vamos | B141: 8 | C141: 25 | D141: 22 | E141: 6 | F141: 6 | G141: 4 | H141: 22 | I141: 8

Sheet Rel
A1: X | B1: T1 | C1: T2
A2: a | B2: 151 | C2: 163 | I2: E' | J2: X'
A3: con | B3: 38 | C3: 45 | H3: 0 | I3: 0 | J3: 0
A4: de | B4: 202 | C4: 195 | H4: 1 | I4: 2 | J4: 1
A5: en | B5: 105 | C5: 81 | H5: 2 | I5: 4 | J5: 2
A6: por | B6: 54 | C6: 45 | H6: 3 | I6: 6 | J6: 3
H7: 4 | I7: 8 | J7: 5
A8: Y | B8: T1 | C8: T2 | H8: 5 | I8: 10 | J8: 10
A9: a | B9: 15 | C9: 16
A10: b | B10: 13 | C10: 20
A11: c | B11: 20 | C11: 19
A12: h | B12: 10 | C12: 8
A13: e | B13: 5 | C13: 10
A15: X | B15: A | C15: B | D15: C | E15: D | F15: E | I15: X | J15: v1 | K15: v2 | L15: v3 | M15: v4 | N15: v5 | P15: 横軸 | Q15: Gini係数 | R15: 相対Gini係数
A16: h1 | B16: 10 | C16: 19 | D16: 14 | E16: 7 | F16: 12 | I16: d1 | J16: 10 | K16: 19 | L16: 14 | M16: 7 | N16: 12 | P16: d1 | Q16: 0.181 | R16: 0.226
A17: h2 | B17: 11 | C17: 7 | D17: 10 | E17: 0 | F17: 1 | I17: d2 | J17: 11 | K17: 7 | L17: 10 | M17: 0 | N17: 1 | P17: d2 | Q17: 0.428 | R17: 0.534
A18: h3 | B18: 0 | C18: 0 | D18: 1 | E18: 12 | F18: 1 | I18: d3 | J18: 0 | K18: 0 | L18: 1 | M18: 12 | N18: 1 | P18: d3 | Q18: 0.714 | R18: 0.893
A19: h4 | B19: 0 | C19: 1 | D19: 2 | E19: 3 | F19: 3 | I19: d4 | J19: 0 | K19: 1 | L19: 2 | M19: 3 | N19: 3 | P19: d4 | Q19: 0.356 | R19: 0.444
A21: D1 | B21: v1 | C21: v2 | D21: v3 | E21: v4 | F21: v5 | P21: 横軸 | Q21: 和 | R21: ジニ係数 | S21: 相対ジニ係数
A22: h1 | B22: 45 | C22: 48 | D22: 66 | E22: 68 | F22: 86 | P22: d1 | Q22: 62 | R22: 0.1806451613 | S22: 0.2258064516
A23: h2 | B23: 56 | C23: 59 | D23: 54 | E23: 78 | F23: 72 | P23: d2 | Q23: 29 | R23: 0.4275862069 | S23: 0.5344827586
A24: h3 | B24: 58 | C24: 51 | D24: 78 | E24: 71 | F24: 98 | P24: d3 | Q24: 14 | R24: 0.7142857143 | S24: 0.8928571429
A25: h4 | B25: 77 | C25: 72 | D25: 20 | E25: 92 | F25: 55 | P25: d4 | Q25: 9 | R25: 0.3555555556 | S25: 0.4444444444
A26: h5 | B26: 43 | C26: 44 | D26: 32 | E26: 64 | F26: 61
A27: h6 | B27: 58 | C27: 34 | D27: 90 | E27: 55 | F27: 98
A28: h7 | B28: 50 | C28: 53 | D28: 100 | E28: 72 | F28: 89
A30: D | B30: v1 | C30: v2 | D30: v3 | H30: 縦軸 | K30: v3 | M30: D | N30: v1 | O30: v2 | P30: v3
A31: d1 | B31: 45 | C31: 48 | D31: 66 | H31: ジニ係数 | I31: v1 | J31: v2 | K31: 0.2467532468 | M31: v1 | N31: 0 | O31: -0.01752034104 | P31: -0.1463471929
A32: d2 | B32: 56 | C32: 59 | D32: 54 | I32: 0.1004060539 | J32: 0.1179263949 | M32: v2 | N32: 0.01752034104 | O32: 0 | P32: -0.1288268518
A33: d3 | B33: 58 | C33: 51 | D33: 78 | M33: v3 | N33: 0.1463471929 | O33: 0.1288268518 | P33: 0
A34: d4 | B34: 77 | C34: 72 | D34: 20
A35: d5 | B35: 43 | C35: 44 | D35: 32
A36: d6 | B36: 58 | C36: 34 | D36: 90 | H36: 55.3
A37: d7 | B37: 50 | C37: 53 | D37: 100 | I37: 51.6 | J37: 62.9
A39: Qnp | B39: v1 | C39: v2 | D39: v3 | E39: v4 | H39: 60 | L39: 60 | M39: 53 | N39: 60 | P39: =H39-L39 -> 0 | Q39: =I40-M39 -> 7 | R39: 0
A40: h1 | B40: 1 | C40: 1 | D40: 0 | E40: 0 | H40: 53 | I40: 60 | J40: 60 | K40: - | L40: 60 | M40: 53 | N40: 60 | O40: = | P40: =H40-L40 -> -7 | Q40: 0 | R40: -7
A41: h2 | B41: 0 | C41: 0 | D41: 1 | E41: 0 | H41: 60 | I41: 53 | J41: 53 | L41: 60 | M41: 53 | N41: 60 | P41: 0 | Q41: 7 | R41: 0
A42: h3 | B42: 0 | C42: 1 | D42: 0 | E42: 0 | I42: 60 | J42: 60
A43: h4 | B43: 0 | C43: 0 | D43: 1 | E43: 1 | H43: 0.1004060539 | L43: 0.1004060539 | M43: 0.1179263949 | N43: 0.2467532468 | P43: 0 | Q43: -0.01752034104 | R43: -0.1463471929
A44: h5 | B44: 1 | C44: 1 | D44: 1 | E44: 0 | H44: 0.1179263949 | I44: 0.1004060539 | J44: 0.1004060539 | L44: 0.1004060539 | M44: 0.1179263949 | N44: 0.2467532468 | P44: 0.01752034104 | Q44: 0 | R44: -0.1288268518
H45: 0.2467532468 | I45: 0.1179263949 | J45: 0.1179263949 | L45: 0.1004060539 | M45: 0.1179263949 | N45: 0.2467532468 | P45: 0.1463471929 | Q45: 0.1288268518 | R45: 0
A46: Lt-2 | B46: v1 | C46: v2 | D46: v3 | E46: v4 | I46: 0.2467532468 | J46: 0.2467532468
A47: h1 | B47: A | C47: A,B | D47: B | E47: C
A48: h2 | B48: B,C | C48: B,C,C | D48: C | E48: C
A49: h3 | B49: A,B | C49: C | D49: B | E49: C
A50: h4 | B50: C | C50: C,C | D50: C | E50: A
A51: h5 | B51: B | C51: C | D51: B,C | E51: B,C,C
A53: h | B53: v1 | C53: v2 | D53: v3
A54: h1 | B54: 45 | C54: 48 | D54: 66
A55: h2 | B55: 56 | C55: 59 | D55: 54
A56: h3 | B56: 58 | C56: 51 | D56: 78
A57: h4 | B57: 77 | C57: 72 | D57: 20
A58: h5 | B58: 43 | C58: 44 | D58: 32
A59: h6 | B59: 58 | C59: 34 | D59: 90
A60: h7 | B60: 50 | C60: 53 | D60: 100
A61: h8 | B61: 45 | C61: 48 | D61: 66
A62: h9 | B62: 56 | C62: 59 | D62: 54
A63: h10 | B63: 58 | C63: 51 | D63: 78
A64: h11 | B64: 77 | C64: 72 | D64: 20
A65: h12 | B65: 43 | C65: 44 | D65: 32
A66: h13 | B66: 58 | C66: 34 | D66: 90
A67: h14 | B67: 50 | C67: 53 | D67: 100
A68: h15 | B68: 45 | C68: 48 | D68: 66
A69: h16 | B69: 56 | C69: 59 | D69: 54
A70: h17 | B70: 58 | C70: 51 | D70: 78
A71: h18 | B71: 77 | C71: 72 | D71: 20
A72: h19 | B72: 43 | C72: 44 | D72: 32
A73: h20 | B73: 58 | C73: 34 | D73: 90
A74: h21 | B74: 50 | C74: 53 | D74: 100
A75: h22 | B75: 45 | C75: 48 | D75: 66
A76: h23 | B76: 56 | C76: 59 | D76: 54
A77: h24 | B77: 58 | C77: 51 | D77: 78
A78: h25 | B78: 77 | C78: 72 | D78: 20
A79: h26 | B79: 43 | C79: 44 | D79: 32
A80: h27 | B80: 58 | C80: 34 | D80: 90
A81: h28 | B81: 50 | C81: 53 | D81: 100
A83: h | B83: v1 | C83: v2 | D83: v3
A84: h1 | B84: 45 | C84: 48 | D84: 66
A85: h2 | B85: 56 | C85: 59 | D85: 54
A86: h3 | B86: 58 | C86: 51 | D86: 78
A87: h4 | B87: 77 | C87: 72 | D87: 20
A88: h5 | B88: 43 | C88: 44 | D88: 32
A89: h6 | B89: 58 | C89: 34 | D89: 90
A90: h7 | B90: 50 | C90: 53 | D90: 100
A92: h3 | B92: v1 | C92: v2 | D92: v3
A93: h1 | B93: 1 | C93: 3 | D93: 8
A94: h2 | B94: 3 | C94: 5 | D94: 7
A95: h3 | B95: 5 | C95: 7 | D95: 5
A96: h4 | B96: 7 | C96: 8 | D96: 4
A97: h5 | B97: 4 | C97: 9 | D97: 3
A98: h6 | B98: 8 | C98: 9 | D98: 2
A99: h7 | B99: 9 | C99: 41 | D99: 62
A101: h3 | B101: v1 | C101: v2
A102: h1 | B102: 1 | C102: 3
A103: h2 | B103: 3 | C103: 5
A104: h3 | B104: 5 | C104: 8
A105: h4 | B105: 7 | C105: 8
A106: h5 | B106: 4 | C106: 9
A107: h6 | B107: 8 | C107: 11
A108: h7 | B108: 9 | C108: 48
A110: h3 | B110: v1 | C110: v3
A111: h1 | B111: 1 | C111: 11
A112: h2 | B112: 3 | C112: 5
A113: h3 | B113: 5 | C113: 3
A114: h4 | B114: 7 | C114: 2
A115: h5 | B115: 4 | C115: 3
A116: h6 | B116: 8 | C116: 2
A117: h7 | B117: 9 | C117: 51
A119: h3 | B119: v2 | C119: v3
A120: h1 | B120: 3 | C120: 8
A121: h2 | B121: 5 | C121: 7
A122: h3 | B122: 7 | C122: 5
A123: h4 | B123: 8 | C123: 4
A124: h5 | B124: 9 | C124: 3
A125: h6 | B125: 9 | C125: 2
A126: h7 | B126: 41 | C126: 62
A128: 語 | B128: 手紙 | C128: 演劇
A129: w1 | B129: + | C129: + | E129: 1
A130: w2 | B130: + | C130: + | E130: 2
A131: w3 | B131: - | C131: - | E131: 3
A132: w4 | B132: + | C132: - | E132: 4
A133: w5 | B133: + | C133: - | E133: 5
A134: w6 | B134: - | C134: + | E134: 6
A135: w7 | B135: + | C135: + | E135: 7
A136: w8 | B136: - | C136: - | E136: 8
A137: w9 | B137: - | C137: - | E137: 9
A138: w10 | B138: - | C138: - | E138: 10
A139: w11 | B139: + | C139: + | E139: 11
A140: w12 | B140: + | C140: - | E140: 12
A141: w13 | B141: - | C141: - | E141: 13
A142: w14 | B142: - | C142: - | E142: 14
A143: w15 | B143: - | C143: + | E143: 15
A145: h4a | B145: v1 | C145: v1 | E145: Correl
A146: h1 | B146: 1 | C146: 1 | E146: =CORREL(B146:B152,C146:C152) -> -0.1666666667
A147: h2 | B147: 1 | C147: 1
A148: h3 | B148: 1 | C148: 1
A149: h4 | B149: 1 | C149: 1
A150: h5 | B150: 1 | C150: 1
A151: h6 | B151: 0 | C151: 1
A152: h7 | B152: 1 | C152: 0
A154: M | B154: =AVERAGE(B146:B152) -> 0.8571428571 | C154: =AVERAGE(C146:C152) -> 0.8571428571
A155: SD | B155: =STDEVP(B146:B152) -> 0.3499271061 | C155: =STDEVP(C146:C152) -> 0.3499271061
A157: Gini | B157: x | C157: y | D157: z | H157: 縦軸 | K157: z | M157: 縦軸 | N157: x | O157: y | P157: z | R157: 縦軸 | S157: x | T157: y | U157: z
A158: 1 | B158: 2 | C158: 2 | D158: 3 | H158: ジニ係数 | I158: x | J158: y | K158: 0.32 | M158: 和 | N158: 10 | O158: 10 | P158: 10 | R158: ジニ係数 | S158: 0.36 | T158: 0.16 | U158: 0.32
A159: 2 | B159: 5 | C159: 2 | D159: 3 | H159: 相対ジニ係数 | I159: 0.36 | J159: 0.16 | K159: 0.4 | M159: ジニ係数 | N159: 0.45 | O159: 0.2 | P159: 0.4 | R159: 相対ジニ係数 | S159: 0.45 | T159: 0.2 | U159: 0.4
A160: 3 | B160: 1 | C160: 3 | D160: 3 | I160: 0.45 | J160: 0.2 | M160: 相対ジニ係数 | N160: 0.45 | O160: 0.2 | P160: 0.4
A161: 4 | B161: 1 | C161: 2 | D161: 1
A162: 5 | B162: 1 | C162: 1 | D162: 0 | M162: Gini | N162: x | O162: y | P162: z | R162: 縦軸 | S162: x | T162: y | U162: z
M163: 1 | N163: 2 | O163: 2 | P163: 3 | R163: ジニ係数 | S163: 0.36 | T163: 0.16 | U163: 0.32
M164: 2 | N164: 5 | O164: 2 | P164: 3 | R164: 相対ジニ係数 | S164: 0.45 | T164: 0.2 | U164: 0.4
M165: 3 | N165: 1 | O165: 3 | P165: 3
M166: 4 | N166: 1 | O166: 2 | P166: 1
M167: 5 | N167: 1 | O167: 1 | P167: 0

Sheet Ana
A1: X1 | B1: v1 | C1: v2 | D1: v3
A2: h1 | B2: 38 | C2: 18 | D2: 5
A3: h2 | B3: 35 | C3: 10 | D3: 6
A4: h3 | B4: 28 | C4: 44 | D4: 48
A5: h4 | B5: 22 | C5: 30 | D5: 62
A6: h5 | B6: 24 | C6: 29 | D6: 89 | I6: CA.d. | J6: #1 | K6: #2 | N6: X1: Ana | O6: X2: Juan | P6: X3: Mary | Q6: X4: Ken | R6: Y1: English | S6: Y2: Physics | T6: Y3: Latin
I7: X1: Ana | J7: -0.09422023966 | K7: -0.2107326984 | M7: -0.09422023966 | N7: -0.2107326984
A8: X2 | B8: E | C8: L | D8: M | I8: X2: Juan | J8: 0.3999190311 | K8: 0.08618748674 | M8: 0.3999190311 | O8: 0.08618748674
A9: h1 | B9: 58 | C9: 34 | D9: 90 | I9: X3: Mary | J9: 0.1077266374 | K9: 0.02618906003 | M9: 0.1077266374 | P9: 0.02618906003
A10: h2 | B10: 50 | C10: 53 | D10: 100 | I10: X4: Ken | J10: -0.4728674469 | K10: 0.1459205674 | M10: -0.4728674469 | Q10: 0.1459205674
A11: h3 | B11: 45 | C11: 48 | D11: 66 | I11: Y1: English | J11: 0.3773870209 | K11: 0.1101901596 | M11: 0.3773870209 | R11: 0.1101901596
A12: h4 | B12: 58 | C12: 51 | D12: 78 | I12: Y2: Physics | J12: -0.3613380162 | K12: 0.08745952913 | M12: -0.3613380162 | S12: 0.08745952913
A13: h5 | B13: 43 | C13: 44 | D13: 32 | I13: Y3: Latin | J13: 0.0280333964 | K13: -0.1885616259 | M13: 0.0280333964 | T13: -0.1885616259
A14: h6 | B14: 56 | C14: 59 | D14: 54
A15: h7 | B15: 77 | C15: 72 | D15: 20 | I15: CA. | J15: #1 | K15: #2
I16: Correl. | J16: 0.2996735606 | K16: 0.1363378334
A17: X3 | B17: v1 | C17: v2 | D17: v3
A18: h1 | B18: 56 | C18: 59 | D18: 54
A19: h2 | B19: 28 | C19: 88 | D19: 20
A20: h3 | B20: 43 | C20: 64 | D20: 32
A21: h4 | B21: 50 | C21: 16 | D21: 100
A22: h5 | B22: 58 | C22: 51 | D22: 78
A23: h6 | B23: 45 | C23: 48 | D23: 66
A24: h7 | B24: 32 | C24: 22 | D24: 90
A26: Dnp | B26: Y1: English | C26: Y2: Physics | D26: Y3: Latin | I26: Cor.r | J26: Y1: English | K26: Y2: Physics | L26: Y3: Latin | M26: Xn
A27: X1: Ana | B27: 9 | C27: 14 | D27: 18 | I27: X2: Juan | J27: 17 | K27: 7 | L27: 11 | M27: -0.2099562637 | O27: X1: Ana | P27: 9 | Q27: 14 | R27: 18 | S27: 0.2688464352
A28: X2: Juan | B28: 17 | C28: 7 | D28: 11 | I28: X3: Mary | J28: 15 | K28: 13 | L28: 14 | M28: -0.02916059218 | O28: X2: Juan | P28: 17 | Q28: 7 | R28: 11 | S28: -0.2099562637
A29: X3: Mary | B29: 15 | C29: 13 | D29: 14 | I29: X4: Ken | J29: 5 | K29: 18 | L29: 8 | M29: 0.1185236972 | O29: X3: Mary | P29: 15 | Q29: 13 | R29: 14 | S29: -0.02916059218
A30: X4: Ken | B30: 5 | C30: 18 | D30: 8 | I30: X1: Ana | J30: 9 | K30: 14 | L30: 18 | M30: 0.2688464352 | O30: X4: Ken | P30: 5 | Q30: 18 | R30: 8 | S30: 0.1185236972
I31: Yp | J31: -1.224744871 | K31: 0 | L31: 1.224744871
A32: X | B32: v1 | C32: v2 | D32: v3
A33: h1 | B33: 5 | C33: 1 | D33: 1 | I33: Cor.r | J33: Y1: English | K33: Y2: Physics | L33: Y3: Latin | N33: Row | O33: Xn | Q33: Cor.r | R33: Y1: English | S33: Y2: Physics | T33: Y3: Latin | V33: Row | W33: Xn
A34: h2 | B34: 1 | C34: 3 | D34: 1 | I34: X2: Juan | J34: 17 | K34: 7 | L34: 11 | N34: X2: Juan | O34: -2.562842809 | Q34: X2: Juan | R34: 17 | S34: 7 | T34: 11 | V34: X2: Juan | W34: -31.28348329
A35: h3 | B35: 1 | C35: 1 | D35: 3 | I35: X3: Mary | J35: 15 | K35: 13 | L35: 14 | N35: X3: Mary | O35: -0.3559503902 | Q35: X3: Mary | R35: 15 | S35: 13 | T35: 14 | V35: X3: Mary | W35: -4.344928234
A36: h4 | B36: 3 | C36: 2 | D36: 1 | I36: X4: Ken | J36: 5 | K36: 18 | L36: 8 | N36: X4: Ken | O36: 1.446766102 | Q36: X4: Ken | R36: 5 | S36: 18 | T36: 8 | V36: X4: Ken | W36: 17.66003089
I37: X1: Ana | J37: 9 | K37: 14 | L37: 18 | N37: X1: Ana | O37: 3.281688963 | Q37: X1: Ana | R37: 9 | S37: 14 | T37: 18 | V37: X1: Ana | W37: 40.05811884
A38: Teaching m. | B38: Method-1 | C38: Method-2 | D38: Method-3
A39: A | B39: 44 | C39: 34 | D39: 33 | I39: Column | J39: Y1: English | K39: Y2: Physics | L39: Y3: Latin | Q39: Column | R39: Y1: English | S39: Y2: Physics | T39: Y3: Latin
A40: B | B40: 39 | C40: 29 | D40: 32 | I40: Yp | J40: -1.224744871 | K40: 0 | L40: 1.224744871 | Q40: Yp | R40: -14.94991639 | S40: 0 | T40: 14.94991639
A41: C | B41: 42 | C41: 33 | D41: 35
A42: h | B42: 45 | C42: 36 | D42: 32 | I42: Cor.a | J42: Y2: Physics | K42: Y3: Latin | L42: Y1: English | N42: Row | O42: Xn | Q42: Row | R42: Xn
A43: E | B43: 48 | C43: 30 | D43: 31 | I43: X4: Ken | J43: 18 | K43: 8 | L43: 5 | N43: X4: Ken | O43: -0.4728674469 | Q43: X1: Ana | R43: -0.09422023966
I44: X1: Ana | J44: 14 | K44: 18 | L44: 9 | N44: X1: Ana | O44: -0.09422023966 | Q44: X2: Juan | R44: 0.3999190311
A45: English | B45: Read | C45: Write | D45: Vocab. | I45: X3: Mary | J45: 13 | K45: 14 | L45: 15 | N45: X3: Mary | O45: 0.1077266374 | Q45: X3: Mary | R45: 0.1077266374
A46: h1 | B46: 6 | C46: 8 | D46: 5 | I46: X2: Juan | J46: 7 | K46: 11 | L46: 17 | N46: X2: Juan | O46: 0.3999190311 | Q46: X4: Ken | R46: -0.4728674469
A47: h2 | B47: 7 | C47: 10 | D47: 6
A48: h3 | B48: 8 | C48: 4 | D48: 8 | I48: Column | J48: Y2: Physics | K48: Y3: Latin | L48: Y1: English
A49: h4 | B49: 9 | C49: 7 | D49: 2 | I49: Yp | J49: -0.3613380162 | K49: 0.0280333964 | L49: 0.3773870209
A50: h5 | B50: 10 | C50: 9 | D50: 4
I51: Dnp | J51: Y1: English | K51: Y2: Physics | L51: Y3: Latin | M51: rootsum | N51: sum | O51: Xn | P51: m | Q51: xn^2
A52: X | B52: v1 | C52: v2 | D52: v3 | I52: X1: Ana | J52: 9 | K52: 14 | L52: 18 | M52: =SQRT(SUM(J52:L52)) -> 6.403124237 | N52: =SUM(J52:L52) -> 41 | O52: -0.09422023966 | P52: =N52*O52 -> -3.863029826 | Q52: =O52^2 -> 0.008877453562 | R52: =M52*Q53 -> 1.024085157
A53: h1 | B53: 38 | C53: 18 | D53: 5 | I53: X2: Juan | J53: 17 | K53: 7 | L53: 11 | M53: =SQRT(SUM(J53:L53)) -> 5.916079783 | N53: =SUM(J53:L53) -> 35 | O53: 0.3999190311 | P53: =N53*O53 -> 13.99716609 | Q53: =O53^2 -> 0.1599352314 | R53: =M53*Q54 -> 0.06865627393
A54: h2 | B54: 35 | C54: 10 | D54: 6 | I54: X3: Mary | J54: 15 | K54: 13 | L54: 14 | M54: =SQRT(SUM(J54:L54)) -> 6.480740698 | N54: =SUM(J54:L54) -> 42 | O54: 0.1077266374 | P54: =N54*O54 -> 4.524518771 | Q54: =O54^2 -> 0.0116050284 | R54: =M54*Q55 -> 1.449117096
A55: h3 | B55: 28 | C55: 44 | D55: 48 | I55: X4: Ken | J55: 5 | K55: 18 | L55: 8 | M55: =SQRT(SUM(J55:L55)) -> 5.567764363 | N55: =SUM(J55:L55) -> 31 | O55: -0.4728674469 | P55: =N55*O55 -> -14.65889085 | Q55: =O55^2 -> 0.2236036223 | R55: =M55*Q56 -> 0
A56: h4 | B56: 22 | C56: 30 | D56: 62 | J56: =SUM(J52:J55) -> 46 | K56: =SUM(K52:K55) -> 52 | L56: =SUM(L52:L55) -> 51 | M56: =SUM(J56:L56) -> 149 | R56: =SUM(R52:R55)/149 -> 0.0170594532
A57: h5 | B57: 24 | C57: 29 | D57: 89
A59: X | B59: v1 | C59: v2 | D59: v3 | E59: Class | J59: 1 | K59: =(J59-J60)/$J$62 -> -1.224744871
A60: h1 | B60: 38 | C60: 18 | D60: 5 | E60: 1 | J60: 2 | K60: =(J60-2)/$J$62 -> 0
A61: h2 | B61: 35 | C61: 10 | D61: 6 | E61: 2 | J61: 3 | K61: =(J61-2)/$J$62 -> 1.224744871
A62: h3 | B62: 28 | C62: 44 | D62: 48 | E62: 3 | J62: =STDEVP(J59:J61) -> 0.8164965809
A63: h4 | B63: 22 | C63: 30 | D63: 62 | E63: 4
A64: h5 | B64: 24 | C64: 29 | D64: 89 | E64: 5
A66: h.var.C | B66: v1 | C66: v2 | D66: v3 | E66: Class
A67: h1 | B67: 38 | C67: 18 | D67: 5 | E67: 5
A68: h2 | B68: 35 | C68: 10 | D68: 6 | E68: 4
A69: h3 | B69: 28 | C69: 44 | D69: 48 | E69: 3
A70: h4 | B70: 22 | C70: 30 | D70: 62 | E70: 2
A71: h5 | B71: 24 | C71: 29 | D71: 89 | E71: 1
A73: ¿Vas? | B73: Niño | C73: Joven | D73: Mayor | E73: Anciano
A74: No | B74: 1 | C74: 5 | D74: 192 | E74: 92
A75: A veces | B75: 3 | C75: 22 | D75: 58 | E75: 20
A76: Siempre | B76: 56 | C76: 153 | D76: 110 | E76: 8
A78: ¿Va Uh.? | B78: Niño | C78: Joven | D78: Mayor | E78: Anciano
A79: No | B79: 55 | C79: 147 | D79: 142 | E79: 18
A80: A veces | B80: 5 | C80: 24 | D80: 99 | E80: 33
A81: Siempre | B81: 0 | C81: 9 | D81: 119 | E81: 69
A83: w1 | B83: x | C83: y | D83: z
A84: a | B84: 3 | C84: 0 | D84: 0
A85: b | B85: 0 | C85: 5 | D85: 0
A86: c | B86: 0 | C86: 0 | D86: 7
A88: w2 | B88: x | C88: y | D88: z
A89: a | B89: 6 | C89: 2 | D89: 3
A90: b | B90: 0 | C90: 0 | D90: 5
A91: c | B91: 0 | C91: 0 | D91: 7
A93: w3 | B93: x | C93: y | D93: z
A94: a | B94: 0 | C94: 2 | D94: 0
A95: b | B95: 0 | C95: 1 | D95: 0
A96: c | B96: 0 | C96: 0 | D96: 3
A98: ¿Va Uh.? | B98: Niño | C98: Joven | D98: Mayor | E98: Anciano
A99: No | B99: 55 | C99: 147 | D99: 142 | E99: 18
A100: A veces | B100: 5 | C100: 24 | D100: 99 | E100: 33
A101: Siempre | B101: 0 | C101: 9 | D101: 119 | E101: 69
A104: h | B104: E | C104: L | D104: M
A105: h1 | B105: 45 | C105: 48 | D105: 66
A106: h2 | B106: 56 | C106: 59 | D106: 54
A107: h3 | B107: 58 | C107: 51 | D107: 78
A108: h4 | B108: 77 | C108: 72 | D108: 20
A109: h5 | B109: 43 | C109: 44 | D109: 32
A110: h6 | B110: 58 | C110: 34 | D110: 90
A111: h7 | B111: 50 | C111: 53 | D111: 100
A113: h | B113: E | C113: L | D113: M
A114: h1 | B114: 58 | C114: 34 | D114: 90
A115: h2 | B115: 50 | C115: 53 | D115: 100
A116: h3 | B116: 45 | C116: 48 | D116: 66
A117: h4 | B117: 58 | C117: 51 | D117: 78
A118: h5 | B118: 43 | C118: 44 | D118: 32
A119: h6 | B119: 56 | C119: 59 | D119: 54
A120: h7 | B120: 77 | C120: 72 | D120: 20
A122: h | B122: E | C122: L | D122: M | E122: Hum | F122: Sci | G122: H/(H+S)
A123: h1 | B123: 58 | C123: 34 | D123: 90 | E123: 1 | F123: 9 | G123: 0.1
A124: h2 | B124: 50 | C124: 53 | D124: 100 | E124: 2 | F124: 8 | G124: 0.2
A125: h3 | B125: 45 | C125: 48 | D125: 66 | E125: 2 | F125: 7 | G125: 0.2222222222
A126: h4 | B126: 58 | C126: 51 | D126: 78 | E126: 3 | F126: 7 | G126: 0.3
A127: h5 | B127: 43 | C127: 44 | D127: 32 | E127: 2 | F127: 4 | G127: 0.3333333333
A128: h6 | B128: 56 | C128: 59 | D128: 54 | E128: 3 | F128: 2 | G128: 0.6
A129: h7 | B129: 77 | C129: 72 | D129: 20 | E129: 18 | F129: 2 | G129: 0.9
A131: h | B131: E | C131: L | D131: M | E131: H/(H+S)
A132: h1 | B132: 58 | C132: 34 | D132: 90 | E132: 0.1
A133: h2 | B133: 50 | C133: 53 | D133: 100 | E133: 0.2
A134: h3 | B134: 45 | C134: 48 | D134: 66 | E134: 0.2222222222
A135: h4 | B135: 58 | C135: 51 | D135: 78 | E135: 0.3
A136: h5 | B136: 43 | C136: 44 | D136: 32 | E136: 0.3333333333
A137: h6 | B137: 56 | C137: 59 | D137: 54 | E137: 0.6
A138: h7 | B138: 77 | C138: 72 | D138: 20 | E138: 0.9
A140: h | B140: E | C140: L | D140: S
A141: a | B141: 6 | C141: 5 | D141: 9
A142: b | B142: 5 | C142: 5 | D142: 9
A143: c | B143: 1 | C143: 5 | D143: 9
A145: P. final: Mujer | B145: A: 18-25 | C145: B: 26-40 | D145: C: 41-50 | E145: D: 51+
A146: か | B146: 9 | C146: 12 | D146: 5 | E146: 15
A147: かい | B147: 2 | C147: 1 | E147: 6
A148: かしら | E148: 4
A149: かしらー | B149: 1
A150: さ | B150: 119 | C150: 46 | D150: 1 | E150: 16
A151: さあ | B151: 9 | C151: 16 | D151: 1 | E151: 5
A152: ぜ | B152: 2
A153: ぞ | E153: 17
A154: っけ | B154: 20 | C154: 5 | D154: 1 | E154: 2
A155: で | B155: 4 | C155: 1 | E155: 11
A156: な | B156: 246 | C156: 95 | D156: 19 | E156: 81
A157: なあ | B157: 186 | C157: 25 | D157: 41 | E157: 106
A158: ね | B158: 467 | C158: 350 | D158: 190 | E158: 360
A159: ねえ | B159: 120 | C159: 175 | D159: 87 | E159: 186
A160: ねん | B160: 5
A161: やろ | B161: 17
A162: よ | B162: 448 | C162: 214 | D162: 109 | E162: 331
A163: わ | B163: 22 | C163: 1 | E163: 37
A165: hata | B165: c1 | C165: c2 | D165: E
A166: h1 | B166: =B190 -> A | C166: C | D166: =E190 -> X
A167: h2 | B167: A | C167: D | D167: =E191 -> X
A168: h3 | B168: A | C168: D | D168: =E192 -> Y
A169: h4 | B169: B | C169: D | D169: =E193 -> Z
A171: Select | B171: A | C171: D | D171: X
A173: Conv | B173: c1 | C173: c2 | D173: E
A174: h1 | B174: =IF(B166=B$34, 1, -1) -> -1 | C174: -1 | D174: -1
A175: h2 | B175: -1 | C175: -1 | D175: -1
A176: h3 | B176: -1 | C176: -1 | D176: -1
A177: h4 | B177: -1 | C177: -1 | D177: -1
A179: C*E | B179: c1 | C179: c2 | D179: Sum
A180: h1 | B180: =$D174*B174 -> 1 | C180: 1 | D180: =SUM(B180:C180) -> 2
A181: h2 | B181: 1 | C181: 1 | D181: =SUM(B181:C181) -> 2
A182: h3 | B182: 1 | C182: 1 | D182: =SUM(B182:C182) -> 2
A183: h4 | B183: 1 | C183: 1 | D183: =SUM(B183:C183) -> 2
A184: Sum | B184: =SUM(B180:B183) -> 4 | C184: =SUM(C180:C183) -> 4 | D184: =SUM(B184:C184) -> 8
A186: Mult.Aso.= | B186: =D184/(4*2) -> 1
A189: A | B189: C | C189: F | D189: X | E189: E
A190: A | B190: A | C190: C | D190: F | E190: X
A191: A | B191: A | C191: D | D191: F | E191: X
A192: B | B192: A | C192: D | D192: G | E192: Y
A193: B | B193: B | C193: D | D193: H | E193: Z
B194: B | C194: E | D194: H | E194: Z
A195: Select | B195: A | C195: D | D195: G | E195: X
A197: Conv | B197: c1 | C197: c2 | D197: c3 | E197: E
A198: h1 | B198: =IF(B190=B$50, 1, -1) -> -1 | C198: =IF(C190=C$50, 1, -1) -> -1 | D198: -1 | E198: =IF(E190=E$50, 1, -1) -> -1
A199: h2 | B199: -1 | C199: -1 | D199: -1 | E199: =IF(E191=E$50, 1, -1) -> -1
A200: h3 | B200: -1 | C200: -1 | D200: -1 | E200: =IF(E192=E$50, 1, -1) -> -1
A201: h4 | B201: -1 | C201: -1 | D201: -1 | E201: =IF(E193=E$50, 1, -1) -> -1
A203: C*E | B203: c1 | C203: c2 | D203: c3 | E203: Sum
A204: h1 | B204: =$E198*B198 -> 1 | C204: 1 | D204: 1 | E204: =SUM(B204:D204) -> 3
A205: h2 | B205: 1 | C205: 1 | D205: 1 | E205: =SUM(B205:D205) -> 3
A206: h3 | B206: 1 | C206: 1 | D206: 1 | E206: =SUM(B206:D206) -> 3
A207: h4 | B207: 1 | C207: 1 | D207: 1 | E207: =SUM(B207:D207) -> 3
A208: Sum | B208: =SUM(B204:B207) -> 4 | C208: =SUM(C204:C207) -> 4 | D208: =SUM(D204:D207) -> 4 | E208: =SUM(B208:D208) -> 12
A210: Mult.Aso.= | B210: =E208/(4*3) -> 1
A212: SS | B212: Big | C212: Sharp | D212: Clear | E212: Hard | F212: Heavy
A213: 1.pa | B213: -1 | C213: 2 | D213: 2 | E213: 2 | F213: -3
A214: 2.ba | B214: 2 | C214: -3 | D214: -3 | E214: 1 | F214: 2
A215: 3.ta | B215: -1 | C215: 2 | D215: 1 | E215: 2 | F215: -2
A216: 4.ha | B216: 2 | C216: -1 | D216: -3 | E216: 1 | F216: 2
A217: 5.ka | B217: 0 | C217: 3 | D217: 1 | E217: 3 | F217: -1
A218: 6.ga | B218: 3 | C218: -2 | D218: -3 | E218: 2 | F218: 3
A219: 7.sa | B219: -2 | C219: 2 | D219: 2 | E219: 1 | F219: -2
A220: 8.za | B220: 2 | C220: -1 | D220: -2 | E220: 0 | F220: 3
A221: 9.ma | B221: 0 | C221: -1 | D221: -1 | E221: -2 | F221: 0
A222: 10.na | B222: 0 | C222: -1 | D222: 0 | E222: -2 | F222: 0
A223: 11.ra | B223: 1 | C223: -2 | D223: 2 | E223: -3 | F223: 0
A225: Ｍ | B225: c1 | C225: c2 | D225: c3 | E225: c4 | F225: E
A226: h1 | B226: A | C226: C | D226: F | E226: I | F226: X
A227: h2 | B227: A | C227: D | D227: F | E227: J | F227: X
A228: h3 | B228: A | C228: D | D228: G | E228: K | F228: Y
... 141 more rows

Sheet Inf
A1: X | B1: v1 | C1: v2 | D1: v3 | E1: y | G1: X | H1: v1 | I1: v2 | J1: v3 | K1: y | L1: y^ | M1: Res. | O1: Mr.w. | P1: v1 | Q1: v2 | R1: v3 | S1: Interc.
A2: h1 | B2: 6 | C2: 8 | D2: 5 | E2: 12 | G2: h1 | H2: 6 | I2: 8 | J2: 5 | K2: 12 | L2: 10.10408703 | M2: -1.895912967 | O2: Org. | P2: 0.7403704793 | Q2: 0.4620699794 | R2: 1.156939136 | S2: -3.819391355
A3: h2 | B3: 7 | C3: 10 | D3: 6 | E3: 11 | G3: h2 | H3: 7 | I3: 10 | J3: 6 | K3: 11 | L3: 12.92553661 | M3: 1.925536607 | O3: Std. | P3: 0.4332690512 | Q3: 0.3937170824 | R3: 0.9574896413 | S3: 2.775557562e-17
A4: h3 | B4: 8 | C4: 4 | D4: 8 | E4: 13 | G4: h3 | H4: 8 | I4: 4 | J4: 8 | K4: 13 | L4: 13.20736548 | M4: 0.2073654807
A5: h4 | B5: 9 | C5: 7 | D5: 2 | E5: 7 | G5: h4 | H5: 9 | I5: 7 | J5: 2 | K5: 7 | L5: 8.392311085 | M5: 1.392311085 | O5: Eval. | P5: R.m. | Q5: Prp
A6: h5 | B6: 10 | C6: 9 | D6: 4 | E6: 14 | G6: h5 | H6: 10 | I6: 9 | J6: 4 | K6: 14 | L6: 12.37069979 | M6: -1.629300206 | O6: Value | P6: 1.410085269 | Q6: 0.5911531862
A8: X | B8: v1 | C8: v2 | D8: v3 | E8: y | O8: Correl. | P8: v1 | Q8: v2 | R8: v3 | S8: y
A9: h1 | B9: 6 | C9: 8 | D9: 5 | O9: v1 | P9: 1 | Q9: -0.06868028198 | R9: -0.4242640687 | S9: 0
A10: h2 | B10: 7 | C10: 10 | D10: 6 | O10: v2 | P10: -0.06868028198 | Q10: 1 | R10: -0.388514345 | S10: -0.00803841898
A11: h3 | B11: 8 | C11: 4 | D11: 8 | E11: v | O11: v3 | P11: -0.4242640687 | Q11: -0.388514345 | R11: 1 | S11: 0.6207044164
A12: h4 | B12: 9 | C12: 7 | D12: 2 | O12: y | P12: 0 | Q12: -0.00803841898 | R12: 0.6207044164 | S12: 1
A13: h5 | B13: 10 | C13: 9 | D13: 4 | E13: v
A15: X | B15: v1 | C15: v2 | D15: v3 | E15: y
A16: h1 | B16: 6 | C16: 8 | D16: 5
A17: h2 | B17: 7 | C17: 10 | D17: 6
A18: h3 | B18: 8 | C18: 4 | D18: 8 | E18: 1
A19: h4 | B19: 9 | C19: 7 | D19: 2
A20: h5 | B20: 10 | C20: 9 | D20: 4 | E20: 1
A22: X.e | B22: v1 | C22: v2 | D22: v3 | H22: X.e | I22: v1 | J22: v2 | K22: v3 | L22: Exp.
A23: e1 | B23: 6 | C23: 8 | D23: 5 | H23: e1 | I23: 6 | J23: 8 | K23: 5 | L23: 10.10408703
A24: e2 | B24: 6 | C24: 8 | D24: 2 | H24: e2 | I24: 6 | J24: 8 | K24: 2 | L24: 6.633269627
A25: e3 | B25: 5 | C25: 5 | D25: 4 | H25: e3 | I25: 5 | J25: 5 | K25: 4 | L25: 6.82056748
A26: e4 | B26: 7 | C26: 5 | D26: 4 | H26: e4 | I26: 7 | J26: 5 | K26: 4 | L26: 8.301308439
A27: e5 | B27: 8 | C27: 5 | D27: 9 | H27: e5 | I27: 8 | J27: 5 | K27: 9 | L27: 14.8263746
A29: h | B29: E | C29: L | D29: M | E29: N
A30: h1 | B30: 58 | C30: 34 | D30: 90 | E30: 3
A31: h2 | B31: 50 | C31: 53 | D31: 100 | E31: 5
A32: h3 | B32: 45 | C32: 48 | D32: 66 | E32: 6
A33: h4 | B33: 58 | C33: 51 | D33: 78 | E33: 7
A34: h5 | B34: 43 | C34: 44 | D34: 32 | E34: 9
A35: h6 | B35: 56 | C35: 59 | D35: 54 | E35: 13
A36: h7 | B36: 77 | C36: 72 | D36: 20 | E36: 28
A38: h | B38: E | C38: L | D38: M | E38: R
A39: h1 | B39: 58 | C39: 34 | D39: 90 | E39: 0.1
A40: h2 | B40: 50 | C40: 53 | D40: 100 | E40: 0.2
A41: h3 | B41: 45 | C41: 48 | D41: 66 | E41: 0.222
A42: h4 | B42: 58 | C42: 51 | D42: 78 | E42: 0.3
A43: h5 | B43: 43 | C43: 44 | D43: 32 | E43: 0.333
A44: h6 | B44: 56 | C44: 59 | D44: 54 | E44: 0.6
A45: h7 | B45: 77 | C45: 72 | D45: 20 | E45: 0.9
A47: h | B47: E | C47: L | D47: M
A48: h8 | B48: 58 | C48: 34 | D48: 90
A49: h9 | B49: 50 | C49: 53 | D49: 95
A50: h10 | B50: 45 | C50: 52 | D50: 81
A52: N | B52: v1 | C52: v2 | D52: y
A53: h1 | B53: A | C53: C | D53: v
A54: h2 | B54: A | C54: D | D54: v
A55: h3 | B55: A | C55: D | D55: Y
A56: h4 | B56: A | C56: E | D56: v
A57: h5 | B57: B | C57: C | D57: v
A58: h6 | B58: B | C58: D | D58: Y
A59: h7 | B59: B | C59: E | D59: Z
A61: N | B61: v1 | C61: v2 | D61: y
A62: h1 | B62: A | C62: C | D62: v
A63: h2 | B63: A | C63: D | D63: v
A64: h3 | B64: A | C64: D | D64: Y
A65: h4 | B65: A | C65: E | D65: v
A66: h5 | B66: B | C66: C | D66: v
A67: h6 | B67: B | C67: D | D67: Y
A68: h7 | B68: B | C68: E | D68: Z
A70: N | B70: v1 | C70: v2
A71: h8 | B71: A | C71: C
A72: h9 | B72: B | C72: C
A73: h10 | B73: B | C73: D
A77: English-2 | B77: Read | C77: Write | D77: Vocab. | E77: POINT
A78: h1 | C78: v | E78: 12
A79: h2 | B79: v | C79: v | D79: v | E79: 11
A80: h3 | B80: v | D80: v | E80: 13
A81: h4 | B81: v | C81: v | E81: 7
A82: h5 | B82: v | C82: v | E82: 14
A84: English-2x | B84: Read | C84: Write | D84: Vocab.
A85: x1 | C85: v
A86: x2 | B86: v | C86: v | D86: v
A87: x3 | B87: v | D87: v
A89: English-3 | B89: Read | C89: Write | D89: Vocab. | E89: POINT
A90: h1 | B90: 6 | C90: 4 | D90: 5
A91: h2 | B91: 7 | C91: 5 | D91: 6
A92: h3 | B92: 8 | C92: 4 | D92: 8 | E92: v
A93: h4 | B93: 9 | C93: 7 | D93: 2
A94: h5 | B94: 10 | C94: 9 | D94: 4 | E94: v
A96: English-3x | B96: Read | C96: Write | D96: Vocab.
A97: x1 | B97: 7 | C97: 10 | D97: 5
A98: x2 | B98: 8 | C98: 4 | D98: 8
A99: x3 | B99: 6 | C99: 11 | D99: 8
A101: English-4 | B101: Read | C101: Write | D101: Vocab. | E101: POINT
A102: h1 | C102: v
A103: h2 | B103: v | C103: v | D103: v
A104: h3 | B104: v | D104: v | E104: v
A105: h4 | B105: v | C105: v
A106: h5 | B106: v | C106: v | E106: v
A108: English-4x | B108: Read | C108: Write | D108: Vocab.
A109: x1 | C109: v
A110: x2 | B110: v | C110: v | D110: v
A111: x3 | B111: v | D111: v
A113: h | B113: v1 | C113: v2 | D113: v3 | E113: Group
A114: h1 | B114: 5 | C114: 2 | D114: 7 | E114: a
A115: h2 | B115: 3 | C115: 3 | D115: 2 | E115: b
A116: h3 | B116: 2 | D116: 2 | E116: b
A117: h4 | B117: 4 | C117: 2 | D117: 2 | E117: c
A118: h5 | B118: 2 | C118: 4 | D118: 3 | E118: c
A119: h6 | B119: 1 | C119: 8 | D119: 7 | E119: c
A121: X | B121: v1 | C121: v2 | D121: v3
A122: x1 | B122: 4 | C122: 2 | D122: 5
A123: x2 | B123: 3 | C123: 7 | D123: 6
A125: h | B125: v1 | C125: v2 | D125: v3 | E125: Disc.
A126: h1 | B126: 5 | C126: 2 | D126: 56 | E126: a
A127: h2 | B127: 3 | C127: 3 | D127: 33 | E127: b
A128: h3 | B128: 2 | D128: 21 | E128: b
A129: h4 | B129: 4 | C129: 2 | D129: 22 | E129: c
A130: h5 | B130: 2 | C130: 4 | D130: 45 | E130: c
A131: h6 | B131: 1 | C131: 8 | D131: 72 | E131: c
A133: X | B133: v1 | C133: v2 | D133: v3
A134: x1 | B134: 4 | C134: 2 | D134: 50
A135: x2 | B135: 3 | C135: 7 | D135: 60
A137: h.hata | B137: v1 | C137: v2 | D137: v3 | E137: Disc.
A138: h1 | B138: v | C138: v | E138: a
A139: h2 | B139: v | D139: v | E139: a
A140: h3 | B140: v | E140: a
A141: h4 | C141: v | E141: a
A142: h5 | B142: v | D142: v | E142: b
A143: h6 | C143: v | D143: v | E143: b
A145: h.preh | B145: v1 | C145: v2 | D145: v3
A146: x1 | B146: v | C146: v
A147: x2 | D147: v
A149: Q | B149: v1 | C149: v2 | D149: v3 | E149: Disc.
A150: h1 | B150: v | C150: v | E150: a
A151: h2 | B151: v | D151: v | E151: b
A152: h3 | B152: v | E152: b
A153: h4 | C153: v | E153: c
A154: h5 | B154: v | D154: v | E154: c
A155: h6 | C155: v | D155: v | E155: c
A157: Qx | B157: v1 | C157: v2 | D157: v3
A158: x1 | B158: v | C158: v
A159: x2 | D159: v
A161: Q | B161: v1 | C161: v2 | D161: v3 | E161: Group
A162: h1 | B162: v | C162: v | E162: a
A163: h2 | B163: v | D163: v | E163: a
A164: h3 | B164: v | E164: a
A165: h4 | C165: v | E165: a
A166: h5 | B166: v | D166: v | E166: b
A167: h6 | C167: v | D167: v | E167: b
A169: Y | B169: v1 | C169: v2 | D169: v3
A170: x1 | B170: v | C170: v
A171: x2 | D171: v
A173: h | B173: v1 | C173: v2 | D173: v3 | E173: Grp
A174: h1 | B174: A | C174: D | D174: H | E174: a
A175: h2 | B175: A | C175: D | D175: I | E175: b
A176: h3 | B176: A | C176: F | D176: H | E176: b
A177: h4 | B177: A | C177: E | D177: H | E177: c
A178: h5 | B178: B | C178: F | D178: G | E178: c
A179: h6 | B179: B | C179: F | D179: I | E179: c
A181: X | B181: v1 | C181: v2 | D181: v3
A182: x1 | B182: B | C182: D | D182: J
A183: x2 | B183: B | C183: E | D183: H
A185: Q | B185: v1 | C185: v2 | D185: v3 | E185: Group
A186: h1 | B186: v | C186: v | E186: a
A187: h2 | B187: v | D187: v | E187: a
A188: h3 | B188: v | E188: a
A189: h4 | C189: v | E189: a
A190: h5 | B190: v | D190: v | E190: b
A191: h6 | C191: v | D191: v | E191: b
A193: Y | B193: v1 | C193: v2 | D193: v3 | E193: Mx:mn
A194: x1 | B194: 1 | C194: 1 | E194: 0.7112299465
A195: x2 | D195: 1 | E195: 0.3388429752
A197: Q.likel. | B197: v1 | C197: v2 | D197: v3
A198: a | B198: 0.75 | C198: 0.5 | D198: 0.25
A199: b | B199: 0.5 | C199: 0.5 | D199: 1
A201: Q | B201: v1 | C201: v2 | D201: v3 | E201: Group
A202: h1 | B202: v | C202: v | E202: a
A203: h2 | B203: v | D203: v | E203: a
A204: h3 | B204: v | E204: a
A205: h4 | C205: v | E205: a
A206: h5 | B206: v | D206: v | E206: b
A207: h6 | C207: v | D207: v | E207: b
A209: Y | B209: v1 | C209: v2 | D209: v3 | E209: Mx:mn
A210: x1 | B210: v | C210: v | E210: 0.7112299465
A211: x2 | D211: v | E211: 0.3388429752
A213: Q.likel. | B213: v1 | C213: v2 | D213: v3
A214: a | B214: 0.75 | C214: 0.5 | D214: 0.25
A215: b | B215: 0.5 | C215: 0.5 | D215: 1
A217: Q.likel. | B217: v1 | C217: v2 | D217: v3
A218: a | B218: 0.75 | C218: 0.5 | D218: 0.25
A219: b | B219: 0.5 | C219: 0.5 | D219: 1
A221: Q | B221: v1 | C221: v2 | D221: v3 | E221: Group
A222: h1 | B222: v | C222: v | E222: a
A223: h2 | B223: v | D223: v | E223: a
A224: h3 | B224: v | E224: a
A225: h4 | C225: v | E225: a
A226: h5 | B226: v | D226: v | E226: b
A227: h6 | C227: v | D227: v | E227: b
A229: Y | B229: v1 | C229: v2 | D229: v3 | E229: Mx:mn
A230: x1 | B230: v | C230: v | E230: 0.3793103448
A231: x2 | D231: v | E231: 0.05263157895
A233: N:V | B233: Cor:N | C233: Cor:V
A234: 1 | B234: 10 | C234: 0.1127
A235: 2 | B235: 20 | C235: 0.0537
A236: 3 | B236: 30 | C236: 0.0349
A237: 4 | B237: 40 | C237: 0.026
A238: 5 | B238: 50 | C238: 0.0203
A239: 6 | B239: 60 | C239: 0.017
... 105 more rows

Sheet Freq.
A1: Forma | B1: C.G. | C1: Gén. | D1: Núm. | E1: Deriv. | F1: Sílaba | G1: Fon. | H1: Sem. | I1: Disp. | J1: R.100 | L1: Forma | M1: C.G. | N1: Gén. | O1: Núm. | P1: Deriv. | Q1: Sílaba | R1: Fon. | S1: Sem. | T1: Disp. | U1: R.100 | W1: Forma | X1: Fon. | Y1: Sem. | Z1: Disp. | AA1: R.100 | AC1: Forma | AD1: Fon. | AE1: Sem. | AF1: Disp. | AG1: R.100 | AH1: R.100^ | AI1: Res. | AK1: Mr.w. | AL1: Fon. | AM1: Sem. | AN1: Disp. | AO1: Interc.
A2: día | B2: 1 | C2: 1 | D2: 1 | E2: 1 | F2: 2 | G2: 3 | H2: 6 | I2: 0.798 | J2: 1 | L2: C.G. | M2: 1 | N2: -0.04694700511 | O2: -0.02607117334 | P2: 0.1255453083 | Q2: -0.1239367431 | R2: 0.09128025846 | S2: 0.07070660759 | T2: 0.07441650375 | U2: 0.06497617561 | W2: día | X2: 3 | Y2: 6 | Z2: 0.798 | AA2: 1 | AC2: día | AD2: 3 | AE2: 6 | AF2: 0.798 | AG2: 1 | AH2: 4.289366156 | AI2: 3.289366156 | AK2: Org. | AL2: 0.233787344 | AM2: -0.03404741257 | AN2: -2.371428287 | AO2: 5.684688372
A3: casa | B3: 1 | C3: 3 | D3: 1 | E3: 1 | F3: 2 | G3: 4 | H3: 8 | I3: 0.679 | J3: 1 | L3: Gén. | M3: -0.04694700511 | N3: 1 | O3: -0.05014395729 | P3: 0.2331226783 | Q3: 0.1585129818 | R3: 0.1139940528 | S3: -0.05920717845 | T3: -0.002518331476 | U3: 0.03692062781 | W3: casa | X3: 4 | Y3: 8 | Z3: 0.679 | AA3: 1 | AC3: casa | AD3: 4 | AE3: 8 | AF3: 0.679 | AG3: 1 | AH3: 4.737258641 | AI3: 3.737258641 | AK3: Std. | AL3: 0.1722291758 | AM3: -0.03936285706 | AN3: -0.2061091746 | AO3: 4.544187509e-12
A4: años | B4: 1 | C4: 1 | D4: 3 | E4: 1 | F4: 2 | G4: 4 | H4: 4 | I4: 0.917 | J4: 1 | L4: Núm. | M4: -0.02607117334 | N4: -0.05014395729 | O4: 1 | P4: -0.06864840007 | Q4: -0.02031522153 | R4: 0.197437765 | S4: 0.0378601877 | T4: 0.0418087663 | U4: 0.0397624107 | W4: años | X4: 4 | Y4: 4 | Z4: 0.917 | AA4: 1 | AC4: años | AD4: 4 | AE4: 4 | AF4: 0.917 | AG4: 1 | AH4: 4.309048359 | AI4: 3.309048359
A5: gente | B5: 1 | C5: 3 | D5: 1 | E5: 1 | F5: 2 | G5: 5 | H5: 7 | I5: 0.835 | J5: 1 | L5: Deriv. | M5: 0.1255453083 | N5: 0.2331226783 | O5: -0.06864840007 | P5: 1 | Q5: 0.5213528608 | R5: 0.6149679428 | S5: -0.2487212451 | T5: -0.1510276034 | U5: 0.2001467178 | W5: gente | X5: 5 | Y5: 7 | Z5: 0.835 | AA5: 1 | AC5: gente | AD5: 5 | AE5: 7 | AF5: 0.835 | AG5: 1 | AH5: 4.635150585 | AI5: 3.635150585 | AK5: Eval. | AL5: Rn.m. | AM5: Yn.m. | AN5: Res.R.
A6: cosas | B6: 1 | C6: 3 | D6: 3 | E6: 1 | F6: 2 | G6: 5 | H6: 5 | I6: 0.776 | J6: 1 | L6: Sílaba | M6: -0.1239367431 | N6: 0.1585129818 | O6: -0.02031522153 | P6: 0.5213528608 | Q6: 1 | R6: 0.8044792775 | S6: -0.3574422293 | T6: -0.2525073288 | U6: 0.1454602449 | W6: cosas | X6: 5 | Y6: 5 | Z6: 0.776 | AA6: 1 | AC6: cosas | AD6: 5 | AE6: 5 | AF6: 0.776 | AG6: 1 | AH6: 4.843159679 | AI6: 3.843159679 | AK6: Value | AL6: 2.520378125 | AM6: 5.828025478 | AN6: 0.4324583231
A7: cosa | B7: 1 | C7: 3 | D7: 1 | E7: 1 | F7: 2 | G7: 4 | H7: 5 | I7: 0.776 | J7: 1 | L7: Fon. | M7: 0.09128025846 | N7: 0.1139940528 | O7: 0.197437765 | P7: 0.6149679428 | Q7: 0.8044792775 | R7: 1 | S7: -0.304756466 | T7: -0.1925025271 | U7: 0.223901798 | W7: cosa | X7: 4 | Y7: 5 | Z7: 0.776 | AA7: 1 | AC7: cosa | AD7: 4 | AE7: 5 | AF7: 0.776 | AG7: 1 | AH7: 4.609372335 | AI7: 3.609372335
A8: tiempo | B8: 1 | C8: 1 | D8: 1 | E8: 1 | F8: 2 | G8: 6 | H8: 13 | I8: 0.896 | J8: 1 | L8: Sem. | M8: 0.07070660759 | N8: -0.05920717845 | O8: 0.0378601877 | P8: -0.2487212451 | Q8: -0.3574422293 | R8: -0.304756466 | S8: 1 | T8: 0.3498552412 | U8: -0.163959187 | W8: tiempo | X8: 6 | Y8: 13 | Z8: 0.896 | AA8: 1 | AC8: tiempo | AD8: 6 | AE8: 13 | AF8: 0.896 | AG8: 1 | AH8: 4.519996328 | AI8: 3.519996328 | AK8: Correl. | AL8: Fon. | AM8: Sem. | AN8: Disp. | AO8: R.100
A9: vez | B9: 1 | C9: 3 | D9: 1 | E9: 1 | F9: 1 | G9: 3 | H9: 4 | I9: 0.908 | J9: 1 | L9: Disp. | M9: 0.07441650375 | N9: -0.002518331476 | O9: 0.0418087663 | P9: -0.1510276034 | Q9: -0.2525073288 | R9: -0.1925025271 | S9: 0.3498552412 | T9: 1 | U9: -0.2530350281 | W9: vez | X9: 3 | Y9: 4 | Z9: 0.908 | AA9: 1 | AC9: vez | AD9: 3 | AE9: 4 | AF9: 0.908 | AG9: 1 | AH9: 4.096603869 | AI9: 3.096603869 | AK9: Fon. | AL9: 1 | AM9: -0.304756466 | AN9: -0.1925025272 | AO9: 0.223901798
A10: tía | B10: 1 | C10: 3 | D10: 1 | E10: 1 | F10: 2 | G10: 3 | H10: 6 | I10: 0.429 | J10: 1 | L10: R.100 | M10: 0.06497617561 | N10: 0.03692062781 | O10: 0.0397624107 | P10: 0.2001467178 | Q10: 0.1454602449 | R10: 0.223901798 | S10: -0.163959187 | T10: -0.2530350281 | U10: 1 | W10: tía | X10: 3 | Y10: 6 | Z10: 0.429 | AA10: 1 | AC10: tía | AD10: 3 | AE10: 6 | AF10: 0.429 | AG10: 1 | AH10: 5.164423194 | AI10: 4.164423194 | AK10: Sem. | AL10: -0.304756466 | AM10: 1 | AN10: 0.3498552412 | AO10: -0.163959187
A11: año | B11: 1 | C11: 1 | D11: 1 | E11: 1 | F11: 2 | G11: 3 | H11: 4 | I11: 0.917 | J11: 1 | W11: año | X11: 3 | Y11: 4 | Z11: 0.917 | AA11: 1 | AC11: año | AD11: 3 | AE11: 4 | AF11: 0.917 | AG11: 1 | AH11: 4.075261015 | AI11: 3.075261015 | AK11: Disp. | AL11: -0.1925025272 | AM11: 0.3498552412 | AN11: 1 | AO11: -0.2530350281
A12: momento | B12: 1 | C12: 1 | D12: 1 | E12: 1 | F12: 3 | G12: 7 | H12: 4 | I12: 0.86 | J12: 1 | W12: momento | X12: 7 | Y12: 4 | Z12: 0.86 | AA12: 1 | AC12: momento | AD12: 7 | AE12: 4 | AF12: 0.86 | AG12: 1 | AH12: 5.145581803 | AI12: 4.145581803 | AK12: R.100 | AL12: 0.223901798 | AM12: -0.163959187 | AN12: -0.2530350281 | AO12: 1
A13: tío | B13: 1 | C13: 1 | D13: 1 | E13: 1 | F13: 2 | G13: 3 | H13: 6 | I13: 0.429 | J13: 1 | W13: tío | X13: 3 | Y13: 6 | Z13: 0.429 | AA13: 1 | AC13: tío | AD13: 3 | AE13: 6 | AF13: 0.429 | AG13: 1 | AH13: 5.164423194 | AI13: 4.164423194
A14: días | B14: 1 | C14: 1 | D14: 3 | E14: 1 | F14: 2 | G14: 4 | H14: 6 | I14: 0.798 | J14: 1 | W14: días | X14: 4 | Y14: 6 | Z14: 0.798 | AA14: 1 | AC14: días | AD14: 4 | AE14: 6 | AF14: 0.798 | AG14: 1 | AH14: 4.5231535 | AI14: 3.5231535
A15: mundo | B15: 1 | C15: 1 | D15: 1 | E15: 1 | F15: 2 | G15: 5 | H15: 8 | I15: 0.85 | J15: 1 | W15: mundo | X15: 5 | Y15: 8 | Z15: 0.85 | AA15: 1 | AC15: mundo | AD15: 5 | AE15: 8 | AF15: 0.85 | AG15: 1 | AH15: 4.565531748 | AI15: 3.565531748
A16: mismo | B16: 2 | C16: 1 | D16: 1 | E16: 1 | F16: 1 | G16: 5 | H16: 9 | I16: 0.877 | J16: 1 | W16: mismo | X16: 5 | Y16: 9 | Z16: 0.877 | AA16: 1 | AC16: mismo | AD16: 5 | AE16: 9 | AF16: 0.877 | AG16: 1 | AH16: 4.467455771 | AI16: 3.467455771
A17: vida | B17: 1 | C17: 3 | D17: 1 | E17: 1 | F17: 2 | G17: 4 | H17: 9 | I17: 0.785 | J17: 1 | W17: vida | X17: 4 | Y17: 9 | Z17: 0.785 | AA17: 1 | AC17: vida | AD17: 4 | AE17: 9 | AF17: 0.785 | AG17: 1 | AH17: 4.45183983 | AI17: 3.45183983
A18: trabajo | B18: 1 | C18: 1 | D18: 1 | E18: 1 | F18: 3 | G18: 7 | H18: 8 | I18: 0.814 | J18: 1 | W18: trabajo | X18: 7 | Y18: 8 | Z18: 0.814 | AA18: 1 | AC18: trabajo | AD18: 7 | AE18: 8 | AF18: 0.814 | AG18: 1 | AH18: 5.118477854 | AI18: 4.118477854
A19: idea | B19: 1 | C19: 3 | D19: 1 | E19: 1 | F19: 3 | G19: 4 | H19: 8 | I19: 0.705 | J19: 1 | W19: idea | X19: 4 | Y19: 8 | Z19: 0.705 | AA19: 1 | AC19: idea | AD19: 4 | AE19: 8 | AF19: 0.705 | AG19: 1 | AH19: 4.675601505 | AI19: 3.675601505
A20: persona | B20: 1 | C20: 3 | D20: 1 | E20: 1 | F20: 3 | G20: 7 | H20: 3 | I20: 0.894 | J20: 1 | W20: persona | X20: 7 | Y20: 3 | Z20: 0.894 | AA20: 1 | AC20: persona | AD20: 7 | AE20: 3 | AF20: 0.894 | AG20: 1 | AH20: 5.099000654 | AI20: 4.099000654
A21: problema | B21: 1 | C21: 1 | D21: 1 | E21: 1 | F21: 3 | G21: 8 | H21: 2 | I21: 0.629 | J21: 1 | W21: problema | X21: 8 | Y21: 2 | Z21: 0.629 | AA21: 1 | AC21: problema | AD21: 8 | AE21: 2 | AF21: 0.629 | AG21: 1 | AH21: 5.995263907 | AI21: 4.995263907
A22: madre | B22: 1 | C22: 3 | D22: 1 | E22: 1 | F22: 2 | G22: 5 | H22: 10 | I22: 0.519 | J22: 1 | W22: madre | X22: 5 | Y22: 10 | Z22: 0.519 | AA22: 1 | AC22: madre | AD22: 5 | AE22: 10 | AF22: 0.519 | AG22: 1 | AH22: 5.282379686 | AI22: 4.282379686
A23: mañana | B23: 1 | C23: 3 | D23: 1 | E23: 1 | F23: 3 | G23: 6 | H23: 2 | I23: 0.672 | J23: 1 | W23: mañana | X23: 6 | Y23: 2 | Z23: 0.672 | AA23: 1 | AC23: mañana | AD23: 6 | AE23: 2 | AF23: 0.672 | AG23: 1 | AH23: 5.425717802 | AI23: 4.425717802
A24: veces | B24: 1 | C24: 3 | D24: 3 | E24: 1 | F24: 1 | G24: 5 | H24: 4 | I24: 0.908 | J24: 1 | W24: veces | X24: 5 | Y24: 4 | Z24: 0.908 | AA24: 1 | AC24: veces | AD24: 5 | AE24: 4 | AF24: 0.908 | AG24: 1 | AH24: 4.564178557 | AI24: 3.564178557
A25: hora | B25: 1 | C25: 3 | D25: 1 | E25: 1 | F25: 2 | G25: 3 | H25: 8 | I25: 0.785 | J25: 1 | W25: hora | X25: 3 | Y25: 8 | Z25: 0.785 | AA25: 1 | AC25: hora | AD25: 3 | AE25: 8 | AF25: 0.785 | AG25: 1 | AH25: 4.252099898 | AI25: 3.252099898
A26: tipo | B26: 1 | C26: 1 | D26: 1 | E26: 1 | F26: 2 | G26: 4 | H26: 8 | I26: 0.543 | J26: 1 | W26: tipo | X26: 4 | Y26: 8 | Z26: 0.543 | AA26: 1 | AC26: tipo | AD26: 4 | AE26: 8 | AF26: 0.543 | AG26: 1 | AH26: 5.059772888 | AI26: 4.059772888
A27: tema | B27: 1 | C27: 1 | D27: 1 | E27: 1 | F27: 2 | G27: 4 | H27: 4 | I27: 0.653 | J27: 1 | W27: tema | X27: 4 | Y27: 4 | Z27: 0.653 | AA27: 1 | AC27: tema | AD27: 4 | AE27: 4 | AF27: 0.653 | AG27: 1 | AH27: 4.935105427 | AI27: 3.935105427
A28: verdad | B28: 1 | C28: 3 | D28: 1 | E28: 2 | F28: 2 | G28: 6 | H28: 1 | I28: 0.573 | J28: 1 | W28: verdad | X28: 6 | Y28: 1 | Z28: 0.573 | AA28: 1 | AC28: verdad | AD28: 6 | AE28: 1 | AF28: 0.573 | AG28: 1 | AH28: 5.694536615 | AI28: 4.694536615
A29: noche | B29: 1 | C29: 3 | D29: 1 | E29: 1 | F29: 2 | G29: 4 | H29: 2 | I29: 0.554 | J29: 1 | W29: noche | X29: 4 | Y29: 2 | Z29: 0.554 | AA29: 1 | AC29: noche | AD29: 4 | AE29: 2 | AF29: 0.554 | AG29: 1 | AH29: 5.237971652 | AI29: 4.237971652
A30: uno | B30: 1 | C30: 1 | D30: 1 | E30: 1 | F30: 1 | G30: 3 | H30: 10 | I30: 0.717 | J30: 1 | W30: uno | X30: 3 | Y30: 10 | Z30: 0.717 | AA30: 1 | AC30: uno | AD30: 3 | AE30: 10 | AF30: 0.717 | AG30: 1 | AH30: 4.345262197 | AI30: 3.345262197
A31: personas | B31: 1 | C31: 3 | D31: 3 | E31: 1 | F31: 3 | G31: 8 | H31: 3 | I31: 0.894 | J31: 1 | W31: personas | X31: 8 | Y31: 3 | Z31: 0.894 | AA31: 1 | AC31: personas | AD31: 8 | AE31: 3 | AF31: 0.894 | AG31: 1 | AH31: 5.332787998 | AI31: 4.332787998
A32: parte | B32: 1 | C32: 3 | D32: 1 | E32: 1 | F32: 2 | G32: 5 | H32: 12 | I32: 0.702 | J32: 1 | W32: parte | X32: 5 | Y32: 12 | Z32: 0.702 | AA32: 1 | AC32: parte | AD32: 5 | AE32: 12 | AF32: 0.702 | AG32: 1 | AH32: 4.780313484 | AI32: 3.780313484
A33: forma | B33: 1 | C33: 3 | D33: 1 | E33: 1 | F33: 2 | G33: 5 | H33: 9 | I33: 0.623 | J33: 1 | W33: forma | X33: 5 | Y33: 9 | Z33: 0.623 | AA33: 1 | AC33: forma | AD33: 5 | AE33: 9 | AF33: 0.623 | AG33: 1 | AH33: 5.069798556 | AI33: 4.069798556
A34: pueblo | B34: 1 | C34: 1 | D34: 1 | E34: 1 | F34: 2 | G34: 6 | H34: 4 | I34: 0.766 | J34: 1 | W34: pueblo | X34: 6 | Y34: 4 | Z34: 0.766 | AA34: 1 | AC34: pueblo | AD34: 6 | AE34: 4 | AF34: 0.766 | AG34: 1 | AH34: 5.134708718 | AI34: 4.134708718
A35: señor | B35: 1 | C35: 1 | D35: 1 | E35: 1 | F35: 2 | G35: 5 | H35: 10 | I35: 0.527 | J35: 1 | W35: señor | X35: 5 | Y35: 10 | Z35: 0.527 | AA35: 1 | AC35: señor | AD35: 5 | AE35: 10 | AF35: 0.527 | AG35: 1 | AH35: 5.263408259 | AI35: 4.263408259
A36: caso | B36: 1 | C36: 1 | D36: 1 | E36: 1 | F36: 2 | G36: 4 | H36: 8 | I36: 0.815 | J36: 1 | W36: caso | X36: 4 | Y36: 8 | Z36: 0.815 | AA36: 1 | AC36: caso | AD36: 4 | AE36: 8 | AF36: 0.815 | AG36: 1 | AH36: 4.414744394 | AI36: 3.414744394
A37: dinero | B37: 1 | C37: 1 | D37: 1 | E37: 1 | F37: 3 | G37: 6 | H37: 4 | I37: 0.537 | J37: 1 | W37: dinero | X37: 6 | Y37: 4 | Z37: 0.537 | AA37: 1 | AC37: dinero | AD37: 6 | AE37: 4 | AF37: 0.537 | AG37: 1 | AH37: 5.677765796 | AI37: 4.677765796
A38: gobierno | B38: 1 | C38: 1 | D38: 1 | E38: 1 | F38: 3 | G38: 8 | H38: 5 | I38: 0.391 | J38: 1 | W38: gobierno | X38: 8 | Y38: 5 | Z38: 0.391 | AA38: 1 | AC38: gobierno | AD38: 8 | AE38: 5 | AF38: 0.391 | AG38: 1 | AH38: 6.457521601 | AI38: 5.457521601
A39: buenas | B39: 2 | C39: 3 | D39: 3 | E39: 1 | F39: 1 | G39: 6 | H39: 18 | I39: 0.577 | J39: 1 | W39: buenas | X39: 6 | Y39: 18 | Z39: 0.577 | AA39: 1 | AC39: buenas | AD39: 6 | AE39: 18 | AF39: 0.577 | AG39: 1 | AH39: 5.106244888 | AI39: 4.106244888
A40: padre | B40: 1 | C40: 1 | D40: 1 | E40: 1 | F40: 2 | G40: 5 | H40: 9 | I40: 0.664 | J40: 1 | W40: padre | X40: 5 | Y40: 9 | Z40: 0.664 | AA40: 1 | AC40: padre | AD40: 5 | AE40: 9 | AF40: 0.664 | AG40: 1 | AH40: 4.972569997 | AI40: 3.972569997
A41: manera | B41: 1 | C41: 3 | D41: 1 | E41: 1 | F41: 3 | G41: 6 | H41: 6 | I41: 0.902 | J41: 1 | W41: manera | X41: 6 | Y41: 6 | Z41: 0.902 | AA41: 1 | AC41: manera | AD41: 6 | AE41: 6 | AF41: 0.902 | AG41: 1 | AH41: 4.744099646 | AI41: 3.744099646
A42: niño | B42: 1 | C42: 1 | D42: 1 | E42: 1 | F42: 2 | G42: 4 | H42: 6 | I42: 0.61 | J42: 1 | W42: niño | X42: 4 | Y42: 6 | Z42: 0.61 | AA42: 1 | AC42: niño | AD42: 4 | AE42: 6 | AF42: 0.61 | AG42: 1 | AH42: 4.968982018 | AI42: 3.968982018
A43: sentido | B43: 1 | C43: 1 | D43: 1 | E43: 2 | F43: 3 | G43: 7 | H43: 10 | I43: 0.68 | J43: 1 | W43: sentido | X43: 7 | Y43: 10 | Z43: 0.68 | AA43: 1 | AC43: sentido | AD43: 7 | AE43: 10 | AF43: 0.68 | AG43: 1 | AH43: 5.368154419 | AI43: 4.368154419
A44: semana | B44: 1 | C44: 3 | D44: 1 | E44: 1 | F44: 3 | G44: 6 | H44: 1 | I44: 0.771 | J44: 1 | W44: semana | X44: 6 | Y44: 1 | Z44: 0.771 | AA44: 1 | AC44: semana | AD44: 6 | AE44: 1 | AF44: 0.771 | AG44: 1 | AH44: 5.224993814 | AI44: 4.224993814
A45: horas | B45: 1 | C45: 3 | D45: 3 | E45: 1 | F45: 2 | G45: 4 | H45: 8 | I45: 0.785 | J45: 1 | W45: horas | X45: 4 | Y45: 8 | Z45: 0.785 | AA45: 1 | AC45: horas | AD45: 4 | AE45: 8 | AF45: 0.785 | AG45: 1 | AH45: 4.485887242 | AI45: 3.485887242
A46: niños | B46: 1 | C46: 1 | D46: 3 | E46: 1 | F46: 2 | G46: 5 | H46: 6 | I46: 0.61 | J46: 1 | W46: niños | X46: 5 | Y46: 6 | Z46: 0.61 | AA46: 1 | AC46: niños | AD46: 5 | AE46: 6 | AF46: 0.61 | AG46: 1 | AH46: 5.202769362 | AI46: 4.202769362
A47: problemas | B47: 1 | C47: 1 | D47: 3 | E47: 1 | F47: 3 | G47: 9 | H47: 2 | I47: 0.629 | J47: 1 | W47: problemas | X47: 9 | Y47: 2 | Z47: 0.629 | AA47: 1 | AC47: problemas | AD47: 9 | AE47: 2 | AF47: 0.629 | AG47: 1 | AH47: 6.229051251 | AI47: 5.229051251
A48: mejor | B48: 2 | C48: 2 | D48: 1 | E48: 1 | F48: 2 | G48: 5 | H48: 5 | I48: 0.894 | J48: 1 | W48: mejor | X48: 5 | Y48: 5 | Z48: 0.894 | AA48: 1 | AC48: mejor | AD48: 5 | AE48: 5 | AF48: 0.894 | AG48: 1 | AH48: 4.563331141 | AI48: 3.563331141
A49: sitio | B49: 1 | C49: 1 | D49: 1 | E49: 1 | F49: 2 | G49: 5 | H49: 8 | I49: 0.857 | J49: 1 | W49: sitio | X49: 5 | Y49: 8 | Z49: 0.857 | AA49: 1 | AC49: sitio | AD49: 5 | AE49: 8 | AF49: 0.857 | AG49: 1 | AH49: 4.54893175 | AI49: 3.54893175
A50: importante | B50: 2 | C50: 2 | D50: 1 | E50: 2 | F50: 4 | G50: 10 | H50: 4 | I50: 0.704 | J50: 1 | W50: importante | X50: 10 | Y50: 4 | Z50: 0.704 | AA50: 1 | AC50: importante | AD50: 10 | AE50: 4 | AF50: 0.704 | AG50: 1 | AH50: 6.216886648 | AI50: 5.216886648
A51: clase | B51: 1 | C51: 3 | D51: 1 | E51: 1 | F51: 2 | G51: 5 | H51: 8 | I51: 0.736 | J51: 1 | W51: clase | X51: 5 | Y51: 8 | Z51: 0.736 | AA51: 1 | AC51: clase | AD51: 5 | AE51: 8 | AF51: 0.736 | AG51: 1 | AH51: 4.835874572 | AI51: 3.835874572
A52: cuenta | B52: 1 | C52: 3 | D52: 1 | E52: 1 | F52: 2 | G52: 6 | H52: 7 | I52: 0.938 | J52: 1 | W52: cuenta | X52: 6 | Y52: 7 | Z52: 0.938 | AA52: 1 | AC52: cuenta | AD52: 6 | AE52: 7 | AF52: 0.938 | AG52: 1 | AH52: 4.624680815 | AI52: 3.624680815
A53: grupo | B53: 1 | C53: 1 | D53: 1 | E53: 1 | F53: 2 | G53: 5 | H53: 9 | I53: 0.377 | J53: 1 | W53: grupo | X53: 5 | Y53: 9 | Z53: 0.377 | AA53: 1 | AC53: grupo | AD53: 5 | AE53: 9 | AF53: 0.377 | AG53: 1 | AH53: 5.653169915 | AI53: 4.653169915
A54: normal | B54: 2 | C54: 2 | D54: 1 | E54: 2 | F54: 2 | G54: 6 | H54: 2 | I54: 0.565 | J54: 1 | W54: normal | X54: 6 | Y54: 2 | Z54: 0.565 | AA54: 1 | AC54: normal | AD54: 6 | AE54: 2 | AF54: 0.565 | AG54: 1 | AH54: 5.679460629 | AI54: 4.679460629
A55: gracias | B55: 1 | C55: 3 | D55: 3 | E55: 1 | F55: 2 | G55: 7 | H55: 12 | I55: 0.639 | J55: 1 | W55: gracias | X55: 7 | Y55: 12 | Z55: 0.639 | AA55: 1 | AC55: gracias | AD55: 7 | AE55: 12 | AF55: 0.639 | AG55: 1 | AH55: 5.397288154 | AI55: 4.397288154
A56: chico | B56: 1 | C56: 1 | D56: 1 | E56: 1 | F56: 2 | G56: 4 | H56: 4 | I56: 0.319 | J56: 1 | W56: chico | X56: 4 | Y56: 4 | Z56: 0.319 | AA56: 1 | AC56: chico | AD56: 4 | AE56: 4 | AF56: 0.319 | AG56: 1 | AH56: 5.727162475 | AI56: 4.727162475
A57: ciudad | B57: 1 | C57: 3 | D57: 1 | E57: 2 | F57: 2 | G57: 6 | H57: 2 | I57: 0.769 | J57: 1 | W57: ciudad | X57: 6 | Y57: 2 | Z57: 0.769 | AA57: 1 | AC57: ciudad | AD57: 6 | AE57: 2 | AF57: 0.769 | AG57: 1 | AH57: 5.195689258 | AI57: 4.195689258
A58: tarde | B58: 1 | C58: 3 | D58: 1 | E58: 1 | F58: 2 | G58: 5 | H58: 4 | I58: 0.724 | J58: 1 | W58: tarde | X58: 5 | Y58: 4 | Z58: 0.724 | AA58: 1 | AC58: tarde | AD58: 5 | AE58: 4 | AF58: 0.724 | AG58: 1 | AH58: 5.000521362 | AI58: 4.000521362
A59: chica | B59: 1 | C59: 3 | D59: 1 | E59: 1 | F59: 2 | G59: 4 | H59: 4 | I59: 0.319 | J59: 1 | W59: chica | X59: 4 | Y59: 4 | Z59: 0.319 | AA59: 1 | AC59: chica | AD59: 4 | AE59: 4 | AF59: 0.319 | AG59: 1 | AH59: 5.727162475 | AI59: 4.727162475
A60: falta | B60: 1 | C60: 3 | D60: 1 | E60: 1 | F60: 2 | G60: 5 | H60: 8 | I60: 0.799 | J60: 1 | W60: falta | X60: 5 | Y60: 8 | Z60: 0.799 | AA60: 1 | AC60: falta | AD60: 5 | AE60: 8 | AF60: 0.799 | AG60: 1 | AH60: 4.68647459 | AI60: 3.68647459
A61: mayor | B61: 2 | C61: 2 | D61: 1 | E61: 1 | F61: 2 | G61: 5 | H61: 12 | I61: 0.803 | J61: 1 | W61: mayor | X61: 5 | Y61: 12 | Z61: 0.803 | AA61: 1 | AC61: mayor | AD61: 5 | AE61: 12 | AF61: 0.803 | AG61: 1 | AH61: 4.540799227 | AI61: 3.540799227
A62: siguiente | B62: 2 | C62: 2 | D62: 1 | E62: 2 | F62: 3 | G62: 8 | H62: 1 | I62: 0.707 | J62: 1 | W62: siguiente | X62: 8 | Y62: 1 | Z62: 0.707 | AA62: 1 | AC62: siguiente | AD62: 8 | AE62: 1 | AF62: 0.707 | AG62: 1 | AH62: 5.844339913 | AI62: 4.844339913
A63: misma | B63: 2 | C63: 3 | D63: 1 | E63: 1 | F63: 1 | G63: 5 | H63: 9 | I63: 0.877 | J63: 1 | W63: misma | X63: 5 | Y63: 9 | Z63: 0.877 | AA63: 1 | AC63: misma | AD63: 5 | AE63: 9 | AF63: 0.877 | AG63: 1 | AH63: 4.467455771 | AI63: 3.467455771
A64: situación | B64: 1 | C64: 3 | D64: 1 | E64: 2 | F64: 3 | G64: 9 | H64: 4 | I64: 0.683 | J64: 1 | W64: situación | X64: 9 | Y64: 4 | Z64: 0.683 | AA64: 1 | AC64: situación | AD64: 9 | AE64: 4 | AF64: 0.683 | AG64: 1 | AH64: 6.032899298 | AI64: 5.032899298
A65: coche | B65: 1 | C65: 1 | D65: 1 | E65: 1 | F65: 2 | G65: 4 | H65: 4 | I65: 0.718 | J65: 1 | W65: coche | X65: 4 | Y65: 4 | Z65: 0.718 | AA65: 1 | AC65: coche | AD65: 4 | AE65: 4 | AF65: 0.718 | AG65: 1 | AH65: 4.780962588 | AI65: 3.780962588
A66: nivel | B66: 1 | C66: 1 | D66: 1 | E66: 1 | F66: 2 | G66: 5 | H66: 4 | I66: 0.332 | J66: 1 | W66: nivel | X66: 5 | Y66: 4 | Z66: 0.332 | AA66: 1 | AC66: nivel | AD66: 5 | AE66: 4 | AF66: 0.332 | AG66: 1 | AH66: 5.930121251 | AI66: 4.930121251
A67: buena | B67: 2 | C67: 3 | D67: 1 | E67: 1 | F67: 1 | G67: 5 | H67: 18 | I67: 0.577 | J67: 1 | W67: buena | X67: 5 | Y67: 18 | Z67: 0.577 | AA67: 1 | AC67: buena | AD67: 5 | AE67: 18 | AF67: 0.577 | AG67: 1 | AH67: 4.872457544 | AI67: 3.872457544
A68: gran | B68: 2 | C68: 2 | D68: 1 | E68: 1 | F68: 2 | G68: 4 | H68: 9 | I68: 0.871 | J68: 1 | W68: gran | X68: 4 | Y68: 9 | Z68: 0.871 | AA68: 1 | AC68: gran | AD68: 4 | AE68: 9 | AF68: 0.871 | AG68: 1 | AH68: 4.247896997 | AI68: 3.247896997
A69: punto | B69: 1 | C69: 1 | D69: 1 | E69: 1 | F69: 2 | G69: 5 | H69: 13 | I69: 0.635 | J69: 1 | W69: punto | X69: 5 | Y69: 13 | Z69: 0.635 | AA69: 1 | AC69: punto | AD69: 5 | AE69: 13 | AF69: 0.635 | AG69: 1 | AH69: 4.905151767 | AI69: 3.905151767
A70: solo | B70: 2 | C70: 1 | D70: 1 | E70: 1 | F70: 1 | G70: 4 | H70: 7 | I70: 0.757 | J70: 1 | W70: solo | X70: 4 | Y70: 7 | Z70: 0.757 | AA70: 1 | AC70: solo | AD70: 4 | AE70: 7 | AF70: 0.757 | AG70: 1 | AH70: 4.586334647 | AI70: 3.586334647
A71: agua | B71: 1 | C71: 3 | D71: 1 | E71: 1 | F71: 2 | G71: 4 | H71: 12 | I71: 0.874 | J71: 1 | W71: agua | X71: 4 | Y71: 12 | Z71: 0.874 | AA71: 1 | AC71: agua | AD71: 4 | AE71: 12 | AF71: 0.874 | AG71: 1 | AH71: 4.138640474 | AI71: 3.138640474
A72: libro | B72: 1 | C72: 1 | D72: 1 | E72: 1 | F72: 2 | G72: 5 | H72: 5 | I72: 0.682 | J72: 1 | W72: libro | X72: 5 | Y72: 5 | Z72: 0.682 | AA72: 1 | AC72: libro | AD72: 5 | AE72: 5 | AF72: 0.682 | AG72: 1 | AH72: 5.066073938 | AI72: 4.066073938
A73: pesetas | B73: 1 | C73: 3 | D73: 3 | E73: 1 | F73: 3 | G73: 7 | H73: 2 | I73: 0.419 | J73: 1 | W73: pesetas | X73: 7 | Y73: 2 | Z73: 0.419 | AA73: 1 | AC73: pesetas | AD73: 7 | AE73: 2 | AF73: 0.419 | AG73: 1 | AH73: 6.259476503 | AI73: 5.259476503
A74: programa | B74: 1 | C74: 1 | D74: 1 | E74: 1 | F74: 3 | G74: 8 | H74: 6 | I74: 0.772 | J74: 1 | W74: programa | X74: 8 | Y74: 6 | Z74: 0.772 | AA74: 1 | AC74: programa | AD74: 8 | AE74: 6 | AF74: 0.772 | AG74: 1 | AH74: 5.519960011 | AI74: 4.519960011
A75: virus | B75: 1 | C75: 1 | D75: 2 | E75: 1 | F75: 2 | G75: 5 | H75: 2 | I75: 0 | J75: 1 | W75: virus | X75: 5 | Y75: 2 | Z75: 0 | AA75: 1 | AC75: virus | AD75: 5 | AE75: 2 | AF75: 0 | AG75: 1 | AH75: 6.785530267 | AI75: 5.785530267
A76: grandes | B76: 2 | C76: 2 | D76: 3 | E76: 1 | F76: 2 | G76: 7 | H76: 9 | I76: 0.871 | J76: 1 | W76: grandes | X76: 7 | Y76: 9 | Z76: 0.871 | AA76: 1 | AC76: grandes | AD76: 7 | AE76: 9 | AF76: 0.871 | AG76: 1 | AH76: 4.949259029 | AI76: 3.949259029
A77: montón | B77: 1 | C77: 1 | D77: 1 | E77: 2 | F77: 2 | G77: 6 | H77: 2 | I77: 0.576 | J77: 1 | W77: montón | X77: 6 | Y77: 2 | Z77: 0.576 | AA77: 1 | AC77: montón | AD77: 6 | AE77: 2 | AF77: 0.576 | AG77: 1 | AH77: 5.653374918 | AI77: 4.653374918
A78: lunes | B78: 1 | C78: 1 | D78: 2 | E78: 1 | F78: 2 | G78: 5 | H78: 1 | I78: 0.537 | J78: 1 | W78: lunes | X78: 5 | Y78: 1 | Z78: 0.537 | AA78: 1 | AC78: lunes | AD78: 5 | AE78: 1 | AF78: 0.537 | AG78: 1 | AH78: 5.54612069 | AI78: 4.54612069
A79: sol | B79: 1 | C79: 1 | D79: 1 | E79: 1 | F79: 1 | G79: 3 | H79: 1 | I79: 0.65 | J79: 1 | W79: sol | X79: 3 | Y79: 1 | Z79: 0.65 | AA79: 1 | AC79: sol | AD79: 3 | AE79: 1 | AF79: 0.65 | AG79: 1 | AH79: 4.810574605 | AI79: 3.810574605
A80: sábado | B80: 1 | C80: 1 | D80: 1 | E80: 1 | F80: 3 | G80: 6 | H80: 1 | I80: 0.693 | J80: 1 | W80: sábado | X80: 6 | Y80: 1 | Z80: 0.693 | AA80: 1 | AC80: sábado | AD80: 6 | AE80: 1 | AF80: 0.693 | AG80: 1 | AH80: 5.409965221 | AI80: 4.409965221
A81: amigos | B81: 1 | C81: 1 | D81: 3 | E81: 1 | F81: 3 | G81: 6 | H81: 7 | I81: 0.781 | J81: 1 | W81: amigos | X81: 6 | Y81: 7 | Z81: 0.781 | AA81: 1 | AC81: amigos | AD81: 6 | AE81: 7 | AF81: 0.781 | AG81: 1 | AH81: 4.996995056 | AI81: 3.996995056
A82: número | B82: 1 | C82: 1 | D82: 1 | E82: 1 | F82: 3 | G82: 6 | H82: 9 | I82: 0.669 | J82: 1 | W82: número | X82: 6 | Y82: 9 | Z82: 0.669 | AA82: 1 | AC82: número | AD82: 6 | AE82: 9 | AF82: 0.669 | AG82: 1 | AH82: 5.194500199 | AI82: 4.194500199
A83: partido | B83: 1 | C83: 1 | D83: 1 | E83: 2 | F83: 3 | G83: 7 | H83: 8 | I83: 0.455 | J83: 1 | W83: partido | X83: 7 | Y83: 8 | Z83: 0.455 | AA83: 1 | AC83: partido | AD83: 7 | AE83: 8 | AF83: 0.455 | AG83: 1 | AH83: 5.969820609 | AI83: 4.969820609
A84: mal | B84: 2 | C84: 1 | D84: 1 | E84: 1 | F84: 1 | G84: 3 | H84: 9 | I84: 0.656 | J84: 1 | W84: mal | X84: 3 | Y84: 9 | Z84: 0.656 | AA84: 1 | AC84: mal | AD84: 3 | AE84: 9 | AF84: 0.656 | AG84: 1 | AH84: 4.523966735 | AI84: 3.523966735
A85: teléfono | B85: 1 | C85: 1 | D85: 1 | E85: 1 | F85: 4 | G85: 8 | H85: 1 | I85: 0.454 | J85: 1 | W85: teléfono | X85: 8 | Y85: 1 | Z85: 0.454 | AA85: 1 | AC85: teléfono | AD85: 8 | AE85: 1 | AF85: 0.454 | AG85: 1 | AH85: 6.44431127 | AI85: 5.44431127
A86: historia | B86: 1 | C86: 3 | D86: 1 | E86: 1 | F86: 3 | G86: 7 | H86: 11 | I86: 0.634 | J86: 1 | W86: historia | X86: 7 | Y86: 11 | Z86: 0.634 | AA86: 1 | AC86: historia | AD86: 7 | AE86: 11 | AF86: 0.634 | AG86: 1 | AH86: 5.443192708 | AI86: 4.443192708
A87: meses | B87: 1 | C87: 1 | D87: 3 | E87: 1 | F87: 1 | G87: 5 | H87: 4 | I87: 0.801 | J87: 1 | W87: meses | X87: 5 | Y87: 4 | Z87: 0.801 | AA87: 1 | AC87: meses | AD87: 5 | AE87: 4 | AF87: 0.801 | AG87: 1 | AH87: 4.817921384 | AI87: 3.817921384
A88: social | B88: 2 | C88: 2 | D88: 1 | E88: 2 | F88: 2 | G88: 6 | H88: 5 | I88: 0.632 | J88: 1 | W88: social | X88: 6 | Y88: 5 | Z88: 0.632 | AA88: 1 | AC88: social | AD88: 6 | AE88: 5 | AF88: 0.632 | AG88: 1 | AH88: 5.418432696 | AI88: 4.418432696
A89: estudio | B89: 1 | C89: 1 | D89: 1 | E89: 1 | F89: 3 | G89: 7 | H89: 9 | I89: 0.493 | J89: 1 | W89: estudio | X89: 7 | Y89: 9 | Z89: 0.493 | AA89: 1 | AC89: estudio | AD89: 7 | AE89: 9 | AF89: 0.493 | AG89: 1 | AH89: 5.845658922 | AI89: 4.845658922
A90: difícil | B90: 2 | C90: 2 | D90: 1 | E90: 1 | F90: 3 | G90: 7 | H90: 4 | I90: 0.882 | J90: 1 | W90: difícil | X90: 7 | Y90: 4 | Z90: 0.882 | AA90: 1 | AC90: difícil | AD90: 7 | AE90: 4 | AF90: 0.882 | AG90: 1 | AH90: 5.093410381 | AI90: 4.093410381
A91: domingo | B91: 1 | C91: 1 | D91: 1 | E91: 1 | F91: 3 | G91: 7 | H91: 2 | I91: 0.61 | J91: 1 | W91: domingo | X91: 7 | Y91: 2 | Z91: 0.61 | AA91: 1 | AC91: domingo | AD91: 7 | AE91: 2 | AF91: 0.61 | AG91: 1 | AH91: 5.8065337 | AI91: 4.8065337
A92: grande | B92: 2 | C92: 2 | D92: 1 | E92: 1 | F92: 2 | G92: 6 | H92: 9 | I92: 0.871 | J92: 1 | W92: grande | X92: 6 | Y92: 9 | Z92: 0.871 | AA92: 1 | AC92: grande | AD92: 6 | AE92: 9 | AF92: 0.871 | AG92: 1 | AH92: 4.715471685 | AI92: 3.715471685
A93: posible | B93: 2 | C93: 2 | D93: 1 | E93: 2 | F93: 3 | G93: 7 | H93: 3 | I93: 0.878 | J93: 1 | W93: posible | X93: 7 | Y93: 3 | Z93: 0.878 | AA93: 1 | AC93: posible | AD93: 7 | AE93: 3 | AF93: 0.878 | AG93: 1 | AH93: 5.136943507 | AI93: 4.136943507
A94: productos | B94: 1 | C94: 1 | D94: 3 | E94: 1 | F94: 3 | G94: 9 | H94: 4 | I94: 0.54 | J94: 1 | W94: productos | X94: 9 | Y94: 4 | Z94: 0.54 | AA94: 1 | AC94: productos | AD94: 9 | AE94: 4 | AF94: 0.54 | AG94: 1 | AH94: 6.372013543 | AI94: 5.372013543
A95: puerta | B95: 1 | C95: 3 | D95: 1 | E95: 1 | F95: 2 | G95: 6 | H95: 4 | I95: 0.731 | J95: 1 | W95: puerta | X95: 6 | Y95: 4 | Z95: 0.731 | AA95: 1 | AC95: puerta | AD95: 6 | AE95: 4 | AF95: 0.731 | AG95: 1 | AH95: 5.217708708 | AI95: 4.217708708
A96: hermano | B96: 1 | C96: 1 | D96: 1 | E96: 1 | F96: 3 | G96: 6 | H96: 7 | I96: 0.594 | J96: 1 | W96: hermano | X96: 6 | Y96: 7 | Z96: 0.594 | AA96: 1 | AC96: hermano | AD96: 6 | AE96: 7 | AF96: 0.594 | AG96: 1 | AH96: 5.440452146 | AI96: 4.440452146
A97: kilómetros | B97: 1 | C97: 1 | D97: 3 | E97: 1 | F97: 4 | G97: 10 | H97: 1 | I97: 0.807 | J97: 1 | W97: kilómetros | X97: 10 | Y97: 1 | Z97: 0.807 | AA97: 1 | AC97: kilómetros | AD97: 10 | AE97: 1 | AF97: 0.807 | AG97: 1 | AH97: 6.074771772 | AI97: 5.074771772
A98: lado | B98: 1 | C98: 1 | D98: 1 | E98: 1 | F98: 2 | G98: 4 | H98: 11 | I98: 0.873 | J98: 1 | W98: lado | X98: 4 | Y98: 11 | Z98: 0.873 | AA98: 1 | AC98: lado | AD98: 4 | AE98: 11 | AF98: 0.873 | AG98: 1 | AH98: 4.175059315 | AI98: 3.175059315
A99: piso | B99: 1 | C99: 1 | D99: 1 | E99: 1 | F99: 2 | G99: 4 | H99: 6 | I99: 0.495 | J99: 1 | W99: piso | X99: 4 | Y99: 6 | Z99: 0.495 | AA99: 1 | AC99: piso | AD99: 4 | AE99: 6 | AF99: 0.495 | AG99: 1 | AH99: 5.241696271 | AI99: 4.241696271
A100: buen | B100: 2 | C100: 1 | D100: 1 | E100: 1 | F100: 1 | G100: 4 | H100: 18 | I100: 0.577 | J100: 1 | W100: buen | X100: 4 | Y100: 18 | Z100: 0.577 | AA100: 1 | AC100: buen | AD100: 4 | AE100: 18 | AF100: 0.577 | AG100: 1 | AH100: 4.6386702 | AI100: 3.6386702
A101: calle | B101: 1 | C101: 3 | D101: 1 | E101: 1 | F101: 2 | G101: 4 | H101: 7 | I101: 0.698 | J101: 1 | W101: calle | X101: 4 | Y101: 7 | Z101: 0.698 | AA101: 1 | AC101: calle | AD101: 4 | AE101: 7 | AF101: 0.698 | AG101: 1 | AH101: 4.726248916 | AI101: 3.726248916
A102: hermana | B102: 1 | C102: 3 | D102: 1 | E102: 1 | F102: 3 | G102: 6 | H102: 7 | I102: 0.594 | J102: 1 | W102: hermana | X102: 6 | Y102: 7 | Z102: 0.594 | AA102: 1 | AC102: hermana | AD102: 6 | AE102: 7 | AF102: 0.594 | AG102: 1 | AH102: 5.440452146 | AI102: 4.440452146
A103: hombre | B103: 1 | C103: 1 | D103: 1 | E103: 1 | F103: 2 | G103: 5 | H103: 12 | I103: 0.767 | J103: 1 | W103: hombre | X103: 5 | Y103: 12 | Z103: 0.767 | AA103: 1 | AC103: hombre | AD103: 5 | AE103: 12 | AF103: 0.767 | AG103: 1 | AH103: 4.626170645 | AI103: 3.626170645
A104: minutos | B104: 1 | C104: 1 | D104: 3 | E104: 1 | F104: 3 | G104: 7 | H104: 3 | I104: 0.708 | J104: 1 | W104: minutos | X104: 7 | Y104: 3 | Z104: 0.708 | AA104: 1 | AC104: minutos | AD104: 7 | AE104: 3 | AF104: 0.708 | AG104: 1 | AH104: 5.540086315 | AI104: 4.540086315
A105: final | B105: 1 | C105: 1 | D105: 1 | E105: 2 | F105: 2 | G105: 5 | H105: 7 | I105: 0.789 | J105: 2 | W105: final | X105: 5 | Y105: 7 | Z105: 0.789 | AA105: 2 | AC105: final | AD105: 5 | AE105: 7 | AF105: 0.789 | AG105: 2 | AH105: 4.744236286 | AI105: 2.744236286
A106: información | B106: 1 | C106: 3 | D106: 1 | E106: 2 | F106: 4 | G106: 11 | H106: 7 | I106: 0.206 | J106: 2 | W106: información | X106: 11 | Y106: 7 | Z106: 0.206 | AA106: 2 | AC106: información | AD106: 11 | AE106: 7 | AF106: 0.206 | AG106: 2 | AH106: 7.529503042 | AI106: 5.529503042
A107: medio | B107: 1 | C107: 1 | D107: 1 | E107: 1 | F107: 1 | G107: 5 | H107: 16 | I107: 0.892 | J107: 2 | W107: medio | X107: 5 | Y107: 16 | Z107: 0.892 | AA107: 2 | AC107: medio | AD107: 5 | AE107: 16 | AF107: 0.892 | AG107: 2 | AH107: 4.193552459 | AI107: 2.193552459
A108: viernes | B108: 1 | C108: 1 | D108: 2 | E108: 1 | F108: 2 | G108: 7 | H108: 1 | I108: 0.381 | J108: 2 | W108: viernes | X108: 7 | Y108: 1 | Z108: 0.381 | AA108: 2 | AC108: viernes | AD108: 7 | AE108: 1 | AF108: 0.381 | AG108: 2 | AH108: 6.383638191 | AI108: 4.383638191
A109: hija | B109: 1 | C109: 3 | D109: 1 | E109: 1 | F109: 2 | G109: 3 | H109: 7 | I109: 0.517 | J109: 2 | W109: hija | X109: 3 | Y109: 7 | Z109: 0.517 | AA109: 2 | AC109: hija | AD109: 3 | AE109: 7 | AF109: 0.517 | AG109: 2 | AH109: 4.921690092 | AI109: 2.921690092
A110: español | B110: 2 | C110: 1 | D110: 1 | E110: 2 | F110: 3 | G110: 7 | H110: 1 | I110: 0.727 | J110: 2 | W110: español | X110: 7 | Y110: 1 | Z110: 0.727 | AA110: 2 | AC110: español | AD110: 7 | AE110: 1 | AF110: 0.727 | AG110: 2 | AH110: 5.563124003 | AI110: 3.563124003
A111: fuerte | B111: 2 | C111: 2 | D111: 1 | E111: 1 | F111: 2 | G111: 6 | H111: 16 | I111: 0.78 | J111: 2 | W111: fuerte | X111: 6 | Y111: 16 | Z111: 0.78 | AA111: 2 | AC111: fuerte | AD111: 6 | AE111: 16 | AF111: 0.78 | AG111: 2 | AH111: 4.692939771 | AI111: 2.692939771
A112: mes | B112: 1 | C112: 1 | D112: 1 | E112: 1 | F112: 1 | G112: 3 | H112: 4 | I112: 0.801 | J112: 2 | W112: mes | X112: 3 | Y112: 4 | Z112: 0.801 | AA112: 2 | AC112: mes | AD112: 3 | AE112: 4 | AF112: 0.801 | AG112: 2 | AH112: 4.350346696 | AI112: 2.350346696
A113: precios | B113: 1 | C113: 1 | D113: 3 | E113: 1 | F113: 2 | G113: 7 | H113: 5 | I113: 0.336 | J113: 2 | W113: precios | X113: 7 | Y113: 5 | Z113: 0.336 | AA113: 2 | AC113: precios | AD113: 7 | AE113: 5 | AF113: 0.336 | AG113: 2 | AH113: 6.354162813 | AI113: 4.354162813
A114: señora | B114: 1 | C114: 3 | D114: 1 | E114: 1 | F114: 3 | G114: 6 | H114: 6 | I114: 0.291 | J114: 2 | W114: señora | X114: 6 | Y114: 6 | Z114: 0.291 | AA114: 2 | AC114: señora | AD114: 6 | AE114: 6 | AF114: 0.291 | AG114: 2 | AH114: 6.19304233 | AI114: 4.19304233
A115: cabeza | B115: 1 | C115: 3 | D115: 1 | E115: 1 | F115: 3 | G115: 6 | H115: 12 | I115: 0.721 | J115: 2 | W115: cabeza | X115: 6 | Y115: 12 | Z115: 0.721 | AA115: 2 | AC115: cabeza | AD115: 6 | AE115: 12 | AF115: 0.721 | AG115: 2 | AH115: 4.969043691 | AI115: 2.969043691
A116: estado | B116: 1 | C116: 1 | D116: 1 | E116: 2 | F116: 3 | G116: 6 | H116: 6 | I116: 0.653 | J116: 2 | W116: estado | X116: 6 | Y116: 6 | Z116: 0.653 | AA116: 2 | AC116: estado | AD116: 6 | AE116: 6 | AF116: 0.653 | AG116: 2 | AH116: 5.334585289 | AI116: 3.334585289
A117: mamá | B117: 1 | C117: 3 | D117: 1 | E117: 1 | F117: 2 | G117: 4 | H117: 1 | I117: 0.148 | J117: 2 | W117: mamá | X117: 4 | Y117: 1 | Z117: 0.148 | AA117: 2 | AC117: mamá | AD117: 4 | AE117: 1 | AF117: 0.148 | AG117: 2 | AH117: 6.234818949 | AI117: 4.234818949
A118: resto | B118: 1 | C118: 1 | D118: 1 | E118: 1 | F118: 2 | G118: 5 | H118: 5 | I118: 0.846 | J118: 2 | W118: resto | X118: 5 | Y118: 5 | Z118: 0.846 | AA118: 2 | AC118: resto | AD118: 5 | AE118: 5 | AF118: 0.846 | AG118: 2 | AH118: 4.677159699 | AI118: 2.677159699
A119: servicio | B119: 1 | C119: 1 | D119: 1 | E119: 1 | F119: 3 | G119: 8 | H119: 12 | I119: 0.692 | J119: 2 | W119: servicio | X119: 8 | Y119: 12 | Z119: 0.692 | AA119: 2 | AC119: servicio | AD119: 8 | AE119: 12 | AF119: 0.692 | AG119: 2 | AH119: 5.505389799 | AI119: 3.505389799
A120: chicos | B120: 1 | C120: 1 | D120: 3 | E120: 1 | F120: 2 | G120: 5 | H120: 4 | I120: 0.319 | J120: 2 | W120: chicos | X120: 5 | Y120: 4 | Z120: 0.319 | AA120: 2 | AC120: chicos | AD120: 5 | AE120: 4 | AF120: 0.319 | AG120: 2 | AH120: 5.960949819 | AI120: 3.960949819
A121: ciencia | B121: 1 | C121: 3 | D121: 1 | E121: 1 | F121: 2 | G121: 7 | H121: 3 | I121: 0.46 | J121: 2 | W121: ciencia | X121: 7 | Y121: 3 | Z121: 0.46 | AA121: 2 | AC121: ciencia | AD121: 7 | AE121: 3 | AF121: 0.46 | AG121: 2 | AH121: 6.128200531 | AI121: 4.128200531
A122: ordenador | B122: 1 | C122: 1 | D122: 1 | E122: 2 | F122: 4 | G122: 9 | H122: 1 | I122: 0 | J122: 2 | W122: ordenador | X122: 9 | Y122: 1 | Z122: 0 | AA122: 2 | AC122: ordenador | AD122: 9 | AE122: 1 | AF122: 0 | AG122: 2 | AH122: 7.754727056 | AI122: 5.754727056
A123: rato | B123: 1 | C123: 1 | D123: 1 | E123: 1 | F123: 2 | G123: 4 | H123: 2 | I123: 0.694 | J123: 2 | W123: rato | X123: 4 | Y123: 2 | Z123: 0.694 | AA123: 2 | AC123: rato | AD123: 4 | AE123: 2 | AF123: 0.694 | AG123: 2 | AH123: 4.905971692 | AI123: 2.905971692
A124: serie | B124: 1 | C124: 3 | D124: 1 | E124: 1 | F124: 2 | G124: 5 | H124: 5 | I124: 0.35 | J124: 2 | W124: serie | X124: 5 | Y124: 5 | Z124: 0.35 | AA124: 2 | AC124: serie | AD124: 5 | AE124: 5 | AF124: 0.35 | AG124: 2 | AH124: 5.853388129 | AI124: 3.853388129
A125: centro | B125: 1 | C125: 1 | D125: 1 | E125: 1 | F125: 2 | G125: 6 | H125: 11 | I125: 0.544 | J125: 2 | W125: centro | X125: 6 | Y125: 11 | Z125: 0.544 | AA125: 2 | AC125: centro | AD125: 6 | AE125: 11 | AF125: 0.544 | AG125: 2 | AH125: 5.42283391 | AI125: 3.42283391
A126: hijo | B126: 1 | C126: 1 | D126: 1 | E126: 1 | F126: 2 | G126: 3 | H126: 7 | I126: 0.517 | J126: 2 | W126: hijo | X126: 3 | Y126: 7 | Z126: 0.517 | AA126: 2 | AC126: hijo | AD126: 3 | AE126: 7 | AF126: 0.517 | AG126: 2 | AH126: 4.921690092 | AI126: 2.921690092
A127: camino | B127: 1 | C127: 1 | D127: 1 | E127: 1 | F127: 3 | G127: 6 | H127: 3 | I127: 0.802 | J127: 2 | W127: camino | X127: 6 | Y127: 3 | Z127: 0.802 | AA127: 2 | AC127: camino | AD127: 6 | AE127: 3 | AF127: 0.802 | AG127: 2 | AH127: 5.083384712 | AI127: 3.083384712
A128: energía | B128: 1 | C128: 3 | D128: 1 | E128: 1 | F128: 4 | G128: 7 | H128: 2 | I128: 0.803 | J128: 2 | W128: energía | X128: 7 | Y128: 2 | Z128: 0.803 | AA128: 2 | AC128: energía | AD128: 7 | AE128: 2 | AF128: 0.803 | AG128: 2 | AH128: 5.348848041 | AI128: 3.348848041
A129: familia | B129: 1 | C129: 3 | D129: 1 | E129: 1 | F129: 3 | G129: 7 | H129: 7 | I129: 0.912 | J129: 2 | W129: familia | X129: 7 | Y129: 7 | Z129: 0.912 | AA129: 2 | AC129: familia | AD129: 7 | AE129: 7 | AF129: 0.912 | AG129: 2 | AH129: 4.920125295 | AI129: 2.920125295
A130: leche | B130: 1 | C130: 3 | D130: 1 | E130: 1 | F130: 2 | G130: 4 | H130: 2 | I130: 0.663 | J130: 2 | W130: leche | X130: 4 | Y130: 2 | Z130: 0.663 | AA130: 2 | AC130: leche | AD130: 4 | AE130: 2 | AF130: 0.663 | AG130: 2 | AH130: 4.979485969 | AI130: 2.979485969
A131: lenguaje | B131: 1 | C131: 1 | D131: 1 | E131: 2 | F131: 3 | G131: 8 | H131: 3 | I131: 0.628 | J131: 2 | W131: lenguaje | X131: 8 | Y131: 3 | Z131: 0.628 | AA131: 2 | AC131: lenguaje | AD131: 8 | AE131: 3 | AF131: 0.628 | AG131: 2 | AH131: 5.963587922 | AI131: 3.963587922
A132: liberalismo | B132: 1 | C132: 1 | D132: 1 | E132: 2 | F132: 5 | G132: 11 | H132: 1 | I132: 0.383 | J132: 2 | W132: liberalismo | X132: 11 | Y132: 1 | Z132: 0.383 | AA132: 2 | AC132: liberalismo | AD132: 11 | AE132: 1 | AF132: 0.383 | AG132: 2 | AH132: 7.31404471 | AI132: 5.31404471
A133: sistema | B133: 1 | C133: 1 | D133: 1 | E133: 1 | F133: 3 | G133: 7 | H133: 6 | I133: 0.495 | J133: 2 | W133: sistema | X133: 7 | Y133: 6 | Z133: 0.495 | AA133: 2 | AC133: sistema | AD133: 7 | AE133: 6 | AF133: 0.495 | AG133: 2 | AH133: 5.943058303 | AI133: 3.943058303
A134: tardes | B134: 1 | C134: 3 | D134: 3 | E134: 1 | F134: 2 | G134: 6 | H134: 4 | I134: 0.724 | J134: 2 | W134: tardes | X134: 6 | Y134: 4 | Z134: 0.724 | AA134: 2 | AC134: tardes | AD134: 6 | AE134: 4 | AF134: 0.724 | AG134: 2 | AH134: 5.234308706 | AI134: 3.234308706
A135: único | B135: 2 | C135: 1 | D135: 1 | E135: 2 | F135: 2 | G135: 5 | H135: 2 | I135: 0.925 | J135: 2 | W135: único | X135: 5 | Y135: 2 | Z135: 0.925 | AA135: 2 | AC135: único | AD135: 5 | AE135: 2 | AF135: 0.925 | AG135: 2 | AH135: 4.591959102 | AI135: 2.591959102
A136: bonito | B136: 2 | C136: 1 | D136: 1 | E136: 1 | F136: 2 | G136: 6 | H136: 3 | I136: 0.47 | J136: 2 | W136: bonito | X136: 6 | Y136: 3 | Z136: 0.47 | AA136: 2 | AC136: bonito | AD136: 6 | AE136: 3 | AF136: 0.47 | AG136: 2 | AH136: 5.870698904 | AI136: 3.870698904
A137: comida | B137: 1 | C137: 3 | D137: 1 | E137: 2 | F137: 3 | G137: 6 | H137: 3 | I137: 0.687 | J137: 2 | W137: comida | X137: 6 | Y137: 3 | Z137: 0.687 | AA137: 2 | AC137: comida | AD137: 6 | AE137: 3 | AF137: 0.687 | AG137: 2 | AH137: 5.356098965 | AI137: 3.356098965
A138: don | B138: 1 | C138: 1 | D138: 1 | E138: 1 | F138: 1 | G138: 3 | H138: 1 | I138: 0.777 | J138: 2 | W138: don | X138: 3 | Y138: 1 | Z138: 0.777 | AA138: 2 | AC138: don | AD138: 3 | AE138: 1 | AF138: 0.777 | AG138: 2 | AH138: 4.509403213 | AI138: 2.509403213
A139: padres | B139: 1 | C139: 1 | D139: 3 | E139: 1 | F139: 2 | G139: 6 | H139: 9 | I139: 0.664 | J139: 2 | W139: padres | X139: 6 | Y139: 9 | Z139: 0.664 | AA139: 2 | AC139: padres | AD139: 6 | AE139: 9 | AF139: 0.664 | AG139: 2 | AH139: 5.206357341 | AI139: 3.206357341
A140: cocina | B140: 1 | C140: 3 | D140: 1 | E140: 1 | F140: 3 | G140: 6 | H140: 3 | I140: 0.712 | J140: 2 | W140: cocina | X140: 6 | Y140: 3 | Z140: 0.712 | AA140: 2 | AC140: cocina | AD140: 6 | AE140: 3 | AF140: 0.712 | AG140: 2 | AH140: 5.296813258 | AI140: 3.296813258
A141: países | B141: 1 | C141: 1 | D141: 3 | E141: 1 | F141: 2 | G141: 6 | H141: 4 | I141: 0.713 | J141: 2 | W141: países | X141: 6 | Y141: 4 | Z141: 0.713 | AA141: 2 | AC141: países | AD141: 6 | AE141: 4 | AF141: 0.713 | AG141: 2 | AH141: 5.260394417 | AI141: 3.260394417
A142: cara | B142: 1 | C142: 3 | D142: 1 | E142: 1 | F142: 2 | G142: 4 | H142: 6 | I142: 0.702 | J142: 2 | W142: cara | X142: 4 | Y142: 6 | Z142: 0.702 | AA142: 2 | AC142: cara | AD142: 4 | AE142: 6 | AF142: 0.702 | AG142: 2 | AH142: 4.750810615 | AI142: 2.750810615
A143: cuestión | B143: 1 | C143: 3 | D143: 1 | E143: 2 | F143: 2 | G143: 8 | H143: 3 | I143: 0.835 | J143: 2 | W143: cuestión | X143: 8 | Y143: 3 | Z143: 0.835 | AA143: 2 | AC143: cuestión | AD143: 8 | AE143: 3 | AF143: 0.835 | AG143: 2 | AH143: 5.472702267 | AI143: 3.472702267
A144: nuevo | B144: 2 | C144: 1 | D144: 1 | E144: 1 | F144: 1 | G144: 5 | H144: 5 | I144: 0.864 | J144: 2 | W144: nuevo | X144: 5 | Y144: 5 | Z144: 0.864 | AA144: 2 | AC144: nuevo | AD144: 5 | AE144: 5 | AF144: 0.864 | AG144: 2 | AH144: 4.634473989 | AI144: 2.634473989
A145: chaval | B145: 1 | C145: 1 | D145: 1 | E145: 1 | F145: 2 | G145: 5 | H145: 2 | I145: 0 | J145: 2 | W145: chaval | X145: 5 | Y145: 2 | Z145: 0 | AA145: 2 | AC145: chaval | AD145: 5 | AE145: 2 | AF145: 0 | AG145: 2 | AH145: 6.785530267 | AI145: 4.785530267
A146: empresa | B146: 1 | C146: 3 | D146: 1 | E146: 1 | F146: 3 | G146: 7 | H146: 3 | I146: 0.659 | J146: 2 | W146: empresa | X146: 7 | Y146: 3 | Z146: 0.659 | AA146: 2 | AC146: empresa | AD146: 7 | AE146: 3 | AF146: 0.659 | AG146: 2 | AH146: 5.656286302 | AI146: 3.656286302
A147: inglés | B147: 2 | C147: 1 | D147: 1 | E147: 1 | F147: 2 | G147: 6 | H147: 1 | I147: 0.673 | J147: 2 | W147: inglés | X147: 6 | Y147: 1 | Z147: 0.673 | AA147: 2 | AC147: inglés | AD147: 6 | AE147: 1 | AF147: 0.673 | AG147: 2 | AH147: 5.457393787 | AI147: 3.457393787
A148: amigo | B148: 1 | C148: 1 | D148: 1 | E148: 1 | F148: 3 | G148: 5 | H148: 7 | I148: 0.781 | J148: 2 | W148: amigo | X148: 5 | Y148: 7 | Z148: 0.781 | AA148: 2 | AC148: amigo | AD148: 5 | AE148: 7 | AF148: 0.781 | AG148: 2 | AH148: 4.763207712 | AI148: 2.763207712
A149: cine | B149: 1 | C149: 1 | D149: 1 | E149: 1 | F149: 2 | G149: 4 | H149: 2 | I149: 0.464 | J149: 2 | W149: cine | X149: 4 | Y149: 2 | Z149: 0.464 | AA149: 2 | AC149: cine | AD149: 4 | AE149: 2 | AF149: 0.464 | AG149: 2 | AH149: 5.451400198 | AI149: 3.451400198
A150: función | B150: 1 | C150: 3 | D150: 1 | E150: 2 | F150: 2 | G150: 7 | H150: 7 | I150: 0.471 | J150: 2 | W150: función | X150: 7 | Y150: 7 | Z150: 0.471 | AA150: 2 | AC150: función | AD150: 7 | AE150: 7 | AF150: 0.471 | AG150: 2 | AH150: 5.965925169 | AI150: 3.965925169
A151: juntos | B151: 2 | C151: 1 | D151: 3 | E151: 1 | F151: 1 | G151: 6 | H151: 2 | I151: 0.815 | J151: 2 | W151: juntos | X151: 6 | Y151: 2 | Z151: 0.815 | AA151: 2 | AC151: juntos | AD151: 6 | AE151: 2 | AF151: 0.815 | AG151: 2 | AH151: 5.086603557 | AI151: 3.086603557
A152: plan | B152: 1 | C152: 1 | D152: 1 | E152: 1 | F152: 1 | G152: 4 | H152: 8 | I152: 0.736 | J152: 2 | W152: plan | X152: 4 | Y152: 8 | Z152: 0.736 | AA152: 2 | AC152: plan | AD152: 4 | AE152: 8 | AF152: 0.736 | AG152: 2 | AH152: 4.602087228 | AI152: 2.602087228
A153: policía | B153: 1 | C153: 2 | D153: 1 | E153: 1 | F153: 4 | G153: 7 | H153: 1 | I153: 0.728 | J153: 2 | W153: policía | X153: 7 | Y153: 1 | Z153: 0.728 | AA153: 2 | AC153: policía | AD153: 7 | AE153: 1 | AF153: 0.728 | AG153: 2 | AH153: 5.560752575 | AI153: 3.560752575
A154: pregunta | B154: 1 | C154: 3 | D154: 1 | E154: 1 | F154: 3 | G154: 8 | H154: 1 | I154: 0.735 | J154: 2 | W154: pregunta | X154: 8 | Y154: 1 | Z154: 0.735 | AA154: 2 | AC154: pregunta | AD154: 8 | AE154: 1 | AF154: 0.735 | AG154: 2 | AH154: 5.777939921 | AI154: 3.777939921
A155: vista | B155: 1 | C155: 3 | D155: 1 | E155: 2 | F155: 2 | G155: 5 | H155: 8 | I155: 0.895 | J155: 2 | W155: vista | X155: 5 | Y155: 8 | Z155: 0.895 | AA155: 2 | AC155: vista | AD155: 5 | AE155: 8 | AF155: 0.895 | AG155: 2 | AH155: 4.458817475 | AI155: 2.458817475
A156: alumnos | B156: 1 | C156: 1 | D156: 3 | E156: 1 | F156: 2 | G156: 7 | H156: 2 | I156: 0.628 | J156: 2 | W156: alumnos | X156: 7 | Y156: 2 | Z156: 0.628 | AA156: 2 | AC156: alumnos | AD156: 7 | AE156: 2 | AF156: 0.628 | AG156: 2 | AH156: 5.763847991 | AI156: 3.763847991
A157: grupos | B157: 1 | C157: 1 | D157: 3 | E157: 1 | F157: 2 | G157: 6 | H157: 9 | I157: 0.377 | J157: 2 | W157: grupos | X157: 6 | Y157: 9 | Z157: 0.377 | AA157: 2 | AC157: grupos | AD157: 6 | AE157: 9 | AF157: 0.377 | AG157: 2 | AH157: 5.886957259 | AI157: 3.886957259
A158: habitación | B158: 1 | C158: 3 | D158: 1 | E158: 2 | F158: 4 | G158: 9 | H158: 4 | I158: 0.733 | J158: 2 | W158: habitación | X158: 9 | Y158: 4 | Z158: 0.733 | AA158: 2 | AC158: habitación | AD158: 9 | AE158: 4 | AF158: 0.733 | AG158: 2 | AH158: 5.914327884 | AI158: 3.914327884
A159: mesa | B159: 1 | C159: 3 | D159: 1 | E159: 1 | F159: 2 | G159: 4 | H159: 6 | I159: 0.507 | J159: 2 | W159: mesa | X159: 4 | Y159: 6 | Z159: 0.507 | AA159: 2 | AC159: mesa | AD159: 4 | AE159: 6 | AF159: 0.507 | AG159: 2 | AH159: 5.213239131 | AI159: 3.213239131
A160: palabras | B160: 1 | C160: 3 | D160: 3 | E160: 1 | F160: 3 | G160: 8 | H160: 7 | I160: 0.918 | J160: 2 | W160: palabras | X160: 8 | Y160: 7 | Z160: 0.918 | AA160: 2 | AC160: palabras | AD160: 8 | AE160: 7 | AF160: 0.918 | AG160: 2 | AH160: 5.139684069 | AI160: 3.139684069
A161: sociedad | B161: 1 | C161: 3 | D161: 1 | E161: 2 | F161: 3 | G161: 8 | H161: 6 | I161: 0.684 | J161: 2 | W161: sociedad | X161: 8 | Y161: 6 | Z161: 0.684 | AA161: 2 | AC161: sociedad | AD161: 8 | AE161: 6 | AF161: 0.684 | AG161: 2 | AH161: 5.728645701 | AI161: 3.728645701
A162: cierto | B162: 2 | C162: 1 | D162: 1 | E162: 1 | F162: 1 | G162: 6 | H162: 5 | I162: 0.877 | J162: 2 | W162: cierto | X162: 6 | Y162: 5 | Z162: 0.877 | AA162: 2 | AC162: cierto | AD162: 6 | AE162: 5 | AF162: 0.877 | AG162: 2 | AH162: 4.837432766 | AI162: 2.837432766
A163: mujeres | B163: 1 | C163: 3 | D163: 3 | E163: 1 | F163: 2 | G163: 7 | H163: 5 | I163: 0.674 | J163: 2 | W163: mujeres | X163: 7 | Y163: 5 | Z163: 0.674 | AA163: 2 | AC163: mujeres | AD163: 7 | AE163: 5 | AF163: 0.674 | AG163: 2 | AH163: 5.552620052 | AI163: 3.552620052
A164: palabra | B164: 1 | C164: 3 | D164: 1 | E164: 1 | F164: 3 | G164: 7 | H164: 7 | I164: 0.918 | J164: 2 | W164: palabra | X164: 7 | Y164: 7 | Z164: 0.918 | AA164: 2 | AC164: palabra | AD164: 7 | AE164: 7 | AF164: 0.918 | AG164: 2 | AH164: 4.905896725 | AI164: 2.905896725
A165: película | B165: 1 | C165: 3 | D165: 1 | E165: 1 | F165: 4 | G165: 8 | H165: 3 | I165: 0 | J165: 2 | W165: película | X165: 8 | Y165: 3 | Z165: 0 | AA165: 2 | AC165: película | AD165: 8 | AE165: 3 | AF165: 0 | AG165: 2 | AH165: 7.452844887 | AI165: 5.452844887
A166: relación | B166: 1 | C166: 3 | D166: 1 | E166: 2 | F166: 3 | G166: 8 | H166: 8 | I166: 0.556 | J166: 2 | W166: relación | X166: 8 | Y166: 8 | Z166: 0.556 | AA166: 2 | AC166: relación | AD166: 8 | AE166: 8 | AF166: 0.556 | AG166: 2 | AH166: 5.964093696 | AI166: 3.964093696
A167: equipo | B167: 1 | C167: 1 | D167: 1 | E167: 1 | F167: 3 | G167: 5 | H167: 3 | I167: 0 | J167: 2 | W167: equipo | X167: 5 | Y167: 3 | Z167: 0 | AA167: 2 | AC167: equipo | AD167: 5 | AE167: 3 | AF167: 0 | AG167: 2 | AH167: 6.751482855 | AI167: 4.751482855
A168: mujer | B168: 1 | C168: 3 | D168: 1 | E168: 1 | F168: 2 | G168: 5 | H168: 5 | I168: 0.674 | J168: 2 | W168: mujer | X168: 5 | Y168: 5 | Z168: 0.674 | AA168: 2 | AC168: mujer | AD168: 5 | AE168: 5 | AF168: 0.674 | AG168: 2 | AH168: 5.085045364 | AI168: 3.085045364
A169: presidente | B169: 1 | C169: 1 | D169: 1 | E169: 2 | F169: 3 | G169: 10 | H169: 3 | I169: 0.624 | J169: 2 | W169: presidente | X169: 10 | Y169: 3 | Z169: 0.624 | AA169: 2 | AC169: presidente | AD169: 10 | AE169: 3 | AF169: 0.624 | AG169: 2 | AH169: 6.440648324 | AI169: 4.440648324
A170: base | B170: 1 | C170: 3 | D170: 1 | E170: 1 | F170: 2 | G170: 4 | H170: 6 | I170: 0.567 | J170: 2 | W170: base | X170: 4 | Y170: 6 | Z170: 0.567 | AA170: 2 | AC170: base | AD170: 4 | AE170: 6 | AF170: 0.567 | AG170: 2 | AH170: 5.070953434 | AI170: 3.070953434
A171: desarrollo | B171: 1 | C171: 1 | D171: 1 | E171: 1 | F171: 4 | G171: 8 | H171: 5 | I171: 0.468 | J171: 2 | W171: desarrollo | X171: 8 | Y171: 5 | Z171: 0.468 | AA171: 2 | AC171: desarrollo | AD171: 8 | AE171: 5 | AF171: 0.468 | AG171: 2 | AH171: 6.274921623 | AI171: 4.274921623
A172: interesante | B172: 2 | C172: 2 | D172: 1 | E172: 2 | F172: 5 | G172: 11 | H172: 1 | I172: 0.769 | J172: 2 | W172: interesante | X172: 11 | Y172: 1 | Z172: 0.769 | AA172: 2 | AC172: interesante | AD172: 11 | AE172: 1 | AF172: 0.769 | AG172: 2 | AH172: 6.398673391 | AI172: 4.398673391
A173: mayo | B173: 1 | C173: 1 | D173: 1 | E173: 1 | F173: 2 | G173: 4 | H173: 1 | I173: 0.745 | J173: 2 | W173: mayo | X173: 4 | Y173: 1 | Z173: 0.745 | AA173: 2 | AC173: mayo | AD173: 4 | AE173: 1 | AF173: 0.745 | AG173: 2 | AH173: 4.819076262 | AI173: 2.819076262
A174: miércoles | B174: 1 | C174: 1 | D174: 2 | E174: 1 | F174: 3 | G174: 9 | H174: 1 | I174: 0 | J174: 2 | W174: miércoles | X174: 9 | Y174: 1 | Z174: 0 | AA174: 2 | AC174: miércoles | AD174: 9 | AE174: 1 | AF174: 0 | AG174: 2 | AH174: 7.754727056 | AI174: 5.754727056
A175: noches | B175: 1 | C175: 3 | D175: 3 | E175: 1 | F175: 2 | G175: 5 | H175: 2 | I175: 0.554 | J175: 2 | W175: noches | X175: 5 | Y175: 2 | Z175: 0.554 | AA175: 2 | AC175: noches | AD175: 5 | AE175: 2 | AF175: 0.554 | AG175: 2 | AH175: 5.471758996 | AI175: 3.471758996
A176: peor | B176: 2 | C176: 2 | D176: 1 | E176: 1 | F176: 2 | G176: 4 | H176: 4 | I176: 0.534 | J176: 2 | W176: peor | X176: 4 | Y176: 4 | Z176: 0.534 | AA176: 2 | AC176: peor | AD176: 4 | AE176: 4 | AF176: 0.534 | AG176: 2 | AH176: 5.217305393 | AI176: 3.217305393
A177: verano | B177: 1 | C177: 1 | D177: 1 | E177: 1 | F177: 3 | G177: 6 | H177: 2 | I177: 0.687 | J177: 2 | W177: verano | X177: 6 | Y177: 2 | Z177: 0.687 | AA177: 2 | AC177: verano | AD177: 6 | AE177: 2 | AF177: 0.687 | AG177: 2 | AH177: 5.390146378 | AI177: 3.390146378
A178: curso | B178: 1 | C178: 1 | D178: 1 | E178: 1 | F178: 2 | G178: 5 | H178: 5 | I178: 0.632 | J178: 2 | W178: curso | X178: 5 | Y178: 5 | Z178: 0.632 | AA178: 2 | AC178: curso | AD178: 5 | AE178: 5 | AF178: 0.632 | AG178: 2 | AH178: 5.184645352 | AI178: 3.184645352
A179: derechos | B179: 1 | C179: 1 | D179: 3 | E179: 1 | F179: 2 | G179: 7 | H179: 14 | I179: 0.653 | J179: 2 | W179: derechos | X179: 7 | Y179: 14 | Z179: 0.653 | AA179: 2 | AC179: derechos | AD179: 7 | AE179: 14 | AF179: 0.653 | AG179: 2 | AH179: 5.295993333 | AI179: 3.295993333
A180: era | B180: 1 | C180: 3 | D180: 1 | E180: 1 | F180: 2 | G180: 3 | H180: 3 | I180: 0.823 | J180: 2 | W180: era | X180: 3 | Y180: 3 | Z180: 0.823 | AA180: 2 | AC180: era | AD180: 3 | AE180: 3 | AF180: 0.823 | AG180: 2 | AH180: 4.332222686 | AI180: 2.332222686
A181: fiesta | B181: 1 | C181: 3 | D181: 1 | E181: 1 | F181: 2 | G181: 6 | H181: 7 | I181: 0.631 | J181: 2 | W181: fiesta | X181: 6 | Y181: 7 | Z181: 0.631 | AA181: 2 | AC181: fiesta | AD181: 6 | AE181: 7 | AF181: 0.631 | AG181: 2 | AH181: 5.352709299 | AI181: 3.352709299
A182: hecho | B182: 1 | C182: 1 | D182: 1 | E182: 1 | F182: 1 | G182: 3 | H182: 10 | I182: 0.711 | J182: 2 | W182: hecho | X182: 3 | Y182: 10 | Z182: 0.711 | AA182: 2 | AC182: hecho | AD182: 3 | AE182: 10 | AF182: 0.711 | AG182: 2 | AH182: 4.359490766 | AI182: 2.359490766
A183: lengua | B183: 1 | C183: 3 | D183: 1 | E183: 1 | F183: 2 | G183: 6 | H183: 6 | I183: 0.723 | J183: 2 | W183: lengua | X183: 6 | Y183: 6 | Z183: 0.723 | AA183: 2 | AC183: lengua | AD183: 6 | AE183: 6 | AF183: 0.723 | AG183: 2 | AH183: 5.168585309 | AI183: 3.168585309
A184: norte | B184: 1 | C184: 1 | D184: 1 | E184: 1 | F184: 2 | G184: 5 | H184: 6 | I184: 0.353 | J184: 2 | W184: norte | X184: 5 | Y184: 6 | Z184: 0.353 | AA184: 2 | AC184: norte | AD184: 5 | AE184: 6 | AF184: 0.353 | AG184: 2 | AH184: 5.812226432 | AI184: 3.812226432
A185: pequeña | B185: 2 | C185: 3 | D185: 1 | E185: 1 | F185: 2 | G185: 6 | H185: 3 | I185: 0.82 | J185: 2 | W185: pequeña | X185: 6 | Y185: 3 | Z185: 0.82 | AA185: 2 | AC185: pequeña | AD185: 6 | AE185: 3 | AF185: 0.82 | AG185: 2 | AH185: 5.040699003 | AI185: 3.040699003
A186: último | B186: 2 | C186: 1 | D186: 1 | E186: 1 | F186: 2 | G186: 6 | H186: 6 | I186: 0.852 | J186: 2 | W186: último | X186: 6 | Y186: 6 | Z186: 0.852 | AA186: 2 | AC186: último | AD186: 6 | AE186: 6 | AF186: 0.852 | AG186: 2 | AH186: 4.86267106 | AI186: 2.86267106
A187: cero | B187: 1 | C187: 1 | D187: 1 | E187: 1 | F187: 2 | G187: 4 | H187: 5 | I187: 0 | J187: 2 | W187: cero | X187: 4 | Y187: 5 | Z187: 0 | AA187: 2 | AC187: cero | AD187: 4 | AE187: 5 | AF187: 0 | AG187: 2 | AH187: 6.449600686 | AI187: 4.449600686
A188: máquina | B188: 1 | C188: 3 | D188: 1 | E188: 1 | F188: 3 | G188: 6 | H188: 10 | I188: 0.654 | J188: 2 | W188: máquina | X188: 6 | Y188: 10 | Z188: 0.654 | AA188: 2 | AC188: máquina | AD188: 6 | AE188: 10 | AF188: 0.654 | AG188: 2 | AH188: 5.196024211 | AI188: 3.196024211
A189: zona | B189: 1 | C189: 3 | D189: 1 | E189: 1 | F189: 2 | G189: 4 | H189: 4 | I189: 0.68 | J189: 2 | W189: zona | X189: 4 | Y189: 4 | Z189: 0.68 | AA189: 2 | AC189: zona | AD189: 4 | AE189: 4 | AF189: 0.68 | AG189: 2 | AH189: 4.871076863 | AI189: 2.871076863
A190: casos | B190: 1 | C190: 1 | D190: 3 | E190: 1 | F190: 2 | G190: 5 | H190: 8 | I190: 0.815 | J190: 2 | W190: casos | X190: 5 | Y190: 8 | Z190: 0.815 | AA190: 2 | AC190: casos | AD190: 5 | AE190: 8 | AF190: 0.815 | AG190: 2 | AH190: 4.648531738 | AI190: 2.648531738
A191: interés | B191: 1 | C191: 1 | D191: 1 | E191: 1 | F191: 3 | G191: 7 | H191: 7 | I191: 0.841 | J191: 2 | W191: interés | X191: 7 | Y191: 7 | Z191: 0.841 | AA191: 2 | AC191: interés | AD191: 7 | AE191: 7 | AF191: 0.841 | AG191: 2 | AH191: 5.088496703 | AI191: 3.088496703
A192: libertad | B192: 1 | C192: 3 | D192: 1 | E192: 2 | F192: 3 | G192: 8 | H192: 4 | I192: 0.595 | J192: 2 | W192: libertad | X192: 8 | Y192: 4 | Z192: 0.595 | AA192: 2 | AC192: libertad | AD192: 8 | AE192: 4 | AF192: 0.595 | AG192: 2 | AH192: 6.007797643 | AI192: 4.007797643
A193: país | B193: 1 | C193: 1 | D193: 1 | E193: 1 | F193: 2 | G193: 4 | H193: 4 | I193: 0.713 | J193: 2 | W193: país | X193: 4 | Y193: 4 | Z193: 0.713 | AA193: 2 | AC193: país | AD193: 4 | AE193: 4 | AF193: 0.713 | AG193: 2 | AH193: 4.792819729 | AI193: 2.792819729
A194: risa | B194: 1 | C194: 3 | D194: 1 | E194: 1 | F194: 2 | G194: 4 | H194: 2 | I194: 0.566 | J194: 2 | W194: risa | X194: 4 | Y194: 2 | Z194: 0.566 | AA194: 2 | AC194: risa | AD194: 4 | AE194: 2 | AF194: 0.566 | AG194: 2 | AH194: 5.209514513 | AI194: 3.209514513
A195: siglo | B195: 1 | C195: 1 | D195: 1 | E195: 1 | F195: 2 | G195: 5 | H195: 4 | I195: 0.673 | J195: 2 | W195: siglo | X195: 5 | Y195: 4 | Z195: 0.673 | AA195: 2 | AC195: siglo | AD195: 5 | AE195: 4 | AF195: 0.673 | AG195: 2 | AH195: 5.121464205 | AI195: 3.121464205
A196: sitios | B196: 1 | C196: 1 | D196: 3 | E196: 1 | F196: 2 | G196: 6 | H196: 8 | I196: 0.857 | J196: 2 | W196: sitios | X196: 6 | Y196: 8 | Z196: 0.857 | AA196: 2 | AC196: sitios | AD196: 6 | AE196: 8 | AF196: 0.857 | AG196: 2 | AH196: 4.782719094 | AI196: 2.782719094
A197: últimos | B197: 2 | C197: 1 | D197: 3 | E197: 1 | F197: 2 | G197: 7 | H197: 6 | I197: 0.852 | J197: 2 | W197: últimos | X197: 7 | Y197: 6 | Z197: 0.852 | AA197: 2 | AC197: últimos | AD197: 7 | AE197: 6 | AF197: 0.852 | AG197: 2 | AH197: 5.096458404 | AI197: 3.096458404
A198: ciento | B198: 1 | C198: 1 | D198: 1 | E198: 1 | F198: 2 | G198: 6 | H198: 1 | I198: 0.661 | J198: 2 | W198: ciento | X198: 6 | Y198: 1 | Z198: 0.661 | AA198: 2 | AC198: ciento | AD198: 6 | AE198: 1 | AF198: 0.661 | AG198: 2 | AH198: 5.485850926 | AI198: 3.485850926
A199: cuarto | B199: 1 | C199: 1 | D199: 1 | E199: 1 | F199: 1 | G199: 6 | H199: 12 | I199: 0.673 | J199: 2 | W199: cuarto | X199: 6 | Y199: 12 | Z199: 0.673 | AA199: 2 | AC199: cuarto | AD199: 6 | AE199: 12 | AF199: 0.673 | AG199: 2 | AH199: 5.082872248 | AI199: 3.082872248
A200: martes | B200: 1 | C200: 1 | D200: 2 | E200: 1 | F200: 2 | G200: 6 | H200: 1 | I200: 0 | J200: 2 | W200: martes | X200: 6 | Y200: 1 | Z200: 0 | AA200: 2 | AC200: martes | AD200: 6 | AE200: 1 | AF200: 0 | AG200: 2 | AH200: 7.053365024 | AI200: 5.053365024
... 900 more rows

Sheet MX
A1: Belief | B1: a | C1: b | D1: c | E1: d | F1: e | G1: f | H1: g | I1: h | J1: i | L1: Correl. | M1: a | N1: b | O1: c | P1: d | Q1: e | R1: f | S1: g | T1: h | U1: i
A2: A | B2: 4 | C2: 3 | D2: 4 | E2: 3 | F2: 4 | G2: 5 | H2: 4 | I2: 2 | J2: 5 | L2: a | M2: 1 | N2: -0.03348873433 | O2: -0.3907019005 | P2: -0.3250836313 | Q2: 0.2679247185 | R2: -3.700743415e-17 | S2: 0.1568253671 | T2: 0.109803407 | U2: 0.683585927
A3: B | B3: 4 | C3: 3 | D3: 5 | E3: 3 | F3: 1 | G3: 3 | H3: 3 | I3: 1 | J3: 4 | L3: b | M3: -0.03348873433 | N3: 1 | O3: -0.06666666667 | P3: -0.05547001962 | Q3: -0.05052911526 | R3: -0.2309401077 | S3: 0.6743417843 | T3: -0.09079798901 | U3: 0.2449489743
A4: C | B4: 4 | C4: 3 | D4: 5 | E4: 4 | F4: 2 | G4: 4 | H4: 5 | I4: 1 | J4: 5 | L4: c | M4: -0.3907019005 | N4: -0.06666666667 | O4: 1 | P4: 0.6471502289 | Q4: -0.08421519211 | R4: -0.1924500897 | S4: 0.1873171623 | T4: -0.4539899451 | U4: -0.2041241452
A5: D | B5: 3 | C5: 1 | D5: 5 | E5: 5 | F5: 2 | G5: 5 | H5: 2 | I5: 3 | J5: 4 | L5: d | M5: -0.3250836313 | N5: -0.05547001962 | O5: 0.6471502289 | P5: 1 | Q5: 0.4204276523 | R5: -9.251858539e-18 | S5: 0.3896432501 | T5: 0.04197138527 | U5: -0.08492077756
A6: E | B6: 5 | C6: 2 | D6: 4 | E6: 2 | F6: 2 | G6: 4 | H6: 2 | I6: 2 | J6: 5 | L6: e | M6: 0.2679247185 | N6: -0.05052911526 | O6: -0.08421519211 | P6: 0.4204276523 | Q6: 1 | R6: 0.07293249575 | S6: 0.4022612456 | T6: 0.2166528192 | U6: 0.05157106231
A7: F | B7: 5 | C7: 1 | D7: 5 | E7: 3 | F7: 3 | G7: 5 | H7: 3 | I7: 1 | J7: 5 | L7: f | M7: -3.700743415e-17 | N7: -0.2309401077 | O7: -0.1924500897 | P7: -9.251858539e-18 | Q7: 0.07293249575 | R7: 1 | S7: 0.08111071057 | T7: 0.262111217 | U7: 0.08838834765
A8: G | B8: 4 | C8: 3 | D8: 5 | E8: 5 | F8: 4 | G8: 3 | H8: 5 | I8: 3 | J8: 5 | L8: g | M8: 0.1568253671 | N8: 0.6743417843 | O8: 0.1873171623 | P8: 0.3896432501 | Q8: 0.4022612456 | R8: 0.08111071057 | S8: 1 | T8: 0.02834670274 | U8: 0.4014775343
A9: H | B9: 2 | C9: 2 | D9: 5 | E9: 3 | F9: 2 | G9: 3 | H9: 2 | I9: 1 | J9: 2 | L9: h | M9: 0.109803407 | N9: -0.09079798901 | O9: -0.4539899451 | P9: 0.04197138527 | Q9: 0.2166528192 | R9: 0.262111217 | S9: 0.02834670274 | T9: 1 | U9: 0.03089010316
A10: I | B10: 4 | C10: 2 | D10: 5 | E10: 5 | F10: 5 | G10: 5 | H10: 4 | I10: 2 | J10: 3 | L10: i | M10: 0.683585927 | N10: 0.2449489743 | O10: -0.2041241452 | P10: -0.08492077756 | Q10: 0.05157106231 | R10: 0.08838834765 | S10: 0.4014775343 | T10: 0.03089010316 | U10: 1
A11: J | B11: 4 | C11: 3 | D11: 5 | E11: 3 | F11: 2 | G11: 5 | H11: 4 | I11: 2 | J11: 5
A12: K | B12: 5 | C12: 2 | D12: 5 | E12: 4 | F12: 4 | G12: 2 | H12: 3 | I12: 1 | J12: 5 | L12: Belief | M12: a | N12: b | O12: c | P12: d | Q12: e | R12: f | S12: g | T12: h | U12: i
A13: L | B13: 5 | C13: 2 | D13: 4 | E13: 2 | F13: 3 | G13: 4 | H13: 3 | I13: 4 | J13: 4 | L13: a | M13: 1 | N13: -0.03348873433 | O13: -0.3907019005 | P13: -0.3250836313 | Q13: 0.2679247185 | R13: 0 | S13: 0.1568253671 | T13: 0.109803407 | U13: 0.683585927
L14: b | M14: -0.03348873433 | N14: 1 | O14: -0.06666666667 | P14: -0.05547001962 | Q14: -0.05052911526 | R14: -0.2309401077 | S14: 0.6743417843 | T14: -0.09079798901 | U14: 0.2449489743
A15: Country | B15: 1. ES | C15: 2. GE | D15: 3. CU | E15: 4. RD | F15: 5. PR | G15: 6. MX | L15: c | M15: -0.3907019005 | N15: -0.06666666667 | O15: 1 | P15: 0.6471502289 | Q15: -0.08421519211 | R15: -0.1924500897 | S15: 0.1873171623 | T15: -0.4539899451 | U15: -0.2041241452
A16: 1. ES | B16: 1 | L16: d | M16: -0.3250836313 | N16: -0.05547001962 | O16: 0.6471502289 | P16: 1 | Q16: 0.4204276523 | R16: 0 | S16: 0.3896432501 | T16: 0.04197138527 | U16: -0.08492077756
A17: 2. GE | B17: 0.61 | C17: 1 | L17: e | M17: 0.2679247185 | N17: -0.05052911526 | O17: -0.08421519211 | P17: 0.4204276523 | Q17: 1 | R17: 0.07293249575 | S17: 0.4022612456 | T17: 0.2166528192 | U17: 0.05157106231
A18: 3. CU | B18: 0.507 | C18: 0.446 | D18: 1 | L18: f | M18: 0 | N18: -0.2309401077 | O18: -0.1924500897 | P18: 0 | Q18: 0.07293249575 | R18: 1 | S18: 0.08111071057 | T18: 0.262111217 | U18: 0.08838834765
A19: 4. RD | B19: 0.54 | C19: 0.451 | D19: 0.542 | E19: 1 | L19: g | M19: 0.1568253671 | N19: 0.6743417843 | O19: 0.1873171623 | P19: 0.3896432501 | Q19: 0.4022612456 | R19: 0.08111071057 | S19: 1 | T19: 0.02834670274 | U19: 0.4014775343
A20: 5. PR | B20: 0.577 | C20: 0.491 | D20: 0.56 | E20: 0.679 | F20: 1 | L20: h | M20: 0.109803407 | N20: -0.09079798901 | O20: -0.4539899451 | P20: 0.04197138527 | Q20: 0.2166528192 | R20: 0.262111217 | S20: 0.02834670274 | T20: 1 | U20: 0.03089010316
A21: 6. MX | B21: 0.447 | C21: 0.341 | D21: 0.394 | E21: 0.447 | F21: 0.499 | G21: 1 | L21: i | M21: 0.683585927 | N21: 0.2449489743 | O21: -0.2041241452 | P21: -0.08492077756 | Q21: 0.05157106231 | R21: 0.08838834765 | S21: 0.4014775343 | T21: 0.03089010316 | U21: 1
A23: Test | B23: 1 | C23: 2 | D23: 3 | E23: 4 | F23: 5 | G23: 6 | H23: 7 | I23: 8
A24: 1 | B24: 0 | C24: 4 | D24: 5 | E24: 6 | F24: 7 | G24: 7 | H24: 8 | I24: 8
A25: 2 | B25: 6 | C25: 7 | D25: 7 | E25: 4 | F25: x | G25: 9 | H25: 9 | I25: 10
A26: 3 | B26: x | C26: x | D26: 1 | E26: 2 | F26: 3 | G26: 5 | H26: 5 | I26: 5
A27: 4 | B27: 8 | C27: 8 | D27: 8 | E27: 8 | F27: 8 | G27: 9 | H27: 9 | I27: 9
A28: 5 | B28: 1 | C28: 5 | D28: 5 | E28: 5 | F28: 6 | G28: 6 | H28: 8 | I28: 8
A29: 6 | B29: 0 | C29: 0 | D29: 2 | E29: 2 | F29: 2 | G29: 3 | H29: 5 | I29: 5
A30: 7 | B30: 0 | C30: 0 | D30: 2 | E30: 4 | F30: 5 | G30: 5 | H30: 5 | I30: 7
A31: 8 | B31: 0 | C31: 0 | D31: 3 | E31: 4 | F31: 5 | G31: 6 | H31: 7 | I31: x
A32: 9 | B32: 0 | C32: 0 | D32: 4 | E32: 4 | F32: 8 | G32: 8 | H32: 8 | I32: 8
A33: 10 | B33: 0 | C33: 0 | D33: 4 | E33: 5 | F33: 5 | G33: 7 | H33: 7 | I33: 7
A34: 11 | B34: 2 | C34: 5 | D34: 5 | E34: 6 | F34: 6 | G34: 6 | H34: 7 | I34: 8
A35: 12 | B35: 0 | D35: 6 | E35: 7 | F35: 8 | G35: 8 | H35: 8 | I35: 9
A36: 13 | B36: 4 | C36: 5 | D36: 6 | E36: 6 | F36: 6 | G36: 7 | H36: 7 | I36: 7
A37: 14 | B37: 0 | C37: 6 | D37: 8 | E37: 8 | F37: 9 | G37: 9 | H37: 9 | I37: 9
A38: 15 | B38: 0 | C38: 0 | D38: 0 | E38: 5 | F38: 6 | G38: 6 | H38: 7 | I38: 7
A39: 16 | B39: x | C39: x | D39: 5 | E39: 7 | F39: 7 | G39: 7 | H39: 8 | I39: 8
A40: 17 | B40: 0 | C40: 1 | D40: 4 | E40: 4 | F40: 5 | G40: 6 | H40: 7 | I40: 7
A41: 18 | B41: 2 | C41: 5 | D41: 6 | E41: 6 | F41: 7 | G41: 7 | H41: 7 | I41: 7
A42: 19 | B42: 3 | C42: 5 | D42: 6 | E42: 7 | F42: 7 | G42: 7 | H42: 7 | I42: 8
A43: 20 | B43: 7 | C43: 7 | D43: 8 | E43: 8 | F43: 8 | G43: 8 | H43: 8 | I43: 9
A44: 21 | B44: 0 | C44: 8 | D44: 8 | E44: 8 | F44: 9 | G44: x | H44: 9 | I44: 9
A45: 23 | B45: 5 | C45: 5 | D45: 6 | E45: 6 | F45: 6 | G45: 6 | H45: 7 | I45: 8
A46: 24 | B46: 4 | C46: 7 | D46: 7 | E46: 8 | F46: 8 | G46: 8 | H46: 9 | I46: 9
A47: 25 | B47: 6 | C47: 8 | D47: 8 | E47: 8 | F47: 8 | G47: 9 | H47: 10 | I47: 10
A48: 26 | B48: 4 | C48: 5 | D48: 6 | E48: 6 | F48: 6 | G48: 7 | H48: 7 | I48: 8
A49: 27 | B49: 7 | C49: 8 | D49: 8 | E49: 8 | F49: 8 | G49: 8 | H49: 9 | I49: 9
A50: 28 | B50: 0 | C50: 0 | D50: 0 | E50: 0 | F50: 0 | G50: 0 | H50: 2 | I50: 5
A51: 29 | B51: 0 | C51: 7 | D51: 8 | E51: 8 | F51: 8 | G51: 8 | H51: 9 | I51: 9
A52: 30 | B52: 0 | C52: 4 | D52: 4 | E52: 5 | F52: 6 | G52: 8 | H52: 8 | I52: 8
A53: 31 | B53: 0 | C53: 0 | D53: 0 | E53: 7 | F53: 7 | G53: 8 | H53: 8 | I53: 8
A54: 32 | B54: 0 | C54: 0 | D54: 0 | E54: 2 | F54: 3 | G54: 4 | H54: 5 | I54: 5
A55: 33 | B55: 5 | C55: 5 | D55: 6 | E55: 8 | F55: 8 | G55: 8 | H55: 8 | I55: 8
A56: 34 | B56: 0 | C56: 0 | D56: 0 | E56: 0 | F56: 0 | G56: 0 | H56: 1 | I56: 1
A57: 35 | B57: 4 | C57: 7 | D57: 7 | E57: 8 | F57: 8 | G57: 8 | H57: 9 | I57: 9
A58: 36 | B58: 2 | C58: 6 | D58: 6 | E58: 7 | F58: 7 | G58: 8 | H58: 8 | I58: 8
A59: 37 | B59: 0 | C59: 0 | D59: 7 | E59: 7 | F59: 7 | G59: 8 | H59: x | I59: x
A61: Suma | B61: 1.Nb | C61: 2.Rj | D61: 3.Lz | E61: 4.Cv | F61: 5.Qv | G61: 6.Gc | H61: Total | L61: Correl. | M61: Correl. | N61: Dist-1 | O61: Dist-2
A62: u | B62: 949 | C62: 820 | D62: 1040 | E62: 1250 | F62: 1051 | G62: 849 | H62: 5959 | L62: Correl. | M62: 1 | N62: -0.4455592353 | O62: -0.4455592353
A63: v | B63: 165 | C63: 139 | D63: 191 | E63: 194 | F63: 209 | G63: 402 | H63: 1300 | L63: Dist-1 | M63: -0.4455592353 | N63: 1 | O63: 1
A64: 弁別値 | B64: 826 | C64: 830 | D64: 816 | E64: 845 | F64: 801 | G64: 527 | H64: 782 | L64: Dist-2 | M64: -0.4455592353 | N64: 1 | O64: 1
A66: Col. | B66: 1.Nb | C66: 2.Rj | D66: 3.Lz | E66: 4.Cv | F66: 5.Qv | G66: 6.Gc
A67: Maximum | B67: 949 | C67: 820 | D67: 1040 | E67: 1250 | F67: 1051 | G67: 849
A69: Suma | B69: 1.Nb | C69: 2.Rj | D69: 3.Lz | E69: 4.Cv | F69: 5.Qv | G69: 6.Gc | H69: Total
A70: u | B70: 949 | C70: 820 | D70: 1040 | E70: 1250 | F70: 1051 | G70: 849 | H70: 5959
A71: v | B71: 165 | C71: 139 | D71: 191 | E71: 194 | F71: 209 | G71: 402 | H71: 1300
A72: 弁別値 | B72: 826 | C72: 830 | D72: 816 | E72: 845 | F72: 801 | G72: 527 | H72: 782
A74: Col. | B74: 1.Nb | C74: 2.Rj | D74: 3.Lz | E74: 4.Cv | F74: 5.Qv | G74: 6.Gc
A75: Distinction | B75: 0.8261327744 | C75: 0.8304877877 | D75: 0.8163461685 | E75: 0.8447999954 | F75: 0.8011417985 | G75: 0.5265017748
A78: t | B78: a | C78: b
A79: d | B79: 2 | C79: 30
A80: x | B80: 5 | C80: 2
A82: Col. | B82: 1.Nb | C82: 2.Rj | D82: 3.Lz | E82: 4.Cv | F82: 5.Qv | G82: 6.Gc
A83: Distinction | B83: 0.8261327744 | C83: 0.8304877877 | D83: 0.8163461685 | E83: 0.8447999954 | F83: 0.8011417985 | G83: 0.5265017748
A85: Result1. | B85: English | C85: Latin | D85: Fisics
A86: A | B86: 45 | C86: 48 | D86: 66
A87: B | B87: 56 | C87: 59 | D87: 54
A88: C | B88: 58 | C88: 51 | D88: 78
A89: D | B89: 77 | C89: 72 | D89: 20
A90: E | B90: 43 | C90: 44 | D90: 32
A91: F | B91: 58 | C91: 34 | D91: 90
A92: G | B92: 50 | C92: 53 | D92: 100
A95: SS | B95: E1 | C95: E2 | D95: S1 | E95: S2 | F95: S3 | G95: J1 | H95: J2 | I95: J3
A96: p | B96: 27 | C96: 7 | D96: 20 | E96: 20 | F96: -7 | G96: -7 | H96: -47 | I96: -60 | M96: 単純距離 | N96: a | O96: b | P96: c | Q96: d | R96: e | S96: f | T96: g | U96: h | V96: i
A97: b | B97: 20 | C97: 0 | D97: 7 | E97: 13 | F97: -13 | G97: 33 | H97: 73 | I97: 87 | M97: a | N97: 0 | O97: 0.5 | P97: 0.5 | Q97: 0.5 | R97: 0.5 | S97: 0.5 | T97: 0.5 | U97: 0.5 | V97: 0.5
A98: t | B98: 13 | C98: -13 | D98: 20 | E98: 20 | F98: -7 | G98: -27 | H98: -13 | I98: -60 | M98: b | N98: 0.5 | O98: 0 | P98: 0.5 | Q98: 0.5 | R98: 0.5 | S98: 0.5 | T98: 0.5 | U98: 0.5 | V98: 0.5
A99: d | B99: 33 | C99: 13 | D99: 13 | E99: -13 | F99: 7 | G99: 7 | H99: 53 | I99: 80 | M99: c | N99: 0.5 | O99: 0.5 | P99: 0 | Q99: 0.5 | R99: 0.5 | S99: 0.5 | T99: 0.5 | U99: 0.5 | V99: 0.5
A100: k | B100: 33 | C100: 13 | D100: 27 | E100: 33 | F100: -27 | G100: 7 | H100: 0 | I100: -53 | M100: d | N100: 0.5 | O100: 0.5 | P100: 0.5 | Q100: 0 | R100: 0.5 | S100: 0.5 | T100: 0.5 | U100: 0.5 | V100: 0.5
A101: g | B101: 33 | C101: 7 | D101: 27 | E101: 13 | F101: -20 | G101: 33 | H101: 80 | I101: 80 | M101: e | N101: 0.5 | O101: 0.5 | P101: 0.5 | Q101: 0.5 | R101: 0 | S101: 0.5 | T101: 0.5 | U101: 0.5 | V101: 0.5
A102: ch | B102: 0 | C102: -7 | D102: 20 | E102: -7 | F102: -33 | G102: -33 | H102: -40 | I102: -47 | M102: f | N102: 0.5 | O102: 0.5 | P102: 0.5 | Q102: 0.5 | R102: 0.5 | S102: 0 | T102: 0.5 | U102: 0.5 | V102: 0.5
A103: zh | B103: 20 | C103: -7 | D103: 13 | E103: 13 | F103: -20 | G103: 53 | H103: 80 | I103: 67 | M103: g | N103: 0.5 | O103: 0.5 | P103: 0.5 | Q103: 0.5 | R103: 0.5 | S103: 0.5 | T103: 0 | U103: 0.5 | V103: 0.5
A104: s | B104: -7 | C104: -33 | D104: 40 | E104: 20 | F104: -7 | G104: 7 | H104: -53 | I104: -47 | M104: h | N104: 0.5 | O104: 0.5 | P104: 0.5 | Q104: 0.5 | R104: 0.5 | S104: 0.5 | T104: 0.5 | U104: 0 | V104: 0.5
A105: sh | B105: -13 | C105: -33 | D105: 27 | E105: 13 | F105: -27 | G105: -33 | H105: -47 | I105: -27 | M105: i | N105: 0.5 | O105: 0.5 | P105: 0.5 | Q105: 0.5 | R105: 0.5 | S105: 0.5 | T105: 0.5 | U105: 0.5 | V105: 0
A106: sy | B106: 40 | C106: -13 | D106: 40 | E106: 20 | F106: -7 | G106: 47 | H106: 67 | I106: -80
A107: zy | B107: 13 | C107: -20 | D107: 20 | E107: 13 | F107: -27 | G107: 53 | H107: 93 | I107: 80 | M107: 単純距離 | N107: a | O107: b | P107: c | Q107: d | R107: e | S107: f | T107: g | U107: h | V107: i
A108: m | B108: 13 | C108: 13 | D108: 13 | E108: 13 | F108: -20 | G108: -53 | H108: 0 | I108: 0 | M108: a | N108: 0 | O108: 0.4949967544 | P108: 0.5991741491 | Q108: 0.03520391479 | R108: 0.09101514825 | S108: 0.2573915671 | T108: 0.005853272881 | U108: 0.5658128073 | V108: 0.00507079167
A109: n | B109: 33 | C109: 27 | D109: 27 | E109: 33 | F109: -13 | G109: -20 | H109: 7 | I109: -20 | M109: b | N109: 0.4949967544 | O109: 0 | P109: 0.9188587655 | Q109: 0.5301843181 | R109: 0.5855430162 | S109: 0.2843565469 | T109: 0.4893405679 | U109: 0.9619989178 | V109: 0.4993101745
A110: l | B110: 47 | C110: -33 | D110: 7 | E110: 7 | F110: 0 | G110: -27 | H110: -27 | I110: -20 | M110: c | N110: 0.5991741491 | O110: 0.9188587655 | P110: 0 | Q110: 0.5847675579 | R110: 0.5782549441 | S110: 0.8115788046 | T110: 0.6028525732 | U110: 0.9885336887 | V110: 0.5998989564
M111: d | N111: 0.03520391479 | O111: 0.5301843181 | P111: 0.5847675579 | Q111: 0 | R111: 0.05638628951 | S111: 0.2900216481 | T111: 0.04092804284 | U111: 0.544734471 | V111: 0.03111160739
M112: 1.38443731 | AE112: 0.8115788046
M113: 1.755942292 | AF113: 0.6028525732
M114: 3.082207001 | AG114: 0.9885336887
M115: 1.190238071 | AH115: 0.5998989564
M116: 1.354006401 | AI116: 0.05638628951
M117: 1.527525232 | AJ117: 0.2900216481
M118: 1.154700538 | AK118: 0.04092804284
M119: 2.101586702 | AL119: 0.544734471
M120: 1.683250823 | AM120: 0.03111160739
M121: 1.870828693 | AN121: 0.3382840877
M122: 1.290994449 | AO122: 0.09649714608
M123: 1.607275127 | AP123: 0.5038775003
M124: 2.081665999 | AQ124: 0.08646759895
M125: 1.527525232 | AR125: 0.2516377407
M126: 2.397915762 | AS126: 0.6786387326
M127: 1.354006401 | AT127: 0.260176897
M128: 1.979057015 | AU128: 0.5683302395
M129: 1.471960144 | AV129: 0.01003434956
M130: 2.753785274 | AW130: 0.5609951058
M132: E.vector | N132: #1 | O132: #2 | P132: #3 | Q132: #4 | R132: #5 | S132: #6 | T132: #7 | U132: #8
M133: a | N133: 0.001307467737 | O133: 0.0005484319842 | P133: 0.01132028323 | Q133: 0.02043357538 | R133: 0.0147746594 | S133: 0.1348830955 | T133: 0.8581948196 | U133: -0.3652822155
M134: b | N134: -0.02531260409 | O134: 0.7000732318 | P134: -0.5343591969 | Q134: -0.2046338568 | R134: 0.1312772061 | S134: -0.1776486754 | T134: -0.1256665517 | U134: -0.07839751197
M135: c | N135: 0.7885339146 | O135: -0.3129700574 | P135: 0.01133522247 | Q135: -0.2740690958 | R135: 0.2210206749 | S135: -0.157559782 | T135: -0.1288201833 | U135: -0.06033962569
M136: d | N136: 0.004768814502 | O136: -0.04911695145 | P136: 0.06337922924 | Q136: 0.02949605786 | R136: -0.872962773 | S136: -0.3024852141 | T136: -0.118647356 | U136: -0.1180178163
M137: e | N137: -0.008008794241 | O137: -0.1278288311 | P137: -0.1463613486 | Q137: 0.8672634872 | R137: 0.2264405143 | S137: -0.1148472363 | T137: -0.1677540372 | U137: -0.079433725
M138: f | N138: -0.1665401478 | O138: 0.3235469081 | P138: 0.8082286947 | Q138: -0.05957010581 | R138: 0.2382024835 | S138: -0.1279511669 | T138: -0.1499167024 | U138: -0.0640433168
M139: g | N139: -0.00111305348 | O139: 0.00846440848 | P139: -0.003059711219 | Q139: 0.02000441702 | R139: -0.0420359886 | S139: 0.0362785351 | T139: 0.2510808314 | U139: 0.9067975014
M140: h | N140: -0.5913907733 | O140: -0.5370360367 | P140: -0.1870048846 | Q140: -0.3512155998 | R140: 0.212496903 | S140: -0.170440838 | T140: -0.1202949741 | U140: -0.061149537
M141: i | N141: -0.002244823827 | O141: -0.005681100981 | P141: -0.02347828693 | Q141: -0.04771204285 | R141: -0.1292136797 | S141: 0.8797712821 | T141: -0.2981758463 | U141: -0.08013376492
L143: a-d | M143: a-e | N143: a-f | O143: a-g | P143: a-h | Q143: a-i | R143: b-c | S143: b-d | T143: b-e | U143: b-f | V143: b-g | W143: b-h | X143: b-i | Y143: c-d | Z143: c-e | AA143: c-f | AB143: c-g | AC143: c-h | AD143: c-i | AE143: d-e | AF143: d-f | AG143: d-g | AH143: d-h | AI143: d-i | AJ143: e-f | AK143: e-g | AL143: e-h | AM143: e-i | AN143: f-g | AO143: f-h | AP143: f-i | AQ143: g-h | AR143: g-i | AS143: h-i
L146: 0.5384540395
M147: 0.7129524453
N148: 0.6852548774
O149: 0.9274864389
P150: 0.6003101243
Q151: 0.94043767
R152: 0.0794789827
S153: 0.1499198822
T154: 0.1242980908
U155: 0.1026982763
V156: 0.7269437873
W157: 0.07558605098
M158: 単純距離 | N158: a | O158: b | P158: c | Q158: d | R158: e | S158: f | T158: g | U158: h | V158: i | X158: 0.3495201656
M159: a | N159: 0 | O159: 0.4949967544 | P159: 0.5991741491 | Q159: 0.03520391479 | R159: 0.09101514825 | S159: 0.2573915671 | T159: 0.005853272881 | U159: 0.5658128073 | V159: 0.00507079167 | Y159: 0.2292777961
M160: b | N160: 0.4949967544 | O160: 0 | P160: 0.9188587655 | Q160: 0.5301843181 | R160: 0.5855430162 | S160: 0.2843565469 | T160: 0.4893405679 | U160: 0.9619989178 | V160: 0.4993101745 | Z160: 0.1347642786
M161: c | N161: 0.5991741491 | O161: 0.9188587655 | P161: 0 | Q161: 0.5847675579 | R161: 0.5782549441 | S161: 0.8115788046 | T161: 0.6028525732 | U161: 0.9885336887 | V161: 0.5998989564 | AA161: 0.06657109486
M162: d | N162: 0.03520391479 | O162: 0.5301843181 | P162: 0.5847675579 | Q162: 0 | R162: 0.05638628951 | S162: 0.2900216481 | T162: 0.04092804284 | U162: 0.544734471 | V162: 0.03111160739 | AB162: 0.6557259163
M163: e | N163: 0.09101514825 | O163: 0.5855430162 | P163: 0.5782549441 | Q163: 0.05638628951 | R163: 0 | S163: 0.3382840877 | T163: 0.09649714608 | U163: 0.5038775003 | V163: 0.08646759895 | AC163: 0.02795354566
M164: f | N164: 0.2573915671 | O164: 0.2843565469 | P164: 0.8115788046 | Q164: 0.2900216481 | R164: 0.3382840877 | S164: 0 | T164: 0.2516377407 | U164: 0.6786387326 | V164: 0.260176897 | AD164: 0.3308601182
M165: g | N165: 0.005853272881 | O165: 0.4893405679 | P165: 0.6028525732 | Q165: 0.04092804284 | R165: 0.09649714608 | S165: 0.2516377407 | T165: 0 | U165: 0.5683302395 | V165: 0.01003434956 | AE165: 0.2172815545
M166: h | N166: 0.5658128073 | O166: 0.9619989178 | P166: 0.9885336887 | Q166: 0.544734471 | R166: 0.5038775003 | S166: 0.6786387326 | T166: 0.5683302395 | U166: 0 | V166: 0.5609951058 | AF166: 0.2403755633
M167: i | N167: 0.00507079167 | O167: 0.4993101745 | P167: 0.5998989564 | Q167: 0.03111160739 | R167: 0.08646759895 | S167: 0.260176897 | T167: 0.01003434956 | U167: 0.5609951058 | V167: 0 | AG167: 0.8613093579
AH168: 0.2209406277
AI169: 0.4325955387
AJ170: 0.07861620732
AK171: 0.7673873048
AL172: 0.156349235
AM173: 0.2278506434
AN174: 0.6904105104
AO175: 0.09341694822
AP176: 0.2651107196
AQ177: 0.6516013507
AR178: 0.8331681096
AS179: 0.3583228128
L189: R3 | M189: R4 | N189: R5 | O189: R6
L190: 0.1888539873 | M190: 0.4368344879 | N190: 0.7460406842 | O190: 0.7551209463
L191: 0.3060007186 | M191: 0.3122928142 | N191: 0.6245377316 | O191: 0.7135806389
L192: 0 | M192: 0.6180468991 | N192: 0.8873384241 | O192: 0.9141633339
L193: 0.6180468991 | M193: 0 | N193: 0.4059114097 | O193: 0.6250954041
L194: 0.8873384241 | M194: 0.4059114097 | N194: 0 | O194: 0.9896954707
L195: 0.9141633339 | M195: 0.6250954041 | N195: 0.9896954707 | O195: 0
M197: R1-R2 | N197: R1-R3 | O197: R1-R4 | P197: R1-R5 | Q197: R1-R6 | R197: R2-R3 | S197: R2-R4 | T197: R2-R5 | U197: R2-R6 | V197: R3-R4 | W197: R3-R5 | X197: R3-R6 | Y197: R4-R5 | Z197: R4-R6 | AA197: R5-R6
L198: 3 | M198: 0.1275382161
L199: 2 | N199: 0.1888539873
L200: 1 | O200: 0.4368344879
L201: 0 | P201: 0.7460406842
L202: 1 | Q202: 0.7551209463
L203: 2 | R203: 0.3060007186
L204: 2 | S204: 0.3122928142
L205: 1 | T205: 0.6245377316
L206: 1 | U206: 0.7135806389
L207: 0 | V207: 0.6180468991
L208: 0 | W208: 0.8873384241
L209: 1 | X209: 0.9141633339
L210: 2 | Y210: 0.4059114097
L211: 1 | Z211: 0.6250954041
L212: 0 | AA212: 0.9896954707
L214: R3 | M214: R4 | N214: R5 | O214: R6
L215: 0.4556897629 | M215: 0.4137808081 | N215: 0.731103662 | O215: 0.6919160947
L216: 0.4655408139 | M216: 0.3541339881 | N216: 0.6290349195 | O216: 0.6455735101
L217: 0 | M217: 0.8138920802 | N217: 0.7249230505 | O217: 0.7551858025
L218: 0.8138920802 | M218: 0 | N218: 0.697792298 | O218: 0.7313280994
L219: 0.7249230505 | M219: 0.697792298 | N219: 0 | O219: 0.8131106698
L220: 0.7551858025 | M220: 0.7313280994 | N220: 0.8131106698 | O220: 0
L239: R3 | M239: R4 | N239: R5 | O239: R6
L240: 0.1436350417 | M240: 0.4873167289 | N240: 1.034637791 | O240: 0.07040832736
L241: 0.3037184765 | M241: 0.3272332941 | N241: 0.8745543565 | O241: 0.2304917622
L242: 0 | M242: 0.6309517706 | N242: 1.178272833 | O242: 0.07322671431
L243: 0.6309517706 | M243: 0 | N243: 0.5473210625 | O243: 0.5577250563
L244: 1.178272833 | M244: 0.5473210625 | N244: 0 | O244: 1.105046119
... 1 more rows

Sheet Lem
A1: N | B1: Lema
A2: 1 | B2: l_C
A3: 2 | B3: ¡_B
A4: 3 | B4: su_T
A5: 4 | B5: comida_S
A6: 5 | B6: ,_B
A7: 6 | B7: sin_P
A8: 7 | B8: aditivo_S
A9: 8 | B9: !_B
A10: 9 | B10: el_T
A11: 10 | B11: aditivo_S
A12: 11 | B12: desaconsejable_A
A13: 12 | B13: o_C
A14: 13 | B14: susceptible_A
A15: 14 | B15: de_P
A16: 15 | B16: provocar_V
A17: 16 | B17: efecto_S
A18: 17 | B18: indeseable_A
A19: 18 | B19: el_T
A20: 19 | B20: alimento_S
A21: 20 | B21: que_R
A22: 21 | B22: contener_V
A23: 22 | B23: más_T
A24: 23 | B24: cantidad_S
A25: 24 | B25: de_P
A26: 25 | B26: aditivo_S
A27: 26 | B27: cuanto_A
A28: 27 | B28: más_T
A29: 28 | B29: color_S
A30: 29 | B30: tener_V
A31: 30 | B31: un_T
A32: 31 | B32: producto_S
A33: 32 | B33: ,_B
A34: 33 | B34: o_C
A35: 34 | B35: más_T
A36: 35 | B36: transformación_S
A37: 36 | B37: haber_V
A38: 37 | B38: sufrir_V
A39: 38 | B39: ,_B
A40: 39 | B40: o_C
A41: 40 | B41: más_T
A42: 41 | B42: elaborado_A
A43: 42 | B43: estar_V
A44: 43 | B44: ,_B
A45: 44 | B45: más_T
A46: 45 | B46: posibilidad_S
A47: 46 | B47: tener_V
A48: 47 | B48: de_P
A49: 48 | B49: contener_V
A50: 49 | B50: numeroso_A
A51: 50 | B51: aditivo_S
A52: 51 | B52: ._B
A53: 52 | B53: así_D
A54: 53 | B54: suceder_V
A55: 54 | B55: con_P
A56: 55 | B56: :_B
A57: 56 | B57: golosina_S
A58: 57 | B58: aperitivo_S
A59: 58 | B59: ,_B
A60: 59 | B60: refresco_S
A61: 60 | B61: ,_B
A62: 61 | B62: plato_S
A63: 62 | B63: preparado_A
A64: 63 | B64: ,_B
A65: 64 | B65: salsa_S
A66: 65 | B66: y_C
A67: 66 | B67: postre_S
A68: 67 | B68: preparado_A
A69: 68 | B69: ,_B
A70: 69 | B70: charcutería_S
A71: 70 | B71: producto_S
A72: 71 | B72: en_P
A73: 72 | B73: salazón_S
A74: 73 | B74: hueva_S
A75: 74 | B75: de_P
A76: 75 | B76: pescado_S
A77: 76 | B77: y_C
A78: 77 | B78: surimi_S
A79: 78 | B79: ,_B
A80: 79 | B80: chicle_S
A81: 80 | B81: ,_B
A82: 81 | B82: producto_S
A83: 82 | B83: de_P
A84: 83 | B84: pastelería_S
A85: 84 | B85: ,_B
A86: 85 | B86: sirope_S
A87: 86 | B87: ,_B
A88: 87 | B88: helado_S
A89: 88 | B89: ,_B
A90: 89 | B90: condimento_S
A91: 90 | B91: ,_B
A92: 91 | B92: sopa_S
A93: 92 | B93: y_C
A94: 93 | B94: salsa_S
A95: 94 | B95: de_P
A96: 95 | B96: sobre_S
A97: 96 | B97: postre_S
A98: 97 | B98: deshidratado_A
A99: 98 | B99: el_T
A100: 99 | B100: alimento_S
A101: 100 | B101: que_C
A102: 101 | B102: no_D
A103: 102 | B103: poder_V
A104: 103 | B104: tener_V
A105: 104 | B105: aditivo_S
A106: 105 | B106: ,_B
A107: 106 | B107: salvo_P
A108: 107 | B108: excepción_S
A109: 108 | B109: preciso_A
A110: 109 | B110: (_B
A111: 110 | B111: según_P
A112: 111 | B112: el_T
A113: 112 | B113: lista_S
A114: 113 | B114: de_P
A115: 114 | B115: el_T
A116: 115 | B116: real decreto_X
A117: 116 | B117: _T
A118: 117 | B118: )_B
A119: 118 | B119: :_B
A120: 119 | B120: miel_S
A121: 120 | B121: ,_B
A122: 121 | B122: azúcar_S
A123: 122 | B123: ,_B
A124: 123 | B124: mantequilla_S
A125: 124 | B125: ,_B
A126: 125 | B126: aceite_S
A127: 126 | B127: y_C
A128: 127 | B128: grasa_S
A129: 128 | B129: animal_A
A130: 129 | B130: o_C
A131: 130 | B131: vegetal_A
A132: 131 | B132: no_D
A133: 132 | B133: emulsionado_A
A134: 133 | B134: ,_B
A135: 134 | B135: leche_S
A136: 135 | B136: y_C
A137: 136 | B137: nata_S
A138: 137 | B138: pasteurizado_A
A139: 138 | B139: o_C
A140: 139 | B140: esterilizado_A
A141: 140 | B141: ,_B
A142: 141 | B142: suero_S
A143: 142 | B143: de_P
A144: 143 | B144: mantequilla_S
A145: 144 | B145: natural_A
A146: 145 | B146: no_D
A147: 146 | B147: aromatizado_A
A148: 147 | B148: y_C
A149: 148 | B149: no_D
A150: 149 | B150: esterilizado_A
A151: 150 | B151: ,_B
A152: 151 | B152: el_T
A153: 152 | B153: producto_S
A154: 153 | B154: a base de_P
A155: 154 | B155: leche_S
A156: 155 | B156: que_C
A157: 156 | B157: contener_V
A158: 157 | B158: fermento_S
A159: 158 | B159: vivo_A
A160: 159 | B160: ,_B
A161: 160 | B161: no_D
A162: 161 | B162: aromatizado_A
A163: 162 | B163: ,_B
A164: 163 | B164: el_T
A165: 164 | B165: agua_S
A166: 165 | B166: mineral_A
A167: 166 | B167: natural_A
A168: 167 | B168: y_C
A169: 168 | B169: agua_S
A170: 169 | B170: de_P
A171: 170 | B171: manantial_S
A172: 171 | B172: ,_B
A173: 172 | B173: café_S
A174: 173 | B174: (_B
A175: 174 | B175: salvo_P
A176: 175 | B176: el_T
A177: 176 | B177: instantáneo_A
A178: 177 | B178: aromatizado_A
A179: 178 | B179: )_B
A180: 179 | B180: y_C
A181: 180 | B181: extracto_S
A182: 181 | B182: de_P
A183: 182 | B183: café_S
A184: 183 | B184: ,_B
A185: 184 | B185: té_S
A186: 185 | B186: en_P
A187: 186 | B187: hoja_S
A188: 187 | B188: no_D
A189: 188 | B189: aromatizado_A
A190: 189 | B190: ,_B
A191: 190 | B191: pasta_S
A192: 191 | B192: seco_A
A193: 192 | B193: (_B
A194: 193 | B194: salvo_P
A195: 194 | B195: el_T
A196: 195 | B196: pasta_S
A197: 196 | B197: sin_P
A198: 197 | B198: gluten_S
A199: 198 | B199: y_C
A200: 199 | B200: lo_N
... 1800 more rows

Sheet IJY
A1: ID | B1: 1.Rasgo | C1: Entorno | D1: 2.A25 | E1: 3.Tipo | F1: Letra | BW1: PCA | BX1: N | BY1: y^ | BZ1: p | CA1: Ln(P) | CB1: LL: | CC1: -1446.973311
A2: 2 | B2: /y/ | C2: #V_V | D2: a0925 | E2: 1.V | F2: i | BW2: d1 | BX2: 0 | BY2: 0 | BZ2: 3.619831642e-07 | CA2: -3.619832297e-07 | CB2: Intercept: | CC2: -6.375995152
A3: 3 | B3: /y/ | C3: #V_V | D3: a0925 | E3: 1.V | F3: i | BW3: d2 | BX3: 0 | BY3: 0 | BZ3: 3.619831642e-07 | CA3: -3.619832297e-07 | CB3: #1: | CC3: -2.244890648
A4: 4 | B4: /y/ | C4: #V_V | D4: a0950 | E4: 1.V | F4: i | BW4: d3 | BX4: 0 | BY4: 0 | BZ4: 3.619831642e-07 | CA4: -3.619832297e-07 | CB4: #2: | CC4: 0.6077186636
A5: 4 | B5: /i/ | C5: #V_V | D5: a0950 | E5: 1.V | F5: i | BW5: d4 | BX5: 0 | BY5: 0 | BZ5: 3.619831642e-07 | CA5: -3.619832297e-07 | CB5: #3: | CC5: 1.911341737
A6: 5 | B6: /y/ | C6: #V_V | D6: a0975 | E6: 1.V | F6: i | BW6: d5 | BX6: 0 | BY6: 0 | BZ6: 3.619831642e-07 | CA6: -3.619832297e-07 | CB6: Accuracy: | CC6: 0.9654906497
A7: 5 | B7: /y/ | C7: #V_V | D7: a0975 | E7: 1.V | F7: i | BW7: d6 | BX7: 0 | BY7: 0 | BZ7: 3.619831642e-07 | CA7: -3.619832297e-07
A8: 5 | B8: /y/ | C8: #V_V | D8: a0975 | E8: 1.V | F8: i | BW8: d7 | BX8: 0 | BY8: 0 | BZ8: 3.619831642e-07 | CA8: -3.619832297e-07
A9: 9 | B9: /y/ | C9: #V_V | D9: a1225 | E9: 4.Gc | F9: y | BW9: d8 | BX9: 0 | BY9: 0 | BZ9: 3.619831642e-07 | CA9: -3.619832297e-07
A10: 9 | B10: /y/ | C10: #V_V | D10: a1225 | E10: 4.Gc | F10: y | BW10: d9 | BX10: 0 | BY10: 0 | BZ10: 3.619831642e-07 | CA10: -3.619832297e-07
A11: 9 | B11: /i/ | C11: #V_V | D11: a1225 | E11: 4.Gc | F11: i | BW11: d10 | BX11: 0 | BY11: 0 | BZ11: 3.619831642e-07 | CA11: -3.619832297e-07
A12: 9 | B12: /y/ | C12: #V_V | D12: a1225 | E12: 4.Gc | F12: y | BW12: d11 | BX12: 0 | BY12: 0 | BZ12: 3.619831642e-07 | CA12: -3.619832297e-07
A13: 9 | B13: /y/ | C13: #V_V | D13: a1225 | E13: 4.Gc | F13: y | BW13: d12 | BX13: 0 | BY13: 0 | BZ13: 3.619831642e-07 | CA13: -3.619832297e-07
A14: 10 | B14: /i/ | C14: #V_V | D14: a1250 | E14: 4.Gc | F14: i | BW14: d13 | BX14: 0 | BY14: 0 | BZ14: 3.619831642e-07 | CA14: -3.619832297e-07
A15: 10 | B15: /y/ | C15: #V_V | D15: a1250 | E15: 4.Gc | F15: y | BW15: d14 | BX15: 0 | BY15: 0 | BZ15: 3.619831642e-07 | CA15: -3.619832297e-07
A16: 10 | B16: /i/ | C16: #V_V | D16: a1250 | E16: 4.Gc | F16: i | BW16: d15 | BX16: 0 | BY16: 0 | BZ16: 3.619831642e-07 | CA16: -3.619832297e-07
A17: 10 | B17: /j/ | C17: #V_V | D17: a1250 | E17: 4.Gc | F17: j | BW17: d16 | BX17: 0 | BY17: 0 | BZ17: 3.619831642e-07 | CA17: -3.619832297e-07
A18: 10 | B18: /j/ | C18: #V_V | D18: a1250 | E18: 4.Gc | F18: j | BW18: d17 | BX18: 0 | BY18: 0 | BZ18: 3.619831642e-07 | CA18: -3.619832297e-07
A19: 10 | B19: /j/ | C19: #V_V | D19: a1250 | E19: 4.Gc | F19: j | BW19: d18 | BX19: 0 | BY19: 0 | BZ19: 3.619831642e-07 | CA19: -3.619832297e-07
A20: 10 | B20: /j/ | C20: #V_V | D20: a1250 | E20: 4.Gc | F20: j | BW20: d19 | BX20: 0 | BY20: 0 | BZ20: 3.619831642e-07 | CA20: -3.619832297e-07
A21: 10 | B21: /j/ | C21: #V_V | D21: a1250 | E21: 4.Gc | F21: j | BW21: d20 | BX21: 0 | BY21: 0 | BZ21: 3.619831642e-07 | CA21: -3.619832297e-07
A22: 10 | B22: /j/ | C22: #V_V | D22: a1250 | E22: 4.Gc | F22: j | BW22: d21 | BX22: 0 | BY22: 0 | BZ22: 3.619831642e-07 | CA22: -3.619832297e-07
A23: 10 | B23: /j/ | C23: #V_V | D23: a1250 | E23: 4.Gc | F23: i | BW23: d22 | BX23: 0 | BY23: 0 | BZ23: 3.619831642e-07 | CA23: -3.619832297e-07
A24: 10 | B24: /j/ | C24: #V_V | D24: a1250 | E24: 4.Gc | F24: i | BW24: d23 | BX24: 0 | BY24: 0 | BZ24: 3.619831642e-07 | CA24: -3.619832297e-07
A25: 10 | B25: /j/ | C25: #V_V | D25: a1250 | E25: 4.Gc | F25: j | BW25: d24 | BX25: 0 | BY25: 0 | BZ25: 3.619831642e-07 | CA25: -3.619832297e-07
A26: 10 | B26: /j/ | C26: #V_V | D26: a1250 | E26: 4.Gc | F26: i | BW26: d25 | BX26: 0 | BY26: 0 | BZ26: 3.619831642e-07 | CA26: -3.619832297e-07
A27: 10 | B27: /j/ | C27: #V_V | D27: a1250 | E27: 4.Gc | F27: j | BW27: d26 | BX27: 0 | BY27: 0 | BZ27: 3.619831642e-07 | CA27: -3.619832297e-07
A28: 10 | B28: /j/ | C28: #V_V | D28: a1250 | E28: 4.Gc | F28: j | BW28: d27 | BX28: 0 | BY28: 0 | BZ28: 3.619831642e-07 | CA28: -3.619832297e-07
A29: 11 | B29: /y/ | C29: #V_V | D29: a1250 | E29: 2.Gq | F29: y | BW29: d28 | BX29: 0 | BY29: 0 | BZ29: 3.619831642e-07 | CA29: -3.619832297e-07
A30: 11 | B30: /j/ | C30: #V_V | D30: a1250 | E30: 2.Gq | F30: j | BW30: d29 | BX30: 0 | BY30: 0 | BZ30: 3.619831642e-07 | CA30: -3.619832297e-07
A31: 11 | B31: /i/ | C31: #V_V | D31: a1250 | E31: 2.Gq | F31: i | BW31: d30 | BX31: 0 | BY31: 0 | BZ31: 3.619831642e-07 | CA31: -3.619832297e-07
A32: 11 | B32: /y/ | C32: #V_V | D32: a1250 | E32: 2.Gq | F32: y | BW32: d31 | BX32: 0 | BY32: 0 | BZ32: 3.905329231e-07 | CA32: -3.905329994e-07
A33: 11 | B33: /y/ | C33: #V_V | D33: a1250 | E33: 2.Gq | F33: y | BW33: d32 | BX33: 0 | BY33: 0 | BZ33: 3.905329231e-07 | CA33: -3.905329994e-07
A34: 11 | B34: /y/ | C34: #V_V | D34: a1250 | E34: 2.Gq | F34: y | BW34: d33 | BX34: 0 | BY34: 0 | BZ34: 8.557366627e-07 | CA34: -8.557370289e-07
A35: 11 | B35: /j/ | C35: #V_V | D35: a1250 | E35: 2.Gq | F35: i | BW35: d34 | BX35: 0 | BY35: 0 | BZ35: 8.557366627e-07 | CA35: -8.557370289e-07
A36: 11 | B36: /y/ | C36: #V_V | D36: a1250 | E36: 2.Gq | F36: y | BW36: d35 | BX36: 0 | BY36: 0 | BZ36: 8.557366627e-07 | CA36: -8.557370289e-07
A37: 11 | B37: /y/ | C37: #V_V | D37: a1250 | E37: 2.Gq | F37: y | BW37: d36 | BX37: 0 | BY37: 0 | BZ37: 8.557366627e-07 | CA37: -8.557370289e-07
A38: 11 | B38: /i/ | C38: #V_V | D38: a1250 | E38: 2.Gq | F38: i | BW38: d37 | BX38: 0 | BY38: 0 | BZ38: 8.557366627e-07 | CA38: -8.557370289e-07
A39: 11 | B39: /j/ | C39: #V_V | D39: a1250 | E39: 2.Gq | F39: i | BW39: d38 | BX39: 0 | BY39: 0 | BZ39: 8.557366627e-07 | CA39: -8.557370289e-07
A40: 11 | B40: /i/ | C40: #V_V | D40: a1250 | E40: 2.Gq | F40: i | BW40: d39 | BX40: 0 | BY40: 0 | BZ40: 8.557366627e-07 | CA40: -8.557370289e-07
A41: 11 | B41: /y/ | C41: #V_V | D41: a1250 | E41: 2.Gq | F41: y | BW41: d40 | BX41: 0 | BY41: 0 | BZ41: 1.074602685e-06 | CA41: -1.074603263e-06
A42: 11 | B42: /i/ | C42: #V_V | D42: a1250 | E42: 2.Gq | F42: i | BW42: d41 | BX42: 0 | BY42: 0 | BZ42: 1.074602685e-06 | CA42: -1.074603263e-06
A43: 11 | B43: /j/ | C43: #V_V | D43: a1250 | E43: 2.Gq | F43: i | BW43: d42 | BX43: 0 | BY43: 0 | BZ43: 1.074602685e-06 | CA43: -1.074603263e-06
A44: 11 | B44: /y/ | C44: #V_V | D44: a1250 | E44: 2.Gq | F44: y | BW44: d43 | BX44: 0 | BY44: 0 | BZ44: 1.074602685e-06 | CA44: -1.074603263e-06
A45: 11 | B45: /j/ | C45: #V_V | D45: a1250 | E45: 2.Gq | F45: j | BW45: d44 | BX45: 0 | BY45: 0 | BZ45: 1.074602685e-06 | CA45: -1.074603263e-06
A46: 11 | B46: /y/ | C46: #V_V | D46: a1250 | E46: 2.Gq | F46: y | BW46: d45 | BX46: 0 | BY46: 0 | BZ46: 1.074602685e-06 | CA46: -1.074603263e-06
A47: 11 | B47: /j/ | C47: #V_V | D47: a1250 | E47: 2.Gq | F47: i | BW47: d46 | BX47: 0 | BY47: 0 | BZ47: 1.074602685e-06 | CA47: -1.074603263e-06
A48: 11 | B48: /j/ | C48: #V_V | D48: a1250 | E48: 2.Gq | F48: j | BW48: d47 | BX48: 0 | BY48: 0 | BZ48: 1.074602685e-06 | CA48: -1.074603263e-06
A49: 11 | B49: /y/ | C49: #V_V | D49: a1250 | E49: 2.Gq | F49: y | BW49: d48 | BX49: 0 | BY49: 0 | BZ49: 1.130387706e-06 | CA49: -1.130388345e-06
A50: 11 | B50: /y/ | C50: #V_V | D50: a1250 | E50: 2.Gq | F50: y | BW50: d49 | BX50: 0 | BY50: 0 | BZ50: 1.130387706e-06 | CA50: -1.130388345e-06
A51: 11 | B51: /y/ | C51: #V_V | D51: a1250 | E51: 2.Gq | F51: y | BW51: d50 | BX51: 0 | BY51: 0 | BZ51: 1.130387706e-06 | CA51: -1.130388345e-06
A52: 11 | B52: /j/ | C52: #V_V | D52: a1250 | E52: 2.Gq | F52: j | BW52: d51 | BX52: 0 | BY52: 0 | BZ52: 1.130387706e-06 | CA52: -1.130388345e-06
A53: 11 | B53: /j/ | C53: #V_V | D53: a1250 | E53: 2.Gq | F53: i | BW53: d52 | BX53: 0 | BY53: 0 | BZ53: 1.130387706e-06 | CA53: -1.130388345e-06
A54: 11 | B54: /i/ | C54: #V_V | D54: a1250 | E54: 2.Gq | F54: i | BW54: d53 | BX54: 0 | BY54: 0 | BZ54: 1.130387706e-06 | CA54: -1.130388345e-06
A55: 11 | B55: /i/ | C55: #V_V | D55: a1250 | E55: 2.Gq | F55: i | BW55: d54 | BX55: 0 | BY55: 0 | BZ55: 1.130387706e-06 | CA55: -1.130388345e-06
A56: 11 | B56: /j/ | C56: #V_V | D56: a1250 | E56: 2.Gq | F56: i | BW56: d55 | BX56: 0 | BY56: 0 | BZ56: 1.130387706e-06 | CA56: -1.130388345e-06
A57: 11 | B57: /y/ | C57: #V_V | D57: a1250 | E57: 2.Gq | F57: y | BW57: d56 | BX57: 0 | BY57: 0 | BZ57: 1.130387706e-06 | CA57: -1.130388345e-06
A58: 11 | B58: /j/ | C58: #V_V | D58: a1250 | E58: 2.Gq | F58: j | BW58: d57 | BX58: 0 | BY58: 0 | BZ58: 1.130387706e-06 | CA58: -1.130388345e-06
A59: 12 | B59: /i/ | C59: #V_V | D59: a1175 | E59: 2.Gq | F59: i | BW59: d58 | BX59: 0 | BY59: 0 | BZ59: 1.130387706e-06 | CA59: -1.130388345e-06
A60: 12 | B60: /j/ | C60: #V_V | D60: a1175 | E60: 2.Gq | F60: j | BW60: d59 | BX60: 0 | BY60: 0 | BZ60: 1.130387706e-06 | CA60: -1.130388345e-06
A61: 13 | B61: /y/ | C61: #V_V | D61: a1175 | E61: 2.Gq | F61: y | BW61: d60 | BX61: 0 | BY61: 0 | BZ61: 1.130387706e-06 | CA61: -1.130388345e-06
A62: 14 | B62: /j/ | C62: #V_V | D62: a1175 | E62: 2.Gq | F62: i | BW62: d61 | BX62: 0 | BY62: 0 | BZ62: 1.130387706e-06 | CA62: -1.130388345e-06
A63: 14 | B63: /y/ | C63: #V_V | D63: a1175 | E63: 2.Gq | F63: i | BW63: d62 | BX63: 0 | BY63: 0 | BZ63: 1.130387706e-06 | CA63: -1.130388345e-06
A64: 15 | B64: /y/ | C64: #V_V | D64: a1175 | E64: 3.Ga | F64: y | BW64: d63 | BX64: 0 | BY64: 0 | BZ64: 1.130387706e-06 | CA64: -1.130388345e-06
A65: 15 | B65: /y/ | C65: #V_V | D65: a1175 | E65: 3.Ga | F65: y | BW65: d64 | BX65: 0 | BY65: 0 | BZ65: 1.419499283e-06 | CA65: -1.41950029e-06
A66: 15 | B66: /y/ | C66: #V_V | D66: a1175 | E66: 3.Ga | F66: y | BW66: d65 | BX66: 0 | BY66: 0 | BZ66: 1.419499283e-06 | CA66: -1.41950029e-06
A67: 17 | B67: /j/ | C67: #V_V | D67: a1175 | E67: 2.Gq | F67: i | BW67: d66 | BX67: 0 | BY67: 0 | BZ67: 1.419499283e-06 | CA67: -1.41950029e-06
A68: 18 | B68: /i/ | C68: #V_V | D68: a1175 | E68: 3.Ga | F68: i | BW68: d67 | BX68: 0 | BY68: 0 | BZ68: 1.419499283e-06 | CA68: -1.41950029e-06
A69: 18 | B69: /i/ | C69: #V_V | D69: a1175 | E69: 3.Ga | F69: i | BW69: d68 | BX69: 0 | BY69: 0 | BZ69: 1.419499283e-06 | CA69: -1.41950029e-06
A70: 21 | B70: /y/ | C70: #V_V | D70: a1175 | E70: 3.Ga | F70: i | BW70: d69 | BX70: 0 | BY70: 0 | BZ70: 1.419499283e-06 | CA70: -1.41950029e-06
A71: 24 | B71: /y/ | C71: #V_V | D71: a1175 | E71: 3.Ga | F71: y | BW71: d70 | BX71: 0 | BY71: 0 | BZ71: 1.419499283e-06 | CA71: -1.41950029e-06
A72: 24 | B72: /y/ | C72: #V_V | D72: a1175 | E72: 3.Ga | F72: y | BW72: d71 | BX72: 0 | BY72: 0 | BZ72: 1.419499283e-06 | CA72: -1.41950029e-06
A73: 25 | B73: /y/ | C73: #V_V | D73: a1175 | E73: 2.Gq | F73: y | BW73: d72 | BX73: 0 | BY73: 0 | BZ73: 1.419499283e-06 | CA73: -1.41950029e-06
A74: 26 | B74: /y/ | C74: #V_V | D74: a1175 | E74: 3.Ga | F74: y | BW74: d73 | BX74: 0 | BY74: 0 | BZ74: 1.419499283e-06 | CA74: -1.41950029e-06
A75: 26 | B75: /y/ | C75: #V_V | D75: a1175 | E75: 3.Ga | F75: y | BW75: d74 | BX75: 0 | BY75: 0 | BZ75: 1.493188628e-06 | CA75: -1.493189743e-06
A76: 26 | B76: /j/ | C76: #V_V | D76: a1175 | E76: 3.Ga | F76: i | BW76: d75 | BX76: 0 | BY76: 0 | BZ76: 1.493188628e-06 | CA76: -1.493189743e-06
A77: 26 | B77: /y/ | C77: #V_V | D77: a1175 | E77: 3.Ga | F77: y | BW77: d76 | BX77: 0 | BY77: 0 | BZ77: 1.493188628e-06 | CA77: -1.493189743e-06
A78: 27 | B78: /y/ | C78: #V_V | D78: a1175 | E78: 3.Ga | F78: y | BW78: d77 | BX78: 0 | BY78: 0 | BZ78: 1.493188628e-06 | CA78: -1.493189743e-06
A79: 27 | B79: /y/ | C79: #V_V | D79: a1175 | E79: 3.Ga | F79: y | BW79: d78 | BX79: 0 | BY79: 0 | BZ79: 1.493188628e-06 | CA79: -1.493189743e-06
A80: 27 | B80: /j/ | C80: #V_V | D80: a1175 | E80: 3.Ga | F80: i | BW80: d79 | BX80: 0 | BY80: 0 | BZ80: 1.493188628e-06 | CA80: -1.493189743e-06
A81: 27 | B81: /y/ | C81: #V_V | D81: a1175 | E81: 3.Ga | F81: y | BW81: d80 | BX81: 0 | BY81: 0 | BZ81: 1.493188628e-06 | CA81: -1.493189743e-06
A82: 28 | B82: /j/ | C82: #V_V | D82: a1175 | E82: 3.Ga | F82: i | BW82: d81 | BX82: 0 | BY82: 0 | BZ82: 1.493188628e-06 | CA82: -1.493189743e-06
A83: 28 | B83: /j/ | C83: #V_V | D83: a1175 | E83: 3.Ga | F83: i | BW83: d82 | BX83: 0 | BY83: 0 | BZ83: 1.493188628e-06 | CA83: -1.493189743e-06
A84: 29 | B84: /y/ | C84: #V_V | D84: a1175 | E84: 3.Ga | F84: y | BW84: d83 | BX84: 0 | BY84: 0 | BZ84: 1.493188628e-06 | CA84: -1.493189743e-06
A85: 29 | B85: /y/ | C85: #V_V | D85: a1175 | E85: 3.Ga | F85: y | BW85: d84 | BX85: 0 | BY85: 0 | BZ85: 1.493188628e-06 | CA85: -1.493189743e-06
A86: 30 | B86: /y/ | C86: #V_V | D86: a1175 | E86: 3.Ga | F86: y | BW86: d85 | BX86: 0 | BY86: 0 | BZ86: 1.493188628e-06 | CA86: -1.493189743e-06
A87: 32 | B87: /y/ | C87: #V_V | D87: a1200 | E87: 3.Ga | F87: y | BW87: d86 | BX87: 0 | BY87: 0 | BZ87: 1.493188628e-06 | CA87: -1.493189743e-06
A88: 34 | B88: /j/ | C88: #V_V | D88: a1200 | E88: 3.Ga | F88: i | BW88: d87 | BX88: 0 | BY88: 0 | BZ88: 1.493188628e-06 | CA88: -1.493189743e-06
A89: 35 | B89: /j/ | C89: #V_V | D89: a1200 | E89: 3.Ga | F89: i | BW89: d88 | BX89: 0 | BY89: 0 | BZ89: 1.738013528e-06 | CA89: -1.738015038e-06
A90: 35 | B90: /j/ | C90: #V_V | D90: a1200 | E90: 3.Ga | F90: i | BW90: d89 | BX90: 0 | BY90: 0 | BZ90: 1.738013528e-06 | CA90: -1.738015038e-06
A91: 35 | B91: /j/ | C91: #V_V | D91: a1200 | E91: 3.Ga | F91: j | BW91: d90 | BX91: 0 | BY91: 0 | BZ91: 1.738013528e-06 | CA91: -1.738015038e-06
A92: 35 | B92: /j/ | C92: #V_V | D92: a1200 | E92: 3.Ga | F92: j | BW92: d91 | BX92: 0 | BY92: 0 | BZ92: 1.828237621e-06 | CA92: -1.828239292e-06
A93: 35 | B93: /j/ | C93: #V_V | D93: a1200 | E93: 3.Ga | F93: j | BW93: d92 | BX93: 0 | BY93: 0 | BZ93: 1.828237621e-06 | CA93: -1.828239292e-06
A94: 35 | B94: /j/ | C94: #V_V | D94: a1200 | E94: 3.Ga | F94: j | BW94: d93 | BX94: 0 | BY94: 0 | BZ94: 1.828237621e-06 | CA94: -1.828239292e-06
A95: 35 | B95: /j/ | C95: #V_V | D95: a1200 | E95: 3.Ga | F95: i | BW95: d94 | BX95: 0 | BY95: 0 | BZ95: 3.110406366e-06 | CA95: -3.110411203e-06
A96: 35 | B96: /j/ | C96: #V_V | D96: a1200 | E96: 3.Ga | F96: i | BW96: d95 | BX96: 0 | BY96: 0 | BZ96: 3.110406366e-06 | CA96: -3.110411203e-06
A97: 35 | B97: /y/ | C97: #V_V | D97: a1200 | E97: 3.Ga | F97: y | BW97: d96 | BX97: 0 | BY97: 0 | BZ97: 3.110406366e-06 | CA97: -3.110411203e-06
A98: 36 | B98: /y/ | C98: #V_V | D98: a1200 | E98: 3.Ga | F98: y | BW98: d97 | BX98: 0 | BY98: 0 | BZ98: 3.110406366e-06 | CA98: -3.110411203e-06
A99: 36 | B99: /y/ | C99: #V_V | D99: a1200 | E99: 3.Ga | F99: y | BW99: d98 | BX99: 0 | BY99: 0 | BZ99: 3.110406366e-06 | CA99: -3.110411203e-06
A100: 36 | B100: /j/ | C100: #V_V | D100: a1200 | E100: 3.Ga | F100: j | BW100: d99 | BX100: 0 | BY100: 0 | BZ100: 3.110406366e-06 | CA100: -3.110411203e-06
A101: 38 | B101: /y/ | C101: #V_V | D101: a1200 | E101: 3.Ga | F101: y | BW101: d102 | BX101: 0 | BY101: 0 | BZ101: 7.189836134e-07 | CA101: -7.189838718e-07
A102: 38 | B102: /y/ | C102: #V_V | D102: a1200 | E102: 3.Ga | F102: y | BW102: d100 | BX102: 0 | BY102: 0 | BZ102: 3.110406366e-06 | CA102: -3.110411203e-06
A103: 38 | B103: /y/ | C103: #V_V | D103: a1200 | E103: 3.Ga | F103: y | BW103: d101 | BX103: 0 | BY103: 0 | BZ103: 3.110406366e-06 | CA103: -3.110411203e-06
A104: 38 | B104: /y/ | C104: #V_V | D104: a1200 | E104: 3.Ga | F104: y | BW104: d103 | BX104: 0 | BY104: 0 | BZ104: 3.620391158e-06 | CA104: -3.620397712e-06
A105: 41 | B105: /j/ | C105: #V_V | D105: a1225 | E105: 3.Ga | F105: i | BW105: d104 | BX105: 0 | BY105: 0 | BZ105: 3.620391158e-06 | CA105: -3.620397712e-06
A106: 41 | B106: /y/ | C106: #V_V | D106: a1225 | E106: 3.Ga | F106: y | BW106: d105 | BX106: 0 | BY106: 0 | BZ106: 3.620391158e-06 | CA106: -3.620397712e-06
A107: 41 | B107: /j/ | C107: #V_V | D107: a1225 | E107: 3.Ga | F107: i | BW107: d106 | BX107: 0 | BY107: 0 | BZ107: 3.620391158e-06 | CA107: -3.620397712e-06
A108: 42 | B108: /j/ | C108: #V_V | D108: a1200 | E108: 3.Ga | F108: j | BW108: d107 | BX108: 0 | BY108: 0 | BZ108: 3.620391158e-06 | CA108: -3.620397712e-06
A109: 43 | B109: /i/ | C109: #V_V | D109: a1175 | E109: 3.Ga | F109: i | BW109: d108 | BX109: 0 | BY109: 0 | BZ109: 3.905931872e-06 | CA109: -3.905939501e-06
A110: 43 | B110: /y/ | C110: #V_V | D110: a1175 | E110: 3.Ga | F110: y | BW110: d109 | BX110: 0 | BY110: 0 | BZ110: 3.905931872e-06 | CA110: -3.905939501e-06
A111: 45 | B111: /y/ | C111: #V_V | D111: a1200 | E111: 3.Ga | F111: i | BW111: d110 | BX111: 0 | BY111: 0 | BZ111: 1.069622144e-06 | CA111: -1.069622716e-06
A112: 45 | B112: /j/ | C112: #V_V | D112: a1200 | E112: 3.Ga | F112: i | BW112: d111 | BX112: 0 | BY112: 0 | BZ112: 1.069622144e-06 | CA112: -1.069622716e-06
A113: 45 | B113: /j/ | C113: #V_V | D113: a1200 | E113: 3.Ga | F113: i | BW113: d112 | BX113: 0 | BY113: 0 | BZ113: 4.108696899e-06 | CA113: -4.10870534e-06
A114: 45 | B114: /j/ | C114: #V_V | D114: a1200 | E114: 3.Ga | F114: i | BW114: d113 | BX114: 0 | BY114: 0 | BZ114: 4.108696899e-06 | CA114: -4.10870534e-06
A115: 45 | B115: /i/ | C115: #V_V | D115: a1200 | E115: 3.Ga | F115: j | BW115: d114 | BX115: 0 | BY115: 0 | BZ115: 4.108696899e-06 | CA115: -4.10870534e-06
A116: 48 | B116: /y/ | C116: #V_V | D116: a1200 | E116: 3.Ga | F116: y | BW116: d115 | BX116: 0 | BY116: 0 | BZ116: 4.108696899e-06 | CA116: -4.10870534e-06
A117: 48 | B117: /i/ | C117: #V_V | D117: a1200 | E117: 3.Ga | F117: i | BW117: d116 | BX117: 0 | BY117: 0 | BZ117: 1.069622144e-06 | CA117: -1.069622716e-06
A118: 48 | B118: /j/ | C118: #V_V | D118: a1200 | E118: 3.Ga | F118: j | BW118: d117 | BX118: 0 | BY118: 0 | BZ118: 1.069622144e-06 | CA118: -1.069622716e-06
A119: 49 | B119: /j/ | C119: #V_V | D119: a1200 | E119: 3.Ga | F119: j | BW119: d118 | BX119: 0 | BY119: 0 | BZ119: 1.069622144e-06 | CA119: -1.069622716e-06
A120: 50 | B120: /y/ | C120: #V_V | D120: a1200 | E120: 3.Ga | F120: y | BW120: d119 | BX120: 0 | BY120: 0 | BZ120: 1.298324445e-06 | CA120: -1.298325288e-06
A121: 53 | B121: /i/ | C121: #V_V | D121: a1200 | E121: 2.Gq | F121: j | BW121: d120 | BX121: 0 | BY121: 0 | BZ121: 6.815507687e-06 | CA121: -6.815530912e-06
A122: 53 | B122: /i/ | C122: #V_V | D122: a1200 | E122: 2.Gq | F122: j | BW122: d121 | BX122: 0 | BY122: 0 | BZ122: 6.815507687e-06 | CA122: -6.815530912e-06
A123: 53 | B123: /j/ | C123: #V_V | D123: a1200 | E123: 2.Gq | F123: i | BW123: d122 | BX123: 0 | BY123: 0 | BZ123: 6.815507687e-06 | CA123: -6.815530912e-06
A124: 53 | B124: /y/ | C124: #V_V | D124: a1200 | E124: 2.Gq | F124: i | BW124: d123 | BX124: 0 | BY124: 0 | BZ124: 6.815507687e-06 | CA124: -6.815530912e-06
A125: 53 | B125: /j/ | C125: #V_V | D125: a1200 | E125: 2.Gq | F125: i | BW125: d124 | BX125: 0 | BY125: 0 | BZ125: 6.815507687e-06 | CA125: -6.815530912e-06
A126: 53 | B126: /j/ | C126: #V_V | D126: a1200 | E126: 2.Gq | F126: i | BW126: d125 | BX126: 0 | BY126: 0 | BZ126: 6.815507687e-06 | CA126: -6.815530912e-06
A127: 54 | B127: /j/ | C127: #V_V | D127: a1200 | E127: 3.Ga | F127: j | BW127: d126 | BX127: 0 | BY127: 0 | BZ127: 7.169313747e-06 | CA127: -7.169339447e-06
A128: 55 | B128: /j/ | C128: #V_V | D128: a1200 | E128: 2.Gq | F128: i | BW128: d127 | BX128: 0 | BY128: 0 | BZ128: 7.169313747e-06 | CA128: -7.169339447e-06
A129: 57 | B129: /j/ | C129: #V_V | D129: a1200 | E129: 3.Ga | F129: i | BW129: d128 | BX129: 0 | BY129: 0 | BZ129: 7.169313747e-06 | CA129: -7.169339447e-06
A130: 57 | B130: /j/ | C130: #V_V | D130: a1200 | E130: 3.Ga | F130: i | BW130: d129 | BX130: 0 | BY130: 0 | BZ130: 7.169313747e-06 | CA130: -7.169339447e-06
A131: 58 | B131: /j/ | C131: #V_V | D131: a1200 | E131: 2.Gq | F131: i | BW131: d130 | BX131: 0 | BY131: 0 | BZ131: 7.169313747e-06 | CA131: -7.169339447e-06
A132: 58 | B132: /j/ | C132: #V_V | D132: a1200 | E132: 2.Gq | F132: j | BW132: d131 | BX132: 0 | BY132: 0 | BZ132: 7.169313747e-06 | CA132: -7.169339447e-06
A133: 58 | B133: /y/ | C133: #V_V | D133: a1200 | E133: 2.Gq | F133: y | BW133: d132 | BX133: 0 | BY133: 0 | BZ133: 7.169313747e-06 | CA133: -7.169339447e-06
A134: 58 | B134: /j/ | C134: #V_V | D134: a1200 | E134: 2.Gq | F134: j | BW134: d133 | BX134: 0 | BY134: 0 | BZ134: 7.169313747e-06 | CA134: -7.169339447e-06
A135: 58 | B135: /i/ | C135: #V_V | D135: a1200 | E135: 2.Gq | F135: i | BW135: d134 | BX135: 0 | BY135: 0 | BZ135: 8.344794787e-06 | CA135: -8.344829605e-06
A136: 58 | B136: /i/ | C136: #V_V | D136: a1200 | E136: 2.Gq | F136: i | BW136: d135 | BX136: 0 | BY136: 0 | BZ136: 8.344794787e-06 | CA136: -8.344829605e-06
A137: 58 | B137: /y/ | C137: #V_V | D137: a1200 | E137: 2.Gq | F137: i | BW137: d136 | BX137: 0 | BY137: 0 | BZ137: 8.344794787e-06 | CA137: -8.344829605e-06
A138: 58 | B138: /j/ | C138: #V_V | D138: a1200 | E138: 2.Gq | F138: i | BW138: d137 | BX138: 0 | BY138: 0 | BZ138: 8.344794787e-06 | CA138: -8.344829605e-06
A139: 58 | B139: /j/ | C139: #V_V | D139: a1200 | E139: 2.Gq | F139: i | BW139: d138 | BX139: 0 | BY139: 0 | BZ139: 8.344794787e-06 | CA139: -8.344829605e-06
A140: 58 | B140: /j/ | C140: #V_V | D140: a1200 | E140: 2.Gq | F140: i | BW140: d139 | BX140: 0 | BY140: 0 | BZ140: 8.344794787e-06 | CA140: -8.344829605e-06
A141: 58 | B141: /j/ | C141: #V_V | D141: a1200 | E141: 2.Gq | F141: i | BW141: d140 | BX141: 0 | BY141: 0 | BZ141: 8.344794787e-06 | CA141: -8.344829605e-06
A142: 58 | B142: /j/ | C142: #V_V | D142: a1200 | E142: 2.Gq | F142: i | BW142: d141 | BX142: 0 | BY142: 0 | BZ142: 8.777988373e-06 | CA142: -8.7780269e-06
A143: 59 | B143: /j/ | C143: #V_V | D143: a1200 | E143: 3.Ga | F143: i | BW143: d142 | BX143: 0 | BY143: 0 | BZ143: 8.777988373e-06 | CA143: -8.7780269e-06
A144: 59 | B144: /j/ | C144: #V_V | D144: a1200 | E144: 3.Ga | F144: i | BW144: d143 | BX144: 0 | BY144: 0 | BZ144: 9.96192592e-06 | CA144: -9.961975541e-06
A145: 59 | B145: /j/ | C145: #V_V | D145: a1200 | E145: 3.Ga | F145: i | BW145: d144 | BX145: 0 | BY145: 0 | BZ145: 1.047906687e-05 | CA145: -1.047912177e-05
A146: 59 | B146: /j/ | C146: #V_V | D146: a1200 | E146: 3.Ga | F146: i | BW146: d145 | BX146: 0 | BY146: 0 | BZ146: 1.047906687e-05 | CA146: -1.047912177e-05
A147: 59 | B147: /y/ | C147: #V_V | D147: a1200 | E147: 3.Ga | F147: i | BW147: d146 | BX147: 0 | BY147: 0 | BZ147: 1.047906687e-05 | CA147: -1.047912177e-05
A148: 59 | B148: /j/ | C148: #V_V | D148: a1200 | E148: 3.Ga | F148: j | BW148: d147 | BX148: 0 | BY148: 0 | BZ148: 1.047906687e-05 | CA148: -1.047912177e-05
A149: 61 | B149: /j/ | C149: #V_V | D149: a1200 | E149: 3.Ga | F149: i | BW149: d148 | BX149: 0 | BY149: 0 | BZ149: 1.047906687e-05 | CA149: -1.047912177e-05
A150: 61 | B150: /j/ | C150: #V_V | D150: a1200 | E150: 3.Ga | F150: i | BW150: d149 | BX150: 0 | BY150: 0 | BZ150: 1.047906687e-05 | CA150: -1.047912177e-05
A151: 61 | B151: /j/ | C151: #V_V | D151: a1200 | E151: 3.Ga | F151: i | BW151: d150 | BX151: 0 | BY151: 0 | BZ151: 1.047906687e-05 | CA151: -1.047912177e-05
A152: 61 | B152: /j/ | C152: #V_V | D152: a1200 | E152: 3.Ga | F152: i | BW152: d151 | BX152: 0 | BY152: 0 | BZ152: 1.047906687e-05 | CA152: -1.047912177e-05
A153: 61 | B153: /y/ | C153: #V_V | D153: a1200 | E153: 3.Ga | F153: i | BW153: d152 | BX153: 0 | BY153: 0 | BZ153: 1.047906687e-05 | CA153: -1.047912177e-05
A154: 62 | B154: /y/ | C154: #V_V | D154: a1200 | E154: 4.Gc | F154: i | BW154: d153 | BX154: 0 | BY154: 0 | BZ154: 1.047906687e-05 | CA154: -1.047912177e-05
A155: 62 | B155: /j/ | C155: #V_V | D155: a1200 | E155: 4.Gc | F155: i | BW155: d154 | BX155: 0 | BY155: 0 | BZ155: 1.047906687e-05 | CA155: -1.047912177e-05
A156: 62 | B156: /j/ | C156: #V_V | D156: a1200 | E156: 4.Gc | F156: j | BW156: d155 | BX156: 0 | BY156: 0 | BZ156: 1.047906687e-05 | CA156: -1.047912177e-05
A157: 62 | B157: /y/ | C157: #V_V | D157: a1200 | E157: 4.Gc | F157: i | BW157: d156 | BX157: 0 | BY157: 0 | BZ157: 1.047906687e-05 | CA157: -1.047912177e-05
A158: 62 | B158: /j/ | C158: #V_V | D158: a1200 | E158: 4.Gc | F158: i | BW158: d157 | BX158: 0 | BY158: 0 | BZ158: 1.102305321e-05 | CA158: -1.102311396e-05
A159: 62 | B159: /y/ | C159: #V_V | D159: a1200 | E159: 4.Gc | F159: i | BW159: d158 | BX159: 0 | BY159: 0 | BZ159: 1.102305321e-05 | CA159: -1.102311396e-05
A160: 62 | B160: /j/ | C160: #V_V | D160: a1200 | E160: 4.Gc | F160: j | BW160: d159 | BX160: 0 | BY160: 0 | BZ160: 1.102305321e-05 | CA160: -1.102311396e-05
A161: 62 | B161: /j/ | C161: #V_V | D161: a1200 | E161: 4.Gc | F161: j | BW161: d160 | BX161: 0 | BY161: 0 | BZ161: 3.664059668e-06 | CA161: -3.664066381e-06
A162: 62 | B162: /j/ | C162: #V_V | D162: a1200 | E162: 4.Gc | F162: j | BW162: d161 | BX162: 0 | BY162: 0 | BZ162: 1.315919508e-05 | CA162: -1.315928166e-05
A163: 62 | B163: /j/ | C163: #V_V | D163: a1200 | E163: 4.Gc | F163: i | BW163: d162 | BX163: 0 | BY163: 0 | BZ163: 1.315919508e-05 | CA163: -1.315928166e-05
A164: 62 | B164: /j/ | C164: #V_V | D164: a1200 | E164: 4.Gc | F164: i | BW164: d163 | BX164: 0 | BY164: 0 | BZ164: 1.315919508e-05 | CA164: -1.315928166e-05
A165: 63 | B165: /j/ | C165: #V_V | D165: a1200 | E165: 3.Ga | F165: j | BW165: d164 | BX165: 0 | BY165: 0 | BZ165: 1.349643113e-05 | CA165: -1.34965222e-05
A166: 63 | B166: /j/ | C166: #V_V | D166: a1200 | E166: 3.Ga | F166: i | BW166: d165 | BX166: 0 | BY166: 0 | BZ166: 1.349643113e-05 | CA166: -1.34965222e-05
A167: 63 | B167: /y/ | C167: #V_V | D167: a1200 | E167: 3.Ga | F167: y | BW167: d166 | BX167: 0 | BY167: 0 | BZ167: 1.349643113e-05 | CA167: -1.34965222e-05
A168: 63 | B168: /j/ | C168: #V_V | D168: a1200 | E168: 3.Ga | F168: i | BW168: d167 | BX168: 0 | BY168: 0 | BZ168: 1.349643113e-05 | CA168: -1.34965222e-05
A169: 67 | B169: /i/ | C169: #V_V | D169: a1200 | E169: 3.Ga | F169: i | BW169: d168 | BX169: 0 | BY169: 0 | BZ169: 1.349643113e-05 | CA169: -1.34965222e-05
A170: 67 | B170: /y/ | C170: #V_V | D170: a1200 | E170: 3.Ga | F170: y | BW170: d169 | BX170: 0 | BY170: 0 | BZ170: 3.90291665e-06 | CA170: -3.902924266e-06
A171: 68 | B171: /y/ | C171: #V_V | D171: a1200 | E171: 3.Ga | F171: y | BW171: d170 | BX171: 0 | BY171: 0 | BZ171: 3.90291665e-06 | CA171: -3.902924266e-06
A172: 68 | B172: /y/ | C172: #V_V | D172: a1200 | E172: 3.Ga | F172: y | BW172: d171 | BX172: 0 | BY172: 0 | BZ172: 3.90291665e-06 | CA172: -3.902924266e-06
A173: 68 | B173: /y/ | C173: #V_V | D173: a1200 | E173: 3.Ga | F173: y | BW173: d172 | BX173: 0 | BY173: 0 | BZ173: 3.90291665e-06 | CA173: -3.902924266e-06
A174: 68 | B174: /y/ | C174: #V_V | D174: a1200 | E174: 3.Ga | F174: y | BW174: d173 | BX174: 0 | BY174: 0 | BZ174: 1.611187768e-05 | CA174: -1.611200747e-05
A175: 68 | B175: /y/ | C175: #V_V | D175: a1200 | E175: 3.Ga | F175: y | BW175: d174 | BX175: 0 | BY175: 0 | BZ175: 1.611187768e-05 | CA175: -1.611200747e-05
A176: 68 | B176: /i/ | C176: #V_V | D176: a1200 | E176: 3.Ga | F176: j | BW176: d175 | BX176: 0 | BY176: 0 | BZ176: 1.611187768e-05 | CA176: -1.611200747e-05
A177: 68 | B177: /j/ | C177: #V_V | D177: a1200 | E177: 3.Ga | F177: i | BW177: d176 | BX177: 0 | BY177: 0 | BZ177: 1.611187768e-05 | CA177: -1.611200747e-05
A178: 68 | B178: /y/ | C178: #V_V | D178: a1200 | E178: 3.Ga | F178: i | BW178: d177 | BX178: 0 | BY178: 0 | BZ178: 1.782807561e-05 | CA178: -1.782823453e-05
A179: 68 | B179: /j/ | C179: #V_V | D179: a1200 | E179: 3.Ga | F179: j | BW179: d178 | BX179: 0 | BY179: 0 | BZ179: 1.782807561e-05 | CA179: -1.782823453e-05
A180: 68 | B180: /i/ | C180: #V_V | D180: a1200 | E180: 3.Ga | F180: i | BW180: d179 | BX180: 0 | BY180: 0 | BZ180: 1.782807561e-05 | CA180: -1.782823453e-05
A181: 68 | B181: /j/ | C181: #V_V | D181: a1200 | E181: 3.Ga | F181: i | BW181: d180 | BX181: 0 | BY181: 0 | BZ181: 1.782807561e-05 | CA181: -1.782823453e-05
A182: 69 | B182: /j/ | C182: #V_V | D182: a1200 | E182: 3.Ga | F182: i | BW182: d181 | BX182: 0 | BY182: 0 | BZ182: 1.923415667e-05 | CA182: -1.923434164e-05
A183: 69 | B183: /i/ | C183: #V_V | D183: a1200 | E183: 3.Ga | F183: i | BW183: d182 | BX183: 0 | BY183: 0 | BZ183: 1.923415667e-05 | CA183: -1.923434164e-05
A184: 69 | B184: /j/ | C184: #V_V | D184: a1200 | E184: 3.Ga | F184: j | BW184: d183 | BX184: 0 | BY184: 0 | BZ184: 1.923415667e-05 | CA184: -1.923434164e-05
A185: 70 | B185: /j/ | C185: #V_V | D185: a1200 | E185: 3.Ga | F185: j | BW185: d184 | BX185: 0 | BY185: 0 | BZ185: 1.923415667e-05 | CA185: -1.923434164e-05
A186: 70 | B186: /y/ | C186: #V_V | D186: a1200 | E186: 3.Ga | F186: i | BW186: d185 | BX186: 0 | BY186: 0 | BZ186: 1.923415667e-05 | CA186: -1.923434164e-05
A187: 70 | B187: /j/ | C187: #V_V | D187: a1200 | E187: 3.Ga | F187: j | BW187: d186 | BX187: 0 | BY187: 0 | BZ187: 1.923415667e-05 | CA187: -1.923434164e-05
A188: 71 | B188: /j/ | C188: #V_V | D188: a1200 | E188: 3.Ga | F188: j | BW188: d187 | BX188: 0 | BY188: 0 | BZ188: 2.296148011e-05 | CA188: -2.296174373e-05
A189: 71 | B189: /j/ | C189: #V_V | D189: a1200 | E189: 3.Ga | F189: j | BW189: d188 | BX189: 0 | BY189: 0 | BZ189: 2.296148011e-05 | CA189: -2.296174373e-05
A190: 71 | B190: /j/ | C190: #V_V | D190: a1200 | E190: 3.Ga | F190: j | BW190: d189 | BX190: 0 | BY190: 0 | BZ190: 2.296148011e-05 | CA190: -2.296174373e-05
A191: 72 | B191: /y/ | C191: #V_V | D191: a1200 | E191: 3.Ga | F191: y | BW191: d190 | BX191: 0 | BY191: 0 | BZ191: 2.296148011e-05 | CA191: -2.296174373e-05
A192: 74 | B192: /y/ | C192: #V_V | D192: a1225 | E192: 2.Gq | F192: i | BW192: d191 | BX192: 0 | BY192: 0 | BZ192: 2.296148011e-05 | CA192: -2.296174373e-05
A193: 74 | B193: /y/ | C193: #V_V | D193: a1225 | E193: 2.Gq | F193: i | BW193: d192 | BX193: 0 | BY193: 0 | BZ193: 2.296148011e-05 | CA193: -2.296174373e-05
A194: 74 | B194: /j/ | C194: #V_V | D194: a1225 | E194: 2.Gq | F194: j | BW194: d193 | BX194: 0 | BY194: 0 | BZ194: 2.296148011e-05 | CA194: -2.296174373e-05
A195: 74 | B195: /y/ | C195: #V_V | D195: a1225 | E195: 2.Gq | F195: i | BW195: d194 | BX195: 0 | BY195: 0 | BZ195: 2.296148011e-05 | CA195: -2.296174373e-05
A196: 74 | B196: /y/ | C196: #V_V | D196: a1225 | E196: 2.Gq | F196: i | BW196: d195 | BX196: 0 | BY196: 0 | BZ196: 2.296148011e-05 | CA196: -2.296174373e-05
A197: 74 | B197: /i/ | C197: #V_V | D197: a1225 | E197: 2.Gq | F197: i | BW197: d196 | BX197: 0 | BY197: 0 | BZ197: 2.296148011e-05 | CA197: -2.296174373e-05
A198: 74 | B198: /j/ | C198: #V_V | D198: a1225 | E198: 2.Gq | F198: j | BW198: d197 | BX198: 0 | BY198: 0 | BZ198: 2.415343428e-05 | CA198: -2.415372598e-05
A199: 74 | B199: /j/ | C199: #V_V | D199: a1225 | E199: 2.Gq | F199: j | BW199: d198 | BX199: 0 | BY199: 0 | BZ199: 2.415343428e-05 | CA199: -2.415372598e-05
A200: 74 | B200: /y/ | C200: #V_V | D200: a1225 | E200: 2.Gq | F200: i | BW200: d199 | BX200: 0 | BY200: 0 | BZ200: 2.415343428e-05 | CA200: -2.415372598e-05
... 925 more rows

Sheet Fm
A1: N.Cahusac (1980) | B1: MX | C1: CU | D1: RD | E1: PR | F1: GU | G1: HO | H1: EL | I1: NI | J1: CR | K1: PN | L1: VE | M1: CO | N1: EC | O1: PE | P1: BO | Q1: CH | R1: PA | S1: UR | T1: AR | V1: UR | W1: AR
A2: 01 cacahuero | L2: 1 | M2: 1
A3: 02 cafetalista | B3: 1 | C3: 1 | E3: 1
A4: 03 camilucho | R4: 1 | S4: 1 | T4: 1
A5: 04 campero | R5: 1 | S5: 1 | T5: 1
A6: 05 camperuso | L6: 1 | M6: 1
A7: 06 campirano | F7: 1 | G7: 1 | H7: 1 | I7: 1 | J7: 1 | K7: 1 | L7: 1 | M7: 1
A8: 07 campiruso | F8: 1 | G8: 1 | H8: 1 | I8: 1 | J8: 1 | K8: 1
A9: 08 campista | B9: 1 | E9: 1 | F9: 1 | G9: 1 | H9: 1 | I9: 1 | J9: 1 | K9: 1 | L9: 1
A10: 09 campusano | K10: 1 | S10: 1 | T10: 1
A11: 10 campuso | F11: 1 | G11: 1 | H11: 1 | I11: 1 | J11: 1
A12: 11 colono | D12: 1 | E12: 1
A13: 12 comparsa | R13: 1 | S13: 1 | T13: 1
A14: 13 conuquero | C14: 1 | D14: 1 | E14: 1 | L14: 1 | M14: 1
A15: 14 coquero | N15: 1 | O15: 1 | P15: 1
A16: 15 chagrero | M16: 1 | N16: 1
A17: 16 changador | R17: 1 | S17: 1 | T17: 1
A18: 17 chilero | B18: 1 | F18: 1 | G18: 1 | H18: 1 | I18: 1 | J18: 1 | K18: 1
A19: 18 chuncano | R19: 1 | S19: 1 | T19: 1
A20: 19 enmaniguado | C20: 1 | D20: 1 | E20: 1
A21: 20 estanciero | R21: 1 | S21: 1 | T21: 1
A22: 21 gaucho | P22: 1 | R22: 1 | S22: 1 | T22: 1
A23: 22 guajiro | C23: 1 | D23: 1
A24: 23 guanaco | F24: 1 | G24: 1 | H24: 1 | I24: 1 | J24: 1 | K24: 1
A25: 24 guaso | C25: 1 | N25: 1 | O25: 1 | P25: 1 | Q25: 1 | T25: 1
A26: 25 huasicama | M26: 1 | N26: 1
A27: 26 huertero | B27: 1 | O27: 1 | Q27: 1 | T27: 1
A28: 27 hulero | B28: 1 | F28: 1 | G28: 1 | H28: 1 | I28: 1 | J28: 1 | K28: 1
A29: 28 invernador | O29: 1 | Q29: 1 | R29: 1 | S29: 1 | T29: 1
A30: 29 jíbaro | D30: 1 | E30: 1
A31: 30 lampero | O31: 1 | P31: 1 | T31: 1 | W31: 1
A32: 31 lanudo | L32: 1 | M32: 1 | N32: 1 | W32: 1
A33: 32 llanero | L33: 1 | M33: 1
A34: 33 macanero | B34: 1 | J34: 1
A35: 34 manuto | D35: 1 | K35: 1 | V35: 1 | W35: 1
A36: 35 montero | C36: 1 | D36: 1 | W36: 1
A37: 36 montubio | C37: 1 | D37: 1 | M37: 1 | N37: 1 | O37: 1 | W37: 1
A38: 37 paisano | D38: 1 | N38: 1 | O38: 1 | V38: 1 | W38: 1
A39: 38 pajuerano | C39: 1 | N39: 1 | O39: 1 | V39: 1 | W39: 1
A40: 39 partidario | P40: 1 | S40: 1 | T40: 1 | V40: 1 | W40: 1
A41: 40 payazo | L41: 1 | M41: 1 | V41: 1 | W41: 1
A42: 41 piona | R42: 1 | S42: 1 | T42: 1 | V42: 1 | W42: 1
A43: 42 ranchero | B43: 1 | C43: 1 | D43: 1 | K43: 1 | V43: 1 | W43: 1
A44: 43 rondín | P44: 1 | V44: 1 | W44: 1
A45: 44 sabanero | L45: 1 | M45: 1 | V45: 1 | W45: 1
A46: 45 veguero | D46: 1 | K46: 1 | V46: 1 | W46: 1
A47: 46 viñatero | O47: 1 | Q47: 1 | R47: 1 | S47: 1 | T47: 1 | V47: 1 | W47: 1
A48: 47 yanacón | O48: 1 | P48: 1 | Q48: 1 | T48: 1 | V48: 1 | W48: 1
A50: Cahuzac (1980) | B50: MX | C50: CU | D50: RD | E50: PR | F50: C5 | G50: PN | H50: VE | I50: CO | J50: EC | K50: PE | L50: BO | M50: CH | N50: PA | O50: UR | P50: AR | V50: Dst.a | W50: C5 | X50: PR | Y50: RD | Z50: MX | AA50: PN | AB50: VE | AC50: CU | AD50: CO | AE50: EC | AF50: PE | AG50: BO | AH50: CH | AI50: AR | AJ50: UR | AK50: PA
A51: 01 cacahuero | H51: + | I51: + | V51: 10 campuso | W51: +
A52: 02 cafetalista | B52: + | C52: + | E52: + | V52: 11 colono | X52: + | Y52: +
A53: 03 camilucho | N53: + | O53: + | P53: + | V53: 29 jíbaro | X53: + | Y53: +
A54: 04 campero | N54: + | O54: + | P54: + | V54: 07 campiruso | W54: + | AA54: +
A55: 05 camperuso | H55: + | I55: + | V55: 23 guanaco | W55: + | AA55: +
A56: 06 campirano | F56: + | G56: + | H56: + | I56: + | V56: 17 chilero | W56: + | Z56: + | AA56: +
A57: 07 campiruso | F57: + | G57: + | V57: 27 hulero | W57: + | Z57: + | AA57: +
A58: 08 campista | B58: + | E58: + | F58: + | G58: + | H58: + | V58: 33 macanero | Z58: +
A59: 09 campusano | G59: + | O59: + | P59: + | V59: 34 manuto | Y59: + | AA59: +
A60: 10 campuso | F60: + | V60: 45 veguero | Y60: + | AA60: +
A61: 11 colono | D61: + | E61: + | V61: 08 campista | W61: + | X61: + | Z61: + | AA61: + | AB61: +
A62: 12 comparsa | N62: + | O62: + | P62: + | V62: 19 enmaniguado | X62: + | Y62: + | AC62: +
A63: 13 conuquero | C63: + | D63: + | E63: + | H63: + | I63: + | V63: 02 cafetalista | X63: + | Z63: + | AC63: +
A64: 14 coquero | J64: + | K64: + | L64: + | V64: 42 ranchero | Y64: + | Z64: + | AA64: + | AC64: +
A65: 15 chagrero | I65: + | J65: + | V65: 22 guajiro | Y65: + | AC65: +
A66: 16 changador | N66: + | O66: + | P66: + | V66: 35 montero | Y66: + | AC66: +
A67: 17 chilero | B67: + | F67: + | G67: + | V67: 06 campirano | W67: + | AA67: + | AB67: + | AD67: +
A68: 18 chuncano | N68: + | O68: + | P68: + | V68: 13 conuquero | X68: + | Y68: + | AB68: + | AC68: + | AD68: +
A69: 19 enmaniguado | C69: + | D69: + | E69: + | V69: 01 cacahuero | AB69: + | AD69: +
A70: 20 estanciero | N70: + | O70: + | P70: + | V70: 05 camperuso | AB70: + | AD70: +
A71: 21 gaucho | L71: + | N71: + | O71: + | P71: + | V71: 32 llanero | AB71: + | AD71: +
A72: 22 guajiro | C72: + | D72: + | V72: 40 payazo | AB72: + | AD72: +
A73: 23 guanaco | F73: + | G73: + | V73: 44 sabanero | AB73: + | AD73: +
A74: 24 guaso | C74: + | J74: + | K74: + | L74: + | M74: + | P74: + | V74: 31 lanudo | AB74: + | AD74: + | AE74: +
A75: 25 huasicama | I75: + | J75: + | V75: 36 montubio | Y75: + | AC75: + | AD75: + | AE75: + | AF75: +
A76: 26 huertero | B76: + | K76: + | M76: + | P76: + | V76: 37 paisano | Y76: + | AE76: + | AF76: +
A77: 27 hulero | B77: + | F77: + | G77: + | V77: 15 chagrero | AD77: + | AE77: +
A78: 28 invernador | K78: + | M78: + | N78: + | O78: + | P78: + | V78: 25 huasicama | AD78: + | AE78: +
A79: 29 jíbaro | D79: + | E79: + | V79: 38 pajuerano | AC79: + | AE79: + | AF79: +
A80: 30 lampero | K80: + | L80: + | P80: + | V80: 14 coquero | AE80: + | AF80: + | AG80: +
A81: 31 lanudo | H81: + | I81: + | J81: + | V81: 24 guaso | AC81: + | AE81: + | AF81: + | AG81: + | AH81: + | AI81: +
A82: 32 llanero | H82: + | I82: + | V82: 26 huertero | Z82: + | AF82: + | AH82: + | AI82: +
A83: 33 macanero | B83: + | V83: 43 rondín | AG83: +
A84: 34 manuto | D84: + | G84: + | V84: 30 lampero | AF84: + | AG84: + | AI84: +
A85: 35 montero | C85: + | D85: + | V85: 47 yanacón | AF85: + | AG85: + | AH85: + | AI85: +
A86: 36 montubio | C86: + | D86: + | I86: + | J86: + | K86: + | V86: 09 campusano | AA86: + | AI86: + | AJ86: +
A87: 37 paisano | D87: + | J87: + | K87: + | V87: 39 partidario | AG87: + | AI87: + | AJ87: +
A88: 38 pajuerano | C88: + | J88: + | K88: + | V88: 28 invernador | AF88: + | AH88: + | AI88: + | AJ88: + | AK88: +
A89: 39 partidario | L89: + | O89: + | P89: + | V89: 46 viñatero | AF89: + | AH89: + | AI89: + | AJ89: + | AK89: +
A90: 40 payazo | H90: + | I90: + | V90: 21 gaucho | AG90: + | AI90: + | AJ90: + | AK90: +
A91: 41 piona | N91: + | O91: + | P91: + | V91: 03 camilucho | AI91: + | AJ91: + | AK91: +
A92: 42 ranchero | B92: + | C92: + | D92: + | G92: + | V92: 04 campero | AI92: + | AJ92: + | AK92: +
A93: 43 rondín | L93: + | V93: 12 comparsa | AI93: + | AJ93: + | AK93: +
A94: 44 sabanero | H94: + | I94: + | V94: 16 changador | AI94: + | AJ94: + | AK94: +
A95: 45 veguero | D95: + | G95: + | V95: 18 chuncano | AI95: + | AJ95: + | AK95: +
A96: 46 viñatero | K96: + | M96: + | N96: + | O96: + | P96: + | V96: 20 estanciero | AI96: + | AJ96: + | AK96: +
A97: 47 yanacón | K97: + | L97: + | M97: + | P97: + | V97: 41 piona | AI97: + | AJ97: + | AK97: +
A99: Cahuzac (1980) | B99: AR | C99: BO | D99: C5 | E99: CH | F99: CO | G99: CU | H99: EC | I99: MX | J99: PA | K99: PE | L99: PN | M99: PR | N99: RD | O99: UR | P99: VE
A100: 01 cacahuero | F100: + | P100: +
A101: 02 cafetalista | G101: + | I101: + | M101: +
A102: 03 camilucho | B102: + | J102: + | O102: +
A103: 04 campero | B103: + | J103: + | O103: +
A104: 05 camperuso | F104: + | P104: +
A105: 06 campirano | D105: + | F105: + | L105: + | P105: +
A106: 07 campiruso | D106: + | L106: +
A107: 08 campista | D107: + | I107: + | L107: + | M107: + | P107: +
A108: 09 campusano | B108: + | L108: + | O108: +
A109: 10 campuso | D109: +
A110: 11 colono | M110: + | N110: +
A111: 12 comparsa | B111: + | J111: + | O111: +
A112: 13 conuquero | F112: + | G112: + | M112: + | N112: + | P112: +
A113: 14 coquero | C113: + | H113: + | K113: +
A114: 15 chagrero | F114: + | H114: +
A115: 16 changador | B115: + | J115: + | O115: +
A116: 17 chilero | D116: + | I116: + | L116: +
A117: 18 chuncano | B117: + | J117: + | O117: +
A118: 19 enmaniguado | G118: + | M118: + | N118: +
A119: 20 estanciero | B119: + | J119: + | O119: +
A120: 21 gaucho | B120: + | C120: + | J120: + | O120: +
A121: 22 guajiro | G121: + | N121: +
A122: 23 guanaco | D122: + | L122: +
A123: 24 guaso | B123: + | C123: + | E123: + | G123: + | H123: + | K123: +
A124: 25 huasicama | F124: + | H124: +
A125: 26 huertero | B125: + | E125: + | I125: + | K125: +
A126: 27 hulero | D126: + | I126: + | L126: +
A127: 28 invernador | B127: + | E127: + | J127: + | K127: + | O127: +
A128: 29 jíbaro | M128: + | N128: +
A129: 30 lampero | B129: + | C129: + | K129: +
A130: 31 lanudo | F130: + | H130: + | P130: +
A131: 32 llanero | F131: + | P131: +
A132: 33 macanero | I132: +
A133: 34 manuto | L133: + | N133: +
A134: 35 montero | G134: + | N134: +
A135: 36 montubio | F135: + | G135: + | H135: + | K135: + | N135: +
A136: 37 paisano | H136: + | K136: + | N136: +
A137: 38 pajuerano | G137: + | H137: + | K137: +
A138: 39 partidario | B138: + | C138: + | O138: +
A139: 40 payazo | F139: + | P139: +
A140: 41 piona | B140: + | J140: + | O140: +
A141: 42 ranchero | G141: + | I141: + | L141: + | N141: +
A142: 43 rondín | C142: +
A143: 44 sabanero | F143: + | P143: +
A144: 45 veguero | L144: + | N144: +
A145: 46 viñatero | B145: + | E145: + | J145: + | K145: + | O145: +
A146: 47 yanacón | B146: + | C146: + | E146: + | K146: +
A148: L.Varilex | B148: CPT | C148: INGLÉS | D148: ##PAÍS
A149: americana | B149: A001 | C149: Jacket | D149: ES
A150: americana | B150: A001 | C150: Jacket | D150: GE
A151: americana | B151: A001 | C151: Jacket | D151: PE
A152: americana | B152: A001 | C152: Jacket | D152: PR
A153: capa | B153: A001 | C153: Jacket | D153: MA
A154: chaleco | B154: A001 | C154: Jacket | D154: CU
A155: chaleco | B155: A001 | C155: Jacket | D155: PR
A156: chaqueta | B156: A001 | C156: Jacket | D156: CH
A157: chaqueta | B157: A001 | C157: Jacket | D157: CO
A158: chaqueta | B158: A001 | C158: Jacket | D158: CR
A159: chaqueta | B159: A001 | C159: Jacket | D159: CU
A160: chaqueta | B160: A001 | C160: Jacket | D160: ES
A161: chaqueta | B161: A001 | C161: Jacket | D161: EU
A162: chaqueta | B162: A001 | C162: Jacket | D162: GE
A163: chaqueta | B163: A001 | C163: Jacket | D163: MA
A164: chaqueta | B164: A001 | C164: Jacket | D164: PR
A165: chaqueta | B165: A001 | C165: Jacket | D165: RD
A166: chaqueta | B166: A001 | C166: Jacket | D166: VE
A167: gabán | B167: A001 | C167: Jacket | D167: EU
A168: gabán | B168: A001 | C168: Jacket | D168: PR
A169: leva | B169: A001 | C169: Jacket | D169: EU
A170: saco | B170: A001 | C170: Jacket | D170: AR
A171: saco | B171: A001 | C171: Jacket | D171: BO
A172: saco | B172: A001 | C172: Jacket | D172: CO
A173: saco | B173: A001 | C173: Jacket | D173: CR
A174: saco | B174: A001 | C174: Jacket | D174: CU
A175: saco | B175: A001 | C175: Jacket | D175: EL
A176: saco | B176: A001 | C176: Jacket | D176: EU
A177: saco | B177: A001 | C177: Jacket | D177: GU
A178: saco | B178: A001 | C178: Jacket | D178: HO
A179: saco | B179: A001 | C179: Jacket | D179: MX
A180: saco | B180: A001 | C180: Jacket | D180: NI
A181: saco | B181: A001 | C181: Jacket | D181: PA
A182: saco | B182: A001 | C182: Jacket | D182: PE
A183: saco | B183: A001 | C183: Jacket | D183: PN
A184: saco | B184: A001 | C184: Jacket | D184: PR
A185: saco | B185: A001 | C185: Jacket | D185: RD
A186: saco | B186: A001 | C186: Jacket | D186: UR
A187: saco | B187: A001 | C187: Jacket | D187: VE
A188: saco de terno | B188: A001 | C188: Jacket | D188: BO
A189: saco de terno | B189: A001 | C189: Jacket | D189: EU
A190: saco de terno | B190: A001 | C190: Jacket | D190: PE
A191: saco de traje | B191: A001 | C191: Jacket | D191: AR
A192: saco de traje | B192: A001 | C192: Jacket | D192: CU
A193: saco de traje | B193: A001 | C193: Jacket | D193: MX
A194: saco de traje | B194: A001 | C194: Jacket | D194: NI
A195: traje | B195: A001 | C195: Jacket | D195: CU
A196: traje | B196: A001 | C196: Jacket | D196: ES
A197: traje | B197: A001 | C197: Jacket | D197: MA
A198: traje | B198: A001 | C198: Jacket | D198: RD
A199: vestón | B199: A001 | C199: Jacket | D199: CH
A200: abrigo | B200: A002 | C200: Cardigan | D200: CU
A201: abrigo | B201: A002 | C201: Cardigan | D201: NI
A202: abrigo | B202: A002 | C202: Cardigan | D202: PN
A203: abrigo | B203: A002 | C203: Cardigan | D203: PR
... 1949 more rows

Sheet gaf.chaq
A1: N.eyeglasses | B1: ES | C1: MX | D1: GU | E1: HO | F1: EL | G1: NI | H1: CR | I1: PN | J1: CU | K1: RD | L1: PR | M1: CO | N1: VE | O1: EC | P1: PE | Q1: BO | R1: CH | S1: PA | T1: UR | U1: AR
A2: anteojos | B2: 0 | C2: 1 | D2: 1 | E2: 1 | F2: 1 | G2: 1 | H2: 1 | I2: 1 | J2: 0 | K2: 0 | L2: 1 | M2: 1 | N2: 1 | O2: 1 | P2: 1 | Q2: 1 | R2: 1 | S2: 1 | T2: 1 | U2: 1
A3: espejuelos | B3: 0 | C3: 0 | D3: 0 | E3: 0 | F3: 0 | G3: 1 | H3: 0 | I3: 1 | J3: 1 | K3: 1 | L3: 1 | M3: 0 | N3: 0 | O3: 0 | P3: 0 | Q3: 0 | R3: 0 | S3: 0 | T3: 0 | U3: 0
A4: gafas | B4: 1 | C4: 1 | D4: 0 | E4: 0 | F4: 0 | G4: 0 | H4: 0 | I4: 1 | J4: 0 | K4: 1 | L4: 0 | M4: 1 | N4: 0 | O4: 1 | P4: 0 | Q4: 0 | R4: 0 | S4: 0 | T4: 0 | U4: 0
A5: lentes | B5: 0 | C5: 1 | D5: 1 | E5: 0 | F5: 0 | G5: 0 | H5: 0 | I5: 1 | J5: 0 | K5: 1 | L5: 0 | M5: 0 | N5: 1 | O5: 0 | P5: 1 | Q5: 1 | R5: 1 | S5: 1 | T5: 1 | U5: 0
A7: Cor.n | B7: AR | C7: BO | D7: CO | E7: CU | F7: EL | G7: ES | H7: GU | I7: PN | J7: PR | K7: RD
A8: esp. | E8: + | I8: + | J8: + | K8: +
A9: gaf. | B9: + | D9: + | G9: + | I9: + | K9: +
A10: ant. | B10: + | D10: + | F10: + | H10: + | I10: + | J10: +
A11: len. | B11: + | C11: + | H11: + | I11: + | K11: +
A13: Cor.a | B13: BO | C13: ES | D13: AR | E13: CO | F13: GU | G13: EL | H13: PN | I13: RD | J13: PR | K13: CU
A14: gaf. | C14: + | D14: + | E14: + | H14: + | I14: +
A15: len. | B15: + | D15: + | F15: + | H15: + | I15: +
A16: ant. | D16: + | E16: + | F16: + | G16: + | H16: + | J16: +
A17: esp. | H17: + | I17: + | J17: + | K17: +
A19: nZD.a | B19: BO | C19: ES | D19: AR | E19: CO | F19: GU | G19: EL | H19: PN | I19: RD | J19: PR | K19: CU
A20: gaf. | C20: + | D20: + | E20: + | H20: + | I20: +
A21: len. | B21: + | D21: + | F21: + | H21: + | I21: +
A22: ant. | D22: + | E22: + | F22: + | G22: + | H22: + | J22: +
A23: esp. | H23: + | I23: + | J23: + | K23: +
A25: 7 順列連番相関集中 | B25: CU | C25: ES | D25: PR | E25: CO | F25: RD | G25: PN | H25: EL | I25: AR | J25: GU | K25: BO
A26: esp. | B26: + | D26: + | F26: + | G26: +
A27: gaf. | C27: + | E27: + | F27: + | G27: + | I27: +
A28: ant. | D28: + | E28: + | G28: + | H28: + | I28: + | J28: +
A29: len. | F29: + | G29: + | I29: + | J29: + | K29: +
A31: 8 順列参照相関集中 | B31: ES | C31: BO | D31: AR | E31: CO | F31: GU | G31: RD | H31: PN | I31: EL | J31: PR | K31: CU
A32: gaf. | B32: + | D32: + | E32: + | G32: + | H32: +
A33: len. | C33: + | D33: + | F33: + | G33: + | H33: +
A34: ant. | D34: + | E34: + | F34: + | H34: + | I34: + | J34: +
A35: esp. | G35: + | H35: + | J35: + | K35: +
A37: 9 順列連番近接集中 | B37: CU | C37: ES | D37: PR | E37: CO | F37: RD | G37: PN | H37: EL | I37: AR | J37: GU | K37: BO
A38: esp. | B38: + | D38: + | F38: + | G38: +
A39: gaf. | C39: + | E39: + | F39: + | G39: + | I39: +
A40: ant. | D40: + | E40: + | G40: + | H40: + | I40: + | J40: +
A41: len. | F41: + | G41: + | I41: + | J41: + | K41: +
A43: 10 順列参照近接集中 | B43: CU | C43: ES | D43: PR | E43: CO | F43: RD | G43: PN | H43: EL | I43: AR | J43: GU | K43: BO
A44: esp. | B44: + | D44: + | F44: + | G44: +
A45: gaf. | C45: + | E45: + | F45: + | G45: + | I45: +
A46: ant. | D46: + | E46: + | G46: + | H46: + | I46: + | J46: +
A47: len. | F47: + | G47: + | I47: + | J47: + | K47: +
A49: 11 順列G.K.順序集中 | B49: ES | C49: CO | D49: EL | E49: AR | F49: GU | G49: PN | H49: BO | I49: RD | J49: PR | K49: CU
A50: gaf. | B50: + | C50: + | E50: + | G50: + | I50: +
A51: ant. | C51: + | D51: + | E51: + | F51: + | G51: + | J51: +
A52: len. | E52: + | F52: + | G52: + | H52: + | I52: +
A53: esp. | G53: + | I53: + | J53: + | K53: +
A58: 12 順列結合集中 | B58: CU | C58: PR | D58: EL | E58: CO | F58: PN | G58: ES | H58: RD | I58: AR | J58: GU | K58: BO
A59: esp. | B59: + | C59: + | F59: + | H59: +
A60: ant. | C60: + | D60: + | E60: + | F60: + | I60: + | J60: +
A61: gaf. | E61: + | F61: + | G61: + | H61: + | I61: +
A62: len. | F62: + | H62: + | I62: + | J62: + | K62: +
A67: 13 順列緊密集中 | B67: ES | C67: BO | D67: AR | E67: CO | F67: GU | G67: RD | H67: PN | I67: EL | J67: PR | K67: CU
A68: gaf. | B68: + | D68: + | E68: + | G68: + | H68: +
A69: len. | C69: + | D69: + | F69: + | G69: + | H69: +
A70: ant. | D70: + | E70: + | F70: + | H70: + | I70: + | J70: +
A71: esp. | G71: + | H71: + | J71: + | K71: +
A76: 7 順列連番相関集中 | B76: CU | C76: ES | D76: PR | E76: CO | F76: RD | G76: PN | H76: EL | I76: AR | J76: GU | K76: BO
A77: esp. | B77: + | D77: + | F77: + | G77: +
A78: gaf. | C78: + | E78: + | F78: + | G78: + | I78: +
A79: ant. | D79: + | E79: + | G79: + | H79: + | I79: + | J79: +
A80: len. | F80: + | G80: + | I80: + | J80: + | K80: +
A82: Column | B82: CU | C82: ES | D82: PR | E82: CO | F82: RD | G82: PN | H82: EL | I82: AR | J82: GU | K82: BO
A83: Yp | C83: 0.3333333333 | D83: 0.4700474214 | E83: 0.5320823503 | F83: 0.632597317 | G83: 0.6413392461 | H83: 0.6666666667 | I83: 0.7358447766 | J83: 0.8566728303 | K83: 1
A85: 8 順列参照相関集中 | B85: ES | C85: BO | D85: AR | E85: CO | F85: GU | G85: RD | H85: PN | I85: EL | J85: PR | K85: CU
A86: gaf. | B86: + | D86: + | E86: + | G86: + | H86: +
A87: len. | C87: + | D87: + | F87: + | G87: + | H87: +
A88: ant. | D88: + | E88: + | F88: + | H88: + | I88: + | J88: +
A89: esp. | G89: + | H89: + | J89: + | K89: +
A91: Column | B91: ES | C91: BO | D91: AR | E91: CO | F91: GU | G91: RD | H91: PN | I91: EL | J91: PR | K91: CU
A92: Yp | C92: 0.3333333333 | D92: 0.429809495 | E92: 0.4700474214 | F92: 0.5320823503 | G92: 0.632597317 | H92: 0.6413392461 | I92: 0.6666666667 | J92: 0.8566728303 | K92: 1
A94: 9 順列連番近接集中 | B94: CU | C94: ES | D94: PR | E94: CO | F94: RD | G94: PN | H94: EL | I94: AR | J94: GU | K94: BO
A95: esp. | B95: + | D95: + | F95: + | G95: +
A96: gaf. | C96: + | E96: + | F96: + | G96: + | I96: +
A97: ant. | D97: + | E97: + | G97: + | H97: + | I97: + | J97: +
A98: len. | F98: + | G98: + | I98: + | J98: + | K98: +
A100: Column | B100: CU | C100: ES | D100: PR | E100: CO | F100: RD | G100: PN | H100: EL | I100: AR | J100: GU | K100: BO
A101: Yp | C101: 0.3333333333 | D101: 0.4700474214 | E101: 0.5320823503 | F101: 0.632597317 | G101: 0.6413392461 | H101: 0.6666666667 | I101: 0.7358447766 | J101: 0.8566728303 | K101: 1
A103: 10 順列参照近接集中 | B103: CU | C103: ES | D103: PR | E103: CO | F103: RD | G103: PN | H103: EL | I103: AR | J103: GU | K103: BO
A104: esp. | B104: + | D104: + | F104: + | G104: +
A105: gaf. | C105: + | E105: + | F105: + | G105: + | I105: +
A106: ant. | D106: + | E106: + | G106: + | H106: + | I106: + | J106: +
A107: len. | F107: + | G107: + | I107: + | J107: + | K107: +
A109: Column | B109: CU | C109: ES | D109: PR | E109: CO | F109: RD | G109: PN | H109: EL | I109: AR | J109: GU | K109: BO
A110: Yp | C110: 0.3333333333 | D110: 0.4700474214 | E110: 0.5320823503 | F110: 0.632597317 | G110: 0.6413392461 | H110: 0.6666666667 | I110: 0.7358447766 | J110: 0.8566728303 | K110: 1
A112: 11 順列G.K.順序集中 | B112: ES | C112: CO | D112: EL | E112: AR | F112: GU | G112: PN | H112: BO | I112: RD | J112: PR | K112: CU
A113: gaf. | B113: + | C113: + | E113: + | G113: + | I113: +
A114: ant. | C114: + | D114: + | E114: + | F114: + | G114: + | J114: +
A115: len. | E115: + | F115: + | G115: + | H115: + | I115: +
A116: esp. | G116: + | I116: + | J116: + | K116: +
A118: Column | B118: ES | C118: CO | D118: EL | E118: AR | F118: GU | G118: PN | H118: BO | I118: RD | J118: PR | K118: CU
A119: Yp | C119: 0.2169878748 | D119: 0.3333333333 | E119: 0.429809495 | F119: 0.5320823503 | G119: 0.6413392461 | H119: 0.6666666667 | I119: 0.7100268748 | J119: 0.7673090829 | K119: 1
A121: 12 順列結合集中 | B121: CU | C121: PR | D121: EL | E121: CO | F121: PN | G121: ES | H121: RD | I121: AR | J121: GU | K121: BO
A122: esp. | B122: + | C122: + | F122: + | H122: +
A123: ant. | C123: + | D123: + | E123: + | F123: + | I123: + | J123: +
A124: gaf. | E124: + | F124: + | G124: + | H124: + | I124: +
A125: len. | F125: + | H125: + | I125: + | J125: + | K125: +
A127: Column | B127: CU | C127: PR | D127: EL | E127: CO | F127: PN | G127: ES | H127: RD | I127: AR | J127: GU | K127: BO
A128: Yp | C128: 0.2169878748 | D128: 0.3333333333 | E128: 0.5320823503 | F128: 0.6413392461 | G128: 0.6666666667 | H128: 0.7100268748 | I128: 0.7358447766 | J128: 0.7673090829 | K128: 1
A130: 13 順列緊密集中 | B130: ES | C130: BO | D130: AR | E130: CO | F130: GU | G130: RD | H130: PN | I130: EL | J130: PR | K130: CU
A131: gaf. | B131: + | D131: + | E131: + | G131: + | H131: +
A132: len. | C132: + | D132: + | F132: + | G132: + | H132: +
A133: ant. | D133: + | E133: + | F133: + | H133: + | I133: + | J133: +
A134: esp. | G134: + | H134: + | J134: + | K134: +
A136: Column | B136: ES | C136: BO | D136: AR | E136: CO | F136: GU | G136: RD | H136: PN | I136: EL | J136: PR | K136: CU
A137: Yp | C137: 0.3333333333 | D137: 0.429809495 | E137: 0.4700474214 | F137: 0.5320823503 | G137: 0.632597317 | H137: 0.6413392461 | I137: 0.6666666667 | J137: 0.8566728303 | K137: 1
A140: Forma | B140: ES | C140: MX | D140: GU | E140: EL | F140: CR | G140: PN | H140: CU | I140: RD | J140: PR | K140: EC | L140: CO
A141: anteojos | C141: + | D141: + | E141: + | F141: + | G141: + | J141: + | L141: +
A142: espejuelos | G142: + | H142: + | I142: + | J142: +
A143: gafas | B143: + | C143: + | G143: + | I143: + | K143: + | L143: +
A144: lentes | C144: + | D144: + | G144: + | I144: +
A146: nZD.c | B146: CU | C146: ES | D146: EC | E146: PR | F146: CO | G146: RD | H146: PN | I146: EL | J146: CR | K146: MX | L146: AR
A147: anteojos | E147: + | F147: + | H147: + | I147: + | J147: + | K147: + | L147: +
A148: espejuelos | B148: + | E148: + | G148: + | H148: +
A149: gafas | C149: + | D149: + | F149: + | G149: + | H149: + | K149: + | L149: +
A150: lentes | G150: + | H150: + | K150: + | L150: +
A152: Column | B152: CU | C152: ES | D152: EC | E152: PR | F152: CO | G152: RD | H152: PN | I152: EL | J152: CR | K152: MX | L152: AR
A153: Yp | C153: 0.5664043291 | D153: 0.5664043291 | E153: 0.6097446244 | F153: 0.682241181 | G153: 0.7330438079 | H153: 0.7421556405 | I153: 0.7682300873 | J153: 0.7682300873 | K153: 0.8168479774 | L153: 0.8168479774
A155: Forma | B155: ES | C155: GE | D155: CU | E155: RD | F155: PR | G155: MX | H155: GU | I155: HO | J155: EL | K155: NI | L155: CR | M155: PN | N155: CO | O155: VE | P155: EC | Q155: PE | R155: BO | S155: CH | T155: PA | U155: UR | V155: AR | W155: Sum
A156: americana | B156: 1 | C156: 1 | W156: 2
A157: chaqueta | B157: 1 | C157: 1 | D157: 1 | E157: 1 | F157: 1 | L157: 1 | N157: 1 | O157: 1 | P157: 1 | S157: 1 | W157: 10
A158: gabán | F158: 1 | W158: 1
A159: saco | D159: 1 | E159: 1 | F159: 1 | G159: 1 | H159: 1 | I159: 1 | J159: 1 | K159: 1 | L159: 1 | M159: 1 | N159: 1 | O159: 1 | Q159: 1 | R159: 1 | T159: 1 | U159: 1 | V159: 1 | W159: 17
A160: saco de terno | P160: 1 | Q160: 1 | R160: 1 | W160: 3
A161: saco de traje | D161: 1 | G161: 1 | U161: 1 | V161: 1 | W161: 4
A162: vestón | S162: 1 | W162: 1
A164: M*M | B164: ES | C164: GE | D164: CU | E164: RD | F164: PR | G164: MX | H164: GU | I164: HO | J164: EL | K164: NI | L164: CR | M164: PN | N164: CO | O164: VE | P164: EC | Q164: PE | R164: BO | S164: CH | T164: PA | U164: UR | V164: AR | X164: Dst.a | Y164: CH | Z164: ES | AA164: GE | AB164: EC | AC164: CU | AD164: PR | AE164: RD | AF164: CR | AG164: CO | AH164: VE | AI164: MX | AJ164: UR | AK164: AR | AL164: PE | AM164: BO | AN164: GU | AO164: HO | AP164: EL | AQ164: NI | AR164: PN | AS164: PA
A165: americana | B165: 2 | C165: 2 | X165: chaqueta | Y165: 10 | Z165: 10 | AA165: 10 | AB165: 10 | AC165: 10 | AD165: 10 | AE165: 10 | AF165: 10 | AG165: 10 | AH165: 10
A166: chaqueta | B166: 10 | C166: 10 | D166: 10 | E166: 10 | F166: 10 | L166: 10 | N166: 10 | O166: 10 | P166: 10 | S166: 10 | X166: americana | Z166: 2 | AA166: 2
A167: gabán | F167: 1 | X167: vestón | Y167: 1
A168: saco | D168: 17 | E168: 17 | F168: 17 | G168: 17 | H168: 17 | I168: 17 | J168: 17 | K168: 17 | L168: 17 | M168: 17 | N168: 17 | O168: 17 | Q168: 17 | R168: 17 | T168: 17 | U168: 17 | V168: 17 | X168: saco de traje | AC168: 4 | AI168: 4 | AJ168: 4 | AK168: 4
A169: saco de terno | P169: 3 | Q169: 3 | R169: 3 | X169: saco de terno | AB169: 3 | AL169: 3 | AM169: 3
A170: saco de traje | D170: 4 | G170: 4 | U170: 4 | V170: 4 | X170: gabán | AD170: 1
A171: vestón | S171: 1 | X171: saco | AC171: 17 | AD171: 17 | AE171: 17 | AF171: 17 | AG171: 17 | AH171: 17 | AI171: 17 | AJ171: 17 | AK171: 17 | AL171: 17 | AM171: 17 | AN171: 17 | AO171: 17 | AP171: 17 | AQ171: 17 | AR171: 17 | AS171: 17
A173: Value | B173: ES | C173: GE | D173: CU | E173: RD | F173: PR | G173: MX | H173: GU | I173: HO | J173: EL | K173: NI | L173: CR | M173: PN | N173: CO | O173: VE | P173: EC | Q173: PE | R173: BO | S173: CH | T173: PA | U173: UR | V173: AR | X173: Horizontal | Y173: Sum
A174: Sum | B174: 12 | C174: 12 | D174: 31 | E174: 27 | F174: 28 | G174: 21 | H174: 17 | I174: 17 | J174: 17 | K174: 17 | L174: 27 | M174: 17 | N174: 27 | O174: 27 | P174: 13 | Q174: 20 | R174: 20 | S174: 11 | T174: 17 | U174: 21 | V174: 21 | X174: Sum | Y174: 420
A176: M/M | B176: ES | C176: GE | D176: CU | E176: RD | F176: PR | G176: MX | H176: GU | I176: HO | J176: EL | K176: NI | L176: CR | M176: PN | N176: CO | O176: VE | P176: EC | Q176: PE | R176: BO | S176: CH | T176: PA | U176: UR | V176: AR
A177: Sum | B177: 0.02857142857 | C177: 0.02857142857 | D177: 0.07380952381 | E177: 0.06428571429 | F177: 0.06666666667 | G177: 0.05 | H177: 0.04047619048 | I177: 0.04047619048 | J177: 0.04047619048 | K177: 0.04047619048 | L177: 0.06428571429 | M177: 0.04047619048 | N177: 0.06428571429 | O177: 0.06428571429 | P177: 0.03095238095 | Q177: 0.04761904762 | R177: 0.04761904762 | S177: 0.02619047619 | T177: 0.04047619048 | U177: 0.05 | V177: 0.05
A179: RSh.p | B179: ES | C179: GE | D179: CU | E179: RD | F179: PR | G179: MX | H179: GU | I179: HO | J179: EL | K179: NI | L179: CR | M179: PN | N179: CO | O179: VE | P179: EC | Q179: PE | R179: BO | S179: CH | T179: PA | U179: UR | V179: AR
A180: Sum | B180: 0.3703703704 | C180: 0.3703703704 | D180: 0.6144697721 | E180: 0.578778135 | F180: 0.5882352941 | G180: 0.5128205128 | H180: 0.4576043069 | I180: 0.4576043069 | J180: 0.4576043069 | K180: 0.4576043069 | L180: 0.578778135 | M180: 0.4576043069 | N180: 0.578778135 | O180: 0.578778135 | P180: 0.3898050975 | Q180: 0.5 | R180: 0.5 | S180: 0.3497615262 | T180: 0.4576043069 | U180: 0.5128205128 | V180: 0.5128205128
A182: Forma | B182: ES | C182: GE | D182: CU | E182: RD | F182: PR | G182: MX | H182: GU | I182: HO | J182: EL | K182: NI | L182: CR | M182: PN | N182: CO | O182: VE | P182: EC | Q182: PE | R182: BO | S182: CH | T182: PA | U182: UR | V182: AR | X182: Forma | Y182: americana | Z182: chaqueta | AA182: gabán | AB182: saco | AC182: saco de terno | AD182: saco de traje | AE182: vestón
A183: Sum | B183: 2 | C183: 2 | D183: 3 | E183: 2 | F183: 3 | G183: 2 | H183: 1 | I183: 1 | J183: 1 | K183: 1 | L183: 2 | M183: 1 | N183: 2 | O183: 2 | P183: 2 | Q183: 2 | R183: 2 | S183: 2 | T183: 1 | U183: 2 | V183: 2 | X183: Sum | Y183: 2 | Z183: 10 | AA183: 1 | AB183: 17 | AC183: 3 | AD183: 4 | AE183: 1
A184: G.a.freq. | B184: 12 | C184: 12 | D184: 31 | E184: 27 | F184: 28 | G184: 21 | H184: 17 | I184: 17 | J184: 17 | K184: 17 | L184: 27 | M184: 17 | N184: 27 | O184: 27 | P184: 13 | Q184: 20 | R184: 20 | S184: 11 | T184: 17 | U184: 21 | V184: 21 | X184: G.a.freq. | Y184: 4 | Z184: 22 | AA184: 3 | AB184: 30 | AC184: 6 | AD184: 9 | AE184: 2
A185: G.r.freq. | B185: 0.02857142857 | C185: 0.02857142857 | D185: 0.07380952381 | E185: 0.06428571429 | F185: 0.06666666667 | G185: 0.05 | H185: 0.04047619048 | I185: 0.04047619048 | J185: 0.04047619048 | K185: 0.04047619048 | L185: 0.06428571429 | M185: 0.04047619048 | N185: 0.06428571429 | O185: 0.06428571429 | P185: 0.03095238095 | Q185: 0.04761904762 | R185: 0.04761904762 | S185: 0.02619047619 | T185: 0.04047619048 | U185: 0.05 | V185: 0.05 | X185: G.r.freq. | Y185: 0.05263157895 | Z185: 0.2894736842 | AA185: 0.03947368421 | AB185: 0.3947368421 | AC185: 0.07894736842 | AD185: 0.1184210526 | AE185: 0.02631578947
A186: G.p.r.freq. | B186: 0.3703703704 | C186: 0.3703703704 | D186: 0.6144697721 | E186: 0.578778135 | F186: 0.5882352941 | G186: 0.5128205128 | H186: 0.4576043069 | I186: 0.4576043069 | J186: 0.4576043069 | K186: 0.4576043069 | L186: 0.578778135 | M186: 0.4576043069 | N186: 0.578778135 | O186: 0.578778135 | P186: 0.3898050975 | Q186: 0.5 | R186: 0.5 | S186: 0.3497615262 | T186: 0.4576043069 | U186: 0.5128205128 | V186: 0.5128205128 | X186: G.p.r.freq. | Y186: 0.25 | Z186: 0.7096774194 | AA186: 0.1978021978 | AB186: 0.796460177 | AC186: 0.3396226415 | AD186: 0.4462809917 | AE186: 0.1395348837
A187: P.p.r.freq. | B187: 0.6296296296 | C187: 0.6296296296 | D187: 0.3855302279 | E187: 0.421221865 | F187: 0.4117647059 | G187: 0.4871794872 | H187: 0.5423956931 | I187: 0.5423956931 | J187: 0.5423956931 | K187: 0.5423956931 | L187: 0.421221865 | M187: 0.5423956931 | N187: 0.421221865 | O187: 0.421221865 | P187: 0.6101949025 | Q187: 0.5 | R187: 0.5 | S187: 0.6502384738 | T187: 0.5423956931 | U187: 0.4871794872 | V187: 0.4871794872 | X187: P.p.r.freq. | Y187: 0.75 | Z187: 0.2903225806 | AA187: 0.8021978022 | AB187: 0.203539823 | AC187: 0.6603773585 | AD187: 0.5537190083 | AE187: 0.8604651163

Sheet andaluz
A1: N. Frec / N * 100 | B1: H | C1: SE | D1: CA | E1: MA | F1: CO | G1: J | H1: GR | I1: AL | K1: nZD.a | L1: CA | M1: SE | N1: H | O1: MA | P1: CO | Q1: GR | R1: J | S1: AL | U1: Dst.a | V1: SE | W1: H | X1: CA | Y1: MA | Z1: CO | AA1: J | AB1: AL | AC1: GR | AD1: J | AE1: AL | AF1: GR | AH1: Row | AI1: Xn | AK1: wZD.a | AL1: Value
A2: 1. miel:el>e+ (1533B) | B2: 17 | C2: 10 | D2: 9 | E2: 15 | F2: 20 | G2: 29 | H2: 46 | I2: 30 | K2: 1623C:beber:-ér>é | L2: 15 | M2: 24 | N2: 19 | O2: 19 | P2: 2 | Q2: 4 | R2: 0 | S2: 0 | U2: 1615B:caracol:-ól>ó(:) | V2: 27 | W2: 18 | X2: 15 | Y2: 16 | Z2: 3 | AA2: 1 | AB2: 2 | AC2: 6 | AD2: 1 | AE2: 0 | AF2: 1 | AH2: 1627C:nuez:-éθ>é | AI2: 0 | AK2: Sq.Dist | AL2: 0.4293753102
A3: 2. miel:el>e: (1533C) | B3: 11 | C3: 6 | D3: 4 | E3: 16 | F3: 12 | G3: 11 | H3: 16 | I3: 3 | K3: 1629C:voz:-óθ>ó | L3: 14 | M3: 23 | N3: 18 | O3: 13 | P3: 2 | Q3: 2 | R3: 1 | S3: 1 | U3: 1623C:beber:-ér>é | V3: 24 | W3: 19 | X3: 15 | Y3: 19 | Z3: 2 | AC3: 4 | AD3: 1 | AE3: 0 | AF3: 2 | AH3: 1626D:tos:-ós>ó | AI3: 0.01141095374 | AK3: Rf.Dist | AL3: 0.4894002798
A4: 3. caracol:-ól>ó+: (1615A) | B4: 2 | C4: 3 | D4: 3 | E4: 5 | F4: 15 | G4: 14 | H4: 19 | I4: 11 | K4: 1626D:tos:-ós>ó | L4: 11 | M4: 22 | N4: 10 | O4: 9 | P4: 2 | Q4: 2 | R4: 1 | S4: 0 | U4: 1629C:voz:-óθ>ó | V4: 23 | W4: 18 | X4: 14 | Y4: 13 | Z4: 2 | AA4: 1 | AB4: 1 | AC4: 2 | AD4: 1 | AE4: 1 | AF4: 2 | AH4: 1629C:voz:-óθ>ó | AI4: 0.02274319649 | AK4: Sq.Correl. | AL4: 0.9246617603
A5: 4. caracol:-ól>ó: (1615B) | B5: 18 | C5: 27 | D5: 15 | E5: 16 | F5: 3 | G5: 1 | H5: 6 | I5: 2 | K5: 1627C:nuez:-éθ>é | L5: 12 | M5: 16 | N5: 12 | O5: 9 | P5: 3 | Q5: 1 | R5: 1 | S5: 0 | U5: 1626D:tos:-ós>ó | V5: 22 | W5: 10 | X5: 11 | Y5: 9 | Z5: 2 | AA5: 1 | AC5: 2 | AD5: 0 | AE5: 0 | AF5: 4 | AH5: 1623C:beber:-ér>é | AI5: 0.0895237161 | AK5: Rf.Correl. | AL5: 0.9142448764
A6: 5. árbol:-ol>o+ (1616A) | B6: 2 | C6: 1 | D6: 0 | E6: 0 | F6: 6 | G6: 8 | H6: 6 | I6: 6 | K6: 1618B:sol:-ól>ó(:) | L6: 15 | M6: 21 | N6: 15 | O6: 13 | P6: 1 | Q6: 6 | R6: 1 | S6: 1 | U6: 1618B:sol:-ól>ó(:) | V6: 21 | W6: 15 | X6: 15 | Y6: 13 | Z6: 1 | AA6: 1 | AB6: 1 | AC6: 6 | AD6: 2 | AE6: 1 | AF6: 1 | AH6: 1695C:claveles:-e-es>-e-e: | AI6: 0.1096248067 | AK6: Union | AL6: 0.9489595603
A7: 6. árbol:-ol>o (1616B) | B7: 23 | C7: 30 | D7: 17 | E7: 26 | F7: 18 | G7: 11 | H7: 23 | I7: 11 | K7: 1615B:caracol:-ól>ó(:) | L7: 15 | M7: 27 | N7: 18 | O7: 16 | P7: 3 | Q7: 6 | R7: 1 | S7: 2 | U7: 1616B:árbol:-ol>o | V7: 30 | W7: 23 | X7: 17 | Y7: 26 | Z7: 18 | AA7: 11 | AB7: 11 | AC7: 23 | AD7: 1 | AE7: 2 | AF7: 6 | AH7: 1615B:caracol:-ól>ó(:) | AI7: 0.1364434072 | AK7: Tightness | AL7: 0.5612604672
A8: 7. sol:-ól>ó+: (1618A) | B8: 7 | C8: 9 | D8: 3 | E8: 13 | F8: 13 | G8: 12 | H8: 19 | I8: 11 | K8: 1616B:árbol:-ol>o | L8: 17 | M8: 30 | N8: 23 | O8: 26 | P8: 18 | Q8: 23 | R8: 11 | S8: 11 | U8: 1627C:nuez:-éθ>é | V8: 16 | W8: 12 | X8: 12 | Y8: 9 | Z8: 3 | AA8: 1 | AC8: 1 | AD8: 1 | AE8: 1 | AF8: 6 | AH8: 1618B:sol:-ól>ó(:) | AI8: 0.1391297875 | AK8: G.K. Rank | AL8: 0.3301255691
A9: 8. sol:-ól>ó: (1618B) | B9: 15 | C9: 21 | D9: 15 | E9: 13 | F9: 1 | G9: 1 | H9: 6 | I9: 1 | K9: 1693B:redes:redes>re+ | L9: 4 | M9: 6 | N9: 14 | O9: 12 | P9: 3 | Q9: 16 | R9: 6 | S9: 6 | U9: 1695C:claveles:-e-es>-e-e: | V9: 1 | Y9: 3 | Z9: 1 | AA9: 2 | AB9: 1 | AC9: 1 | AD9: 2 | AE9: 3 | AF9: 4 | AH9: 1695A:claveles:e-es>-e-e+ | AI9: 0.2617166092 | AK9: G.K. Pred.Ver. | AL9: 0.07110208273
A10: 9. beber:-ér>é+l (1623A) | B10: 2 | C10: 0 | D10: 0 | E10: 1 | F10: 10 | G10: 11 | H10: 19 | I10: 20 | K10: 1533C:miel:el>e: | L10: 4 | M10: 6 | N10: 11 | O10: 16 | P10: 12 | Q10: 16 | R10: 11 | S10: 3 | U10: 1629A:voz:-óθ>óh | V10: 3 | W10: 5 | Y10: 1 | Z10: 1 | AA10: 1 | AB10: 3 | AC10: 5 | AD10: 1 | AE10: 3 | AF10: 5 | AH10: 1629A:voz:-óθ>óh | AI10: 0.2790966918 | AK10: G.K. Pred.Hor. | AL10: 0.02066638507
A11: 10. beber:-ér>é+ (1623B) | B11: 4 | C11: 7 | D11: 3 | E11: 6 | F11: 13 | G11: 17 | H11: 15 | I11: 8 | K11: 1629A:voz:-óθ>óh | L11: 0 | M11: 3 | N11: 5 | O11: 1 | P11: 1 | Q11: 5 | R11: 1 | S11: 3 | U11: 1695A:claveles:e-es>-e-e+ | V11: 2 | Y11: 4 | Z11: 2 | AA11: 2 | AB11: 3 | AC11: 4 | AD11: 3 | AE11: 3 | AF11: 8 | AH11: 1627A:nuez:-éθ>é+h | AI11: 0.4017959493 | AK11: G.K. Pred.All. | AL11: 0.04354838654
A12: 11. beber:-ér>é (1623C) | B12: 19 | C12: 24 | D12: 15 | E12: 19 | F12: 2 | G12: 0 | H12: 4 | I12: 0 | K12: 1695C:claveles:-e-es>-e-e: | L12: 0 | M12: 1 | N12: 0 | O12: 3 | P12: 1 | Q12: 1 | R12: 2 | S12: 1 | U12: 1616A:árbol:-ol>o+ | V12: 1 | W12: 2 | Z12: 6 | AA12: 8 | AB12: 6 | AC12: 6 | AD12: 8 | AE12: 6 | AF12: 6 | AH12: 1616A:árbol:-ol>o+ | AI12: 0.4246803689
A13: 12. tos:-ós>ó+h (1626A) | B13: 6 | C13: 2 | D13: 2 | E13: 4 | F13: 7 | G13: 13 | H13: 17 | I13: 9 | K13: 1618A:sol:-ól>ó+(:) | L13: 3 | M13: 9 | N13: 7 | O13: 13 | P13: 13 | Q13: 19 | R13: 12 | S13: 11 | U13: 1694C:clavel:-él>ér | AA13: 1 | AB13: 1 | AC13: 5 | AD13: 1 | AE13: 1 | AF13: 5 | AH13: 1694C:clavel:-él>ér | AI13: 0.4395374982
A14: 13. tos:o++ (1626C) | B14: 0 | C14: 0 | D14: 0 | E14: 2 | F14: 7 | G14: 10 | H14: 18 | I14: 12 | K14: 1627A:nuez:-éθ>é+h | L14: 1 | M14: 2 | N14: 5 | O14: 0 | P14: 2 | Q14: 8 | R14: 3 | S14: 3 | U14: 1627A:nuez:-éθ>é+h | V14: 2 | W14: 5 | X14: 1 | Z14: 2 | AA14: 3 | AB14: 3 | AC14: 8 | AD14: 4 | AE14: 0 | AF14: 7 | AH14: 1693C:redes:redes>reh | AI14: 0.4471162798
A15: 14. tos:-ós>ó+ (1626D) | B15: 7 | C15: 7 | D15: 5 | E15: 13 | F15: 18 | G15: 17 | H15: 27 | I15: 19 | K15: 1695A:claveles:e-es>-e-e+ | L15: 0 | M15: 2 | N15: 0 | O15: 4 | P15: 2 | Q15: 4 | R15: 2 | S15: 3 | U15: 1693C:redes:redes>reh | W15: 1 | X15: 2 | Z15: 1 | AA15: 4 | AC15: 7 | AD15: 3 | AE15: 8 | AF15: 8 | AH15: 1689B:niños:-os>oh[os) | AI15: 0.4612953883
A16: 15. tos:-ós>ó (1626E) | B16: 10 | C16: 22 | D16: 11 | E16: 9 | F16: 2 | G16: 1 | H16: 2 | I16: 0 | K16: 1533B:miel:el>e+ | L16: 9 | M16: 10 | N16: 17 | O16: 15 | P16: 20 | Q16: 46 | R16: 29 | S16: 30 | U16: 1689B:niños:-os>oh[os) | V16: 1 | W16: 4 | Z16: 2 | AA16: 3 | AB16: 8 | AC16: 8 | AD16: 4 | AE16: 5 | AF16: 9 | AH16: 1695D:claveles:e-es>-e-eh | AI16: 0.4614846079
A17: 16. nuez:-éθ>é+h (1627A) | B17: 5 | C17: 2 | D17: 1 | E17: 0 | F17: 2 | G17: 3 | H17: 8 | I17: 3 | K17: 1623B:beber:-ér>é+ | L17: 3 | M17: 7 | N17: 4 | O17: 6 | P17: 13 | Q17: 15 | R17: 17 | S17: 8 | U17: 1695D:claveles:e-es>-e-eh | V17: 1 | W17: 3 | Z17: 5 | AA17: 4 | AB17: 5 | AC17: 9 | AD17: 6 | AE17: 6 | AF17: 16 | AH17: 1693B:redes:redes>re+ | AI17: 0.4853890428
A18: 17. nuez:-éθ>é+ (1627B) | B18: 7 | C18: 13 | D18: 5 | E18: 17 | F18: 20 | G18: 25 | H18: 39 | I18: 26 | K18: 1626C:tos:-ós>ó+ | L18: 5 | M18: 7 | N18: 7 | O18: 13 | P18: 18 | Q18: 27 | R18: 17 | S18: 19 | U18: 1693B:redes:redes>re+ | V18: 6 | W18: 14 | X18: 4 | Y18: 12 | Z18: 3 | AA18: 6 | AB18: 6 | AC18: 16 | AD18: 11 | AE18: 3 | AF18: 16 | AH18: 1533C:miel:el>e: | AI18: 0.4967745999
A19: 18. nuez:e++ (1627C) | B19: 0 | C19: 0 | D19: 0 | E19: 5 | F19: 14 | G19: 18 | H19: 26 | I19: 18 | K19: 1627B:nuez:-éθ>é+ | L19: 5 | M19: 13 | N19: 7 | O19: 17 | P19: 20 | Q19: 39 | R19: 25 | S19: 26 | U19: 1533C:miel:el>e: | V19: 6 | W19: 11 | X19: 4 | Y19: 16 | Z19: 12 | AA19: 11 | AB19: 3 | AC19: 16 | AD19: 11 | AE19: 11 | AF19: 23 | AH19: 1616B:árbol:-ol>o | AI19: 0.5046798364
A20: 19. nuez:-éθ>é (1627D) | B20: 12 | C20: 16 | D20: 12 | E20: 9 | F20: 3 | G20: 1 | H20: 1 | I20: 0 | K20: 1690A:pared:-éd>é+ | L20: 0 | M20: 8 | N20: 6 | O20: 10 | P20: 17 | Q20: 24 | R20: 19 | S20: 11 | U20: 1623B:beber:-ér>é+ | V20: 7 | W20: 4 | X20: 3 | Y20: 6 | Z20: 13 | AA20: 17 | AB20: 8 | AC20: 15 | AD20: 5 | AE20: 15 | AF20: 11 | AH20: 1694A:clavel:-él>-él | AI20: 0.5525323488
A21: 20. voz:-óθ>óh (1629A) | B21: 5 | C21: 3 | D21: 0 | E21: 1 | F21: 1 | G21: 1 | H21: 5 | I21: 3 | K21: 1693C:redes:redes>reh | L21: 2 | M21: 0 | N21: 1 | O21: 0 | P21: 1 | Q21: 7 | R21: 4 | S21: 0 | U21: 1694A:clavel:-él>-él | V21: 2 | W21: 3 | X21: 1 | Y21: 3 | Z21: 6 | AA21: 5 | AB21: 15 | AC21: 11 | AD21: 17 | AE21: 8 | AF21: 15 | AH21: 1623B:beber:-ér>é+ | AI21: 0.5705243879
A22: 21. voz:-óθ>ó+ (1629B) | B22: 3 | C22: 5 | D22: 3 | E22: 12 | F22: 22 | G22: 30 | H22: 44 | I22: 30 | K22: 1626A:tos:-ós>ó+h | L22: 2 | M22: 2 | N22: 6 | O22: 4 | P22: 7 | Q22: 17 | R22: 13 | S22: 9 | U22: 1693A:redes:redes>rede | V22: 2 | W22: 3 | X22: 1 | Y22: 1 | Z22: 4 | AA22: 12 | AB22: 18 | AC22: 8 | AD22: 12 | AE22: 11 | AF22: 19 | AH22: 1618A:sol:-ól>ó+(:) | AI22: 0.573866344
A23: 22. voz:-óθ>ó (1629C) | B23: 18 | C23: 23 | D23: 14 | E23: 13 | F23: 2 | G23: 1 | H23: 2 | I23: 1 | K23: 1615A:caracol:-ól>ó+(:) | L23: 3 | M23: 3 | N23: 2 | O23: 5 | P23: 15 | Q23: 19 | R23: 14 | S23: 11 | U23: 1618A:sol:-ól>ó+(:) | V23: 9 | W23: 7 | X23: 3 | Y23: 13 | Z23: 13 | AA23: 12 | AB23: 11 | AC23: 19 | AD23: 12 | AE23: 18 | AF23: 8 | AH23: 1693A:redes:redes>rede | AI23: 0.5867223198
A24: 23. niños:-os>-o+ (1689A) | B24: 1 | C24: 2 | D24: 0 | E24: 4 | F24: 22 | G24: 31 | H24: 44 | I24: 30 | K24: 1689B:niños:-os>oh[os) | L24: 0 | M24: 1 | N24: 4 | O24: 0 | P24: 2 | Q24: 8 | R24: 3 | S24: 8 | U24: 1626A:tos:-ós>ó+h | V24: 2 | W24: 6 | X24: 2 | Y24: 4 | Z24: 7 | AA24: 13 | AB24: 9 | AC24: 17 | AD24: 13 | AE24: 9 | AF24: 17 | AH24: 1626A:tos:-ós>ó+h | AI24: 0.6089873296
A25: 24. niños:-os>oh (1689B) | B25: 4 | C25: 1 | D25: 0 | E25: 0 | F25: 2 | G25: 3 | H25: 8 | I25: 8 | K25: 1694A:clavel:-él>-él | L25: 1 | M25: 2 | N25: 3 | O25: 3 | P25: 6 | Q25: 11 | R25: 5 | S25: 15 | U25: 1615A:caracol:-ól>ó+(:) | V25: 3 | W25: 2 | X25: 3 | Y25: 5 | Z25: 15 | AA25: 14 | AB25: 11 | AC25: 19 | AD25: 14 | AE25: 11 | AF25: 19 | AH25: 1615A:caracol:-ól>ó+(:) | AI25: 0.6447899007
A26: 25. pared:-éd>é+ (1690A) | B26: 6 | C26: 8 | D26: 0 | E26: 10 | F26: 17 | G26: 19 | H26: 24 | I26: 11 | K26: 1694B:clavel:-él>é+, | L26: 3 | M26: 6 | N26: 0 | O26: 15 | P26: 20 | Q26: 40 | R26: 24 | S26: 29 | U26: 1626C:tos:o++ | Y26: 2 | Z26: 7 | AA26: 10 | AB26: 12 | AC26: 18 | AD26: 10 | AE26: 12 | AF26: 18 | AH26: 1626C:tos:o++ | AI26: 0.6896932551
A27: 26. redes:redes>rede (1693A) | B27: 3 | C27: 2 | D27: 1 | E27: 1 | F27: 4 | G27: 12 | H27: 8 | I27: 18 | K27: 1695D:claveles:e-es>-e-eh | L27: 0 | M27: 1 | N27: 3 | O27: 0 | P27: 5 | Q27: 9 | R27: 4 | S27: 5 | U27: 1690A:pared:-éd>é+ | V27: 8 | W27: 6 | Y27: 10 | Z27: 17 | AA27: 19 | AB27: 11 | AC27: 24 | AD27: 19 | AE27: 11 | AF27: 24 | AH27: 1690A:pared:-éd>é+ | AI27: 0.6912879544
A28: 27. redes:redes>re+ (1693B) | B28: 14 | C28: 6 | D28: 4 | E28: 12 | F28: 3 | G28: 6 | H28: 16 | I28: 6 | K28: 1629B:voz:-óθ>ó+ | L28: 3 | M28: 5 | N28: 3 | O28: 12 | P28: 22 | Q28: 44 | R28: 30 | S28: 30 | U28: 1623A:beber:-ér>é+l | W28: 2 | Y28: 1 | Z28: 10 | AA28: 11 | AB28: 20 | AC28: 19 | AD28: 17 | AE28: 19 | AF28: 27 | AH28: 1626C:tos:-ós>ó+ | AI28: 0.7156387196
A29: 28. redes:redes>reh (1693C) | B29: 1 | C29: 0 | D29: 2 | E29: 0 | F29: 1 | G29: 4 | H29: 7 | I29: 0 | K29: 1616A:árbol:-ol>o+ | L29: 0 | M29: 1 | N29: 2 | O29: 0 | P29: 6 | Q29: 6 | R29: 8 | S29: 6 | U29: 1626C:tos:-ós>ó+ | V29: 7 | W29: 7 | X29: 5 | Y29: 13 | Z29: 18 | AA29: 17 | AB29: 19 | AC29: 27 | AD29: 11 | AE29: 20 | AF29: 19 | AH29: 1623A:beber:-ér>é+l | AI29: 0.7254279033
A30: 29. clavel:-él>-él (1694A) | B30: 3 | C30: 2 | D30: 1 | E30: 3 | F30: 6 | G30: 5 | H30: 11 | I30: 15 | K30: 1693A:redes:redes>rede | L30: 1 | M30: 2 | N30: 3 | O30: 1 | P30: 4 | Q30: 8 | R30: 12 | S30: 18 | U30: 1627C:nuez:e++ | Y30: 5 | Z30: 14 | AA30: 18 | AB30: 18 | AC30: 26 | AD30: 18 | AE30: 18 | AF30: 26 | AH30: 1627C:nuez:e++ | AI30: 0.7969482553
A31: 30. clavel:-él>é+ (1694B) | B31: 0 | C31: 6 | D31: 3 | E31: 15 | F31: 20 | G31: 24 | H31: 40 | I31: 29 | K31: 1695B:claveles:e-es>-e+-e+ | L31: 0 | M31: 1 | N31: 0 | O31: 7 | P31: 18 | Q31: 33 | R31: 24 | S31: 21 | U31: 1695B:claveles:e-es>-e+-e+ | V31: 1 | Y31: 7 | Z31: 18 | AA31: 24 | AB31: 21 | AC31: 33 | AD31: 25 | AE31: 26 | AF31: 39 | AH31: 1627B:nuez:-éθ>é+ | AI31: 0.8477559004
A32: 31. clavel:-él>ér (1694C) | B32: 0 | C32: 0 | D32: 0 | E32: 0 | F32: 0 | G32: 1 | H32: 5 | I32: 1 | K32: 1627C:nuez:e++ | L32: 0 | M32: 0 | N32: 0 | O32: 5 | P32: 14 | Q32: 26 | R32: 18 | S32: 18 | U32: 1627B:nuez:-éθ>é+ | V32: 13 | W32: 7 | X32: 5 | Y32: 17 | Z32: 20 | AA32: 25 | AB32: 26 | AC32: 39 | AD32: 24 | AE32: 21 | AF32: 33 | AH32: 1695B:claveles:e-es>-e+-e+ | AI32: 0.8744382932
A33: 32. claveles:e-es>-e-e+ (1695A) | B33: 0 | C33: 2 | D33: 0 | E33: 4 | F33: 2 | G33: 2 | H33: 4 | I33: 3 | K33: 1689A:niños:-os>-o+ | L33: 0 | M33: 2 | N33: 1 | O33: 4 | P33: 22 | Q33: 44 | R33: 31 | S33: 30 | U33: 1694B:clavel:-él>é+, | V33: 6 | X33: 3 | Y33: 15 | Z33: 20 | AA33: 24 | AB33: 29 | AC33: 40 | AD33: 29 | AE33: 30 | AF33: 46 | AH33: 1533B:miel:el>e+ | AI33: 0.905321521
A34: 33. claveles:e-es>-e+-e+ (1695B) | B34: 0 | C34: 1 | D34: 0 | E34: 7 | F34: 18 | G34: 24 | H34: 33 | I34: 21 | K34: 1626C:tos:o++ | L34: 0 | M34: 0 | N34: 0 | O34: 2 | P34: 7 | Q34: 18 | R34: 10 | S34: 12 | U34: 1533B:miel:el>e+ | V34: 10 | W34: 17 | X34: 9 | Y34: 15 | Z34: 20 | AA34: 29 | AB34: 30 | AC34: 46 | AD34: 24 | AE34: 29 | AF34: 40 | AH34: 1694B:clavel:-él>é+, | AI34: 0.9079338106
A35: 34. claveles:-e-es>-e-e: (1695C) | B35: 0 | C35: 1 | D35: 0 | E35: 3 | F35: 1 | G35: 2 | H35: 1 | I35: 1 | K35: 1623A:beber:-ér>é+l | L35: 0 | M35: 0 | N35: 2 | O35: 1 | P35: 10 | Q35: 19 | R35: 11 | S35: 20 | U35: 1629B:voz:-óθ>ó+ | V35: 5 | W35: 3 | X35: 3 | Y35: 12 | Z35: 22 | AA35: 30 | AB35: 30 | AC35: 44 | AD35: 30 | AE35: 30 | AF35: 44 | AH35: 1629B:voz:-óθ>ó+ | AI35: 0.9537641385
A36: 35. claveles:e-es>-e-eh (1695D) | B36: 3 | C36: 1 | D36: 0 | E36: 0 | F36: 5 | G36: 4 | H36: 9 | I36: 5 | K36: 1694C:clavel:-él>ér | L36: 0 | M36: 0 | N36: 0 | O36: 0 | P36: 0 | Q36: 5 | R36: 1 | S36: 1 | U36: 1689A:niños:-os>-o+ | V36: 2 | W36: 1 | Y36: 4 | Z36: 22 | AA36: 31 | AB36: 30 | AC36: 44 | AD36: 31 | AE36: 30 | AF36: 44 | AH36: 1689A:niños:-os>-o+ | AI36: 1
A38: Cor.A | B38: AL | C38: J | D38: GR | E38: CO | F38: MA | G38: H | H38: SE | I38: CA | K38: Dst.a | L38: SE | M38: H | N38: CA | O38: MA | P38: CO | Q38: J | R38: AL | S38: GR | X38: Column | Y38: CA | Z38: SE | AA38: H | AB38: MA | AC38: CO | AD38: J | AE38: AL | AF38: GR
A39: 1694C:clavel:-él>ér | B39: 1 | C39: 1 | D39: 5 | K39: 1615B:caracol:-ól>ó(:) | L39: 27 | M39: 18 | N39: 15 | O39: 16 | P39: 3 | Q39: 1 | R39: 2 | S39: 6 | X39: Yp | Y39: 0 | Z39: 0.1124830604 | AA39: 0.1458010011 | AB39: 0.3420058323 | AC39: 0.6535238598 | AD39: 0.8129327245 | AE39: 0.8312771547 | AF39: 1
A40: 1626C:tos:o++ | B40: 12 | C40: 10 | D40: 18 | E40: 7 | F40: 2 | K40: 1623C:beber:-ér>é | L40: 24 | M40: 19 | N40: 15 | O40: 19 | P40: 2 | S40: 4
A41: 1623A:beber:-ér>é+l | B41: 20 | C41: 11 | D41: 19 | E41: 10 | F41: 1 | G41: 2 | K41: 1629C:voz:-óθ>ó | L41: 23 | M41: 18 | N41: 14 | O41: 13 | P41: 2 | Q41: 1 | R41: 1 | S41: 2 | U41: Row | V41: Xn | X41: nZD.a | Y41: Value
A42: 1627C:nuez:e++ | B42: 18 | C42: 18 | D42: 26 | E42: 14 | F42: 5 | K42: 1626D:tos:-ós>ó | L42: 22 | M42: 10 | N42: 11 | O42: 9 | P42: 2 | Q42: 1 | S42: 2 | U42: 1626D:tos:-ós>ó | V42: -1 | X42: MaxDiv.C: 8-4 | Y42: 0.5822536349
A43: 1689A:niños:-os>-o+ | B43: 30 | C43: 31 | D43: 44 | E43: 22 | F43: 4 | G43: 1 | H43: 2 | K43: 1618B:sol:-ól>ó(:) | L43: 21 | M43: 15 | N43: 15 | O43: 13 | P43: 1 | Q43: 1 | R43: 1 | S43: 6 | U43: 1627C:nuez:-éθ>é | V43: -0.9813675685 | X43: MaxDiv.V: 8-4 | Y43: 0.6899046302
A44: 1695B:claveles:e-es>-e+-e+ | B44: 21 | C44: 24 | D44: 33 | E44: 18 | F44: 7 | H44: 1 | K44: 1616B:árbol:-ol>o | L44: 30 | M44: 23 | N44: 17 | O44: 26 | P44: 18 | Q44: 11 | R44: 11 | S44: 23 | U44: 1629C:voz:-óθ>ó | V44: -0.9766033178 | X44: Sq.Dist | Y44: 0.4053535577
A45: 1616A:árbol:-ol>o+ | B45: 6 | C45: 8 | D45: 6 | E45: 6 | G45: 2 | H45: 1 | K45: 1627C:nuez:-éθ>é | L45: 16 | M45: 12 | N45: 12 | O45: 9 | P45: 3 | Q45: 1 | S45: 1 | U45: 1623C:beber:-ér>é | V45: -0.95814479 | X45: Rf.Dist | Y45: 0.5143102934
A46: 1693A:redes:redes>rede | B46: 18 | C46: 12 | D46: 8 | E46: 4 | F46: 1 | G46: 3 | H46: 2 | I46: 1 | K46: 1695C:claveles:-e-es>-e-e: | L46: 1 | O46: 3 | P46: 1 | Q46: 2 | R46: 1 | S46: 1 | U46: 1618B:sol:-ól>ó(:) | V46: -0.9388805844 | X46: Sq.Correl. | Y46: 0.8945849705
A47: 1629B:voz:-óθ>ó+ | B47: 30 | C47: 30 | D47: 44 | E47: 22 | F47: 12 | G47: 3 | H47: 5 | I47: 3 | K47: 1629A:voz:-óθ>óh | L47: 3 | M47: 5 | O47: 1 | P47: 1 | Q47: 1 | R47: 3 | S47: 5 | U47: 1615B:caracol:-ól>ó(:) | V47: -0.9142323496 | X47: Rf.Correl. | Y47: 0.8264966208
A48: 1694B:clavel:-él>é+, | B48: 29 | C48: 24 | D48: 40 | E48: 20 | F48: 15 | H48: 6 | I48: 3 | K48: 1695A:claveles:e-es>-e-e+ | L48: 2 | O48: 4 | P48: 2 | Q48: 2 | R48: 3 | S48: 4 | U48: 1616B:árbol:-ol>o | V48: 0.3610162303 | X48: Union | Y48: 0.9230467216
A49: 1695D:claveles:e-es>-e-eh | B49: 5 | C49: 4 | D49: 9 | E49: 5 | G49: 3 | H49: 1 | K49: 1616A:árbol:-ol>o+ | L49: 1 | M49: 2 | P49: 6 | Q49: 8 | R49: 6 | S49: 6 | U49: 1693B:redes:redes>re+ | V49: 0.5998686047 | X49: Tightness | Y49: 0.5819054147
A50: 1694A:clavel:-él>-él | B50: 15 | C50: 5 | D50: 11 | E50: 6 | F50: 3 | G50: 3 | H50: 2 | I50: 1 | K50: 1694C:clavel:-él>ér | Q50: 1 | R50: 1 | S50: 5 | U50: 1629A:voz:-óθ>óh | V50: 0.6301041714 | X50: G.K. Rank | Y50: 0.4174167621
A51: 1615A:caracol:-ól>ó+(:) | B51: 11 | C51: 14 | D51: 19 | E51: 15 | F51: 5 | G51: 2 | H51: 3 | I51: 3 | K51: 1627A:nuez:-éθ>é+h | L51: 2 | M51: 5 | N51: 1 | P51: 2 | Q51: 3 | R51: 3 | S51: 8 | U51: 1533C:miel:el>e: | V51: 0.6904844848 | X51: G.K. Pred.Ver. | Y51: 0.07110208273
A52: 1689B:niños:-os>oh[os) | B52: 8 | C52: 3 | D52: 8 | E52: 2 | G52: 4 | H52: 1 | K52: 1693C:redes:redes>reh | M52: 1 | N52: 2 | P52: 1 | Q52: 4 | S52: 7 | U52: 1627A:nuez:-éθ>é+h | V52: 0.7512084844 | X52: G.K. Pred.Hor. | Y52: 0.02066638507
A53: 1626A:tos:-ós>ó+h | B53: 9 | C53: 13 | D53: 17 | E53: 7 | F53: 4 | G53: 6 | H53: 2 | I53: 2 | K53: 1689B:niños:-os>oh[os) | L53: 1 | M53: 4 | P53: 2 | Q53: 3 | R53: 8 | S53: 8 | U53: 1618A:sol:-ól>ó+(:) | V53: 0.7681313204 | X53: G.K. Pred.All. | Y53: 0.04354838654
A54: 1690A:pared:-éd>é+ | B54: 11 | C54: 19 | D54: 24 | E54: 17 | F54: 10 | G54: 6 | H54: 8 | K54: 1695D:claveles:e-es>-e-eh | L54: 1 | M54: 3 | P54: 5 | Q54: 4 | R54: 5 | S54: 9 | U54: 1695C:claveles:-e-es>-e-e: | V54: 0.7807685181 | X54: Cramer | Y54: 0.2519733518
A55: 1693C:redes:redes>reh | C55: 4 | D55: 7 | E55: 1 | G55: 1 | I55: 2 | K55: 1693B:redes:redes>re+ | L55: 6 | M55: 14 | N55: 4 | O55: 12 | P55: 3 | Q55: 6 | R55: 6 | S55: 16 | U55: 1695A:claveles:e-es>-e-e+ | V55: 0.8186969668 | X55: Complement | Y55: 0.8640531898
A56: 1627B:nuez:-éθ>é+ | B56: 26 | C56: 25 | D56: 39 | E56: 20 | F56: 17 | G56: 7 | H56: 13 | I56: 5 | K56: 1533C:miel:el>e: | L56: 6 | M56: 11 | N56: 4 | O56: 16 | P56: 12 | Q56: 11 | R56: 3 | S56: 16 | U56: 1533B:miel:el>e+ | V56: 0.8195281792
A57: 1626C:tos:-ós>ó+ | B57: 19 | C57: 17 | D57: 27 | E57: 18 | F57: 13 | G57: 7 | H57: 7 | I57: 5 | K57: 1623B:beber:-ér>é+ | L57: 7 | M57: 4 | N57: 3 | O57: 6 | P57: 13 | Q57: 17 | R57: 8 | S57: 15 | U57: 1623B:beber:-ér>é+ | V57: 0.8219883883
A58: 1623B:beber:-ér>é+ | B58: 8 | C58: 17 | D58: 15 | E58: 13 | F58: 6 | G58: 4 | H58: 7 | I58: 3 | K58: 1694A:clavel:-él>-él | L58: 2 | M58: 3 | N58: 1 | O58: 3 | P58: 6 | Q58: 5 | R58: 15 | S58: 11 | U58: 1626C:tos:-ós>ó+ | V58: 0.8321744165
A59: 1533B:miel:el>e+ | B59: 30 | C59: 29 | D59: 46 | E59: 20 | F59: 15 | G59: 17 | H59: 10 | I59: 9 | K59: 1693A:redes:redes>rede | L59: 2 | M59: 3 | N59: 1 | O59: 1 | P59: 4 | Q59: 12 | R59: 18 | S59: 8 | U59: 1627B:nuez:-éθ>é+ | V59: 0.8360228455
A60: 1695A:claveles:e-es>-e-e+ | B60: 3 | C60: 2 | D60: 4 | E60: 2 | F60: 4 | H60: 2 | K60: 1618A:sol:-ól>ó+(:) | L60: 9 | M60: 7 | N60: 3 | O60: 13 | P60: 13 | Q60: 12 | R60: 11 | S60: 19 | U60: 1693C:redes:redes>reh | V60: 0.8371998145
A61: 1618A:sol:-ól>ó+(:) | B61: 11 | C61: 12 | D61: 19 | E61: 13 | F61: 13 | G61: 7 | H61: 9 | I61: 3 | K61: 1626A:tos:-ós>ó+h | L61: 2 | M61: 6 | N61: 2 | O61: 4 | P61: 7 | Q61: 13 | R61: 9 | S61: 17 | U61: 1690A:pared:-éd>é+ | V61: 0.8591393532
A62: 1627A:nuez:-éθ>é+h | B62: 3 | C62: 3 | D62: 8 | E62: 2 | G62: 5 | H62: 2 | I62: 1 | K62: 1615A:caracol:-ól>ó+(:) | L62: 3 | M62: 2 | N62: 3 | O62: 5 | P62: 15 | Q62: 14 | R62: 11 | S62: 19 | U62: 1626A:tos:-ós>ó+h | V62: 0.8660202845
A63: 1695C:claveles:-e-es>-e-e: | B63: 1 | C63: 2 | D63: 1 | E63: 1 | F63: 3 | H63: 1 | K63: 1626C:tos:o++ | O63: 2 | P63: 7 | Q63: 10 | R63: 12 | S63: 18 | U63: 1689B:niños:-os>oh[os) | V63: 0.8915910543
A64: 1533C:miel:el>e: | B64: 3 | C64: 11 | D64: 16 | E64: 12 | F64: 16 | G64: 11 | H64: 6 | I64: 4 | K64: 1690A:pared:-éd>é+ | L64: 8 | M64: 6 | O64: 10 | P64: 17 | Q64: 19 | R64: 11 | S64: 24 | U64: 1615A:caracol:-ól>ó+(:) | V64: 0.8936340716
A65: 1629A:voz:-óθ>óh | B65: 3 | C65: 1 | D65: 5 | E65: 1 | F65: 1 | G65: 5 | H65: 3 | K65: 1623A:beber:-ér>é+l | M65: 2 | O65: 1 | P65: 10 | Q65: 11 | R65: 20 | S65: 19 | U65: 1694A:clavel:-él>-él | V65: 0.8975098347
A66: 1693B:redes:redes>re+ | B66: 6 | C66: 6 | D66: 16 | E66: 3 | F66: 12 | G66: 14 | H66: 6 | I66: 4 | K66: 1626C:tos:-ós>ó+ | L66: 7 | M66: 7 | N66: 5 | O66: 13 | P66: 18 | Q66: 17 | R66: 19 | S66: 27 | U66: 1695D:claveles:e-es>-e-eh | V66: 0.9110703689
A67: 1616B:árbol:-ol>o | B67: 11 | C67: 11 | D67: 23 | E67: 18 | F67: 26 | G67: 23 | H67: 30 | I67: 17 | K67: 1627C:nuez:e++ | O67: 5 | P67: 14 | Q67: 18 | R67: 18 | S67: 26 | U67: 1694B:clavel:-él>é+, | V67: 0.9159621573
A68: 1615B:caracol:-ól>ó(:) | B68: 2 | C68: 1 | D68: 6 | E68: 3 | F68: 16 | G68: 18 | H68: 27 | I68: 15 | K68: 1695B:claveles:e-es>-e+-e+ | L68: 1 | O68: 7 | P68: 18 | Q68: 24 | R68: 21 | S68: 33 | U68: 1629B:voz:-óθ>ó+ | V68: 0.9244731886
A69: 1618B:sol:-ól>ó(:) | B69: 1 | C69: 1 | D69: 6 | E69: 1 | F69: 13 | G69: 15 | H69: 21 | I69: 15 | K69: 1627B:nuez:-éθ>é+ | L69: 13 | M69: 7 | N69: 5 | O69: 17 | P69: 20 | Q69: 25 | R69: 26 | S69: 39 | U69: 1693A:redes:redes>rede | V69: 0.9281573446
A70: 1623C:beber:-ér>é | D70: 4 | E70: 2 | F70: 19 | G70: 19 | H70: 24 | I70: 15 | K70: 1694B:clavel:-él>é+, | L70: 6 | N70: 3 | O70: 15 | P70: 20 | Q70: 24 | R70: 29 | S70: 40 | U70: 1616A:árbol:-ol>o+ | V70: 0.9434378996
A71: 1627C:nuez:-éθ>é | C71: 1 | D71: 1 | E71: 3 | F71: 9 | G71: 12 | H71: 16 | I71: 12 | K71: 1533B:miel:el>e+ | L71: 10 | M71: 17 | N71: 9 | O71: 15 | P71: 20 | Q71: 29 | R71: 30 | S71: 46 | U71: 1695B:claveles:e-es>-e+-e+ | V71: 0.9756536777
A72: 1629C:voz:-óθ>ó | B72: 1 | C72: 1 | D72: 2 | E72: 2 | F72: 13 | G72: 18 | H72: 23 | I72: 14 | K72: 1629B:voz:-óθ>ó+ | L72: 5 | M72: 3 | N72: 3 | O72: 12 | P72: 22 | Q72: 30 | R72: 30 | S72: 44 | U72: 1689A:niños:-os>-o+ | V72: 0.9812736474
A73: 1626D:tos:-ós>ó | C73: 1 | D73: 2 | E73: 2 | F73: 9 | G73: 10 | H73: 22 | I73: 11 | K73: 1689A:niños:-os>-o+ | L73: 2 | M73: 1 | O73: 4 | P73: 22 | Q73: 31 | R73: 30 | S73: 44 | U73: 1627C:nuez:e++ | V73: 0.9849630057
K74: 1623A:beber:-ér>é+l | L74: 0 | M74: 0 | N74: 2 | O74: 1 | P74: 10 | Q74: 19 | R74: 11 | S74: 20 | U74: 1623A:beber:-ér>é+l | V74: 0.9863591594
K75: 1626C:tos:o++ | L75: 0 | M75: 0 | N75: 0 | O75: 2 | P75: 7 | Q75: 18 | R75: 10 | S75: 12 | U75: 1626C:tos:o++ | V75: 0.9925164961
K76: 1694C:clavel:-él>ér | L76: 0 | M76: 0 | N76: 0 | O76: 0 | P76: 0 | Q76: 5 | R76: 1 | S76: 1 | U76: 1694C:clavel:-él>ér | V76: 1
K78: Column | L78: CA | M78: SE | N78: H | O78: MA | P78: CO | Q78: GR | R78: J | S78: AL
K79: Yp | L79: -1 | M79: -0.9222766948 | N79: -0.7170696644 | O79: 0.4954655199 | P79: 0.944713443 | Q79: 0.9573520746 | R79: 0.9864310863 | S79: 1
K81: wZD.a | L81: SE | M81: CA | N81: H | O81: MA | P81: CO | Q81: J | R81: AL | S81: GR | U81: Row | V81: Xn | X81: wZD.a | Y81: Value
K82: 1615B:caracol:-ól>ó(:) | L82: 27 | M82: 15 | N82: 18 | O82: 16 | P82: 3 | Q82: 1 | R82: 2 | S82: 6 | U82: 1615B:caracol:-ól>ó(:) | V82: -1 | X82: MaxDiv.C: 7-4 | Y82: 0.5783274174
K83: 1623C:beber:-ér>é | L83: 24 | M83: 15 | N83: 19 | O83: 19 | P83: 2 | Q83: 0 | R83: 0 | S83: 4 | U83: 1623C:beber:-ér>é | V83: -0.9917837936 | X83: MaxDiv.V: 7-4 | Y83: 0.6274856925
K84: 1629C:voz:-óθ>ó | L84: 23 | M84: 14 | N84: 18 | O84: 13 | P84: 2 | Q84: 1 | R84: 1 | S84: 2 | U84: 1629C:voz:-óθ>ó | V84: -0.989742573 | X84: Sq.Dist | Y84: 0.4628182277
K85: 1626D:tos:-ós>ó | L85: 22 | M85: 11 | N85: 10 | O85: 9 | P85: 2 | Q85: 1 | R85: 0 | S85: 2 | U85: 1626D:tos:-ós>ó | V85: -0.9749440726 | X85: Rf.Dist | Y85: 0.5699729973
K86: 1618B:sol:-ól>ó(:) | L86: 21 | M86: 15 | N86: 15 | O86: 13 | P86: 1 | Q86: 1 | R86: 1 | S86: 6 | U86: 1618B:sol:-ól>ó(:) | V86: -0.9390487278 | X86: Sq.Correl. | Y86: 0.9124872815
K87: 1627C:nuez:-éθ>é | L87: 16 | M87: 12 | N87: 12 | O87: 9 | P87: 3 | Q87: 1 | R87: 0 | S87: 1 | U87: 1627C:nuez:-éθ>é | V87: -0.893471245 | X87: Rf.Correl. | Y87: 0.8124339012
K88: 1616B:árbol:-ol>o | L88: 30 | M88: 17 | N88: 23 | O88: 26 | P88: 18 | Q88: 11 | R88: 11 | S88: 23 | U88: 1616B:árbol:-ol>o | V88: -0.7372962119 | X88: Union | Y88: 0.9411071849
K89: 1695C:claveles:-e-es>-e-e: | L89: 1 | M89: 0 | N89: 0 | O89: 3 | P89: 1 | Q89: 2 | R89: 1 | S89: 1 | U89: 1695C:claveles:-e-es>-e-e: | V89: 0.1147496666 | X89: Tightness | Y89: 0.4956217163
K90: 1629A:voz:-óθ>óh | L90: 3 | M90: 0 | N90: 5 | O90: 1 | P90: 1 | Q90: 1 | R90: 3 | S90: 5 | U90: 1629A:voz:-óθ>óh | V90: 0.1815004596 | X90: G.K. Rank | Y90: 0.3482526628
K91: 1695A:claveles:e-es>-e-e+ | L91: 2 | M91: 0 | N91: 0 | O91: 4 | P91: 2 | Q91: 2 | R91: 3 | S91: 4 | U91: 1695A:claveles:e-es>-e-e+ | V91: 0.2756037394 | X91: G.K. Pred.Ver. | Y91: 0.07110208273
K92: 1693B:redes:redes>re+ | L92: 6 | M92: 4 | N92: 14 | O92: 12 | P92: 3 | Q92: 6 | R92: 6 | S92: 16 | U92: 1693B:redes:redes>re+ | V92: 0.3512368749 | X92: G.K. Pred.Hor. | Y92: 0.02066638507
K93: 1627A:nuez:-éθ>é+h | L93: 2 | M93: 1 | N93: 5 | O93: 0 | P93: 2 | Q93: 3 | R93: 3 | S93: 8 | U93: 1627A:nuez:-éθ>é+h | V93: 0.3905709108 | X93: G.K. Pred.All. | Y93: 0.04354838654
K94: 1533C:miel:el>e: | L94: 6 | M94: 4 | N94: 11 | O94: 16 | P94: 12 | Q94: 11 | R94: 3 | S94: 16 | U94: 1533C:miel:el>e: | V94: 0.4339018671 | X94: Cramer | Y94: 0.2519733518
K95: 1694C:clavel:-él>ér | L95: 0 | M95: 0 | N95: 0 | O95: 0 | P95: 0 | Q95: 1 | R95: 1 | S95: 5 | U95: 1694C:clavel:-él>ér | V95: 0.4646456611 | X95: Complement | Y95: 0.8640531301
K96: 1693C:redes:redes>reh | L96: 0 | M96: 2 | N96: 1 | O96: 0 | P96: 1 | Q96: 4 | R96: 0 | S96: 7 | U96: 1693C:redes:redes>reh | V96: 0.4676272193
K97: 1616A:árbol:-ol>o+ | L97: 1 | M97: 0 | N97: 2 | O97: 0 | P97: 6 | Q97: 8 | R97: 6 | S97: 6 | U97: 1616A:árbol:-ol>o+ | V97: 0.4842135063
K98: 1689B:niños:-os>oh[os) | L98: 1 | M98: 0 | N98: 4 | O98: 0 | P98: 2 | Q98: 3 | R98: 8 | S98: 8 | U98: 1689B:niños:-os>oh[os) | V98: 0.4869827822
K99: 1695D:claveles:e-es>-e-eh | L99: 1 | M99: 0 | N99: 3 | O99: 0 | P99: 5 | Q99: 4 | R99: 5 | S99: 9 | U99: 1695D:claveles:e-es>-e-eh | V99: 0.490985912
K100: 1618A:sol:-ól>ó+(:) | L100: 9 | M100: 3 | N100: 7 | O100: 13 | P100: 13 | Q100: 12 | R100: 11 | S100: 19 | U100: 1618A:sol:-ól>ó+(:) | V100: 0.5461462469
K101: 1623B:beber:-ér>é+ | L101: 7 | M101: 3 | N101: 4 | O101: 6 | P101: 13 | Q101: 17 | R101: 8 | S101: 15 | U101: 1623B:beber:-ér>é+ | V101: 0.5859627606
K102: 1694A:clavel:-él>-él | L102: 2 | M102: 1 | N102: 3 | O102: 3 | P102: 6 | Q102: 5 | R102: 15 | S102: 11 | U102: 1694A:clavel:-él>-él | V102: 0.590451898
K103: 1626A:tos:-ós>ó+h | L103: 2 | M103: 2 | N103: 6 | O103: 4 | P103: 7 | Q103: 13 | R103: 9 | S103: 17 | U103: 1626A:tos:-ós>ó+h | V103: 0.6229866141
K104: 1693A:redes:redes>rede | L104: 2 | M104: 1 | N104: 3 | O104: 1 | P104: 4 | Q104: 12 | R104: 18 | S104: 8 | U104: 1693A:redes:redes>rede | V104: 0.6393451801
K105: 1615A:caracol:-ól>ó+(:) | L105: 3 | M105: 3 | N105: 2 | O105: 5 | P105: 15 | Q105: 14 | R105: 11 | S105: 19 | U105: 1615A:caracol:-ól>ó+(:) | V105: 0.6718397385
K106: 1690A:pared:-éd>é+ | L106: 8 | M106: 0 | N106: 6 | O106: 10 | P106: 17 | Q106: 19 | R106: 11 | S106: 24 | U106: 1690A:pared:-éd>é+ | V106: 0.6915377266
K107: 1626C:tos:o++ | L107: 0 | M107: 0 | N107: 0 | O107: 2 | P107: 7 | Q107: 10 | R107: 12 | S107: 18 | U107: 1626C:tos:o++ | V107: 0.7094186843
K108: 1626C:tos:-ós>ó+ | L108: 7 | M108: 5 | N108: 7 | O108: 13 | P108: 18 | Q108: 17 | R108: 19 | S108: 27 | U108: 1626C:tos:-ós>ó+ | V108: 0.713657461
K109: 1623A:beber:-ér>é+l | L109: 0 | M109: 0 | N109: 2 | O109: 1 | P109: 10 | Q109: 11 | R109: 20 | S109: 19 | U109: 1623A:beber:-ér>é+l | V109: 0.7539173362
K110: 1627C:nuez:e++ | L110: 0 | M110: 0 | N110: 0 | O110: 5 | P110: 14 | Q110: 18 | R110: 18 | S110: 26 | U110: 1627C:nuez:e++ | V110: 0.8137475221
K111: 1627B:nuez:-éθ>é+ | L111: 13 | M111: 5 | N111: 7 | O111: 17 | P111: 20 | Q111: 25 | R111: 26 | S111: 39 | U111: 1627B:nuez:-éθ>é+ | V111: 0.8235272341
K112: 1533B:miel:el>e+ | L112: 10 | M112: 9 | N112: 17 | O112: 15 | P112: 20 | Q112: 29 | R112: 30 | S112: 46 | U112: 1533B:miel:el>e+ | V112: 0.8730911802
K113: 1695B:claveles:e-es>-e+-e+ | L113: 1 | M113: 0 | N113: 0 | O113: 7 | P113: 18 | Q113: 24 | R113: 21 | S113: 33 | U113: 1695B:claveles:e-es>-e+-e+ | V113: 0.8842446792
K114: 1694B:clavel:-él>é+, | L114: 6 | M114: 3 | N114: 0 | O114: 15 | P114: 20 | Q114: 24 | R114: 29 | S114: 40 | U114: 1694B:clavel:-él>é+, | V114: 0.9029899705
K115: 1629B:voz:-óθ>ó+ | L115: 5 | M115: 3 | N115: 3 | O115: 12 | P115: 22 | Q115: 30 | R115: 30 | S115: 44 | U115: 1629B:voz:-óθ>ó+ | V115: 0.9505002626
K116: 1689A:niños:-os>-o+ | L116: 2 | M116: 0 | N116: 1 | O116: 4 | P116: 22 | Q116: 31 | R116: 30 | S116: 44 | U116: 1689A:niños:-os>-o+ | V116: 1
K118: Column | L118: SE | M118: CA | N118: H | O118: MA | P118: CO | Q118: J | R118: AL | S118: GR
K119: Yp | L119: -1 | M119: -0.8737509776 | N119: -0.8115612385 | O119: -0.5697348794 | P119: 0.7679133784 | Q119: 0.8896832885 | R119: 0.9030569092 | S119: 1
K121: Dst.a | L121: SE | M121: H | N121: CA | O121: MA | P121: CO | Q121: J | R121: AL | S121: GR
K122: 1615B:caracol:-ól>ó(:) | L122: 27 | M122: 18 | N122: 15 | O122: 16 | P122: 3 | Q122: 1 | R122: 2 | S122: 6
K123: 1623C:beber:-ér>é | L123: 24 | M123: 19 | N123: 15 | O123: 19 | P123: 2 | S123: 4
K124: 1629C:voz:-óθ>ó | L124: 23 | M124: 18 | N124: 14 | O124: 13 | P124: 2 | Q124: 1 | R124: 1 | S124: 2
K125: 1626D:tos:-ós>ó | L125: 22 | M125: 10 | N125: 11 | O125: 9 | P125: 2 | Q125: 1 | S125: 2
K126: 1618B:sol:-ól>ó(:) | L126: 21 | M126: 15 | N126: 15 | O126: 13 | P126: 1 | Q126: 1 | R126: 1 | S126: 6
K127: 1616B:árbol:-ol>o | L127: 30 | M127: 23 | N127: 17 | O127: 26 | P127: 18 | Q127: 11 | R127: 11 | S127: 23
K128: 1627C:nuez:-éθ>é | L128: 16 | M128: 12 | N128: 12 | O128: 9 | P128: 3 | Q128: 1 | S128: 1
K129: 1695C:claveles:-e-es>-e-e: | L129: 1 | O129: 3 | P129: 1 | Q129: 2 | R129: 1 | S129: 1
K130: 1629A:voz:-óθ>óh | L130: 3 | M130: 5 | O130: 1 | P130: 1 | Q130: 1 | R130: 3 | S130: 5
K131: 1695A:claveles:e-es>-e-e+ | L131: 2 | O131: 4 | P131: 2 | Q131: 2 | R131: 3 | S131: 4
K132: 1616A:árbol:-ol>o+ | L132: 1 | M132: 2 | P132: 6 | Q132: 8 | R132: 6 | S132: 6
K133: 1694C:clavel:-él>ér | Q133: 1 | R133: 1 | S133: 5
K134: 1627A:nuez:-éθ>é+h | L134: 2 | M134: 5 | N134: 1 | P134: 2 | Q134: 3 | R134: 3 | S134: 8
K135: 1693C:redes:redes>reh | M135: 1 | N135: 2 | P135: 1 | Q135: 4 | S135: 7
K136: 1689B:niños:-os>oh[os) | L136: 1 | M136: 4 | P136: 2 | Q136: 3 | R136: 8 | S136: 8
K137: 1695D:claveles:e-es>-e-eh | L137: 1 | M137: 3 | P137: 5 | Q137: 4 | R137: 5 | S137: 9
K138: 1693B:redes:redes>re+ | L138: 6 | M138: 14 | N138: 4 | O138: 12 | P138: 3 | Q138: 6 | R138: 6 | S138: 16
K139: 1533C:miel:el>e: | L139: 6 | M139: 11 | N139: 4 | O139: 16 | P139: 12 | Q139: 11 | R139: 3 | S139: 16
K140: 1623B:beber:-ér>é+ | L140: 7 | M140: 4 | N140: 3 | O140: 6 | P140: 13 | Q140: 17 | R140: 8 | S140: 15
K141: 1694A:clavel:-él>-él | L141: 2 | M141: 3 | N141: 1 | O141: 3 | P141: 6 | Q141: 5 | R141: 15 | S141: 11
K142: 1693A:redes:redes>rede | L142: 2 | M142: 3 | N142: 1 | O142: 1 | P142: 4 | Q142: 12 | R142: 18 | S142: 8
K143: 1618A:sol:-ól>ó+(:) | L143: 9 | M143: 7 | N143: 3 | O143: 13 | P143: 13 | Q143: 12 | R143: 11 | S143: 19
K144: 1626A:tos:-ós>ó+h | L144: 2 | M144: 6 | N144: 2 | O144: 4 | P144: 7 | Q144: 13 | R144: 9 | S144: 17
K145: 1615A:caracol:-ól>ó+(:) | L145: 3 | M145: 2 | N145: 3 | O145: 5 | P145: 15 | Q145: 14 | R145: 11 | S145: 19
K146: 1626C:tos:o++ | O146: 2 | P146: 7 | Q146: 10 | R146: 12 | S146: 18
K147: 1690A:pared:-éd>é+ | L147: 8 | M147: 6 | O147: 10 | P147: 17 | Q147: 19 | R147: 11 | S147: 24
K148: 1623A:beber:-ér>é+l | M148: 2 | O148: 1 | P148: 10 | Q148: 11 | R148: 20 | S148: 19
K149: 1626C:tos:-ós>ó+ | L149: 7 | M149: 7 | N149: 5 | O149: 13 | P149: 18 | Q149: 17 | R149: 19 | S149: 27
K150: 1627C:nuez:e++ | O150: 5 | P150: 14 | Q150: 18 | R150: 18 | S150: 26
K151: 1695B:claveles:e-es>-e+-e+ | L151: 1 | O151: 7 | P151: 18 | Q151: 24 | R151: 21 | S151: 33
K152: 1627B:nuez:-éθ>é+ | L152: 13 | M152: 7 | N152: 5 | O152: 17 | P152: 20 | Q152: 25 | R152: 26 | S152: 39
K153: 1694B:clavel:-él>é+, | L153: 6 | N153: 3 | O153: 15 | P153: 20 | Q153: 24 | R153: 29 | S153: 40
K154: 1533B:miel:el>e+ | L154: 10 | M154: 17 | N154: 9 | O154: 15 | P154: 20 | Q154: 29 | R154: 30 | S154: 46
K155: 1629B:voz:-óθ>ó+ | L155: 5 | M155: 3 | N155: 3 | O155: 12 | P155: 22 | Q155: 30 | R155: 30 | S155: 44
K156: 1689A:niños:-os>-o+ | L156: 2 | M156: 1 | O156: 4 | P156: 22 | Q156: 31 | R156: 30 | S156: 44

Sheet ssff
A1: N.Factores | B1: -ss- | C1: #ss- | D1: -ff- | E1: #ff-
A2: R: León | B2: 4.8 | C2: 5.8 | D2: 1.4 | E2: 6.1
A3: R: Castilla la Vieja | B3: 9.7 | C3: 9.6 | D3: 1.5 | E3: 10.1
A4: R: Castilla la Nueva | B4: 1.8 | C4: 2.4 | D4: 0.5 | E4: 1.9
A5: R: Aragón | B5: 11 | C5: 0.9 | D5: 2.1 | E5: 3
A6: A: 1200 | B6: 16.8 | C6: 3.1 | D6: 1.2 | E6: 6.2
A7: A: 1225 | B7: 5.7 | C7: 0.2 | D7: 0.5 | E7: 0
A8: A: 1250 | B8: 12.2 | C8: 3.1 | D8: 1.5 | E8: 6.8
A9: A: 1275 | B9: 13.1 | C9: 13.8 | D9: 1.5 | E9: 12.4
A10: A: 1300 | B10: 13.4 | C10: 14.8 | D10: 4 | E10: 22.1
A11: A: 1325 | B11: 14.3 | C11: 20.5 | D11: 3.6 | E11: 23.8
A12: A: 1350 | B12: 8.9 | C12: 10.6 | D12: 3.1 | E12: 9.4
A13: A: 1375 | B13: 3.7 | C13: 3.7 | D13: 1.9 | E13: 3.3
A14: A: 1400 | B14: 6.6 | C14: 1 | D14: 0.9 | E14: 1.2
A15: A: 1425 | B15: 3.9 | C15: 0.5 | D15: 0.7 | E15: 1.1
A16: A: 1450 | B16: 7.8 | C16: 0.5 | D16: 1.1 | E16: 2.3
A17: A: 1475 | B17: 7.3 | C17: 0 | D17: 0.9 | E17: 0.8
A18: L: cortesana | B18: 0.6 | C18: 0.5 | D18: 0.7 | E18: 0.8
A19: L: albalaes | B19: 19.2 | C19: 19.4 | D19: 3 | E19: 12.9
A20: L: privilegios | B20: 7.9 | C20: 1.6 | D20: 3.1 | E20: 7.9
A21: L: gótica | B21: 2.8 | C21: 0.6 | D21: 0.6 | E21: 2.2
A22: L: gótica cursiva | B22: 10.7 | C22: 15.8 | D22: 2.8 | E22: 19.6
A23: L: gótica cursiva [albalaes] | B23: 9.2 | C23: 19.2 | D23: 1.8 | E23: 20.3
A24: L: gótica cursiva [precortesana] | B24: 0.2 | C24: 2 | D24: 0.3 | E24: 1.7
A25: L: gótica libraria | B25: 10.3 | C25: 9 | D25: 3.5 | E25: 11
A26: L: gótica redonda | B26: 12.8 | C26: 1.1 | D26: 0.7 | E26: 1.6
A27: L: humanística | B27: 3.3 | C27: 0 | D27: 3.3 | E27: 0
A28: L: humanística redonda | B28: 0.5 | C28: 3.7 | D28: 0 | E28: 1
A31: N.Factores | B31: -ss- | C31: #ss- | D31: -ff- | E31: #ff- | G31: N.Factores | H31: -ss- | I31: #ss- | J31: -ff- | K31: #ff- | M31: Average | N31: R. | O31: 1.000 (Max.) : (Min.) .000
A32: A1200 | B32: 16.8 | C32: 3.1 | D32: 1.2 | E32: 6.2 | G32: -ss- | H32: 1 | I32: 0.6036419628 | J32: 0.4693891485 | K32: 0.6930949902 | M32: -ss- | N32: 0
A33: A1225 | B33: 5.7 | C33: 0.2 | D33: 0.5 | E33: 0 | G33: #ss- | H33: 0.6036419628 | I33: 1 | J33: 0.8618103704 | K33: 0.9561054875 | M33: #ss- | N33: 0.5588788
A34: A1250 | B34: 12.2 | C34: 3.1 | D34: 1.5 | E34: 6.8 | G34: -ff- | H34: 0.4693891485 | I34: 0.8618103704 | J34: 1 | K34: 0.8972893331 | M34: #ff- | N34: 0.95610548
A35: A1275 | B35: 13.1 | C35: 13.8 | D35: 1.5 | E35: 12.4 | G35: #ff- | H35: 0.6930949902 | I35: 0.9561054875 | J35: 0.8972893331 | K35: 1 | M35: -ff- | N35: 0.87954986
A36: A1300 | B36: 13.4 | C36: 14.8 | D36: 4 | E36: 22.1
A37: A1325 | B37: 14.3 | C37: 20.5 | D37: 3.6 | E37: 23.8 | M37: Average | N37: R. | O37: 1.000 (Max.) : (Min.) .000
A38: A1350 | B38: 8.9 | C38: 10.6 | D38: 3.1 | E38: 9.4 | M38: -ss- | N38: 0
A39: A1375 | B39: 3.7 | C39: 3.7 | D39: 1.9 | E39: 3.3 | M39: #ss- | N39: 0.5588788
A40: A1400 | B40: 6.6 | C40: 1 | D40: 0.9 | E40: 1.2 | M40: #ff- | N40: 0.95610548
A41: A1425 | B41: 3.9 | C41: 0.5 | D41: 0.7 | E41: 1.1 | M41: -ff- | N41: 0.87954986
A42: A1450 | B42: 7.8 | C42: 0.5 | D42: 1.1 | E42: 2.3
A43: A1475 | B43: 7.3 | C43: 0 | D43: 0.9 | E43: 0.8
A45: N.Factores | B45: -ss- | G45: Dis. | H45: A1200 | I45: A1225 | J45: A1250 | K45: A1275 | L45: A1300 | M45: A1325 | N45: A1350 | O45: A1375 | P45: A1400 | Q45: A1425 | R45: A1450 | S45: A1475 | U45: Average | V45: R. | W45: 1.000 (Max.) : (Min.) .000
A46: A1200 | B46: 16.8 | G46: A1200 | H46: 0 | I46: 11.1 | J46: 4.6 | K46: 3.7 | L46: 3.4 | M46: 2.5 | N46: 7.9 | O46: 13.1 | P46: 10.2 | Q46: 12.9 | R46: 9 | S46: 9.5 | U46: A1200 | V46: 0
A47: A1225 | B47: 5.7 | G47: A1225 | H47: 11.1 | I47: 0 | J47: 6.5 | K47: 7.4 | L47: 7.7 | M47: 8.6 | N47: 3.2 | O47: 2 | P47: 0.9 | Q47: 1.8 | R47: 2.1 | S47: 1.6 | U47: A1250 | V47: 0.7490458
A48: A1250 | B48: 12.2 | G48: A1250 | H48: 4.6 | I48: 6.5 | J48: 0 | K48: 0.9 | L48: 1.2 | M48: 2.1 | N48: 3.3 | O48: 8.5 | P48: 5.6 | Q48: 8.3 | R48: 4.4 | S48: 4.9 | U48: A1275 | V48: 0.91984734
A49: A1275 | B49: 13.1 | G49: A1275 | H49: 3.7 | I49: 7.4 | J49: 0.9 | K49: 0 | L49: 0.3 | M49: 1.2 | N49: 4.2 | O49: 9.4 | P49: 6.5 | Q49: 9.2 | R49: 5.3 | S49: 5.8 | U49: A1300 | V49: 0.97709924
A50: A1300 | B50: 13.4 | G50: A1300 | H50: 3.4 | I50: 7.7 | J50: 1.2 | K50: 0.3 | L50: 0 | M50: 0.9 | N50: 4.5 | O50: 9.7 | P50: 6.8 | Q50: 9.5 | R50: 5.6 | S50: 6.1 | U50: A1325 | V50: 0.879771
A51: A1325 | B51: 14.3 | G51: A1325 | H51: 2.5 | I51: 8.6 | J51: 2.1 | K51: 1.2 | L51: 0.9 | M51: 0 | N51: 5.4 | O51: 10.6 | P51: 7.7 | Q51: 10.4 | R51: 6.5 | S51: 7 | U51: A1225 | V51: 0.2624046
A52: A1350 | B52: 8.9 | G52: A1350 | H52: 7.9 | I52: 3.2 | J52: 3.3 | K52: 4.2 | L52: 4.5 | M52: 5.4 | N52: 0 | O52: 5.2 | P52: 2.3 | Q52: 5 | R52: 1.1 | S52: 1.6 | U52: A1400 | V52: 0.93129772
A53: A1375 | B53: 3.7 | G53: A1375 | H53: 13.1 | I53: 2 | J53: 8.5 | K53: 9.4 | L53: 9.7 | M53: 10.6 | N53: 5.2 | O53: 0 | P53: 2.9 | Q53: 0.2 | R53: 4.1 | S53: 3.6 | U53: A1350 | V53: 0.84160304
A54: A1400 | B54: 6.6 | G54: A1400 | H54: 10.2 | I54: 0.9 | J54: 5.6 | K54: 6.5 | L54: 6.8 | M54: 7.7 | N54: 2.3 | O54: 2.9 | P54: 0 | Q54: 2.7 | R54: 1.2 | S54: 0.7 | U54: A1450 | V54: 0.89694656
A55: A1425 | B55: 3.9 | G55: A1425 | H55: 12.9 | I55: 1.8 | J55: 8.3 | K55: 9.2 | L55: 9.5 | M55: 10.4 | N55: 5 | O55: 0.2 | P55: 2.7 | Q55: 0 | R55: 3.9 | S55: 3.4 | U55: A1475 | V55: 0.96183206
A56: A1450 | B56: 7.8 | G56: A1450 | H56: 9 | I56: 2.1 | J56: 4.4 | K56: 5.3 | L56: 5.6 | M56: 6.5 | N56: 1.1 | O56: 4.1 | P56: 1.2 | Q56: 3.9 | R56: 0 | S56: 0.5 | U56: A1375 | V56: 0.7414122
A57: A1475 | B57: 7.3 | G57: A1475 | H57: 9.5 | I57: 1.6 | J57: 4.9 | K57: 5.8 | L57: 6.1 | M57: 7 | N57: 1.6 | O57: 3.6 | P57: 0.7 | Q57: 3.4 | R57: 0.5 | S57: 0 | U57: A1425 | V57: 0.984732824

Sheet prox
A1: 入力行列
A2: M | B2: A | C2: B | D2: C | E2: D | F2: E
A3: h1 | B3: 10 | C3: 19 | D3: 14 | E3: 7 | F3: 12
A4: h2 | B4: 11 | C4: 7 | D4: 10 | E4: 0 | F4: 1 | H4: ND=Σ(Xi-Yi)^2/(ΣXi^2+ΣYi^2)
A5: h3 | B5: 0 | C5: 0 | D5: 1 | E5: 12 | F5: 1
A6: h4 | B6: 0 | C6: 1 | D6: 2 | E6: 3 | F6: 3
A8: MD | B8: X:C | C8: X:0 | D8: X-Y | E8: (X-Y)^2 | F8: X^2 | G8: Y^2 | H8: X^2+Y^2 | I8: (X-Y)2/(X2+Y2) | M8: M | N8: X | O8: Y | P8: X-Y | Q8: (X-Y)2 | R8: X2 | S8: Y2 | T8: X2+Y2 | U8: (X-Y)2/(X2+Y2)
A9: h1 | B9: 10 | C9: 10 | D9: =B9-C9 -> 0 | E9: =D9^2 -> 0 | F9: =B9^2 -> 100 | G9: 100 | H9: =F9+G9 -> 200 | I9: =IF(H9=0, 1, E9/H9) -> 0 | M9: h1 | N9: 10 | O9: 19 | P9: -9 | Q9: 81 | R9: 100 | S9: 361 | T9: 461 | U9: 0.176
A10: h2 | B10: 11 | C10: 10 | D10: =B10-C10 -> 1 | E10: =D10^2 -> 1 | F10: 121 | G10: 100 | H10: =F10+G10 -> 221 | I10: =IF(H10=0, 1, E10/H10) -> 0.004524886878 | M10: h2 | N10: 11 | O10: 7 | P10: 4 | Q10: 16 | R10: 121 | S10: 49 | T10: 170 | U10: 0.094
A11: h3 | B11: 99 | C11: 10 | D11: =B11-C11 -> 89 | E11: =D11^2 -> 7921 | F11: 9801 | G11: 100 | H11: =F11+G11 -> 9901 | I11: =IF(H11=0, 1, E11/H11) -> 0.8000202 | M11: h3 | N11: 0 | O11: 0 | P11: 0 | Q11: 0 | R11: 0 | S11: 0 | T11: 0 | U11: 0
A12: h4 | B12: 9999 | C12: 10 | D12: =B12-C12 -> 9989 | E12: =D12^2 -> 99780121 | F12: 99980001 | G12: 100 | H12: =F12+G12 -> 99980101 | I12: =IF(H12=0, 1, E12/H12) -> 0.997999802 | M12: h4 | N12: 0 | O12: 1 | P12: -1 | Q12: 1 | R12: 0 | S12: 1 | T12: 1 | U12: 1
I13: =AVERAGE(I9:I12) -> 0.4506362222 | T13: MD | U13: 0.317
A15: RD | B15: X:C | C15: X:0 | D15: X-Y | E15: (X-Y)^2 | F15: X^2 | G15: Y^2 | H15: X^2+Y^2
A16: h1 | B16: 10 | C16: 0.01 | D16: =B16-C16 -> 9.99 | E16: =D16^2 -> 99.8001 | F16: =B16^2 -> 100 | G16: 0.0001 | H16: =F16+G16 -> 100.0001
A17: h2 | B17: 11 | C17: 0.01 | D17: =B17-C17 -> 10.99 | E17: =D17^2 -> 120.7801 | F17: 121 | G17: 0.0001 | H17: =F17+G17 -> 121.0001
A18: h3 | B18: 99 | C18: 2 | D18: =B18-C18 -> 97 | E18: =D18^2 -> 9409 | F18: 9801 | G18: 4 | H18: =F18+G18 -> 9805
A19: h4 | B19: 99 | C19: 0.01 | D19: =B19-C19 -> 98.99 | E19: =D19^2 -> 9799.0201 | F19: 9801 | G19: 0.0001 | H19: =F19+G19 -> 9801.0001 | I19: RD | J19: RP
D20: 和 → | E20: =SUM(E16:E19) -> 19428.6003 | G20: 和 → | H20: =SUM(H16:H19) -> 19827.0003 | I20: =E20/H20 -> 0.9799061888 | J20: =1-I20 -> 0.02009381117
A22: ND=Σ(Xi-Yi)^2/(ΣXi^2+ΣYi^2)
B24: 選択軸 | E24: 分子 | H24: 分母
A25: M | B25: X:A | C25: Y:C | D25: X-Y | E25: (X-Y)^2 | F25: X^2 | G25: Y^2 | H25: X^2+Y^2
A26: h1 | B26: 10 | C26: 14 | D26: =B26-C26 -> -4 | E26: =D26^2 -> 16 | F26: =B26^2 -> 100 | G26: 196 | H26: =F26+G26 -> 296
A27: h2 | B27: 11 | C27: 10 | D27: =B27-C27 -> 1 | E27: =D27^2 -> 1 | F27: 121 | G27: 100 | H27: =F27+G27 -> 221
A28: h3 | B28: 0 | C28: 1 | D28: =B28-C28 -> -1 | E28: =D28^2 -> 1 | F28: 0 | G28: 1 | H28: =F28+G28 -> 1
A29: h4 | B29: 0 | C29: 2 | D29: =B29-C29 -> -2 | E29: =D29^2 -> 4 | F29: 0 | G29: 4 | H29: =F29+G29 -> 4 | I29: RD | J29: RP
D30: 和 → | E30: =SUM(E26:E29) -> 22 | G30: 和 → | H30: =SUM(H26:H29) -> 522 | I30: =E30/H30 -> 0.04214559387 | J30: =1-I30 -> 0.9578544061
A32: ↑距離計測の問題：h1,h2よりh3,h4の影響大→個体を限定化・標準化
B34: 選択軸 | E34: 分子 | H34: 分母
A35: M | B35: X:D | C35: Y:E | D35: X-Y | E35: (X-Y)^2 | F35: X^2 | G35: Y^2 | H35: X^2+Y^2
A36: h1 | B36: 7 | C36: 12 | D36: =B36-C36 -> -5 | E36: =D36^2 -> 25 | F36: =B36^2 -> 49 | G36: 144 | H36: =F36+G36 -> 193
A37: h2 | B37: 0 | C37: 1 | D37: =B37-C37 -> -1 | E37: =D37^2 -> 1 | F37: 0 | G37: 1 | H37: =F37+G37 -> 1
A38: h3 | B38: 12 | C38: 1 | D38: =B38-C38 -> 11 | E38: =D38^2 -> 121 | F38: 144 | G38: 1 | H38: =F38+G38 -> 145
A39: h4 | B39: 3 | C39: 3 | D39: =B39-C39 -> 0 | E39: =D39^2 -> 0 | F39: 9 | G39: 9 | H39: =F39+G39 -> 18 | I39: RD | J39: RP
D40: 和 → | E40: =SUM(E36:E39) -> 147 | G40: 和 → | H40: =SUM(H36:H39) -> 357 | I40: =E40/H40 -> 0.4117647059 | J40: =1-I40 -> 0.5882352941
A42: ↑上と同じ問題
A44: 行限定化
A45: LSr | B45: A | C45: B | D45: C | E45: D | F45: E
A46: h1 | B46: 0.25 | C46: 1 | D46: 0.5833333333 | E46: 0 | F46: 0.4166666667
A47: h2 | B47: 1 | C47: 0.6363636364 | D47: 0.9090909091 | E47: 0 | F47: 0.09090909091
A48: h3 | B48: 0 | C48: 0 | D48: 0.08333333333 | E48: 1 | F48: 0.08333333333
A49: h4 | B49: 0 | C49: 0.3333333333 | D49: 0.6666666667 | E49: 1 | F49: 1
A52: M | B52: X:A | C52: Y:C | D52: X-Y | E52: (X-Y)^2 | F52: X^2 | G52: Y^2 | H52: X^2+Y^2
A53: h1 | B53: 10 | C53: -10 | D53: =B53-C53 -> 20 | E53: =D53^2 -> 400 | F53: =B53^2 -> 100 | G53: 100 | H53: =F53+G53 -> 200
A54: h2 | B54: 11 | C54: -11 | D54: =B54-C54 -> 22 | E54: =D54^2 -> 484 | F54: 121 | G54: 121 | H54: =F54+G54 -> 242
A55: h3 | B55: 2 | C55: -2 | D55: =B55-C55 -> 4 | E55: =D55^2 -> 16 | F55: 4 | G55: 4 | H55: =F55+G55 -> 8
A56: h4 | B56: 3 | C56: -10 | D56: =B56-C56 -> 13 | E56: =D56^2 -> 169 | F56: 9 | G56: 100 | H56: =F56+G56 -> 109 | I56: RD | J56: RP
D57: 和 → | E57: =SUM(E53:E56) -> 1069 | G57: 和 → | H57: =SUM(H53:H56) -> 559 | I57: =E57/H57 -> 1.91234347 | J57: =1-I57 -> -0.9123434705
A60: M | B60: X:A | C60: Y:C | D60: X-Y | E60: (X-Y)^2 | F60: X^2 | G60: Y^2 | H60: X^2+Y^2 | I60: RD | J60: RP
A61: h1 | B61: 2 | C61: 3 | D61: =B61-C61 -> -1 | E61: =D61^2 -> 1 | F61: =B61^2 -> 4 | G61: 9 | H61: =F61+G61 -> 13 | I61: =E61/H61 -> 0.07692307692 | J61: =1-I61 -> 0.9230769231
A62: h2 | B62: 20 | C62: 30 | D62: =B62-C62 -> -10 | E62: =D62^2 -> 100 | F62: 400 | G62: 900 | H62: =F62+G62 -> 1300 | I62: =E62/H62 -> 0.07692307692 | J62: =1-I62 -> 0.9230769231
A63: h3 | B63: 200 | C63: 300 | D63: =B63-C63 -> -100 | E63: =D63^2 -> 10000 | F63: 40000 | G63: 90000 | H63: =F63+G63 -> 130000 | I63: =E63/H63 -> 0.07692307692 | J63: =1-I63 -> 0.9230769231
A64: h4 | B64: 2000 | C64: 3000 | D64: =B64-C64 -> -1000 | E64: =D64^2 -> 1000000 | F64: 4000000 | G64: 9000000 | H64: =F64+G64 -> 13000000 | I64: =E64/H64 -> 0.07692307692 | J64: =1-I64 -> 0.9230769231
D65: 和 → | E65: =SUM(E61:E64) -> 1010101 | G65: 和 → | H65: =SUM(H61:H64) -> 13131313 | I65: =E65/H65 -> 0.07692307692 | J65: =1-I65 -> 0.9230769231
A67: M | B67: X:A | C67: Y:C | D67: X-Y | E67: (X-Y)^2 | F67: X^2 | G67: Y^2 | H67: X^2+Y^2 | I67: RD | J67: RP
A68: h1 | B68: 10 | C68: 19 | D68: =B68-C68 -> -9 | E68: =D68^2 -> 81 | F68: =B68^2 -> 100 | G68: 361 | H68: =F68+G68 -> 461 | I68: =E68/H68 -> 0.1757049892 | J68: =1-I68 -> 0.8242950108
A69: h2 | B69: 11 | C69: 7 | D69: =B69-C69 -> 4 | E69: =D69^2 -> 16 | F69: 121 | G69: 49 | H69: =F69+G69 -> 170 | I69: =E69/H69 -> 0.09411764706 | J69: =1-I69 -> 0.9058823529
A70: h3 | B70: 0 | C70: 0 | D70: =B70-C70 -> 0 | E70: =D70^2 -> 0 | F70: 0 | G70: 0 | H70: =F70+G70 -> 0 | I70: 0 | J70: =1-I70 -> 1
A71: h4 | B71: 0 | C71: 1 | D71: =B71-C71 -> -1 | E71: =D71^2 -> 1 | F71: 0 | G71: 1 | H71: =F71+G71 -> 1 | I71: =E71/H71 -> 1 | J71: =1-I71 -> 0
D72: 和 → | E72: =SUM(E68:E71) -> 98 | G72: 和 → | H72: =SUM(H68:H71) -> 632 | I72: =E72/H72 -> 0.1550632911 | J72: =1-I72 -> 0.8449367089
A74: M | B74: X:A | C74: Y:C | D74: X-Y | E74: (X-Y)^2 | F74: X^2 | G74: Y^2 | H74: X^2+Y^2 | I74: RD | J74: RP
A75: h1 | B75: 0.9027172425 | C75: 1.619890032 | D75: =B75-C75 -> -0.7171727895 | E75: =D75^2 -> 0.5143368101 | F75: =B75^2 -> 0.8148984199 | G75: 2.624043716 | H75: =F75+G75 -> 3.438942136 | I75: =E75/H75 -> 0.1495625078 | J75: =1-I75 -> 0.8504374922
A76: h2 | B76: 1.092762978 | C76: 0.03305898025 | D76: =B76-C76 -> 1.059703998 | E76: =D76^2 -> 1.122972562 | F76: 1.194130926 | G76: 0.001092896175 | H76: =F76+G76 -> 1.195223822 | I76: =E76/H76 -> 0.9395500173 | J76: =1-I76 -> 0.06044998274
A77: h3 | B77: -0.9977401101 | C77: -0.8925924666 | D77: =B77-C77 -> -0.1051476435 | E77: =D77^2 -> 0.01105602693 | F77: 0.9954853273 | G77: 0.7967213115 | H77: =F77+G77 -> 1.792206639 | I77: =E77/H77 -> 0.006168946533 | J77: =1-I77 -> 0.9938310535
A78: h4 | B78: -0.9977401101 | C78: -0.7603565456 | D78: =B78-C78 -> -0.2373835645 | E78: =D78^2 -> 0.05635095668 | F78: 0.9954853273 | G78: 0.5781420765 | H78: =F78+G78 -> 1.573627404 | I78: =E78/H78 -> 0.03580959288 | J78: =1-I78 -> 0.9641904071
D79: 和 → | E79: =SUM(E75:E78) -> 1.704716356 | G79: 和 → | H79: =SUM(H75:H78) -> 8 | I79: =E79/H79 -> 0.2130895445 | J79: =1-I79 -> 0.7869104555
I81: =AVERAGE(I75:I78) -> 0.2827727661 | J81: =AVERAGE(J75:J78) -> 0.7172272339
A84: M | B84: X:A | C84: Y:B | D84: X-Y | E84: (X-Y)^2 | F84: X^2 | G84: Y^2 | H84: X^2+Y^2 | I84: (X-Y)^2/(X^2+Y^2)
A85: h1 | B85: 10 | C85: -10 | D85: =B85-C85 -> 20 | E85: =D85^2 -> 400 | F85: =B85^2 -> 100 | G85: 100 | H85: =F85+G85 -> 200 | I85: =E85/H85 -> 2
A86: h2 | B86: 11 | C86: -11 | D86: =B86-C86 -> 22 | E86: =D86^2 -> 484 | F86: 121 | G86: 121 | H86: =F86+G86 -> 242 | I86: =E86/H86 -> 2
A87: h3 | B87: 2 | C87: -2 | D87: =B87-C87 -> 4 | E87: =D87^2 -> 16 | F87: 4 | G87: 4 | H87: =F87+G87 -> 8 | I87: =E87/H87 -> 2
A88: h4 | B88: 3 | C88: -100 | D88: =B88-C88 -> 103 | E88: =D88^2 -> 10609 | F88: 9 | G88: 10000 | H88: =F88+G88 -> 10009 | I88: =E88/H88 -> 1.059946049
H89: RD | I89: =AVERAGE(I85:I88) -> 1.764986512
H90: RR | I90: =1-I89 -> -0.7649865121

Sheet binE
A1: BinE(n*g, n, 0.99) | B1: g = 0.2 | C1: 0.4 | D1: 0.6 | E1: 0.8 | F1: 1 | N1: =bin -> 
A2: n=10 | B2: 0.016 | C2: 0.093 | D2: 0.218 | E2: 0.388 | F2: 0.631
A3: 100 | B3: 0.116 | C3: 0.287 | D3: 0.479 | E3: 0.691 | F3: 0.955
A4: 1000 | B4: 0.171 | C4: 0.364 | D4: 0.563 | E4: 0.769 | F4: 0.995
A5: 10000 | B5: 0.191 | C5: 0.389 | D5: 0.589 | E5: 0.791 | F5: 1
A6: 100000 | B6: 0.197 | C6: 0.396 | D6: 0.596 | E6: 0.797 | F6: 1
A7: 1000000 | B7: 0.199 | C7: 0.399 | D7: 0.599 | E7: 0.799 | F7: 1
A8: 10000000 | B8: 0.2 | C8: 0.4 | D8: 0.6 | E8: 0.8 | F8: 1
A9: 100000000 | B9: 0.2 | C9: 0.4 | D9: 0.6 | E9: 0.8 | F9: 1
A10: 1000000000 | B10: 0.2 | C10: 0.4 | D10: 0.6 | E10: 0.8 | F10: 1
A12: BinE(n*g, n, 0.99) | B12: 0.1 | C12: 0.2 | D12: 0.3 | E12: 0.4 | F12: 0.5 | G12: 0.6 | H12: 0.7 | I12: 0.8 | J12: 0.9 | K12: 1
A13: 10 | B13: =BinE($A13*B$12,$A13,0.99) -> 0.001004457474 | C13: =BinE($A13*C$12,$A13,0.99) -> 0.01553821564 | D13: 0.04750823975 | E13: 0.09321594238 | F13: 0.1504440308 | G13: 0.2183380127 | H13: 0.2971191406 | I13: 0.3882598877 | J13: 0.4956512451 | K13: 0.6309585571
A14: 100 | B14: =BinE($A14*B$12,$A14,0.99) -> 0.04235267639 | C14: 0.1155910492 | D14: 0.1983146667 | E14: 0.2870807648 | F14: 0.3807182312 | G14: 0.4789047241 | H14: 0.581905365 | I14: 0.6907920837 | J14: 0.8086700439 | K14: 0.9549922943
A15: 1000 | B15: 0.07905673981 | C15: 0.1713161469 | D15: 0.2666416168 | E15: 0.3639192581 | F15: 0.4627780914 | G15: 0.563117981 | H15: 0.6650362015 | I15: 0.768901825 | J15: 0.8758144379 | K15: 0.9954054356
A16: 10000 | B16: 0.0931302309 | C16: 0.190764904 | D16: 0.28937006 | E16: 0.3885946274 | F16: 0.4883201122 | G16: 0.5885152817 | H16: 0.689211607 | I16: 0.7905266285 | J16: 0.8928120136 | K16: 0.9995395839
A17: 100000 | B17: 0.0978038311 | C17: 0.1970642805 | D17: 0.2966317534 | E17: 0.3963950872 | F17: 0.4963167906 | G17: 0.5963871479 | H17: 0.6966159344 | I17: 0.7970405817 | J17: 0.897772193 | K17: 0.9999539498
A18: 1000000 | B18: 0.09930317104 | C18: 0.1990701556 | D18: 0.2989342213 | E18: 0.3988602161 | F18: 0.4988363385 | G18: 0.5988594294 | H18: 0.6989326477 | I18: 0.7990677655 | J18: 0.899300009 | K18: 0.9999953948
